Workbook

Sheet Summary
A1: Appendix 4.15
A2: Transmission and Distribution Avoided Capacity
B4: Avoided Transmission & Distribution Capacity | L4: Inputs & Summary
B6: Model Inputs & Drivers | F6: Project Years | J6: Projects Analyzed
B8: Voder Penetration* | D8: 0.0063744 | F8: Earliest Year | H8: =MIN('Growth Projects 2007-2026'!H:H) -> 2007 | J8: Projects Deferred | L8: =ROUND(COUNTIF('Growth Projects 2007-2026'!T:T,">0"),0) -> 9
B9: Base Year | D9: 2022 | F9: Latest Year | H9: =MAX('Growth Projects 2007-2026'!H:H) -> 2026 | J9: Total Projects | L9: =COUNT('Growth Projects 2007-2026'!B5:B455) -> 447
B10: Cost Capital | D10: 0.0712 | F10: Project Window | H10: =H9-H8+1 -> 20 | J10: Deferred/Total | L10: =L8/L9 -> 0.02013422819
B11: Inflation | D11: 0.0257 | J11: Project Years Reviewed | L11: 2007 to 2026
B12: IRP Future Inflation | D12: =0.023 -> 0.023
B13: Net Change | D13: =D10-D11 -> 0.0455
B14: Expected Solar Life | D14: 20
B16: Project Savings Summary
B18: Project Type | D18: Savings
B19: Distribution Lines | D19: ='Growth Projects 2007-2026'!V216 -> 183526.2989
B20: Distribution Substation | D20: ='Growth Projects 2007-2026'!V344 -> 123737.0028
B21: Distribution Subtotal | D21: =D19+D20 -> 307263.3017
B22: Transmission | D22: ='Growth Projects 2007-2026'!V457 -> 0
B23: Total | D23: =D21+D22 -> 307263.3017
B25: Total Savings/Year | D25: =D23/H10 -> 15363.16508
B27: * Maximum peak exported power divided by the product of the total number of customers by rate class times average customer generation size by rate class.

Sheet Growth Projects 2007-2026
A1: =Summary!A1 -> Appendix 4.15
A2: =Summary!A2 -> Transmission and Distribution Avoided Capacity
B4: ID | C4: Location | D4: Project Description | E4: Project Category | F4: Project Type (T,12.5, 34.5, C) | G4: Peak Season | H4: Year Installed | I4: Project Cost when project was installed Dollars | J4: Project Cost in 2022 Dollars | K4: In-Service Load (MW) | L4: In-Service Load FIXED (MW) | M4: Planning Capacity (MW) | N4: Design Capacity (MW) | O4: Growth Rate | P4: Gap | Q4: Solar Contribution at Peak | R4: Calculated Deferral (Yrs) | S4: Max Deferral (Yrs) | T4: Actual Deferral (Yrs) | U4: Savings ($)
B5: 1 | C5: CNCK11 | D5: CNCK-011 Rebuild 6C to 00 ACSR, 5 miles | E5: Distribution | F5: C | G5: S | H5: 2007 | I5: 298463.9958 | J5: 322091.8397 | K5: 2.223 | L5: 2.223 | M5: 2.131 | N5: =IF(OR(G5="S",G5="D"),VLOOKUP(F5,'Component Capacity'!$C$8:$F$12,4,FALSE)*M5,IF(G5="W",VLOOKUP(F5,'Component Capacity'!$C$16:$F$20,4,FALSE),"OOPS")) -> 2.367777778 | O5: 0.05706134094 | P5: N/A | Q5: =IF((VLOOKUP($C5,'Project Customer Details'!$B$6:$Q$1095,16,FALSE))<((VLOOKUP($C5,'Project Customer Details'!$B$6:$Q$1095,4,FALSE)*$L5)),VLOOKUP($C5,'Project Customer Details'!$B$6:$Q$1095,16,FALSE), (VLOOKUP($C5,'Project Customer Details'!$B$6:$Q$1095,4,FALSE)*$L5)) -> 0.02659686189 | R5: =IF((L5-Q5)<M5,CEILING(LN((M5+Q5)/L5)/LN(1+O5),1),0) -> 0 | S5: =IF(L5<N5,CEILING(LN((N5)/L5)/LN(1+O5),1),0) -> 2 | T5: =MIN(R5,S5,Summary!$D$14) -> 0 | U5: =J5-(J5/(1+(Summary!$D$13))^(T5)) -> 0
B6: 2 | C6: MRDN12 | D6: MRDN-016 Rebuild feeder and transfer load | E6: Distribution | F6: 12.5 | G6: S | H6: 2019 | I6: 375768.0211 | J6: 405515.6231 | K6: 10.12478711 | L6: 10.12478711 | M6: 10 | N6: =IF(OR(G6="S",G6="D"),VLOOKUP(F6,'Component Capacity'!$C$8:$F$12,4,FALSE)*M6,IF(G6="W",VLOOKUP(F6,'Component Capacity'!$C$16:$F$20,4,FALSE),"OOPS")) -> 12.5 | O6: 0.03242873406 | P6: N/A | Q6: =IF((VLOOKUP($C6,'Project Customer Details'!$B$6:$Q$1095,16,FALSE))<((VLOOKUP($C6,'Project Customer Details'!$B$6:$Q$1095,4,FALSE)*$L6)),VLOOKUP($C6,'Project Customer Details'!$B$6:$Q$1095,16,FALSE), (VLOOKUP($C6,'Project Customer Details'!$B$6:$Q$1095,4,FALSE)*$L6)) -> 0.01499621097 | R6: 0 | S6: =IF(L6<N6,CEILING(LN((N6)/L6)/LN(1+O6),1),0) -> 7 | T6: =MIN(R6,S6,Summary!$D$14) -> 0 | U6: =J6-(J6/(1+(Summary!$D$13))^(T6)) -> 0
B7: 3 | C7: PAET12 | D7: PAET - New PAET-014 feeder - north section to relieve approx 4 MW of PAET12 load | E7: Distribution | F7: 12.5 | G7: W | H7: 2019 | I7: 287595.8746 | J7: 310363.3459 | K7: 11.3 | L7: 11.3 | M7: 10 | N7: =IF(OR(G7="S",G7="D"),VLOOKUP(F7,'Component Capacity'!$C$8:$F$12,4,FALSE)*M7,IF(G7="W",VLOOKUP(F7,'Component Capacity'!$C$16:$F$20,4,FALSE),"OOPS")) -> 1.25 | O7: 0.02 | P7: N/A | Q7: =IF((VLOOKUP($C7,'Project Customer Details'!$B$6:$Q$1095,16,FALSE))<((VLOOKUP($C7,'Project Customer Details'!$B$6:$Q$1095,4,FALSE)*$L7)),VLOOKUP($C7,'Project Customer Details'!$B$6:$Q$1095,16,FALSE), (VLOOKUP($C7,'Project Customer Details'!$B$6:$Q$1095,4,FALSE)*$L7)) -> 0.04251451567 | R7: 0 | S7: 0 | T7: =MIN(R7,S7,Summary!$D$14) -> 0 | U7: =J7-(J7/(1+(Summary!$D$13))^(T7)) -> 0
B8: 4 | C8: MORA44 | D8: MORA Shift MORA-044 feeder load to HSDL-014, rebuild 0.7-miles of dist line, install a new step up transformer bank | E8: Distribution | F8: 34.5 | G8: S | H8: 2019 | I8: 285354 | J8: 307943.9937 | K8: 20.12 | L8: 20.12 | M8: 20 | N8: =IF(OR(G8="S",G8="D"),VLOOKUP(F8,'Component Capacity'!$C$8:$F$12,4,FALSE)*M8,IF(G8="W",VLOOKUP(F8,'Component Capacity'!$C$16:$F$20,4,FALSE),"OOPS")) -> 25 | O8: 0.035 | P8: N/A | Q8: =IF((VLOOKUP($C8,'Project Customer Details'!$B$6:$Q$1095,16,FALSE))<((VLOOKUP($C8,'Project Customer Details'!$B$6:$Q$1095,4,FALSE)*$L8)),VLOOKUP($C8,'Project Customer Details'!$B$6:$Q$1095,16,FALSE), (VLOOKUP($C8,'Project Customer Details'!$B$6:$Q$1095,4,FALSE)*$L8)) -> 0.04972359394 | R8: 0 | S8: 7 | T8: =MIN(R8,S8,Summary!$D$14) -> 0 | U8: =J8-(J8/(1+(Summary!$D$13))^(T8)) -> 0
B9: 5 | C9: CNCL11 | D9: CNCL-011 Part 2/2 Reconductor approx. 2.8 miles from F244 | E9: Distribution | F9: C | G9: W | H9: 2019 | I9: 811581.1823 | J9: 875829.8482 | K9: 4.232 | L9: 4.232 | M9: 4.185 | N9: =IF(OR(G9="S",G9="D"),VLOOKUP(F9,'Component Capacity'!$C$8:$F$12,4,FALSE)*M9,IF(G9="W",VLOOKUP(F9,'Component Capacity'!$C$16:$F$20,4,FALSE),"OOPS")) -> 1.111111111 | O9: 0.02222222222 | P9: N/A | Q9: =IF((VLOOKUP($C9,'Project Customer Details'!$B$6:$Q$1095,16,FALSE))<((VLOOKUP($C9,'Project Customer Details'!$B$6:$Q$1095,4,FALSE)*$L9)),VLOOKUP($C9,'Project Customer Details'!$B$6:$Q$1095,16,FALSE), (VLOOKUP($C9,'Project Customer Details'!$B$6:$Q$1095,4,FALSE)*$L9)) -> 0 | R9: 0 | S9: 0 | T9: =MIN(R9,S9,Summary!$D$14) -> 0 | U9: =J9-(J9/(1+(Summary!$D$13))^(T9)) -> 0
B10: 6 | C10: LCST42 | D10: LCST Lines work for two new 34.5-kV feeders, 045 and 046 | E10: Distribution | F10: 34.5 | G10: S | H10: 2019 | I10: 706893.3584 | J10: 762854.4331 | K10: 22.43 | L10: 22.43 | M10: 20 | N10: =IF(OR(G10="S",G10="D"),VLOOKUP(F10,'Component Capacity'!$C$8:$F$12,4,FALSE)*M10,IF(G10="W",VLOOKUP(F10,'Component Capacity'!$C$16:$F$20,4,FALSE),"OOPS")) -> 25 | O10: 0.015 | P10: N/A | Q10: =IF((VLOOKUP($C10,'Project Customer Details'!$B$6:$Q$1095,16,FALSE))<((VLOOKUP($C10,'Project Customer Details'!$B$6:$Q$1095,4,FALSE)*$L10)),VLOOKUP($C10,'Project Customer Details'!$B$6:$Q$1095,16,FALSE), (VLOOKUP($C10,'Project Customer Details'!$B$6:$Q$1095,4,FALSE)*$L10)) -> 0.007670151426 | R10: 0 | S10: 8 | T10: =MIN(R10,S10,Summary!$D$14) -> 0 | U10: =J10-(J10/(1+(Summary!$D$13))^(T10)) -> 0
B11: 7 | C11: LCST45 | D11: LCST Construct a new step down transformer bank in feeder LCST0-045 to relieve existing TX57 overloads | E11: Distribution | F11: T | G11: S | H11: 2019 | I11: 481914.1832 | J11: 520064.8254 | K11: 7.7 | L11: 7.7 | M11: 7.35 | N11: =IF(OR(G11="S",G11="D"),VLOOKUP(F11,'Component Capacity'!$C$8:$F$12,4,FALSE)*M11,IF(G11="W",VLOOKUP(F11,'Component Capacity'!$C$16:$F$20,4,FALSE),"OOPS")) -> 7.5 | O11: 0.05 | P11: N/A | Q11: =IF((VLOOKUP($C11,'Project Customer Details'!$B$6:$Q$1095,16,FALSE))<((VLOOKUP($C11,'Project Customer Details'!$B$6:$Q$1095,4,FALSE)*$L11)),VLOOKUP($C11,'Project Customer Details'!$B$6:$Q$1095,16,FALSE), (VLOOKUP($C11,'Project Customer Details'!$B$6:$Q$1095,4,FALSE)*$L11)) -> 0.04693700886 | R11: 0 | S11: 0 | T11: =MIN(R11,S11,Summary!$D$14) -> 0 | U11: =J11-(J11/(1+(Summary!$D$13))^(T11)) -> 0
B12: 8 | C12: DALE41 | D12: DALE-041 TX-49 Upgrade to 3-1500 kVA transformers | E12: Distribution | F12: T | G12: S | H12: 2019 | I12: 63485.18962 | J12: 68510.98226 | K12: 0.58 | L12: 0.58 | M12: 0.5 | N12: =IF(OR(G12="S",G12="D"),VLOOKUP(F12,'Component Capacity'!$C$8:$F$12,4,FALSE)*M12,IF(G12="W",VLOOKUP(F12,'Component Capacity'!$C$16:$F$20,4,FALSE),"OOPS")) -> 0.5102040816 | O12: 0.02938450385 | P12: N/A | Q12: =IF((VLOOKUP($C12,'Project Customer Details'!$B$6:$Q$1095,16,FALSE))<((VLOOKUP($C12,'Project Customer Details'!$B$6:$Q$1095,4,FALSE)*$L12)),VLOOKUP($C12,'Project Customer Details'!$B$6:$Q$1095,16,FALSE), (VLOOKUP($C12,'Project Customer Details'!$B$6:$Q$1095,4,FALSE)*$L12)) -> 0 | R12: 0 | S12: 0 | T12: =MIN(R12,S12,Summary!$D$14) -> 0 | U12: =J12-(J12/(1+(Summary!$D$13))^(T12)) -> 0
B13: 9 | C13: MORA42 | D13: MORA - Shift MORA-042 feeder load to KUNA-011, add regulators on KUNA-011, new switch near MORA-042-F104 | E13: Distribution | F13: 34.5 | G13: S | H13: 2019 | I13: 86994 | J13: 93880.86303 | K13: 20.11 | L13: 20.11 | M13: 20 | N13: =IF(OR(G13="S",G13="D"),VLOOKUP(F13,'Component Capacity'!$C$8:$F$12,4,FALSE)*M13,IF(G13="W",VLOOKUP(F13,'Component Capacity'!$C$16:$F$20,4,FALSE),"OOPS")) -> 25 | O13: 0.02 | P13: N/A | Q13: =IF((VLOOKUP($C13,'Project Customer Details'!$B$6:$Q$1095,16,FALSE))<((VLOOKUP($C13,'Project Customer Details'!$B$6:$Q$1095,4,FALSE)*$L13)),VLOOKUP($C13,'Project Customer Details'!$B$6:$Q$1095,16,FALSE), (VLOOKUP($C13,'Project Customer Details'!$B$6:$Q$1095,4,FALSE)*$L13)) -> 0.06706556589 | R13: 0 | S13: 11 | T13: =MIN(R13,S13,Summary!$D$14) -> 0 | U13: =J13-(J13/(1+(Summary!$D$13))^(T13)) -> 0
B14: 10 | C14: HBND41 | D14: HBND-041 Reconductor 5 miles to Crouch-2/4 | E14: Distribution | F14: 12.5 | G14: W | H14: 2019 | I14: 703537.6621 | J14: 759233.0837 | K14: 10.32653061 | L14: 10.32653061 | M14: 10 | N14: =IF(OR(G14="S",G14="D"),VLOOKUP(F14,'Component Capacity'!$C$8:$F$12,4,FALSE)*M14,IF(G14="W",VLOOKUP(F14,'Component Capacity'!$C$16:$F$20,4,FALSE),"OOPS")) -> 1.25 | O14: 0.02040816327 | P14: N/A | Q14: =IF((VLOOKUP($C14,'Project Customer Details'!$B$6:$Q$1095,16,FALSE))<((VLOOKUP($C14,'Project Customer Details'!$B$6:$Q$1095,4,FALSE)*$L14)),VLOOKUP($C14,'Project Customer Details'!$B$6:$Q$1095,16,FALSE), (VLOOKUP($C14,'Project Customer Details'!$B$6:$Q$1095,4,FALSE)*$L14)) -> 0 | R14: 0 | S14: 0 | T14: =MIN(R14,S14,Summary!$D$14) -> 0 | U14: =J14-(J14/(1+(Summary!$D$13))^(T14)) -> 0
B15: 11 | C15: CNCL12 | D15: CNCL-012 Rebuild 3 miles Part 3/3 | E15: Distribution | F15: C | G15: W | H15: 2019 | I15: 303976.6712 | J15: 328040.925 | K15: 3 | L15: 3 | M15: 2.815 | N15: =IF(OR(G15="S",G15="D"),VLOOKUP(F15,'Component Capacity'!$C$8:$F$12,4,FALSE)*M15,IF(G15="W",VLOOKUP(F15,'Component Capacity'!$C$16:$F$20,4,FALSE),"OOPS")) -> 1.111111111 | O15: 0.04446593573 | P15: N/A | Q15: =IF((VLOOKUP($C15,'Project Customer Details'!$B$6:$Q$1095,16,FALSE))<((VLOOKUP($C15,'Project Customer Details'!$B$6:$Q$1095,4,FALSE)*$L15)),VLOOKUP($C15,'Project Customer Details'!$B$6:$Q$1095,16,FALSE), (VLOOKUP($C15,'Project Customer Details'!$B$6:$Q$1095,4,FALSE)*$L15)) -> 0 | R15: 0 | S15: 0 | T15: =MIN(R15,S15,Summary!$D$14) -> 0 | U15: =J15-(J15/(1+(Summary!$D$13))^(T15)) -> 0
B16: 12 | C16: LNSG11 | D16: LNSG-011 Reconductor second mile to 336 | E16: Distribution | F16: C | G16: S | H16: 2019 | I16: 3987898.109 | J16: 4303599.284 | K16: 2.5 | L16: 2.5 | M16: 2.362 | N16: =IF(OR(G16="S",G16="D"),VLOOKUP(F16,'Component Capacity'!$C$8:$F$12,4,FALSE)*M16,IF(G16="W",VLOOKUP(F16,'Component Capacity'!$C$16:$F$20,4,FALSE),"OOPS")) -> 2.624444444 | O16: 0.032541759 | P16: N/A | Q16: =IF((VLOOKUP($C16,'Project Customer Details'!$B$6:$Q$1095,16,FALSE))<((VLOOKUP($C16,'Project Customer Details'!$B$6:$Q$1095,4,FALSE)*$L16)),VLOOKUP($C16,'Project Customer Details'!$B$6:$Q$1095,16,FALSE), (VLOOKUP($C16,'Project Customer Details'!$B$6:$Q$1095,4,FALSE)*$L16)) -> 0.002782185542 | R16: 0 | S16: 2 | T16: =MIN(R16,S16,Summary!$D$14) -> 0 | U16: =J16-(J16/(1+(Summary!$D$13))^(T16)) -> 0
B17: 13 | C17: HMDL12 | D17: HMDL-012 Rebuild 2 miles to 00 ACSR | E17: Distribution | F17: C | G17: W | H17: 2019 | I17: 306177.0026 | J17: 330415.4452 | K17: 6.502924401 | L17: 6.502924401 | M17: 6.4 | N17: =IF(OR(G17="S",G17="D"),VLOOKUP(F17,'Component Capacity'!$C$8:$F$12,4,FALSE)*M17,IF(G17="W",VLOOKUP(F17,'Component Capacity'!$C$16:$F$20,4,FALSE),"OOPS")) -> 1.111111111 | O17: 0.01767205029 | P17: N/A | Q17: =IF((VLOOKUP($C17,'Project Customer Details'!$B$6:$Q$1095,16,FALSE))<((VLOOKUP($C17,'Project Customer Details'!$B$6:$Q$1095,4,FALSE)*$L17)),VLOOKUP($C17,'Project Customer Details'!$B$6:$Q$1095,16,FALSE), (VLOOKUP($C17,'Project Customer Details'!$B$6:$Q$1095,4,FALSE)*$L17)) -> 0 | R17: 0 | S17: 0 | T17: =MIN(R17,S17,Summary!$D$14) -> 0 | U17: =J17-(J17/(1+(Summary!$D$13))^(T17)) -> 0
B18: 14 | C18: WILS11 | D18: WILS-011 336 A Section Rebuild | E18: Distribution | F18: 12.5 | G18: W | H18: 2019 | I18: 132757.4426 | J18: 143267.1597 | K18: 10.34453249 | L18: 10.34453249 | M18: 10 | N18: =IF(OR(G18="S",G18="D"),VLOOKUP(F18,'Component Capacity'!$C$8:$F$12,4,FALSE)*M18,IF(G18="W",VLOOKUP(F18,'Component Capacity'!$C$16:$F$20,4,FALSE),"OOPS")) -> 1.25 | O18: 0.02218700475 | P18: N/A | Q18: =IF((VLOOKUP($C18,'Project Customer Details'!$B$6:$Q$1095,16,FALSE))<((VLOOKUP($C18,'Project Customer Details'!$B$6:$Q$1095,4,FALSE)*$L18)),VLOOKUP($C18,'Project Customer Details'!$B$6:$Q$1095,16,FALSE), (VLOOKUP($C18,'Project Customer Details'!$B$6:$Q$1095,4,FALSE)*$L18)) -> 0.01310793552 | R18: 0 | S18: 0 | T18: =MIN(R18,S18,Summary!$D$14) -> 0 | U18: =J18-(J18/(1+(Summary!$D$13))^(T18)) -> 0
B19: 15 | C19: CSCD13 | D19: CSCD-013 Rebuild feeder from RR tracks to Gold Fork Road | E19: Distribution | F19: C | G19: W | H19: 2019 | I19: 555113.6693 | J19: 599059.1345 | K19: 4.8 | L19: 4.8 | M19: 4.767 | N19: =IF(OR(G19="S",G19="D"),VLOOKUP(F19,'Component Capacity'!$C$8:$F$12,4,FALSE)*M19,IF(G19="W",VLOOKUP(F19,'Component Capacity'!$C$16:$F$20,4,FALSE),"OOPS")) -> 1.111111111 | O19: 0.06666666667 | P19: N/A | Q19: =IF((VLOOKUP($C19,'Project Customer Details'!$B$6:$Q$1095,16,FALSE))<((VLOOKUP($C19,'Project Customer Details'!$B$6:$Q$1095,4,FALSE)*$L19)),VLOOKUP($C19,'Project Customer Details'!$B$6:$Q$1095,16,FALSE), (VLOOKUP($C19,'Project Customer Details'!$B$6:$Q$1095,4,FALSE)*$L19)) -> 0 | R19: 0 | S19: 0 | T19: =MIN(R19,S19,Summary!$D$14) -> 0 | U19: =J19-(J19/(1+(Summary!$D$13))^(T19)) -> 0
B20: 16 | C20: SIPN41 | D20: SIPN Extend feeder 041 2.3-miles to serve new load, add field tie capability to HLND-011 (Highland North and Chubbuck East) | E20: Distribution | F20: T | G20: S | H20: 2019 | I20: 662415 | J20: 714854.9541 | K20: 12.43 | L20: 12.43 | M20: 11.32 | N20: =IF(OR(G20="S",G20="D"),VLOOKUP(F20,'Component Capacity'!$C$8:$F$12,4,FALSE)*M20,IF(G20="W",VLOOKUP(F20,'Component Capacity'!$C$16:$F$20,4,FALSE),"OOPS")) -> 11.55102041 | O20: 0.0201 | P20: N/A | Q20: =IF((VLOOKUP($C20,'Project Customer Details'!$B$6:$Q$1095,16,FALSE))<((VLOOKUP($C20,'Project Customer Details'!$B$6:$Q$1095,4,FALSE)*$L20)),VLOOKUP($C20,'Project Customer Details'!$B$6:$Q$1095,16,FALSE), (VLOOKUP($C20,'Project Customer Details'!$B$6:$Q$1095,4,FALSE)*$L20)) -> 0.02502301286 | R20: 0 | S20: 0 | T20: =MIN(R20,S20,Summary!$D$14) -> 0 | U20: =J20-(J20/(1+(Summary!$D$13))^(T20)) -> 0
B21: 17 | C21: BOBN44 | D21: BOBN Add a feeder stepdown transformer to shift feeder load from BOBN-044 to BOBN-042 | E21: Distribution | F21: 34.5 | G21: S | H21: 2019 | I21: 4824.11 | J21: 5206.009726 | K21: 21.1 | L21: 21.1 | M21: 20 | N21: =IF(OR(G21="S",G21="D"),VLOOKUP(F21,'Component Capacity'!$C$8:$F$12,4,FALSE)*M21,IF(G21="W",VLOOKUP(F21,'Component Capacity'!$C$16:$F$20,4,FALSE),"OOPS")) -> 25 | O21: 0.007 | P21: N/A | Q21: =IF((VLOOKUP($C21,'Project Customer Details'!$B$6:$Q$1095,16,FALSE))<((VLOOKUP($C21,'Project Customer Details'!$B$6:$Q$1095,4,FALSE)*$L21)),VLOOKUP($C21,'Project Customer Details'!$B$6:$Q$1095,16,FALSE), (VLOOKUP($C21,'Project Customer Details'!$B$6:$Q$1095,4,FALSE)*$L21)) -> 0.03404849973 | R21: 0 | S21: 25 | T21: =MIN(R21,S21,Summary!$D$14) -> 0 | U21: =J21-(J21/(1+(Summary!$D$13))^(T21)) -> 0
B22: 18 | C22: NHBT11 | D22: NHBT-011 Rebuild 1-mile feeder trunk for voltage correction | E22: Distribution | F22: 12.5 | G22: S | H22: 2019 | I22: 3922.54 | J22: 4233.067113 | K22: 10.7648464 | L22: 10.7648464 | M22: 10 | N22: =IF(OR(G22="S",G22="D"),VLOOKUP(F22,'Component Capacity'!$C$8:$F$12,4,FALSE)*M22,IF(G22="W",VLOOKUP(F22,'Component Capacity'!$C$16:$F$20,4,FALSE),"OOPS")) -> 12.5 | O22: 0.0087 | P22: N/A | Q22: =IF((VLOOKUP($C22,'Project Customer Details'!$B$6:$Q$1095,16,FALSE))<((VLOOKUP($C22,'Project Customer Details'!$B$6:$Q$1095,4,FALSE)*$L22)),VLOOKUP($C22,'Project Customer Details'!$B$6:$Q$1095,16,FALSE), (VLOOKUP($C22,'Project Customer Details'!$B$6:$Q$1095,4,FALSE)*$L22)) -> 0 | R22: 0 | S22: 18 | T22: =MIN(R22,S22,Summary!$D$14) -> 0 | U22: =J22-(J22/(1+(Summary!$D$13))^(T22)) -> 0
B23: 19 | C23: MDRS12 | D23: MDRS-011 Add 0.2 miles on Smith Avenue | E23: Distribution | F23: 12.5 | G23: S | H23: 2019 | I23: 38348.78498 | J23: 41384.65905 | K23: 10.26283169 | L23: 10.26283169 | M23: 10 | N23: =IF(OR(G23="S",G23="D"),VLOOKUP(F23,'Component Capacity'!$C$8:$F$12,4,FALSE)*M23,IF(G23="W",VLOOKUP(F23,'Component Capacity'!$C$16:$F$20,4,FALSE),"OOPS")) -> 12.5 | O23: 0.06904496765 | P23: N/A | Q23: =IF((VLOOKUP($C23,'Project Customer Details'!$B$6:$Q$1095,16,FALSE))<((VLOOKUP($C23,'Project Customer Details'!$B$6:$Q$1095,4,FALSE)*$L23)),VLOOKUP($C23,'Project Customer Details'!$B$6:$Q$1095,16,FALSE), (VLOOKUP($C23,'Project Customer Details'!$B$6:$Q$1095,4,FALSE)*$L23)) -> 0.02315897939 | R23: 0 | S23: 3 | T23: =MIN(R23,S23,Summary!$D$14) -> 0 | U23: =J23-(J23/(1+(Summary!$D$13))^(T23)) -> 0
B24: 20 | C24: BLDR41 | D24: BLDR-011 Rebuild north feeder | E24: Distribution | F24: 12.5 | G24: W | H24: 2019 | I24: 692035.0484 | J24: 746819.8679 | K24: 0 | L24: 0.01 | M24: 0 | N24: =IF(OR(G24="S",G24="D"),VLOOKUP(F24,'Component Capacity'!$C$8:$F$12,4,FALSE)*M24,IF(G24="W",VLOOKUP(F24,'Component Capacity'!$C$16:$F$20,4,FALSE),"OOPS")) -> 1.25 | O24: 0 | P24: N/A | Q24: =IF((VLOOKUP($C24,'Project Customer Details'!$B$6:$Q$1095,16,FALSE))<((VLOOKUP($C24,'Project Customer Details'!$B$6:$Q$1095,4,FALSE)*$L24)),VLOOKUP($C24,'Project Customer Details'!$B$6:$Q$1095,16,FALSE), (VLOOKUP($C24,'Project Customer Details'!$B$6:$Q$1095,4,FALSE)*$L24)) -> 0.001603239802 | R24: 0 | S24: 0 | T24: =MIN(R24,S24,Summary!$D$14) -> 0 | U24: =J24-(J24/(1+(Summary!$D$13))^(T24)) -> 0
B25: 21 | C25: BKFT15 | D25: BKFT Rebuild 1 mile of BKFT feeder 015 to 795 AAC | E25: Distribution | F25: C | G25: S | H25: 2019 | I25: 266085 | J25: 287149.5671 | K25: 6.34345 | L25: 6.34345 | M25: 6.25685 | N25: =IF(OR(G25="S",G25="D"),VLOOKUP(F25,'Component Capacity'!$C$8:$F$12,4,FALSE)*M25,IF(G25="W",VLOOKUP(F25,'Component Capacity'!$C$16:$F$20,4,FALSE),"OOPS")) -> 6.952055556 | O25: 0.0072 | P25: N/A | Q25: =IF((VLOOKUP($C25,'Project Customer Details'!$B$6:$Q$1095,16,FALSE))<((VLOOKUP($C25,'Project Customer Details'!$B$6:$Q$1095,4,FALSE)*$L25)),VLOOKUP($C25,'Project Customer Details'!$B$6:$Q$1095,16,FALSE), (VLOOKUP($C25,'Project Customer Details'!$B$6:$Q$1095,4,FALSE)*$L25)) -> 0.002449853753 | R25: 0 | S25: 13 | T25: =MIN(R25,S25,Summary!$D$14) -> 0 | U25: =J25-(J25/(1+(Summary!$D$13))^(T25)) -> 0
B26: 22 | C26: PNUF42 | D26: PNUF Split feeder 042, build new branch to north along I-15, to increase capacity to the South Pocatello area | E26: Distribution | F26: C | G26: W | H26: 2019 | I26: 480120.9776 | J26: 518129.661 | K26: 7.68 | L26: 7.68 | M26: 7.37 | N26: =IF(OR(G26="S",G26="D"),VLOOKUP(F26,'Component Capacity'!$C$8:$F$12,4,FALSE)*M26,IF(G26="W",VLOOKUP(F26,'Component Capacity'!$C$16:$F$20,4,FALSE),"OOPS")) -> 1.111111111 | O26: 0.0063 | P26: N/A | Q26: =IF((VLOOKUP($C26,'Project Customer Details'!$B$6:$Q$1095,16,FALSE))<((VLOOKUP($C26,'Project Customer Details'!$B$6:$Q$1095,4,FALSE)*$L26)),VLOOKUP($C26,'Project Customer Details'!$B$6:$Q$1095,16,FALSE), (VLOOKUP($C26,'Project Customer Details'!$B$6:$Q$1095,4,FALSE)*$L26)) -> 0 | R26: 0 | S26: 0 | T26: =MIN(R26,S26,Summary!$D$14) -> 0 | U26: =J26-(J26/(1+(Summary!$D$13))^(T26)) -> 0
B27: 23 | C27: GEMM12 | D27: GEMM-012 Replace RG-70 with 150 A regulators | E27: Distribution | F27: T | G27: S | H27: 2019 | I27: 25268.97292 | J27: 27269.38623 | K27: 2.598 | L27: 2.598 | M27: 2.165 | N27: =IF(OR(G27="S",G27="D"),VLOOKUP(F27,'Component Capacity'!$C$8:$F$12,4,FALSE)*M27,IF(G27="W",VLOOKUP(F27,'Component Capacity'!$C$16:$F$20,4,FALSE),"OOPS")) -> 2.209183673 | O27: 0.01939393939 | P27: N/A | Q27: =IF((VLOOKUP($C27,'Project Customer Details'!$B$6:$Q$1095,16,FALSE))<((VLOOKUP($C27,'Project Customer Details'!$B$6:$Q$1095,4,FALSE)*$L27)),VLOOKUP($C27,'Project Customer Details'!$B$6:$Q$1095,16,FALSE), (VLOOKUP($C27,'Project Customer Details'!$B$6:$Q$1095,4,FALSE)*$L27)) -> 0.007042242571 | R27: 0 | S27: 0 | T27: =MIN(R27,S27,Summary!$D$14) -> 0 | U27: =J27-(J27/(1+(Summary!$D$13))^(T27)) -> 0
B28: 24 | C28: KCHM17 | D28: KCHM Lines work for a new 12.5 kV feeder 018 to relieve KCHM-017 | E28: Distribution | F28: 12.5 | G28: W | H28: 2019 | I28: 457160.1139 | J28: 493351.1051 | K28: 10.8 | L28: 10.8 | M28: 10 | N28: =IF(OR(G28="S",G28="D"),VLOOKUP(F28,'Component Capacity'!$C$8:$F$12,4,FALSE)*M28,IF(G28="W",VLOOKUP(F28,'Component Capacity'!$C$16:$F$20,4,FALSE),"OOPS")) -> 1.25 | O28: 0.005 | P28: N/A | Q28: =IF((VLOOKUP($C28,'Project Customer Details'!$B$6:$Q$1095,16,FALSE))<((VLOOKUP($C28,'Project Customer Details'!$B$6:$Q$1095,4,FALSE)*$L28)),VLOOKUP($C28,'Project Customer Details'!$B$6:$Q$1095,16,FALSE), (VLOOKUP($C28,'Project Customer Details'!$B$6:$Q$1095,4,FALSE)*$L28)) -> 0 | R28: 0 | S28: 0 | T28: =MIN(R28,S28,Summary!$D$14) -> 0 | U28: =J28-(J28/(1+(Summary!$D$13))^(T28)) -> 0
B29: 25 | C29: GOWN42 | D29: GOWN Lines work for a new GOWN-043 feeder | E29: Distribution | F29: 34.5 | G29: S | H29: 2019 | I29: 69752.74041 | J29: 75274.70249 | K29: 20.94 | L29: 20.94 | M29: 20 | N29: =IF(OR(G29="S",G29="D"),VLOOKUP(F29,'Component Capacity'!$C$8:$F$12,4,FALSE)*M29,IF(G29="W",VLOOKUP(F29,'Component Capacity'!$C$16:$F$20,4,FALSE),"OOPS")) -> 25 | O29: 0.03 | P29: N/A | Q29: =IF((VLOOKUP($C29,'Project Customer Details'!$B$6:$Q$1095,16,FALSE))<((VLOOKUP($C29,'Project Customer Details'!$B$6:$Q$1095,4,FALSE)*$L29)),VLOOKUP($C29,'Project Customer Details'!$B$6:$Q$1095,16,FALSE), (VLOOKUP($C29,'Project Customer Details'!$B$6:$Q$1095,4,FALSE)*$L29)) -> 0.0263490037 | R29: 0 | S29: 6 | T29: =MIN(R29,S29,Summary!$D$14) -> 0 | U29: =J29-(J29/(1+(Summary!$D$13))^(T29)) -> 0
B30: 26 | C30: CNCL12 | D30: CNCL-012 Rebuild 2.5 miles Part 2/3 | E30: Distribution | F30: C | G30: W | H30: 2019 | I30: 355431.1598 | J30: 383568.7982 | K30: 3 | L30: 3 | M30: 2.815 | N30: =IF(OR(G30="S",G30="D"),VLOOKUP(F30,'Component Capacity'!$C$8:$F$12,4,FALSE)*M30,IF(G30="W",VLOOKUP(F30,'Component Capacity'!$C$16:$F$20,4,FALSE),"OOPS")) -> 1.111111111 | O30: 0.04446593573 | P30: N/A | Q30: =IF((VLOOKUP($C30,'Project Customer Details'!$B$6:$Q$1095,16,FALSE))<((VLOOKUP($C30,'Project Customer Details'!$B$6:$Q$1095,4,FALSE)*$L30)),VLOOKUP($C30,'Project Customer Details'!$B$6:$Q$1095,16,FALSE), (VLOOKUP($C30,'Project Customer Details'!$B$6:$Q$1095,4,FALSE)*$L30)) -> 0 | R30: 0 | S30: 0 | T30: =MIN(R30,S30,Summary!$D$14) -> 0 | U30: =J30-(J30/(1+(Summary!$D$13))^(T30)) -> 0
B31: 27 | C31: DTRC12 | D31: DTRC-012 Rebuild two miles to 2/0 ACSR | E31: Distribution | F31: C | G31: S | H31: 2019 | I31: 199654.6277 | J31: 215460.2473 | K31: 2.986153277 | L31: 2.986153277 | M31: 2.94 | N31: =IF(OR(G31="S",G31="D"),VLOOKUP(F31,'Component Capacity'!$C$8:$F$12,4,FALSE)*M31,IF(G31="W",VLOOKUP(F31,'Component Capacity'!$C$16:$F$20,4,FALSE),"OOPS")) -> 3.266666667 | O31: 0.05146242133 | P31: N/A | Q31: =IF((VLOOKUP($C31,'Project Customer Details'!$B$6:$Q$1095,16,FALSE))<((VLOOKUP($C31,'Project Customer Details'!$B$6:$Q$1095,4,FALSE)*$L31)),VLOOKUP($C31,'Project Customer Details'!$B$6:$Q$1095,16,FALSE), (VLOOKUP($C31,'Project Customer Details'!$B$6:$Q$1095,4,FALSE)*$L31)) -> 0 | R31: 0 | S31: 2 | T31: =MIN(R31,S31,Summary!$D$14) -> 0 | U31: =J31-(J31/(1+(Summary!$D$13))^(T31)) -> 0
B32: 28 | C32: EAGL12 | D32: GARY-014 to relieve EAGL-012 | E32: Distribution | F32: 12.5 | G32: S | H32: 2007 | I32: 290000 | J32: 424460.0914 | K32: 10.286785 | L32: 10.06727613 | M32: 10 | N32: =IF(OR(G32="S",G32="D"),VLOOKUP(F32,'Component Capacity'!$C$8:$F$12,4,FALSE)*M32,IF(G32="W",VLOOKUP(F32,'Component Capacity'!$C$16:$F$20,4,FALSE),"OOPS")) -> 12.5 | O32: 0.03 | P32: 0.3 | Q32: =IF((VLOOKUP($C32,'Project Customer Details'!$B$6:$Q$1095,16,FALSE))<((VLOOKUP($C32,'Project Customer Details'!$B$6:$Q$1095,4,FALSE)*$L32)),VLOOKUP($C32,'Project Customer Details'!$B$6:$Q$1095,16,FALSE), (VLOOKUP($C32,'Project Customer Details'!$B$6:$Q$1095,4,FALSE)*$L32)) -> 0.02468448152 | R32: 0 | S32: 8 | T32: =MIN(R32,S32,Summary!$D$14) -> 0 | U32: =J32-(J32/(1+(Summary!$D$13))^(T32)) -> 0
B33: 29 | C33: CSCD13 | D33: CSCD-013, REBUILD FROM R468 TO RG482,4 MI, 336 AAC | E33: Distribution | F33: 12.5 | G33: W | H33: 2007 | I33: 400000 | J33: 585462.1951 | K33: 10.16302779 | L33: 10.27265018 | M33: 10 | N33: =IF(OR(G33="S",G33="D"),VLOOKUP(F33,'Component Capacity'!$C$8:$F$12,4,FALSE)*M33,IF(G33="W",VLOOKUP(F33,'Component Capacity'!$C$16:$F$20,4,FALSE),"OOPS")) -> 1.25 | O33: 0.03 | P33: 0.3 | Q33: =IF((VLOOKUP($C33,'Project Customer Details'!$B$6:$Q$1095,16,FALSE))<((VLOOKUP($C33,'Project Customer Details'!$B$6:$Q$1095,4,FALSE)*$L33)),VLOOKUP($C33,'Project Customer Details'!$B$6:$Q$1095,16,FALSE), (VLOOKUP($C33,'Project Customer Details'!$B$6:$Q$1095,4,FALSE)*$L33)) -> 0 | R33: 0 | S33: 0 | T33: =MIN(R33,S33,Summary!$D$14) -> 0 | U33: =J33-(J33/(1+(Summary!$D$13))^(T33)) -> 0
B34: 30 | C34: WESR11 | D34: Replace 16 structures for WESR-011 | E34: Distribution | F34: 12.5 | G34: W | H34: 2009 | I34: 200000 | J34: 278234.0937 | K34: 10.05468424 | L34: 10.13074384 | M34: 10 | N34: =IF(OR(G34="S",G34="D"),VLOOKUP(F34,'Component Capacity'!$C$8:$F$12,4,FALSE)*M34,IF(G34="W",VLOOKUP(F34,'Component Capacity'!$C$16:$F$20,4,FALSE),"OOPS")) -> 1.25 | O34: 0.03 | P34: 0.3 | Q34: =IF((VLOOKUP($C34,'Project Customer Details'!$B$6:$Q$1095,16,FALSE))<((VLOOKUP($C34,'Project Customer Details'!$B$6:$Q$1095,4,FALSE)*$L34)),VLOOKUP($C34,'Project Customer Details'!$B$6:$Q$1095,16,FALSE), (VLOOKUP($C34,'Project Customer Details'!$B$6:$Q$1095,4,FALSE)*$L34)) -> 0 | R34: 0 | S34: 0 | T34: =MIN(R34,S34,Summary!$D$14) -> 0 | U34: =J34-(J34/(1+(Summary!$D$13))^(T34)) -> 0
B35: 31 | C35: VTRY12 | D35: VTRY-017 FEEDER | E35: Distribution | F35: 12.5 | G35: S | H35: 2018 | I35: 500000 | J35: 553461.0149 | K35: 10.2 | L35: 10.2 | M35: 10 | N35: =IF(OR(G35="S",G35="D"),VLOOKUP(F35,'Component Capacity'!$C$8:$F$12,4,FALSE)*M35,IF(G35="W",VLOOKUP(F35,'Component Capacity'!$C$16:$F$20,4,FALSE),"OOPS")) -> 12.5 | O35: 0.025 | P35: N/A | Q35: =IF((VLOOKUP($C35,'Project Customer Details'!$B$6:$Q$1095,16,FALSE))<((VLOOKUP($C35,'Project Customer Details'!$B$6:$Q$1095,4,FALSE)*$L35)),VLOOKUP($C35,'Project Customer Details'!$B$6:$Q$1095,16,FALSE), (VLOOKUP($C35,'Project Customer Details'!$B$6:$Q$1095,4,FALSE)*$L35)) -> 0 | R35: 0 | S35: 9 | T35: =MIN(R35,S35,Summary!$D$14) -> 0 | U35: =J35-(J35/(1+(Summary!$D$13))^(T35)) -> 0
B36: 32 | C36: LNDN13 | D36: LNDN-013 RECONDUCTOR 4AR TO A20 ON KIMBALL & BEECH | E36: Distribution | F36: C | G36: S | H36: 2008 | I36: 60000 | J36: 85617.16794 | K36: 3.36638318 | L36: 3.362682991 | M36: 3.29 | N36: =IF(OR(G36="S",G36="D"),VLOOKUP(F36,'Component Capacity'!$C$8:$F$12,4,FALSE)*M36,IF(G36="W",VLOOKUP(F36,'Component Capacity'!$C$16:$F$20,4,FALSE),"OOPS")) -> 3.655555556 | O36: 0.03 | P36: 0.0987 | Q36: =IF((VLOOKUP($C36,'Project Customer Details'!$B$6:$Q$1095,16,FALSE))<((VLOOKUP($C36,'Project Customer Details'!$B$6:$Q$1095,4,FALSE)*$L36)),VLOOKUP($C36,'Project Customer Details'!$B$6:$Q$1095,16,FALSE), (VLOOKUP($C36,'Project Customer Details'!$B$6:$Q$1095,4,FALSE)*$L36)) -> 0.0219669153 | R36: 0 | S36: 3 | T36: =MIN(R36,S36,Summary!$D$14) -> 0 | U36: =J36-(J36/(1+(Summary!$D$13))^(T36)) -> 0
B37: 33 | C37: HILL14 | D37: LNDN-018 Extension east to offload Hill-014 | E37: Distribution | F37: 12.5 | G37: S | H37: 2022 | I37: 240802 | J37: 240802 | K37: 11.95 | L37: 11.95 | M37: 10 | N37: =IF(OR(G37="S",G37="D"),VLOOKUP(F37,'Component Capacity'!$C$8:$F$12,4,FALSE)*M37,IF(G37="W",VLOOKUP(F37,'Component Capacity'!$C$16:$F$20,4,FALSE),"OOPS")) -> 12.5 | O37: 0.1375 | P37: N/A | Q37: =IF((VLOOKUP($C37,'Project Customer Details'!$B$6:$Q$1095,16,FALSE))<((VLOOKUP($C37,'Project Customer Details'!$B$6:$Q$1095,4,FALSE)*$L37)),VLOOKUP($C37,'Project Customer Details'!$B$6:$Q$1095,16,FALSE), (VLOOKUP($C37,'Project Customer Details'!$B$6:$Q$1095,4,FALSE)*$L37)) -> 0.03429078595 | R37: 0 | S37: 1 | T37: =MIN(R37,S37,Summary!$D$14) -> 0 | U37: =J37-(J37/(1+(Summary!$D$13))^(T37)) -> 0
B38: 34 | C38: LNDN15 | D38: Tie LNDN15 and HILL 12 | E38: Distribution | F38: 12.5 | G38: S | H38: 2024 | I38: 228000 | J38: 228000 | K38: 10.14 | L38: 10.14 | M38: 10 | N38: =IF(OR(G38="S",G38="D"),VLOOKUP(F38,'Component Capacity'!$C$8:$F$12,4,FALSE)*M38,IF(G38="W",VLOOKUP(F38,'Component Capacity'!$C$16:$F$20,4,FALSE),"OOPS")) -> 12.5 | O38: 0.1335 | P38: N/A | Q38: =IF((VLOOKUP($C38,'Project Customer Details'!$B$6:$Q$1095,16,FALSE))<((VLOOKUP($C38,'Project Customer Details'!$B$6:$Q$1095,4,FALSE)*$L38)),VLOOKUP($C38,'Project Customer Details'!$B$6:$Q$1095,16,FALSE), (VLOOKUP($C38,'Project Customer Details'!$B$6:$Q$1095,4,FALSE)*$L38)) -> 0.0007626847175 | R38: 0 | S38: 2 | T38: =MIN(R38,S38,Summary!$D$14) -> 0 | U38: =J38-(J38/(1+(Summary!$D$13))^(T38)) -> 0
B39: 35 | C39: STAR12 | D39: STAR-014 Build new feeder | E39: Distribution | F39: 12.5 | G39: S | H39: 2007 | I39: 495000 | J39: 724509.4664 | K39: 10.1533355 | L39: 10.28081225 | M39: 10 | N39: =IF(OR(G39="S",G39="D"),VLOOKUP(F39,'Component Capacity'!$C$8:$F$12,4,FALSE)*M39,IF(G39="W",VLOOKUP(F39,'Component Capacity'!$C$16:$F$20,4,FALSE),"OOPS")) -> 12.5 | O39: 0.03 | P39: 0.3 | Q39: =IF((VLOOKUP($C39,'Project Customer Details'!$B$6:$Q$1095,16,FALSE))<((VLOOKUP($C39,'Project Customer Details'!$B$6:$Q$1095,4,FALSE)*$L39)),VLOOKUP($C39,'Project Customer Details'!$B$6:$Q$1095,16,FALSE), (VLOOKUP($C39,'Project Customer Details'!$B$6:$Q$1095,4,FALSE)*$L39)) -> 0.0002076114529 | R39: 0 | S39: 7 | T39: =MIN(R39,S39,Summary!$D$14) -> 0 | U39: =J39-(J39/(1+(Summary!$D$13))^(T39)) -> 0
B40: 36 | C40: STAR12 | D40: Offload STAR12 | E40: Distribution | F40: 12.5 | G40: S | H40: 2024 | I40: 150000 | J40: 150000 | K40: 11.29 | L40: 11.29 | M40: 10 | N40: =IF(OR(G40="S",G40="D"),VLOOKUP(F40,'Component Capacity'!$C$8:$F$12,4,FALSE)*M40,IF(G40="W",VLOOKUP(F40,'Component Capacity'!$C$16:$F$20,4,FALSE),"OOPS")) -> 12.5 | O40: 0.113 | P40: N/A | Q40: =IF((VLOOKUP($C40,'Project Customer Details'!$B$6:$Q$1095,16,FALSE))<((VLOOKUP($C40,'Project Customer Details'!$B$6:$Q$1095,4,FALSE)*$L40)),VLOOKUP($C40,'Project Customer Details'!$B$6:$Q$1095,16,FALSE), (VLOOKUP($C40,'Project Customer Details'!$B$6:$Q$1095,4,FALSE)*$L40)) -> 0.0002076114529 | R40: 0 | S40: 1 | T40: =MIN(R40,S40,Summary!$D$14) -> 0 | U40: =J40-(J40/(1+(Summary!$D$13))^(T40)) -> 0
B41: 37 | C41: BKAT15 | D41: BKAT-015, BUILD NEW FEEDER TO CHEESE FACTORY AREA | E41: Distribution | F41: 12.5 | G41: S | H41: 2007 | I41: 60000 | J41: 87819.32926 | K41: 10.13091466 | L41: 10.22128799 | M41: 10 | N41: =IF(OR(G41="S",G41="D"),VLOOKUP(F41,'Component Capacity'!$C$8:$F$12,4,FALSE)*M41,IF(G41="W",VLOOKUP(F41,'Component Capacity'!$C$16:$F$20,4,FALSE),"OOPS")) -> 12.5 | O41: 0.03 | P41: 0.3 | Q41: =IF((VLOOKUP($C41,'Project Customer Details'!$B$6:$Q$1095,16,FALSE))<((VLOOKUP($C41,'Project Customer Details'!$B$6:$Q$1095,4,FALSE)*$L41)),VLOOKUP($C41,'Project Customer Details'!$B$6:$Q$1095,16,FALSE), (VLOOKUP($C41,'Project Customer Details'!$B$6:$Q$1095,4,FALSE)*$L41)) -> 0.01422084119 | R41: 0 | S41: 7 | T41: =MIN(R41,S41,Summary!$D$14) -> 0 | U41: =J41-(J41/(1+(Summary!$D$13))^(T41)) -> 0
B42: 38 | C42: BTLR13 | D42: BTLR-013: RECONDUCTOR 2CU WITH 336AA | E42: Distribution | F42: C | G42: S | H42: 2007 | I42: 70000 | J42: 102455.8841 | K42: 5.444868603 | L42: 5.470851035 | M42: 5.4 | N42: =IF(OR(G42="S",G42="D"),VLOOKUP(F42,'Component Capacity'!$C$8:$F$12,4,FALSE)*M42,IF(G42="W",VLOOKUP(F42,'Component Capacity'!$C$16:$F$20,4,FALSE),"OOPS")) -> 6 | O42: 0.03 | P42: 0.162 | Q42: =IF((VLOOKUP($C42,'Project Customer Details'!$B$6:$Q$1095,16,FALSE))<((VLOOKUP($C42,'Project Customer Details'!$B$6:$Q$1095,4,FALSE)*$L42)),VLOOKUP($C42,'Project Customer Details'!$B$6:$Q$1095,16,FALSE), (VLOOKUP($C42,'Project Customer Details'!$B$6:$Q$1095,4,FALSE)*$L42)) -> 0 | R42: 0 | S42: 4 | T42: =MIN(R42,S42,Summary!$D$14) -> 0 | U42: =J42-(J42/(1+(Summary!$D$13))^(T42)) -> 0
B43: 39 | C43: BTLR16 | D43: BTLR-016, RECONDUCTOR OF TIE FOR LOAD SWAP TO BTLR-012 | E43: Distribution | F43: C | G43: S | H43: 2007 | I43: 100000 | J43: 146365.5488 | K43: 6.936728704 | L43: 6.892268735 | M43: 6.75 | N43: =IF(OR(G43="S",G43="D"),VLOOKUP(F43,'Component Capacity'!$C$8:$F$12,4,FALSE)*M43,IF(G43="W",VLOOKUP(F43,'Component Capacity'!$C$16:$F$20,4,FALSE),"OOPS")) -> 7.5 | O43: 0.03 | P43: 0.2025 | Q43: =IF((VLOOKUP($C43,'Project Customer Details'!$B$6:$Q$1095,16,FALSE))<((VLOOKUP($C43,'Project Customer Details'!$B$6:$Q$1095,4,FALSE)*$L43)),VLOOKUP($C43,'Project Customer Details'!$B$6:$Q$1095,16,FALSE), (VLOOKUP($C43,'Project Customer Details'!$B$6:$Q$1095,4,FALSE)*$L43)) -> 0.01478352468 | R43: 0 | S43: 3 | T43: =MIN(R43,S43,Summary!$D$14) -> 0 | U43: =J43-(J43/(1+(Summary!$D$13))^(T43)) -> 0
B44: 40 | C44: CARO11 | D44: CARO-011, REBUILD 1 MI AT 795 AND 3/4 MI. AT 336 | E44: Distribution | F44: 12.5 | G44: S | H44: 2007 | I44: 225000 | J44: 329322.4847 | K44: 10.10601196 | L44: 10.06240772 | M44: 10 | N44: =IF(OR(G44="S",G44="D"),VLOOKUP(F44,'Component Capacity'!$C$8:$F$12,4,FALSE)*M44,IF(G44="W",VLOOKUP(F44,'Component Capacity'!$C$16:$F$20,4,FALSE),"OOPS")) -> 12.5 | O44: 0.03 | P44: 0.3 | Q44: =IF((VLOOKUP($C44,'Project Customer Details'!$B$6:$Q$1095,16,FALSE))<((VLOOKUP($C44,'Project Customer Details'!$B$6:$Q$1095,4,FALSE)*$L44)),VLOOKUP($C44,'Project Customer Details'!$B$6:$Q$1095,16,FALSE), (VLOOKUP($C44,'Project Customer Details'!$B$6:$Q$1095,4,FALSE)*$L44)) -> 0 | R44: 0 | S44: 8 | T44: =MIN(R44,S44,Summary!$D$14) -> 0 | U44: =J44-(J44/(1+(Summary!$D$13))^(T44)) -> 0
B45: 41 | C45: CARO11 | D45: CARO-011 Rebuild 1 mile at 795 and 3/4 mile at 336 Transmission component | E45: Distribution | F45: 12.5 | G45: S | H45: 2007 | I45: 75000 | J45: 109774.1616 | K45: 10.00781171 | L45: 10.24590287 | M45: 10 | N45: =IF(OR(G45="S",G45="D"),VLOOKUP(F45,'Component Capacity'!$C$8:$F$12,4,FALSE)*M45,IF(G45="W",VLOOKUP(F45,'Component Capacity'!$C$16:$F$20,4,FALSE),"OOPS")) -> 12.5 | O45: 0.03 | P45: 0.3 | Q45: =IF((VLOOKUP($C45,'Project Customer Details'!$B$6:$Q$1095,16,FALSE))<((VLOOKUP($C45,'Project Customer Details'!$B$6:$Q$1095,4,FALSE)*$L45)),VLOOKUP($C45,'Project Customer Details'!$B$6:$Q$1095,16,FALSE), (VLOOKUP($C45,'Project Customer Details'!$B$6:$Q$1095,4,FALSE)*$L45)) -> 0 | R45: 0 | S45: 7 | T45: =MIN(R45,S45,Summary!$D$14) -> 0 | U45: =J45-(J45/(1+(Summary!$D$13))^(T45)) -> 0
B46: 42 | C46: CARO12 | D46: CARO-012 Increase Capacity / Improve Fruitland voltage | E46: Distribution | F46: 12.5 | G46: S | H46: 2009 | I46: 325000 | J46: 452130.4023 | K46: 10.08945582 | L46: 10.25970266 | M46: 10 | N46: =IF(OR(G46="S",G46="D"),VLOOKUP(F46,'Component Capacity'!$C$8:$F$12,4,FALSE)*M46,IF(G46="W",VLOOKUP(F46,'Component Capacity'!$C$16:$F$20,4,FALSE),"OOPS")) -> 12.5 | O46: 0.03 | P46: 0.3 | Q46: =IF((VLOOKUP($C46,'Project Customer Details'!$B$6:$Q$1095,16,FALSE))<((VLOOKUP($C46,'Project Customer Details'!$B$6:$Q$1095,4,FALSE)*$L46)),VLOOKUP($C46,'Project Customer Details'!$B$6:$Q$1095,16,FALSE), (VLOOKUP($C46,'Project Customer Details'!$B$6:$Q$1095,4,FALSE)*$L46)) -> 0 | R46: 0 | S46: 7 | T46: =MIN(R46,S46,Summary!$D$14) -> 0 | U46: =J46-(J46/(1+(Summary!$D$13))^(T46)) -> 0
B47: 43 | C47: NTVW12 | D47: BUHL-012 1 MILE 3 PH BEYOND R42 | E47: Distribution | F47: 12.5 | G47: W | H47: 2007 | I47: 100000 | J47: 146365.5488 | K47: 10.22868895 | L47: 10.18244147 | M47: 10 | N47: =IF(OR(G47="S",G47="D"),VLOOKUP(F47,'Component Capacity'!$C$8:$F$12,4,FALSE)*M47,IF(G47="W",VLOOKUP(F47,'Component Capacity'!$C$16:$F$20,4,FALSE),"OOPS")) -> 1.25 | O47: 0.03 | P47: 0.3 | Q47: =IF((VLOOKUP($C47,'Project Customer Details'!$B$6:$Q$1095,16,FALSE))<((VLOOKUP($C47,'Project Customer Details'!$B$6:$Q$1095,4,FALSE)*$L47)),VLOOKUP($C47,'Project Customer Details'!$B$6:$Q$1095,16,FALSE), (VLOOKUP($C47,'Project Customer Details'!$B$6:$Q$1095,4,FALSE)*$L47)) -> 0 | R47: 0 | S47: 0 | T47: =MIN(R47,S47,Summary!$D$14) -> 0 | U47: =J47-(J47/(1+(Summary!$D$13))^(T47)) -> 0
B48: 44 | C48: NTVW13 | D48: BUHL-013 Upgrade 1 mile beyond R-31 | E48: Distribution | F48: 12.5 | G48: W | H48: 2007 | I48: 190000 | J48: 278094.5427 | K48: 10.02779296 | L48: 10.20863678 | M48: 10 | N48: =IF(OR(G48="S",G48="D"),VLOOKUP(F48,'Component Capacity'!$C$8:$F$12,4,FALSE)*M48,IF(G48="W",VLOOKUP(F48,'Component Capacity'!$C$16:$F$20,4,FALSE),"OOPS")) -> 1.25 | O48: 0.03 | P48: 0.3 | Q48: =IF((VLOOKUP($C48,'Project Customer Details'!$B$6:$Q$1095,16,FALSE))<((VLOOKUP($C48,'Project Customer Details'!$B$6:$Q$1095,4,FALSE)*$L48)),VLOOKUP($C48,'Project Customer Details'!$B$6:$Q$1095,16,FALSE), (VLOOKUP($C48,'Project Customer Details'!$B$6:$Q$1095,4,FALSE)*$L48)) -> 0 | R48: 0 | S48: 0 | T48: =MIN(R48,S48,Summary!$D$14) -> 0 | U48: =J48-(J48/(1+(Summary!$D$13))^(T48)) -> 0
B49: 45 | C49: NTVW14 | D49: BUHL-014 Upgrade 2 miles along 1400E | E49: Distribution | F49: 12.5 | G49: W | H49: 2007 | I49: 345000 | J49: 504961.1432 | K49: 10.06697173 | L49: 10.28177198 | M49: 10 | N49: =IF(OR(G49="S",G49="D"),VLOOKUP(F49,'Component Capacity'!$C$8:$F$12,4,FALSE)*M49,IF(G49="W",VLOOKUP(F49,'Component Capacity'!$C$16:$F$20,4,FALSE),"OOPS")) -> 1.25 | O49: 0.03 | P49: 0.3 | Q49: =IF((VLOOKUP($C49,'Project Customer Details'!$B$6:$Q$1095,16,FALSE))<((VLOOKUP($C49,'Project Customer Details'!$B$6:$Q$1095,4,FALSE)*$L49)),VLOOKUP($C49,'Project Customer Details'!$B$6:$Q$1095,16,FALSE), (VLOOKUP($C49,'Project Customer Details'!$B$6:$Q$1095,4,FALSE)*$L49)) -> 0.04342875351 | R49: 0 | S49: 0 | T49: =MIN(R49,S49,Summary!$D$14) -> 0 | U49: =J49-(J49/(1+(Summary!$D$13))^(T49)) -> 0
B50: 46 | C50: NTVW14 | D50: BUHL-014 Upgrade 2 1/4 miles to 336 AL beyond R-16 | E50: Distribution | F50: 12.5 | G50: W | H50: 2009 | I50: 472500 | J50: 657328.0464 | K50: 10.17632745 | L50: 10.27088688 | M50: 10 | N50: =IF(OR(G50="S",G50="D"),VLOOKUP(F50,'Component Capacity'!$C$8:$F$12,4,FALSE)*M50,IF(G50="W",VLOOKUP(F50,'Component Capacity'!$C$16:$F$20,4,FALSE),"OOPS")) -> 1.25 | O50: 0.03 | P50: 0.3 | Q50: =IF((VLOOKUP($C50,'Project Customer Details'!$B$6:$Q$1095,16,FALSE))<((VLOOKUP($C50,'Project Customer Details'!$B$6:$Q$1095,4,FALSE)*$L50)),VLOOKUP($C50,'Project Customer Details'!$B$6:$Q$1095,16,FALSE), (VLOOKUP($C50,'Project Customer Details'!$B$6:$Q$1095,4,FALSE)*$L50)) -> 0.04342875351 | R50: 0 | S50: 0 | T50: =MIN(R50,S50,Summary!$D$14) -> 0 | U50: =J50-(J50/(1+(Summary!$D$13))^(T50)) -> 0
B51: 47 | C51: NMPA19 | D51: NMPA-019 Reconductor 1.5 miles on Madison and Cherry Lane | E51: Distribution | F51: 12.5 | G51: S | H51: 2007 | I51: 340000 | J51: 497642.8658 | K51: 10.04851551 | L51: 10.22566322 | M51: 10 | N51: =IF(OR(G51="S",G51="D"),VLOOKUP(F51,'Component Capacity'!$C$8:$F$12,4,FALSE)*M51,IF(G51="W",VLOOKUP(F51,'Component Capacity'!$C$16:$F$20,4,FALSE),"OOPS")) -> 12.5 | O51: 0.03 | P51: 0.3 | Q51: =IF((VLOOKUP($C51,'Project Customer Details'!$B$6:$Q$1095,16,FALSE))<((VLOOKUP($C51,'Project Customer Details'!$B$6:$Q$1095,4,FALSE)*$L51)),VLOOKUP($C51,'Project Customer Details'!$B$6:$Q$1095,16,FALSE), (VLOOKUP($C51,'Project Customer Details'!$B$6:$Q$1095,4,FALSE)*$L51)) -> 0.04389835943 | R51: 0 | S51: 7 | T51: =MIN(R51,S51,Summary!$D$14) -> 0 | U51: =J51-(J51/(1+(Summary!$D$13))^(T51)) -> 0
B52: 48 | C52: MDRS14 | D52: MDRS-014 Build new feeder south | E52: Distribution | F52: 12.5 | G52: S | H52: 2007 | I52: 490000 | J52: 717191.189 | K52: 10.28829738 | L52: 10.10073455 | M52: 10 | N52: =IF(OR(G52="S",G52="D"),VLOOKUP(F52,'Component Capacity'!$C$8:$F$12,4,FALSE)*M52,IF(G52="W",VLOOKUP(F52,'Component Capacity'!$C$16:$F$20,4,FALSE),"OOPS")) -> 12.5 | O52: 0.03 | P52: 0.3 | Q52: =IF((VLOOKUP($C52,'Project Customer Details'!$B$6:$Q$1095,16,FALSE))<((VLOOKUP($C52,'Project Customer Details'!$B$6:$Q$1095,4,FALSE)*$L52)),VLOOKUP($C52,'Project Customer Details'!$B$6:$Q$1095,16,FALSE), (VLOOKUP($C52,'Project Customer Details'!$B$6:$Q$1095,4,FALSE)*$L52)) -> 0.02362044698 | R52: 0 | S52: 8 | T52: =MIN(R52,S52,Summary!$D$14) -> 0 | U52: =J52-(J52/(1+(Summary!$D$13))^(T52)) -> 0
B53: 49 | C53: MDRS14 | D53: Add feeder 014 | E53: Distribution | F53: 12.5 | G53: S | H53: 2007 | I53: 331846.01 | J53: 485708.2336 | K53: 10.02583446 | L53: 10.09266852 | M53: 10 | N53: =IF(OR(G53="S",G53="D"),VLOOKUP(F53,'Component Capacity'!$C$8:$F$12,4,FALSE)*M53,IF(G53="W",VLOOKUP(F53,'Component Capacity'!$C$16:$F$20,4,FALSE),"OOPS")) -> 12.5 | O53: 0.03 | P53: 0.3 | Q53: =IF((VLOOKUP($C53,'Project Customer Details'!$B$6:$Q$1095,16,FALSE))<((VLOOKUP($C53,'Project Customer Details'!$B$6:$Q$1095,4,FALSE)*$L53)),VLOOKUP($C53,'Project Customer Details'!$B$6:$Q$1095,16,FALSE), (VLOOKUP($C53,'Project Customer Details'!$B$6:$Q$1095,4,FALSE)*$L53)) -> 0.02362044698 | R53: 0 | S53: 8 | T53: =MIN(R53,S53,Summary!$D$14) -> 0 | U53: =J53-(J53/(1+(Summary!$D$13))^(T53)) -> 0
B54: 50 | C54: MDRS11 | D54: New MDRS-015 Feeder | E54: Distribution | F54: 12.5 | G54: S | H54: 2017 | I54: 1200000 | J54: 1362471.839 | K54: 11.1 | L54: 11.1 | M54: 10 | N54: =IF(OR(G54="S",G54="D"),VLOOKUP(F54,'Component Capacity'!$C$8:$F$12,4,FALSE)*M54,IF(G54="W",VLOOKUP(F54,'Component Capacity'!$C$16:$F$20,4,FALSE),"OOPS")) -> 12.5 | O54: 0.0237 | P54: N/A | Q54: =IF((VLOOKUP($C54,'Project Customer Details'!$B$6:$Q$1095,16,FALSE))<((VLOOKUP($C54,'Project Customer Details'!$B$6:$Q$1095,4,FALSE)*$L54)),VLOOKUP($C54,'Project Customer Details'!$B$6:$Q$1095,16,FALSE), (VLOOKUP($C54,'Project Customer Details'!$B$6:$Q$1095,4,FALSE)*$L54)) -> 0.004508460206 | R54: 0 | S54: 6 | T54: =MIN(R54,S54,Summary!$D$14) -> 0 | U54: =J54-(J54/(1+(Summary!$D$13))^(T54)) -> 0
B55: 51 | C55: WILS13 | D55: WILS-013 RG-136 Regulator Replacement | E55: Distribution | F55: T | G55: S | H55: 2007 | I55: 93478.44 | J55: 136820.2317 | K55: 1.39 | L55: 1.39 | M55: 1.08 | N55: =IF(OR(G55="S",G55="D"),VLOOKUP(F55,'Component Capacity'!$C$8:$F$12,4,FALSE)*M55,IF(G55="W",VLOOKUP(F55,'Component Capacity'!$C$16:$F$20,4,FALSE),"OOPS")) -> 1.102040816 | O55: 0.0175 | P55: N/A | Q55: =IF((VLOOKUP($C55,'Project Customer Details'!$B$6:$Q$1095,16,FALSE))<((VLOOKUP($C55,'Project Customer Details'!$B$6:$Q$1095,4,FALSE)*$L55)),VLOOKUP($C55,'Project Customer Details'!$B$6:$Q$1095,16,FALSE), (VLOOKUP($C55,'Project Customer Details'!$B$6:$Q$1095,4,FALSE)*$L55)) -> 0 | R55: 0 | S55: 0 | T55: =MIN(R55,S55,Summary!$D$14) -> 0 | U55: =J55-(J55/(1+(Summary!$D$13))^(T55)) -> 0
B56: 52 | C56: WILS11 | D56: WILS14 - Build new feeder East from Station | E56: Distribution | F56: 12.5 | G56: S | H56: 2022 | I56: 336214 | J56: 336214 | K56: 12.14 | L56: 12.14 | M56: 10 | N56: =IF(OR(G56="S",G56="D"),VLOOKUP(F56,'Component Capacity'!$C$8:$F$12,4,FALSE)*M56,IF(G56="W",VLOOKUP(F56,'Component Capacity'!$C$16:$F$20,4,FALSE),"OOPS")) -> 12.5 | O56: 0.0727 | P56: N/A | Q56: =IF((VLOOKUP($C56,'Project Customer Details'!$B$6:$Q$1095,16,FALSE))<((VLOOKUP($C56,'Project Customer Details'!$B$6:$Q$1095,4,FALSE)*$L56)),VLOOKUP($C56,'Project Customer Details'!$B$6:$Q$1095,16,FALSE), (VLOOKUP($C56,'Project Customer Details'!$B$6:$Q$1095,4,FALSE)*$L56)) -> 0.01310793552 | R56: 0 | S56: 1 | T56: =MIN(R56,S56,Summary!$D$14) -> 0 | U56: =J56-(J56/(1+(Summary!$D$13))^(T56)) -> 0
B57: 53 | C57: HILL14 | D57: HILL ADD 2ND METALCLAD | E57: Distribution | F57: 12.5 | G57: S | H57: 2007 | I57: 750000 | J57: 1097741.616 | K57: 10.25655875 | L57: 10.02030047 | M57: 10 | N57: =IF(OR(G57="S",G57="D"),VLOOKUP(F57,'Component Capacity'!$C$8:$F$12,4,FALSE)*M57,IF(G57="W",VLOOKUP(F57,'Component Capacity'!$C$16:$F$20,4,FALSE),"OOPS")) -> 12.5 | O57: 0.03 | P57: 0.3 | Q57: =IF((VLOOKUP($C57,'Project Customer Details'!$B$6:$Q$1095,16,FALSE))<((VLOOKUP($C57,'Project Customer Details'!$B$6:$Q$1095,4,FALSE)*$L57)),VLOOKUP($C57,'Project Customer Details'!$B$6:$Q$1095,16,FALSE), (VLOOKUP($C57,'Project Customer Details'!$B$6:$Q$1095,4,FALSE)*$L57)) -> 0.03429078595 | R57: 1 | S57: 8 | T57: =MIN(R57,S57,Summary!$D$14) -> 1 | U57: =J57-(J57/(1+(Summary!$D$13))^(T57)) -> 47773.54712
B58: 54 | C58: HILL14 | D58: Add feeder 016 | E58: Distribution | F58: 12.5 | G58: S | H58: 2007 | I58: 180000 | J58: 263457.9878 | K58: 10.287098 | L58: 10.02701801 | M58: 10 | N58: =IF(OR(G58="S",G58="D"),VLOOKUP(F58,'Component Capacity'!$C$8:$F$12,4,FALSE)*M58,IF(G58="W",VLOOKUP(F58,'Component Capacity'!$C$16:$F$20,4,FALSE),"OOPS")) -> 12.5 | O58: 0.03 | P58: 0.3 | Q58: =IF((VLOOKUP($C58,'Project Customer Details'!$B$6:$Q$1095,16,FALSE))<((VLOOKUP($C58,'Project Customer Details'!$B$6:$Q$1095,4,FALSE)*$L58)),VLOOKUP($C58,'Project Customer Details'!$B$6:$Q$1095,16,FALSE), (VLOOKUP($C58,'Project Customer Details'!$B$6:$Q$1095,4,FALSE)*$L58)) -> 0.03429078595 | R58: 1 | S58: 8 | T58: =MIN(R58,S58,Summary!$D$14) -> 1 | U58: =J58-(J58/(1+(Summary!$D$13))^(T58)) -> 11465.65131
B59: 55 | C59: LNDN18 | D59: Create Tie between HILL14 and LNDN17 to offload SKWY area | E59: Distribution | F59: 12.5 | G59: W | H59: 2018 | I59: 310050.68 | J59: 343201.928 | K59: 12.3 | L59: 12.3 | M59: 10 | N59: =IF(OR(G59="S",G59="D"),VLOOKUP(F59,'Component Capacity'!$C$8:$F$12,4,FALSE)*M59,IF(G59="W",VLOOKUP(F59,'Component Capacity'!$C$16:$F$20,4,FALSE),"OOPS")) -> 1.25 | O59: 0.0175 | P59: N/A | Q59: =IF((VLOOKUP($C59,'Project Customer Details'!$B$6:$Q$1095,16,FALSE))<((VLOOKUP($C59,'Project Customer Details'!$B$6:$Q$1095,4,FALSE)*$L59)),VLOOKUP($C59,'Project Customer Details'!$B$6:$Q$1095,16,FALSE), (VLOOKUP($C59,'Project Customer Details'!$B$6:$Q$1095,4,FALSE)*$L59)) -> 0 | R59: 0 | S59: 0 | T59: =MIN(R59,S59,Summary!$D$14) -> 0 | U59: =J59-(J59/(1+(Summary!$D$13))^(T59)) -> 0
B60: 56 | C60: HILL12 | D60: Station work for HILL 17 (customer project) | E60: Distribution | F60: 12.5 | G60: S | H60: 2021 | I60: 186000 | J60: 190784.1107 | K60: 10.79 | L60: 10.79 | M60: 10 | N60: =IF(OR(G60="S",G60="D"),VLOOKUP(F60,'Component Capacity'!$C$8:$F$12,4,FALSE)*M60,IF(G60="W",VLOOKUP(F60,'Component Capacity'!$C$16:$F$20,4,FALSE),"OOPS")) -> 12.5 | O60: 0.0931 | P60: N/A | Q60: =IF((VLOOKUP($C60,'Project Customer Details'!$B$6:$Q$1095,16,FALSE))<((VLOOKUP($C60,'Project Customer Details'!$B$6:$Q$1095,4,FALSE)*$L60)),VLOOKUP($C60,'Project Customer Details'!$B$6:$Q$1095,16,FALSE), (VLOOKUP($C60,'Project Customer Details'!$B$6:$Q$1095,4,FALSE)*$L60)) -> 0.01727338893 | R60: 0 | S60: 2 | T60: =MIN(R60,S60,Summary!$D$14) -> 0 | U60: =J60-(J60/(1+(Summary!$D$13))^(T60)) -> 0
B61: 57 | C61: LCST42 | D61: Add T132 138-34.5 kV 30 MVA | E61: Distribution | F61: 34.5 | G61: S | H61: 2007 | I61: 500000 | J61: 731827.7438 | K61: 20.16454149 | L61: 20.33121155 | M61: 20 | N61: =IF(OR(G61="S",G61="D"),VLOOKUP(F61,'Component Capacity'!$C$8:$F$12,4,FALSE)*M61,IF(G61="W",VLOOKUP(F61,'Component Capacity'!$C$16:$F$20,4,FALSE),"OOPS")) -> 25 | O61: 0.03 | P61: 0.6 | Q61: =IF((VLOOKUP($C61,'Project Customer Details'!$B$6:$Q$1095,16,FALSE))<((VLOOKUP($C61,'Project Customer Details'!$B$6:$Q$1095,4,FALSE)*$L61)),VLOOKUP($C61,'Project Customer Details'!$B$6:$Q$1095,16,FALSE), (VLOOKUP($C61,'Project Customer Details'!$B$6:$Q$1095,4,FALSE)*$L61)) -> 0.007670151426 | R61: 0 | S61: 7 | T61: =MIN(R61,S61,Summary!$D$14) -> 0 | U61: =J61-(J61/(1+(Summary!$D$13))^(T61)) -> 0
B62: 58 | C62: LCST41 | D62: Add 30 MVA 138-34.5 kV T132 and 041 and 042 breakers for feeder 041. | E62: Distribution | F62: 34.5 | G62: S | H62: 2007 | I62: 150000 | J62: 219548.3232 | K62: 20.58682254 | L62: 20.17635887 | M62: 20 | N62: =IF(OR(G62="S",G62="D"),VLOOKUP(F62,'Component Capacity'!$C$8:$F$12,4,FALSE)*M62,IF(G62="W",VLOOKUP(F62,'Component Capacity'!$C$16:$F$20,4,FALSE),"OOPS")) -> 25 | O62: 0.03 | P62: 0.6 | Q62: =IF((VLOOKUP($C62,'Project Customer Details'!$B$6:$Q$1095,16,FALSE))<((VLOOKUP($C62,'Project Customer Details'!$B$6:$Q$1095,4,FALSE)*$L62)),VLOOKUP($C62,'Project Customer Details'!$B$6:$Q$1095,16,FALSE), (VLOOKUP($C62,'Project Customer Details'!$B$6:$Q$1095,4,FALSE)*$L62)) -> 0.02492695145 | R62: 0 | S62: 8 | T62: =MIN(R62,S62,Summary!$D$14) -> 0 | U62: =J62-(J62/(1+(Summary!$D$13))^(T62)) -> 0
B63: 59 | C63: GARY14 | D63: Add JPLN-014 to relieve EAGL-012 and GARY-014 | E63: Distribution | F63: 12.5 | G63: S | H63: 2009 | I63: 650000 | J63: 904260.8046 | K63: 10.22098549 | L63: 10.15018007 | M63: 10 | N63: =IF(OR(G63="S",G63="D"),VLOOKUP(F63,'Component Capacity'!$C$8:$F$12,4,FALSE)*M63,IF(G63="W",VLOOKUP(F63,'Component Capacity'!$C$16:$F$20,4,FALSE),"OOPS")) -> 12.5 | O63: 0.03 | P63: 0.3 | Q63: =IF((VLOOKUP($C63,'Project Customer Details'!$B$6:$Q$1095,16,FALSE))<((VLOOKUP($C63,'Project Customer Details'!$B$6:$Q$1095,4,FALSE)*$L63)),VLOOKUP($C63,'Project Customer Details'!$B$6:$Q$1095,16,FALSE), (VLOOKUP($C63,'Project Customer Details'!$B$6:$Q$1095,4,FALSE)*$L63)) -> 0.0187995826 | R63: 0 | S63: 8 | T63: =MIN(R63,S63,Summary!$D$14) -> 0 | U63: =J63-(J63/(1+(Summary!$D$13))^(T63)) -> 0
B64: 60 | C64: NYSA12 | D64: ADRN-011,012 CREAT NEW FEEDERS, RECONFIGURE NYSA | E64: Distribution | F64: 12.5 | G64: S | H64: 2007 | I64: 250000 | J64: 365913.8719 | K64: 10.08611439 | L64: 10.28800915 | M64: 10 | N64: =IF(OR(G64="S",G64="D"),VLOOKUP(F64,'Component Capacity'!$C$8:$F$12,4,FALSE)*M64,IF(G64="W",VLOOKUP(F64,'Component Capacity'!$C$16:$F$20,4,FALSE),"OOPS")) -> 12.5 | O64: 0.03 | P64: 0.3 | Q64: =IF((VLOOKUP($C64,'Project Customer Details'!$B$6:$Q$1095,16,FALSE))<((VLOOKUP($C64,'Project Customer Details'!$B$6:$Q$1095,4,FALSE)*$L64)),VLOOKUP($C64,'Project Customer Details'!$B$6:$Q$1095,16,FALSE), (VLOOKUP($C64,'Project Customer Details'!$B$6:$Q$1095,4,FALSE)*$L64)) -> 0 | R64: 0 | S64: 7 | T64: =MIN(R64,S64,Summary!$D$14) -> 0 | U64: =J64-(J64/(1+(Summary!$D$13))^(T64)) -> 0
B65: 61 | C65: NYSA12 | D65: NYSA12 Transfer to NYSA14 Snake River Crossing, Phase One of Two | E65: Distribution | F65: 12.5 | G65: S | H65: 2019 | I65: 262957 | J65: 283773.9396 | K65: 11.6 | L65: 11.6 | M65: 10 | N65: =IF(OR(G65="S",G65="D"),VLOOKUP(F65,'Component Capacity'!$C$8:$F$12,4,FALSE)*M65,IF(G65="W",VLOOKUP(F65,'Component Capacity'!$C$16:$F$20,4,FALSE),"OOPS")) -> 12.5 | O65: 0.0107 | P65: N/A | Q65: =IF((VLOOKUP($C65,'Project Customer Details'!$B$6:$Q$1095,16,FALSE))<((VLOOKUP($C65,'Project Customer Details'!$B$6:$Q$1095,4,FALSE)*$L65)),VLOOKUP($C65,'Project Customer Details'!$B$6:$Q$1095,16,FALSE), (VLOOKUP($C65,'Project Customer Details'!$B$6:$Q$1095,4,FALSE)*$L65)) -> 0 | R65: 0 | S65: 8 | T65: =MIN(R65,S65,Summary!$D$14) -> 0 | U65: =J65-(J65/(1+(Summary!$D$13))^(T65)) -> 0
B66: 62 | C66: NYSA13 | D66: ADRN,NULL, BUILD NEW SUB IN CENTER OF NYSA-013 | E66: Distribution | F66: 12.5 | G66: S | H66: 2009 | I66: 880000 | J66: 1224230.012 | K66: 10.07271132 | L66: 10.20690528 | M66: 10 | N66: =IF(OR(G66="S",G66="D"),VLOOKUP(F66,'Component Capacity'!$C$8:$F$12,4,FALSE)*M66,IF(G66="W",VLOOKUP(F66,'Component Capacity'!$C$16:$F$20,4,FALSE),"OOPS")) -> 12.5 | O66: 0.03 | P66: 0.3 | Q66: =IF((VLOOKUP($C66,'Project Customer Details'!$B$6:$Q$1095,16,FALSE))<((VLOOKUP($C66,'Project Customer Details'!$B$6:$Q$1095,4,FALSE)*$L66)),VLOOKUP($C66,'Project Customer Details'!$B$6:$Q$1095,16,FALSE), (VLOOKUP($C66,'Project Customer Details'!$B$6:$Q$1095,4,FALSE)*$L66)) -> 5.758871201e-05 | R66: 0 | S66: 7 | T66: =MIN(R66,S66,Summary!$D$14) -> 0 | U66: =J66-(J66/(1+(Summary!$D$13))^(T66)) -> 0
B67: 63 | C67: STAR12 | D67: S Star Build 138-13 kV substation | E67: Distribution | F67: 12.5 | G67: S | H67: 2012 | I67: 331846.01 | J67: 427788.5706 | K67: 10.0557047 | L67: 10.24513861 | M67: 10 | N67: =IF(OR(G67="S",G67="D"),VLOOKUP(F67,'Component Capacity'!$C$8:$F$12,4,FALSE)*M67,IF(G67="W",VLOOKUP(F67,'Component Capacity'!$C$16:$F$20,4,FALSE),"OOPS")) -> 12.5 | O67: 0.03 | P67: 0.3 | Q67: =IF((VLOOKUP($C67,'Project Customer Details'!$B$6:$Q$1095,16,FALSE))<((VLOOKUP($C67,'Project Customer Details'!$B$6:$Q$1095,4,FALSE)*$L67)),VLOOKUP($C67,'Project Customer Details'!$B$6:$Q$1095,16,FALSE), (VLOOKUP($C67,'Project Customer Details'!$B$6:$Q$1095,4,FALSE)*$L67)) -> 0.0002076114529 | R67: 0 | S67: 7 | T67: =MIN(R67,S67,Summary!$D$14) -> 0 | U67: =J67-(J67/(1+(Summary!$D$13))^(T67)) -> 0
B68: 64 | C68: ETGT16 | D68: NE Twin Falls Substation - Purchase Land | E68: Distribution | F68: 12.5 | G68: S | H68: 2019 | I68: 209433.9 | J68: 226013.6938 | K68: 10.26 | L68: 10.26 | M68: 10 | N68: =IF(OR(G68="S",G68="D"),VLOOKUP(F68,'Component Capacity'!$C$8:$F$12,4,FALSE)*M68,IF(G68="W",VLOOKUP(F68,'Component Capacity'!$C$16:$F$20,4,FALSE),"OOPS")) -> 12.5 | O68: 0.0235 | P68: N/A | Q68: =IF((VLOOKUP($C68,'Project Customer Details'!$B$6:$Q$1095,16,FALSE))<((VLOOKUP($C68,'Project Customer Details'!$B$6:$Q$1095,4,FALSE)*$L68)),VLOOKUP($C68,'Project Customer Details'!$B$6:$Q$1095,16,FALSE), (VLOOKUP($C68,'Project Customer Details'!$B$6:$Q$1095,4,FALSE)*$L68)) -> 0.02842367709 | R68: 0 | S68: 9 | T68: =MIN(R68,S68,Summary!$D$14) -> 0 | U68: =J68-(J68/(1+(Summary!$D$13))^(T68)) -> 0
B69: 65 | C69: MORA42 | D69: Kuna Mora Road Substation | E69: Distribution | F69: 34.5 | G69: S | H69: 2026 | I69: 3258000 | J69: 3258000 | K69: 31.24 | L69: 31.24 | M69: 20 | N69: =IF(OR(G69="S",G69="D"),VLOOKUP(F69,'Component Capacity'!$C$8:$F$12,4,FALSE)*M69,IF(G69="W",VLOOKUP(F69,'Component Capacity'!$C$16:$F$20,4,FALSE),"OOPS")) -> 25 | O69: 0.0103 | P69: N/A | Q69: =IF((VLOOKUP($C69,'Project Customer Details'!$B$6:$Q$1095,16,FALSE))<((VLOOKUP($C69,'Project Customer Details'!$B$6:$Q$1095,4,FALSE)*$L69)),VLOOKUP($C69,'Project Customer Details'!$B$6:$Q$1095,16,FALSE), (VLOOKUP($C69,'Project Customer Details'!$B$6:$Q$1095,4,FALSE)*$L69)) -> 0.06706556589 | R69: =IF((L69-Q69)<M69,CEILING(LN((M69+Q69)/L69)/LN(1+O69),1),0) -> 0 | S69: 0 | T69: =MIN(R69,S69,Summary!$D$14) -> 0 | U69: =J69-(J69/(1+(Summary!$D$13))^(T69)) -> 0
B70: 66 | C70: ETGT16 | D70: NE Twin Falls New Substation | E70: Distribution | F70: 12.5 | G70: S | H70: 2026 | I70: 2644000 | J70: 2644000 | K70: 10.01 | L70: 10.01 | M70: 10 | N70: =IF(OR(G70="S",G70="D"),VLOOKUP(F70,'Component Capacity'!$C$8:$F$12,4,FALSE)*M70,IF(G70="W",VLOOKUP(F70,'Component Capacity'!$C$16:$F$20,4,FALSE),"OOPS")) -> 12.5 | O70: 0.0278 | P70: N/A | Q70: =IF((VLOOKUP($C70,'Project Customer Details'!$B$6:$Q$1095,16,FALSE))<((VLOOKUP($C70,'Project Customer Details'!$B$6:$Q$1095,4,FALSE)*$L70)),VLOOKUP($C70,'Project Customer Details'!$B$6:$Q$1095,16,FALSE), (VLOOKUP($C70,'Project Customer Details'!$B$6:$Q$1095,4,FALSE)*$L70)) -> 0.02842367709 | R70: 1 | S70: =IF(L70<N70,CEILING(LN((N70)/L70)/LN(1+O70),1),0) -> 9 | T70: =MIN(R70,S70,Summary!$D$14) -> 1 | U70: =J70-(J70/(1+(Summary!$D$13))^(T70)) -> 115066.4754
B71: 67 | C71: CDWL16 | D71: System Growth - Caldwell New Substation near Farmway and Hwy 20 | E71: Distribution | F71: 12.5 | G71: S | H71: 2026 | I71: 4550000 | J71: 4550000 | K71: 19.46 | L71: 19.46 | M71: 10 | N71: =IF(OR(G71="S",G71="D"),VLOOKUP(F71,'Component Capacity'!$C$8:$F$12,4,FALSE)*M71,IF(G71="W",VLOOKUP(F71,'Component Capacity'!$C$16:$F$20,4,FALSE),"OOPS")) -> 12.5 | O71: 0.0265 | P71: N/A | Q71: =IF((VLOOKUP($C71,'Project Customer Details'!$B$6:$Q$1095,16,FALSE))<((VLOOKUP($C71,'Project Customer Details'!$B$6:$Q$1095,4,FALSE)*$L71)),VLOOKUP($C71,'Project Customer Details'!$B$6:$Q$1095,16,FALSE), (VLOOKUP($C71,'Project Customer Details'!$B$6:$Q$1095,4,FALSE)*$L71)) -> 0 | R71: 0 | S71: 0 | T71: =MIN(R71,S71,Summary!$D$14) -> 0 | U71: =J71-(J71/(1+(Summary!$D$13))^(T71)) -> 0
B72: 68 | C72: NMPA20 | D72: New Northside Substation | E72: Distribution | F72: 34.5 | G72: S | H72: 2026 | I72: 6080000 | J72: 6080000 | K72: 20.65 | L72: 20.65 | M72: 20 | N72: =IF(OR(G72="S",G72="D"),VLOOKUP(F72,'Component Capacity'!$C$8:$F$12,4,FALSE)*M72,IF(G72="W",VLOOKUP(F72,'Component Capacity'!$C$16:$F$20,4,FALSE),"OOPS")) -> 25 | O72: 0.1404 | P72: N/A | Q72: =IF((VLOOKUP($C72,'Project Customer Details'!$B$6:$Q$1095,16,FALSE))<((VLOOKUP($C72,'Project Customer Details'!$B$6:$Q$1095,4,FALSE)*$L72)),VLOOKUP($C72,'Project Customer Details'!$B$6:$Q$1095,16,FALSE), (VLOOKUP($C72,'Project Customer Details'!$B$6:$Q$1095,4,FALSE)*$L72)) -> 0.03113524909 | R72: 0 | S72: 2 | T72: =MIN(R72,S72,Summary!$D$14) -> 0 | U72: =J72-(J72/(1+(Summary!$D$13))^(T72)) -> 0
B73: 69 | C73: CDWL17 | D73: New Substation near Greenleaf | E73: Distribution | F73: 12.5 | G73: S | H73: 2025 | I73: 5138870 | J73: 5138870 | K73: 10.39 | L73: 10.39 | M73: 10 | N73: =IF(OR(G73="S",G73="D"),VLOOKUP(F73,'Component Capacity'!$C$8:$F$12,4,FALSE)*M73,IF(G73="W",VLOOKUP(F73,'Component Capacity'!$C$16:$F$20,4,FALSE),"OOPS")) -> 12.5 | O73: 0.0302 | P73: N/A | Q73: =IF((VLOOKUP($C73,'Project Customer Details'!$B$6:$Q$1095,16,FALSE))<((VLOOKUP($C73,'Project Customer Details'!$B$6:$Q$1095,4,FALSE)*$L73)),VLOOKUP($C73,'Project Customer Details'!$B$6:$Q$1095,16,FALSE), (VLOOKUP($C73,'Project Customer Details'!$B$6:$Q$1095,4,FALSE)*$L73)) -> 0 | R73: 0 | S73: 7 | T73: =MIN(R73,S73,Summary!$D$14) -> 0 | U73: =J73-(J73/(1+(Summary!$D$13))^(T73)) -> 0
B74: 70 | C74: CHUT13 | D74: HPVY-011 NEW FEEDER NORTH ON HAPPY VALLEY RD | E74: Distribution | F74: 12.5 | G74: S | H74: 2007 | I74: 200000 | J74: 292731.0975 | K74: 10.13239682 | L74: 10.19073791 | M74: 10 | N74: =IF(OR(G74="S",G74="D"),VLOOKUP(F74,'Component Capacity'!$C$8:$F$12,4,FALSE)*M74,IF(G74="W",VLOOKUP(F74,'Component Capacity'!$C$16:$F$20,4,FALSE),"OOPS")) -> 12.5 | O74: 0.03 | P74: 0.3 | Q74: =IF((VLOOKUP($C74,'Project Customer Details'!$B$6:$Q$1095,16,FALSE))<((VLOOKUP($C74,'Project Customer Details'!$B$6:$Q$1095,4,FALSE)*$L74)),VLOOKUP($C74,'Project Customer Details'!$B$6:$Q$1095,16,FALSE), (VLOOKUP($C74,'Project Customer Details'!$B$6:$Q$1095,4,FALSE)*$L74)) -> 0.003710051413 | R74: 0 | S74: 7 | T74: =MIN(R74,S74,Summary!$D$14) -> 0 | U74: =J74-(J74/(1+(Summary!$D$13))^(T74)) -> 0
B75: 71 | C75: BOMT42 | D75: HPVY-012 NEW FEEDER EAST ON GREENHURST & RAILROAD ST. | E75: Distribution | F75: 34.5 | G75: S | H75: 2007 | I75: 280000 | J75: 409823.5365 | K75: 20.55111399 | L75: 20.20904141 | M75: 20 | N75: =IF(OR(G75="S",G75="D"),VLOOKUP(F75,'Component Capacity'!$C$8:$F$12,4,FALSE)*M75,IF(G75="W",VLOOKUP(F75,'Component Capacity'!$C$16:$F$20,4,FALSE),"OOPS")) -> 25 | O75: 0.03 | P75: 0.6 | Q75: =IF((VLOOKUP($C75,'Project Customer Details'!$B$6:$Q$1095,16,FALSE))<((VLOOKUP($C75,'Project Customer Details'!$B$6:$Q$1095,4,FALSE)*$L75)),VLOOKUP($C75,'Project Customer Details'!$B$6:$Q$1095,16,FALSE), (VLOOKUP($C75,'Project Customer Details'!$B$6:$Q$1095,4,FALSE)*$L75)) -> 0.00237471756 | R75: 0 | S75: 8 | T75: =MIN(R75,S75,Summary!$D$14) -> 0 | U75: =J75-(J75/(1+(Summary!$D$13))^(T75)) -> 0
B76: 72 | C76: CHUT13 | D76: HPVY-013 NEW FEEDER SOUTH ON HAPPY VALLEY ROAD | E76: Distribution | F76: 12.5 | G76: S | H76: 2007 | I76: 470000 | J76: 687918.0792 | K76: 10.18360062 | L76: 10.0967938 | M76: 10 | N76: =IF(OR(G76="S",G76="D"),VLOOKUP(F76,'Component Capacity'!$C$8:$F$12,4,FALSE)*M76,IF(G76="W",VLOOKUP(F76,'Component Capacity'!$C$16:$F$20,4,FALSE),"OOPS")) -> 12.5 | O76: 0.03 | P76: 0.3 | Q76: =IF((VLOOKUP($C76,'Project Customer Details'!$B$6:$Q$1095,16,FALSE))<((VLOOKUP($C76,'Project Customer Details'!$B$6:$Q$1095,4,FALSE)*$L76)),VLOOKUP($C76,'Project Customer Details'!$B$6:$Q$1095,16,FALSE), (VLOOKUP($C76,'Project Customer Details'!$B$6:$Q$1095,4,FALSE)*$L76)) -> 0.003710051413 | R76: 0 | S76: 8 | T76: =MIN(R76,S76,Summary!$D$14) -> 0 | U76: =J76-(J76/(1+(Summary!$D$13))^(T76)) -> 0
B77: 73 | C77: CHUT18 | D77: HPVY NEW SUBSTATION 138-12.5KV 30MVA | E77: Distribution | F77: 12.5 | G77: S | H77: 2008 | I77: 1300000 | J77: 1855038.639 | K77: 10.205827 | L77: 10.21220253 | M77: 10 | N77: =IF(OR(G77="S",G77="D"),VLOOKUP(F77,'Component Capacity'!$C$8:$F$12,4,FALSE)*M77,IF(G77="W",VLOOKUP(F77,'Component Capacity'!$C$16:$F$20,4,FALSE),"OOPS")) -> 12.5 | O77: 0.03 | P77: 0.3 | Q77: =IF((VLOOKUP($C77,'Project Customer Details'!$B$6:$Q$1095,16,FALSE))<((VLOOKUP($C77,'Project Customer Details'!$B$6:$Q$1095,4,FALSE)*$L77)),VLOOKUP($C77,'Project Customer Details'!$B$6:$Q$1095,16,FALSE), (VLOOKUP($C77,'Project Customer Details'!$B$6:$Q$1095,4,FALSE)*$L77)) -> 0.009587524482 | R77: 0 | S77: 7 | T77: =MIN(R77,S77,Summary!$D$14) -> 0 | U77: =J77-(J77/(1+(Summary!$D$13))^(T77)) -> 0
B78: 74 | C78: CDAL18 | D78: CDAL-011 TIES AT VICTORY AND EAGLE ROADS | E78: Distribution | F78: 12.5 | G78: S | H78: 2007 | I78: 120000 | J78: 175638.6585 | K78: 10.26574252 | L78: 10.26690391 | M78: 10 | N78: =IF(OR(G78="S",G78="D"),VLOOKUP(F78,'Component Capacity'!$C$8:$F$12,4,FALSE)*M78,IF(G78="W",VLOOKUP(F78,'Component Capacity'!$C$16:$F$20,4,FALSE),"OOPS")) -> 12.5 | O78: 0.03 | P78: 0.3 | Q78: =IF((VLOOKUP($C78,'Project Customer Details'!$B$6:$Q$1095,16,FALSE))<((VLOOKUP($C78,'Project Customer Details'!$B$6:$Q$1095,4,FALSE)*$L78)),VLOOKUP($C78,'Project Customer Details'!$B$6:$Q$1095,16,FALSE), (VLOOKUP($C78,'Project Customer Details'!$B$6:$Q$1095,4,FALSE)*$L78)) -> 0.0210013309 | R78: 0 | S78: 7 | T78: =MIN(R78,S78,Summary!$D$14) -> 0 | U78: =J78-(J78/(1+(Summary!$D$13))^(T78)) -> 0
B79: 75 | C79: CNCL12 | D79: CNCL-CMBG 69, XMSN RBLD WITH CNCL-012, PART 2 OF 3 | E79: Distribution | F79: 12.5 | G79: S | H79: 2007 | I79: 350000 | J79: 512279.4207 | K79: 10.10298595 | L79: 10.14788459 | M79: 10 | N79: =IF(OR(G79="S",G79="D"),VLOOKUP(F79,'Component Capacity'!$C$8:$F$12,4,FALSE)*M79,IF(G79="W",VLOOKUP(F79,'Component Capacity'!$C$16:$F$20,4,FALSE),"OOPS")) -> 12.5 | O79: 0.03 | P79: 0.3 | Q79: =IF((VLOOKUP($C79,'Project Customer Details'!$B$6:$Q$1095,16,FALSE))<((VLOOKUP($C79,'Project Customer Details'!$B$6:$Q$1095,4,FALSE)*$L79)),VLOOKUP($C79,'Project Customer Details'!$B$6:$Q$1095,16,FALSE), (VLOOKUP($C79,'Project Customer Details'!$B$6:$Q$1095,4,FALSE)*$L79)) -> 0 | R79: 0 | S79: 8 | T79: =MIN(R79,S79,Summary!$D$14) -> 0 | U79: =J79-(J79/(1+(Summary!$D$13))^(T79)) -> 0
B80: 76 | C80: LCST41 | D80: CDAL-013 Substation work for feeder North | E80: Distribution | F80: 34.5 | G80: S | H80: 2007 | I80: 95000 | J80: 139047.2713 | K80: 20.52126347 | L80: 20.47631473 | M80: 20 | N80: =IF(OR(G80="S",G80="D"),VLOOKUP(F80,'Component Capacity'!$C$8:$F$12,4,FALSE)*M80,IF(G80="W",VLOOKUP(F80,'Component Capacity'!$C$16:$F$20,4,FALSE),"OOPS")) -> 25 | O80: 0.03 | P80: 0.6 | Q80: =IF((VLOOKUP($C80,'Project Customer Details'!$B$6:$Q$1095,16,FALSE))<((VLOOKUP($C80,'Project Customer Details'!$B$6:$Q$1095,4,FALSE)*$L80)),VLOOKUP($C80,'Project Customer Details'!$B$6:$Q$1095,16,FALSE), (VLOOKUP($C80,'Project Customer Details'!$B$6:$Q$1095,4,FALSE)*$L80)) -> 0.02492695145 | R80: 0 | S80: 7 | T80: =MIN(R80,S80,Summary!$D$14) -> 0 | U80: =J80-(J80/(1+(Summary!$D$13))^(T80)) -> 0
B81: 77 | C81: CDAL16 | D81: CDAL-016, RECONDUCTOR 2/0 ON EAGLE RD SOUTH OF FRANKLIN | E81: Distribution | F81: C | G81: S | H81: 2008 | I81: 140000 | J81: 199773.3919 | K81: 8.08 | L81: 8.08 | M81: 7.91 | N81: =IF(OR(G81="S",G81="D"),VLOOKUP(F81,'Component Capacity'!$C$8:$F$12,4,FALSE)*M81,IF(G81="W",VLOOKUP(F81,'Component Capacity'!$C$16:$F$20,4,FALSE),"OOPS")) -> 8.788888889 | O81: 0.0175 | P81: N/A | Q81: =IF((VLOOKUP($C81,'Project Customer Details'!$B$6:$Q$1095,16,FALSE))<((VLOOKUP($C81,'Project Customer Details'!$B$6:$Q$1095,4,FALSE)*$L81)),VLOOKUP($C81,'Project Customer Details'!$B$6:$Q$1095,16,FALSE), (VLOOKUP($C81,'Project Customer Details'!$B$6:$Q$1095,4,FALSE)*$L81)) -> 0.01728954987 | R81: 0 | S81: 5 | T81: =MIN(R81,S81,Summary!$D$14) -> 0 | U81: =J81-(J81/(1+(Summary!$D$13))^(T81)) -> 0
B82: 78 | C82: CDAL12 | D82: CDAL-012 REROUTE FEEDER TO SERVE FIVE MILE AREA | E82: Distribution | F82: 12.5 | G82: S | H82: 2008 | I82: 20000 | J82: 28539.05598 | K82: 10.04009895 | L82: 10.04150425 | M82: 10 | N82: =IF(OR(G82="S",G82="D"),VLOOKUP(F82,'Component Capacity'!$C$8:$F$12,4,FALSE)*M82,IF(G82="W",VLOOKUP(F82,'Component Capacity'!$C$16:$F$20,4,FALSE),"OOPS")) -> 12.5 | O82: 0.03 | P82: 0.3 | Q82: =IF((VLOOKUP($C82,'Project Customer Details'!$B$6:$Q$1095,16,FALSE))<((VLOOKUP($C82,'Project Customer Details'!$B$6:$Q$1095,4,FALSE)*$L82)),VLOOKUP($C82,'Project Customer Details'!$B$6:$Q$1095,16,FALSE), (VLOOKUP($C82,'Project Customer Details'!$B$6:$Q$1095,4,FALSE)*$L82)) -> 0.03162411145 | R82: 0 | S82: 8 | T82: =MIN(R82,S82,Summary!$D$14) -> 0 | U82: =J82-(J82/(1+(Summary!$D$13))^(T82)) -> 0
B83: 79 | C83: CDAL17 | D83: CDAL-017 REROUTE FEEDER NORTH | E83: Distribution | F83: 12.5 | G83: S | H83: 2008 | I83: 150000 | J83: 214042.9199 | K83: 10.17304687 | L83: 10.09715031 | M83: 10 | N83: =IF(OR(G83="S",G83="D"),VLOOKUP(F83,'Component Capacity'!$C$8:$F$12,4,FALSE)*M83,IF(G83="W",VLOOKUP(F83,'Component Capacity'!$C$16:$F$20,4,FALSE),"OOPS")) -> 12.5 | O83: 0.03 | P83: 0.3 | Q83: =IF((VLOOKUP($C83,'Project Customer Details'!$B$6:$Q$1095,16,FALSE))<((VLOOKUP($C83,'Project Customer Details'!$B$6:$Q$1095,4,FALSE)*$L83)),VLOOKUP($C83,'Project Customer Details'!$B$6:$Q$1095,16,FALSE), (VLOOKUP($C83,'Project Customer Details'!$B$6:$Q$1095,4,FALSE)*$L83)) -> 0.02599461043 | R83: 0 | S83: 8 | T83: =MIN(R83,S83,Summary!$D$14) -> 0 | U83: =J83-(J83/(1+(Summary!$D$13))^(T83)) -> 0
B84: 80 | C84: LCST41 | D84: CDAL-013 Transmission underbuilt | E84: Distribution | F84: 34.5 | G84: S | H84: 2008 | I84: 570000 | J84: 813363.0954 | K84: 20.57207081 | L84: 20.22011081 | M84: 20 | N84: =IF(OR(G84="S",G84="D"),VLOOKUP(F84,'Component Capacity'!$C$8:$F$12,4,FALSE)*M84,IF(G84="W",VLOOKUP(F84,'Component Capacity'!$C$16:$F$20,4,FALSE),"OOPS")) -> 25 | O84: 0.03 | P84: 0.6 | Q84: =IF((VLOOKUP($C84,'Project Customer Details'!$B$6:$Q$1095,16,FALSE))<((VLOOKUP($C84,'Project Customer Details'!$B$6:$Q$1095,4,FALSE)*$L84)),VLOOKUP($C84,'Project Customer Details'!$B$6:$Q$1095,16,FALSE), (VLOOKUP($C84,'Project Customer Details'!$B$6:$Q$1095,4,FALSE)*$L84)) -> 0.02492695145 | R84: 0 | S84: 8 | T84: =MIN(R84,S84,Summary!$D$14) -> 0 | U84: =J84-(J84/(1+(Summary!$D$13))^(T84)) -> 0
B85: 81 | C85: TNML13 | D85: TNML - Add New TNML-15 Feeder | E85: Distribution | F85: 12.5 | G85: S | H85: 2015 | I85: 479583.74 | J85: 572887.3782 | K85: 10.6 | L85: 10.6 | M85: 10 | N85: =IF(OR(G85="S",G85="D"),VLOOKUP(F85,'Component Capacity'!$C$8:$F$12,4,FALSE)*M85,IF(G85="W",VLOOKUP(F85,'Component Capacity'!$C$16:$F$20,4,FALSE),"OOPS")) -> 12.5 | O85: 0.0175 | P85: N/A | Q85: =IF((VLOOKUP($C85,'Project Customer Details'!$B$6:$Q$1095,16,FALSE))<((VLOOKUP($C85,'Project Customer Details'!$B$6:$Q$1095,4,FALSE)*$L85)),VLOOKUP($C85,'Project Customer Details'!$B$6:$Q$1095,16,FALSE), (VLOOKUP($C85,'Project Customer Details'!$B$6:$Q$1095,4,FALSE)*$L85)) -> 0.01797829877 | R85: 0 | S85: 10 | T85: =MIN(R85,S85,Summary!$D$14) -> 0 | U85: =J85-(J85/(1+(Summary!$D$13))^(T85)) -> 0
B86: 82 | C86: TNML11 | D86: Install Second MetalClad at TNML | E86: Distribution | F86: 12.5 | G86: S | H86: 2016 | I86: 2241289.02 | J86: 2610197.742 | K86: 10.2 | L86: 10.2 | M86: 10 | N86: =IF(OR(G86="S",G86="D"),VLOOKUP(F86,'Component Capacity'!$C$8:$F$12,4,FALSE)*M86,IF(G86="W",VLOOKUP(F86,'Component Capacity'!$C$16:$F$20,4,FALSE),"OOPS")) -> 12.5 | O86: 0.05 | P86: N/A | Q86: =IF((VLOOKUP($C86,'Project Customer Details'!$B$6:$Q$1095,16,FALSE))<((VLOOKUP($C86,'Project Customer Details'!$B$6:$Q$1095,4,FALSE)*$L86)),VLOOKUP($C86,'Project Customer Details'!$B$6:$Q$1095,16,FALSE), (VLOOKUP($C86,'Project Customer Details'!$B$6:$Q$1095,4,FALSE)*$L86)) -> 0.02285625447 | R86: 0 | S86: 5 | T86: =MIN(R86,S86,Summary!$D$14) -> 0 | U86: =J86-(J86/(1+(Summary!$D$13))^(T86)) -> 0
B87: 83 | C87: TNML11 | D87: TNML - Add New TNML-16 Feeder | E87: Distribution | F87: 12.5 | G87: S | H87: 2016 | I87: 140203.13 | J87: 163280.0991 | K87: 10.2 | L87: 10.2 | M87: 10 | N87: =IF(OR(G87="S",G87="D"),VLOOKUP(F87,'Component Capacity'!$C$8:$F$12,4,FALSE)*M87,IF(G87="W",VLOOKUP(F87,'Component Capacity'!$C$16:$F$20,4,FALSE),"OOPS")) -> 12.5 | O87: 0.05 | P87: N/A | Q87: =IF((VLOOKUP($C87,'Project Customer Details'!$B$6:$Q$1095,16,FALSE))<((VLOOKUP($C87,'Project Customer Details'!$B$6:$Q$1095,4,FALSE)*$L87)),VLOOKUP($C87,'Project Customer Details'!$B$6:$Q$1095,16,FALSE), (VLOOKUP($C87,'Project Customer Details'!$B$6:$Q$1095,4,FALSE)*$L87)) -> 0.02285625447 | R87: 0 | S87: 5 | T87: =MIN(R87,S87,Summary!$D$14) -> 0 | U87: =J87-(J87/(1+(Summary!$D$13))^(T87)) -> 0
B88: 84 | C88: TNML14 | D88: TNML - Add New TNML-17 Feeder | E88: Distribution | F88: 12.5 | G88: S | H88: 2017 | I88: 398210.04 | J88: 452124.9712 | K88: 12.6 | L88: 12.6 | M88: 10 | N88: =IF(OR(G88="S",G88="D"),VLOOKUP(F88,'Component Capacity'!$C$8:$F$12,4,FALSE)*M88,IF(G88="W",VLOOKUP(F88,'Component Capacity'!$C$16:$F$20,4,FALSE),"OOPS")) -> 12.5 | O88: 0.3 | P88: N/A | Q88: =IF((VLOOKUP($C88,'Project Customer Details'!$B$6:$Q$1095,16,FALSE))<((VLOOKUP($C88,'Project Customer Details'!$B$6:$Q$1095,4,FALSE)*$L88)),VLOOKUP($C88,'Project Customer Details'!$B$6:$Q$1095,16,FALSE), (VLOOKUP($C88,'Project Customer Details'!$B$6:$Q$1095,4,FALSE)*$L88)) -> 0.03170422258 | R88: 0 | S88: 0 | T88: =MIN(R88,S88,Summary!$D$14) -> 0 | U88: =J88-(J88/(1+(Summary!$D$13))^(T88)) -> 0
B89: 85 | C89: TFSN13 | D89: POLN - NWTF INSTALL NEW 138 KV LINE | E89: Distribution | F89: 12.5 | G89: S | H89: 2007 | I89: 1765000 | J89: 2583351.936 | K89: 10.23373462 | L89: 10.4 | M89: 10 | N89: =IF(OR(G89="S",G89="D"),VLOOKUP(F89,'Component Capacity'!$C$8:$F$12,4,FALSE)*M89,IF(G89="W",VLOOKUP(F89,'Component Capacity'!$C$16:$F$20,4,FALSE),"OOPS")) -> 12.5 | O89: 0.03 | P89: 0.3 | Q89: =IF((VLOOKUP($C89,'Project Customer Details'!$B$6:$Q$1095,16,FALSE))<((VLOOKUP($C89,'Project Customer Details'!$B$6:$Q$1095,4,FALSE)*$L89)),VLOOKUP($C89,'Project Customer Details'!$B$6:$Q$1095,16,FALSE), (VLOOKUP($C89,'Project Customer Details'!$B$6:$Q$1095,4,FALSE)*$L89)) -> 0.0189989774 | R89: 0 | S89: 7 | T89: =MIN(R89,S89,Summary!$D$14) -> 0 | U89: =J89-(J89/(1+(Summary!$D$13))^(T89)) -> 0
B90: 86 | C90: CHUT14 | D90: Acquire 138 kV line ROW for new Lakeshore substation | E90: Distribution | F90: 12.5 | G90: S | H90: 2008 | I90: 270000 | J90: 385277.2557 | K90: 10.20364463 | L90: 10.15688185 | M90: 10 | N90: =IF(OR(G90="S",G90="D"),VLOOKUP(F90,'Component Capacity'!$C$8:$F$12,4,FALSE)*M90,IF(G90="W",VLOOKUP(F90,'Component Capacity'!$C$16:$F$20,4,FALSE),"OOPS")) -> 12.5 | O90: 0.03 | P90: 0.3 | Q90: =IF((VLOOKUP($C90,'Project Customer Details'!$B$6:$Q$1095,16,FALSE))<((VLOOKUP($C90,'Project Customer Details'!$B$6:$Q$1095,4,FALSE)*$L90)),VLOOKUP($C90,'Project Customer Details'!$B$6:$Q$1095,16,FALSE), (VLOOKUP($C90,'Project Customer Details'!$B$6:$Q$1095,4,FALSE)*$L90)) -> 0.0007489680536 | R90: 0 | S90: 8 | T90: =MIN(R90,S90,Summary!$D$14) -> 0 | U90: =J90-(J90/(1+(Summary!$D$13))^(T90)) -> 0
B91: 87 | C91: NMPA20 | D91: CADA Build 138 kV line to new station | E91: Distribution | F91: 12.5 | G91: S | H91: 2017 | I91: 450000 | J91: 510926.9395 | K91: 10.54 | L91: 10.54 | M91: 10 | N91: =IF(OR(G91="S",G91="D"),VLOOKUP(F91,'Component Capacity'!$C$8:$F$12,4,FALSE)*M91,IF(G91="W",VLOOKUP(F91,'Component Capacity'!$C$16:$F$20,4,FALSE),"OOPS")) -> 12.5 | O91: 0.034 | P91: N/A | Q91: =IF((VLOOKUP($C91,'Project Customer Details'!$B$6:$Q$1095,16,FALSE))<((VLOOKUP($C91,'Project Customer Details'!$B$6:$Q$1095,4,FALSE)*$L91)),VLOOKUP($C91,'Project Customer Details'!$B$6:$Q$1095,16,FALSE), (VLOOKUP($C91,'Project Customer Details'!$B$6:$Q$1095,4,FALSE)*$L91)) -> 0.03113524909 | R91: 0 | S91: 6 | T91: =MIN(R91,S91,Summary!$D$14) -> 0 | U91: =J91-(J91/(1+(Summary!$D$13))^(T91)) -> 0
B92: 89 | C92: TFSN13 | D92: POLN - NW TWIN FALLS INSTALL A 30 MVA 138/12.5 KV SUB | E92: Distribution | F92: 12.5 | G92: S | H92: 2007 | I92: 1700000 | J92: 2488214.329 | K92: 10.13584828 | L92: 10.4 | M92: 10 | N92: =IF(OR(G92="S",G92="D"),VLOOKUP(F92,'Component Capacity'!$C$8:$F$12,4,FALSE)*M92,IF(G92="W",VLOOKUP(F92,'Component Capacity'!$C$16:$F$20,4,FALSE),"OOPS")) -> 12.5 | O92: 0.03 | P92: 0.3 | Q92: =IF((VLOOKUP($C92,'Project Customer Details'!$B$6:$Q$1095,16,FALSE))<((VLOOKUP($C92,'Project Customer Details'!$B$6:$Q$1095,4,FALSE)*$L92)),VLOOKUP($C92,'Project Customer Details'!$B$6:$Q$1095,16,FALSE), (VLOOKUP($C92,'Project Customer Details'!$B$6:$Q$1095,4,FALSE)*$L92)) -> 0.0189989774 | R92: 0 | S92: 7 | T92: =MIN(R92,S92,Summary!$D$14) -> 0 | U92: =J92-(J92/(1+(Summary!$D$13))^(T92)) -> 0
B93: 90 | C93: TFSN13 | D93: POLN-011 NEW FEEDER | E93: Distribution | F93: 12.5 | G93: S | H93: 2007 | I93: 75000 | J93: 109774.1616 | K93: 10.10251485 | L93: 10.26104755 | M93: 10 | N93: =IF(OR(G93="S",G93="D"),VLOOKUP(F93,'Component Capacity'!$C$8:$F$12,4,FALSE)*M93,IF(G93="W",VLOOKUP(F93,'Component Capacity'!$C$16:$F$20,4,FALSE),"OOPS")) -> 12.5 | O93: 0.03 | P93: 0.3 | Q93: =IF((VLOOKUP($C93,'Project Customer Details'!$B$6:$Q$1095,16,FALSE))<((VLOOKUP($C93,'Project Customer Details'!$B$6:$Q$1095,4,FALSE)*$L93)),VLOOKUP($C93,'Project Customer Details'!$B$6:$Q$1095,16,FALSE), (VLOOKUP($C93,'Project Customer Details'!$B$6:$Q$1095,4,FALSE)*$L93)) -> 0.0189989774 | R93: 0 | S93: 7 | T93: =MIN(R93,S93,Summary!$D$14) -> 0 | U93: =J93-(J93/(1+(Summary!$D$13))^(T93)) -> 0
B94: 91 | C94: TFSN13 | D94: POLN-012 NEW FEEDER | E94: Distribution | F94: 12.5 | G94: S | H94: 2007 | I94: 200000 | J94: 292731.0975 | K94: 10.00732163 | L94: 10.04355502 | M94: 10 | N94: =IF(OR(G94="S",G94="D"),VLOOKUP(F94,'Component Capacity'!$C$8:$F$12,4,FALSE)*M94,IF(G94="W",VLOOKUP(F94,'Component Capacity'!$C$16:$F$20,4,FALSE),"OOPS")) -> 12.5 | O94: 0.03 | P94: 0.3 | Q94: =IF((VLOOKUP($C94,'Project Customer Details'!$B$6:$Q$1095,16,FALSE))<((VLOOKUP($C94,'Project Customer Details'!$B$6:$Q$1095,4,FALSE)*$L94)),VLOOKUP($C94,'Project Customer Details'!$B$6:$Q$1095,16,FALSE), (VLOOKUP($C94,'Project Customer Details'!$B$6:$Q$1095,4,FALSE)*$L94)) -> 0.0189989774 | R94: 0 | S94: 8 | T94: =MIN(R94,S94,Summary!$D$14) -> 0 | U94: =J94-(J94/(1+(Summary!$D$13))^(T94)) -> 0
B95: 92 | C95: TFSN20 | D95: POLN-013 | E95: Distribution | F95: 12.5 | G95: S | H95: 2014 | I95: 210315.15 | J95: 257694.1856 | K95: 11 | L95: 11 | M95: 10 | N95: =IF(OR(G95="S",G95="D"),VLOOKUP(F95,'Component Capacity'!$C$8:$F$12,4,FALSE)*M95,IF(G95="W",VLOOKUP(F95,'Component Capacity'!$C$16:$F$20,4,FALSE),"OOPS")) -> 12.5 | O95: 0.025 | P95: N/A | Q95: =IF((VLOOKUP($C95,'Project Customer Details'!$B$6:$Q$1095,16,FALSE))<((VLOOKUP($C95,'Project Customer Details'!$B$6:$Q$1095,4,FALSE)*$L95)),VLOOKUP($C95,'Project Customer Details'!$B$6:$Q$1095,16,FALSE), (VLOOKUP($C95,'Project Customer Details'!$B$6:$Q$1095,4,FALSE)*$L95)) -> 0.01110760166 | R95: 0 | S95: 6 | T95: =MIN(R95,S95,Summary!$D$14) -> 0 | U95: =J95-(J95/(1+(Summary!$D$13))^(T95)) -> 0
B96: 93 | C96: GEMM13 | D96: GEMM-013 Reconductor 1/2 mile on Main Street | E96: Distribution | F96: 12.5 | G96: S | H96: 2007 | I96: 50000 | J96: 73182.77438 | K96: 10.12791143 | L96: 10.01268013 | M96: 10 | N96: =IF(OR(G96="S",G96="D"),VLOOKUP(F96,'Component Capacity'!$C$8:$F$12,4,FALSE)*M96,IF(G96="W",VLOOKUP(F96,'Component Capacity'!$C$16:$F$20,4,FALSE),"OOPS")) -> 12.5 | O96: 0.03 | P96: 0.3 | Q96: =IF((VLOOKUP($C96,'Project Customer Details'!$B$6:$Q$1095,16,FALSE))<((VLOOKUP($C96,'Project Customer Details'!$B$6:$Q$1095,4,FALSE)*$L96)),VLOOKUP($C96,'Project Customer Details'!$B$6:$Q$1095,16,FALSE), (VLOOKUP($C96,'Project Customer Details'!$B$6:$Q$1095,4,FALSE)*$L96)) -> 0 | R96: 0 | S96: 8 | T96: =MIN(R96,S96,Summary!$D$14) -> 0 | U96: =J96-(J96/(1+(Summary!$D$13))^(T96)) -> 0
B97: 94 | C97: GEMM11 | D97: GEMM-011 Replace RG-76 with 320 A regulators | E97: Distribution | F97: T | G97: S | H97: 2008 | I97: 93478.44 | J97: 133389.3216 | K97: 3.89 | L97: 3.89 | M97: 3.24 | N97: =IF(OR(G97="S",G97="D"),VLOOKUP(F97,'Component Capacity'!$C$8:$F$12,4,FALSE)*M97,IF(G97="W",VLOOKUP(F97,'Component Capacity'!$C$16:$F$20,4,FALSE),"OOPS")) -> 3.306122449 | O97: 0.0175 | P97: N/A | Q97: =IF((VLOOKUP($C97,'Project Customer Details'!$B$6:$Q$1095,16,FALSE))<((VLOOKUP($C97,'Project Customer Details'!$B$6:$Q$1095,4,FALSE)*$L97)),VLOOKUP($C97,'Project Customer Details'!$B$6:$Q$1095,16,FALSE), (VLOOKUP($C97,'Project Customer Details'!$B$6:$Q$1095,4,FALSE)*$L97)) -> 0.004705697379 | R97: 0 | S97: 0 | T97: =MIN(R97,S97,Summary!$D$14) -> 0 | U97: =J97-(J97/(1+(Summary!$D$13))^(T97)) -> 0
B98: 95 | C98: GEMM12 | D98: Low Voltage Prior to REG-99 on Cemetary Rd, 1 of 2 Related Issue | E98: Distribution | F98: 12.5 | G98: S | H98: 2011 | I98: 406553.94 | J98: 537576.1701 | K98: 10.0946154 | L98: 10.09623959 | M98: 10 | N98: =IF(OR(G98="S",G98="D"),VLOOKUP(F98,'Component Capacity'!$C$8:$F$12,4,FALSE)*M98,IF(G98="W",VLOOKUP(F98,'Component Capacity'!$C$16:$F$20,4,FALSE),"OOPS")) -> 12.5 | O98: 0.03 | P98: 0.3 | Q98: =IF((VLOOKUP($C98,'Project Customer Details'!$B$6:$Q$1095,16,FALSE))<((VLOOKUP($C98,'Project Customer Details'!$B$6:$Q$1095,4,FALSE)*$L98)),VLOOKUP($C98,'Project Customer Details'!$B$6:$Q$1095,16,FALSE), (VLOOKUP($C98,'Project Customer Details'!$B$6:$Q$1095,4,FALSE)*$L98)) -> 0.007042242571 | R98: 0 | S98: 8 | T98: =MIN(R98,S98,Summary!$D$14) -> 0 | U98: =J98-(J98/(1+(Summary!$D$13))^(T98)) -> 0
B99: 96 | C99: MORA42 | D99: MORA042 Feeder work 8.5 miles of single phase | E99: Distribution | F99: 34.5 | G99: S | H99: 2008 | I99: 170000 | J99: 242581.9758 | K99: 20.24681459 | L99: 20.2768867 | M99: 20 | N99: =IF(OR(G99="S",G99="D"),VLOOKUP(F99,'Component Capacity'!$C$8:$F$12,4,FALSE)*M99,IF(G99="W",VLOOKUP(F99,'Component Capacity'!$C$16:$F$20,4,FALSE),"OOPS")) -> 25 | O99: 0.03 | P99: 0.6 | Q99: =IF((VLOOKUP($C99,'Project Customer Details'!$B$6:$Q$1095,16,FALSE))<((VLOOKUP($C99,'Project Customer Details'!$B$6:$Q$1095,4,FALSE)*$L99)),VLOOKUP($C99,'Project Customer Details'!$B$6:$Q$1095,16,FALSE), (VLOOKUP($C99,'Project Customer Details'!$B$6:$Q$1095,4,FALSE)*$L99)) -> 0.06706556589 | R99: 0 | S99: 8 | T99: =MIN(R99,S99,Summary!$D$14) -> 0 | U99: =J99-(J99/(1+(Summary!$D$13))^(T99)) -> 0
B100: 97 | C100: MORA42 | D100: MORA-044 Rebuild to 336 AL beyond C-63 | E100: Distribution | F100: 12.5 | G100: S | H100: 2008 | I100: 93478.44 | J100: 133389.3216 | K100: 10.25460031 | L100: 10.00087524 | M100: 10 | N100: =IF(OR(G100="S",G100="D"),VLOOKUP(F100,'Component Capacity'!$C$8:$F$12,4,FALSE)*M100,IF(G100="W",VLOOKUP(F100,'Component Capacity'!$C$16:$F$20,4,FALSE),"OOPS")) -> 12.5 | O100: 0.03 | P100: 0.3 | Q100: =IF((VLOOKUP($C100,'Project Customer Details'!$B$6:$Q$1095,16,FALSE))<((VLOOKUP($C100,'Project Customer Details'!$B$6:$Q$1095,4,FALSE)*$L100)),VLOOKUP($C100,'Project Customer Details'!$B$6:$Q$1095,16,FALSE), (VLOOKUP($C100,'Project Customer Details'!$B$6:$Q$1095,4,FALSE)*$L100)) -> 0.06706556589 | R100: 1 | S100: 8 | T100: =MIN(R100,S100,Summary!$D$14) -> 1 | U100: =J100-(J100/(1+(Summary!$D$13))^(T100)) -> 5805.082863
B101: 98 | C101: MORA44 | D101: MORA Transfer load from MORA feeder 044 TO 041 | E101: Distribution | F101: 34.5 | G101: S | H101: 2017 | I101: 280402.18 | J101: 318366.7281 | K101: 22.8 | L101: 22.8 | M101: 20 | N101: =IF(OR(G101="S",G101="D"),VLOOKUP(F101,'Component Capacity'!$C$8:$F$12,4,FALSE)*M101,IF(G101="W",VLOOKUP(F101,'Component Capacity'!$C$16:$F$20,4,FALSE),"OOPS")) -> 25 | O101: 0.02 | P101: N/A | Q101: =IF((VLOOKUP($C101,'Project Customer Details'!$B$6:$Q$1095,16,FALSE))<((VLOOKUP($C101,'Project Customer Details'!$B$6:$Q$1095,4,FALSE)*$L101)),VLOOKUP($C101,'Project Customer Details'!$B$6:$Q$1095,16,FALSE), (VLOOKUP($C101,'Project Customer Details'!$B$6:$Q$1095,4,FALSE)*$L101)) -> 0.04972359394 | R101: 0 | S101: 5 | T101: =MIN(R101,S101,Summary!$D$14) -> 0 | U101: =J101-(J101/(1+(Summary!$D$13))^(T101)) -> 0
B102: 99 | C102: MORA43 | D102: Offload MORA43 | E102: Distribution | F102: C | G102: S | H102: 2021 | I102: 150000 | J102: 153858.1538 | K102: 20.44 | L102: 20.44 | M102: 16.78 | N102: =IF(OR(G102="S",G102="D"),VLOOKUP(F102,'Component Capacity'!$C$8:$F$12,4,FALSE)*M102,IF(G102="W",VLOOKUP(F102,'Component Capacity'!$C$16:$F$20,4,FALSE),"OOPS")) -> 18.64444444 | O102: 0.0516 | P102: N/A | Q102: =IF((VLOOKUP($C102,'Project Customer Details'!$B$6:$Q$1095,16,FALSE))<((VLOOKUP($C102,'Project Customer Details'!$B$6:$Q$1095,4,FALSE)*$L102)),VLOOKUP($C102,'Project Customer Details'!$B$6:$Q$1095,16,FALSE), (VLOOKUP($C102,'Project Customer Details'!$B$6:$Q$1095,4,FALSE)*$L102)) -> 0.02981516198 | R102: 0 | S102: 0 | T102: =MIN(R102,S102,Summary!$D$14) -> 0 | U102: =J102-(J102/(1+(Summary!$D$13))^(T102)) -> 0
B103: 100 | C103: SAMN41 | D103: SAMN-041 - NORTHFORK REBUILD | E103: Distribution | F103: 12.5 | G103: S | H103: 2009 | I103: 245000 | J103: 340836.7648 | K103: 10.28877412 | L103: 10.27982379 | M103: 10 | N103: =IF(OR(G103="S",G103="D"),VLOOKUP(F103,'Component Capacity'!$C$8:$F$12,4,FALSE)*M103,IF(G103="W",VLOOKUP(F103,'Component Capacity'!$C$16:$F$20,4,FALSE),"OOPS")) -> 12.5 | O103: 0.03 | P103: 0.3 | Q103: =IF((VLOOKUP($C103,'Project Customer Details'!$B$6:$Q$1095,16,FALSE))<((VLOOKUP($C103,'Project Customer Details'!$B$6:$Q$1095,4,FALSE)*$L103)),VLOOKUP($C103,'Project Customer Details'!$B$6:$Q$1095,16,FALSE), (VLOOKUP($C103,'Project Customer Details'!$B$6:$Q$1095,4,FALSE)*$L103)) -> 0 | R103: 0 | S103: 7 | T103: =MIN(R103,S103,Summary!$D$14) -> 0 | U103: =J103-(J103/(1+(Summary!$D$13))^(T103)) -> 0
B104: 101 | C104: CSCD11 | D104: CSCD-011 Rebuild approx. 3700' of OH and UG on west side of Cascade | E104: Distribution | F104: 12.5 | G104: W | H104: 2010 | I104: 93478.44 | J104: 126783.445 | K104: 10.17332865 | L104: 10.11657017 | M104: 10 | N104: =IF(OR(G104="S",G104="D"),VLOOKUP(F104,'Component Capacity'!$C$8:$F$12,4,FALSE)*M104,IF(G104="W",VLOOKUP(F104,'Component Capacity'!$C$16:$F$20,4,FALSE),"OOPS")) -> 1.25 | O104: 0.03 | P104: 0.3 | Q104: =IF((VLOOKUP($C104,'Project Customer Details'!$B$6:$Q$1095,16,FALSE))<((VLOOKUP($C104,'Project Customer Details'!$B$6:$Q$1095,4,FALSE)*$L104)),VLOOKUP($C104,'Project Customer Details'!$B$6:$Q$1095,16,FALSE), (VLOOKUP($C104,'Project Customer Details'!$B$6:$Q$1095,4,FALSE)*$L104)) -> 0 | R104: 0 | S104: 0 | T104: =MIN(R104,S104,Summary!$D$14) -> 0 | U104: =J104-(J104/(1+(Summary!$D$13))^(T104)) -> 0
B105: 102 | C105: CSCD13 | D105: CSCD Extend CSCD13 approx 1 mile west and south to improve voltage | E105: Distribution | F105: 12.5 | G105: W | H105: 2014 | I105: 92466.88 | J105: 113297.484 | K105: 10.21262438 | L105: 10.2567896 | M105: 10 | N105: =IF(OR(G105="S",G105="D"),VLOOKUP(F105,'Component Capacity'!$C$8:$F$12,4,FALSE)*M105,IF(G105="W",VLOOKUP(F105,'Component Capacity'!$C$16:$F$20,4,FALSE),"OOPS")) -> 1.25 | O105: 0.03 | P105: 0.3 | Q105: =IF((VLOOKUP($C105,'Project Customer Details'!$B$6:$Q$1095,16,FALSE))<((VLOOKUP($C105,'Project Customer Details'!$B$6:$Q$1095,4,FALSE)*$L105)),VLOOKUP($C105,'Project Customer Details'!$B$6:$Q$1095,16,FALSE), (VLOOKUP($C105,'Project Customer Details'!$B$6:$Q$1095,4,FALSE)*$L105)) -> 0 | R105: 0 | S105: 0 | T105: =MIN(R105,S105,Summary!$D$14) -> 0 | U105: =J105-(J105/(1+(Summary!$D$13))^(T105)) -> 0
B106: 103 | C106: CSCD13 | D106: CSCD13 Herrick-Sixty Ln Distribution Line Rebuild | E106: Distribution | F106: C | G106: W | H106: 2024 | I106: 125000 | J106: 125000 | K106: 1.05 | L106: 1.05 | M106: 1.04 | N106: =IF(OR(G106="S",G106="D"),VLOOKUP(F106,'Component Capacity'!$C$8:$F$12,4,FALSE)*M106,IF(G106="W",VLOOKUP(F106,'Component Capacity'!$C$16:$F$20,4,FALSE),"OOPS")) -> 1.111111111 | O106: 0.0274 | P106: N/A | Q106: =IF((VLOOKUP($C106,'Project Customer Details'!$B$6:$Q$1095,16,FALSE))<((VLOOKUP($C106,'Project Customer Details'!$B$6:$Q$1095,4,FALSE)*$L106)),VLOOKUP($C106,'Project Customer Details'!$B$6:$Q$1095,16,FALSE), (VLOOKUP($C106,'Project Customer Details'!$B$6:$Q$1095,4,FALSE)*$L106)) -> 0 | R106: 0 | S106: 3 | T106: =MIN(R106,S106,Summary!$D$14) -> 0 | U106: =J106-(J106/(1+(Summary!$D$13))^(T106)) -> 0
B107: 104 | C107: WESR12 | D107: WESR-012, REBUILD 2.75 MI AT 00 ACSR X109 TO X13 | E107: Distribution | F107: 12.5 | G107: S | H107: 2007 | I107: 93478.44 | J107: 136820.2317 | K107: 10.07396576 | L107: 10.112615 | M107: 10 | N107: =IF(OR(G107="S",G107="D"),VLOOKUP(F107,'Component Capacity'!$C$8:$F$12,4,FALSE)*M107,IF(G107="W",VLOOKUP(F107,'Component Capacity'!$C$16:$F$20,4,FALSE),"OOPS")) -> 12.5 | O107: 0.03 | P107: 0.3 | Q107: =IF((VLOOKUP($C107,'Project Customer Details'!$B$6:$Q$1095,16,FALSE))<((VLOOKUP($C107,'Project Customer Details'!$B$6:$Q$1095,4,FALSE)*$L107)),VLOOKUP($C107,'Project Customer Details'!$B$6:$Q$1095,16,FALSE), (VLOOKUP($C107,'Project Customer Details'!$B$6:$Q$1095,4,FALSE)*$L107)) -> 0 | R107: 0 | S107: 8 | T107: =MIN(R107,S107,Summary!$D$14) -> 0 | U107: =J107-(J107/(1+(Summary!$D$13))^(T107)) -> 0
B108: 105 | C108: WESR14 | D108: WESR-014, REBUILD X114 TO X16 WITH 00 ACSR | E108: Distribution | F108: 12.5 | G108: S | H108: 2008 | I108: 225000 | J108: 321064.3798 | K108: 10.25967308 | L108: 10.16568162 | M108: 10 | N108: =IF(OR(G108="S",G108="D"),VLOOKUP(F108,'Component Capacity'!$C$8:$F$12,4,FALSE)*M108,IF(G108="W",VLOOKUP(F108,'Component Capacity'!$C$16:$F$20,4,FALSE),"OOPS")) -> 12.5 | O108: 0.03 | P108: 0.3 | Q108: =IF((VLOOKUP($C108,'Project Customer Details'!$B$6:$Q$1095,16,FALSE))<((VLOOKUP($C108,'Project Customer Details'!$B$6:$Q$1095,4,FALSE)*$L108)),VLOOKUP($C108,'Project Customer Details'!$B$6:$Q$1095,16,FALSE), (VLOOKUP($C108,'Project Customer Details'!$B$6:$Q$1095,4,FALSE)*$L108)) -> 0 | R108: 0 | S108: 7 | T108: =MIN(R108,S108,Summary!$D$14) -> 0 | U108: =J108-(J108/(1+(Summary!$D$13))^(T108)) -> 0
B109: 106 | C109: VALE13 | D109: VALE-013, REBUILD FROM R53 TO X46, 3 MI. AT 00 ACSR | E109: Distribution | F109: 12.5 | G109: W | H109: 2008 | I109: 250000 | J109: 356738.1998 | K109: 10.00227884 | L109: 10.07624856 | M109: 10 | N109: =IF(OR(G109="S",G109="D"),VLOOKUP(F109,'Component Capacity'!$C$8:$F$12,4,FALSE)*M109,IF(G109="W",VLOOKUP(F109,'Component Capacity'!$C$16:$F$20,4,FALSE),"OOPS")) -> 1.25 | O109: 0.03 | P109: 0.3 | Q109: =IF((VLOOKUP($C109,'Project Customer Details'!$B$6:$Q$1095,16,FALSE))<((VLOOKUP($C109,'Project Customer Details'!$B$6:$Q$1095,4,FALSE)*$L109)),VLOOKUP($C109,'Project Customer Details'!$B$6:$Q$1095,16,FALSE), (VLOOKUP($C109,'Project Customer Details'!$B$6:$Q$1095,4,FALSE)*$L109)) -> 0.03089953441 | R109: 0 | S109: 0 | T109: =MIN(R109,S109,Summary!$D$14) -> 0 | U109: =J109-(J109/(1+(Summary!$D$13))^(T109)) -> 0
B110: 107 | C110: ETGT15 | D110: Add feeder 018 | E110: Distribution | F110: 12.5 | G110: S | H110: 2007 | I110: 331846.01 | J110: 485708.2336 | K110: 10.25720125 | L110: 10.25253067 | M110: 10 | N110: =IF(OR(G110="S",G110="D"),VLOOKUP(F110,'Component Capacity'!$C$8:$F$12,4,FALSE)*M110,IF(G110="W",VLOOKUP(F110,'Component Capacity'!$C$16:$F$20,4,FALSE),"OOPS")) -> 12.5 | O110: 0.03 | P110: 0.3 | Q110: =IF((VLOOKUP($C110,'Project Customer Details'!$B$6:$Q$1095,16,FALSE))<((VLOOKUP($C110,'Project Customer Details'!$B$6:$Q$1095,4,FALSE)*$L110)),VLOOKUP($C110,'Project Customer Details'!$B$6:$Q$1095,16,FALSE), (VLOOKUP($C110,'Project Customer Details'!$B$6:$Q$1095,4,FALSE)*$L110)) -> 1.904183911e-07 | R110: 0 | S110: 7 | T110: =MIN(R110,S110,Summary!$D$14) -> 0 | U110: =J110-(J110/(1+(Summary!$D$13))^(T110)) -> 0
B111: 108 | C111: ETGT14 | D111: ETGT-014 Rebuild 1 mile 3SS to 2/0 ACSR three phase | E111: Distribution | F111: 12.5 | G111: S | H111: 2008 | I111: 93478.44 | J111: 133389.3216 | K111: 10.14910669 | L111: 10.08016171 | M111: 10 | N111: =IF(OR(G111="S",G111="D"),VLOOKUP(F111,'Component Capacity'!$C$8:$F$12,4,FALSE)*M111,IF(G111="W",VLOOKUP(F111,'Component Capacity'!$C$16:$F$20,4,FALSE),"OOPS")) -> 12.5 | O111: 0.03 | P111: 0.3 | Q111: =IF((VLOOKUP($C111,'Project Customer Details'!$B$6:$Q$1095,16,FALSE))<((VLOOKUP($C111,'Project Customer Details'!$B$6:$Q$1095,4,FALSE)*$L111)),VLOOKUP($C111,'Project Customer Details'!$B$6:$Q$1095,16,FALSE), (VLOOKUP($C111,'Project Customer Details'!$B$6:$Q$1095,4,FALSE)*$L111)) -> 0.01173725498 | R111: 0 | S111: 8 | T111: =MIN(R111,S111,Summary!$D$14) -> 0 | U111: =J111-(J111/(1+(Summary!$D$13))^(T111)) -> 0
B112: 109 | C112: ETGT14 | D112: ETGT-014 Low Voltage | E112: Distribution | F112: C | G112: S | H112: 2009 | I112: 300000 | J112: 417351.1406 | K112: 8.05 | L112: 8.05 | M112: 5.57 | N112: =IF(OR(G112="S",G112="D"),VLOOKUP(F112,'Component Capacity'!$C$8:$F$12,4,FALSE)*M112,IF(G112="W",VLOOKUP(F112,'Component Capacity'!$C$16:$F$20,4,FALSE),"OOPS")) -> 6.188888889 | O112: 0.0175 | P112: N/A | Q112: =IF((VLOOKUP($C112,'Project Customer Details'!$B$6:$Q$1095,16,FALSE))<((VLOOKUP($C112,'Project Customer Details'!$B$6:$Q$1095,4,FALSE)*$L112)),VLOOKUP($C112,'Project Customer Details'!$B$6:$Q$1095,16,FALSE), (VLOOKUP($C112,'Project Customer Details'!$B$6:$Q$1095,4,FALSE)*$L112)) -> 0.01173725498 | R112: 0 | S112: 0 | T112: =MIN(R112,S112,Summary!$D$14) -> 0 | U112: =J112-(J112/(1+(Summary!$D$13))^(T112)) -> 0
B113: 110 | C113: CNCL12 | D113: CNCL-CMBG 69 KV. REBUILD WITH PART 3 OF 3. | E113: Distribution | F113: 12.5 | G113: S | H113: 2008 | I113: 200000 | J113: 285390.5598 | K113: 10.12322081 | L113: 10.16368725 | M113: 10 | N113: =IF(OR(G113="S",G113="D"),VLOOKUP(F113,'Component Capacity'!$C$8:$F$12,4,FALSE)*M113,IF(G113="W",VLOOKUP(F113,'Component Capacity'!$C$16:$F$20,4,FALSE),"OOPS")) -> 12.5 | O113: 0.03 | P113: 0.3 | Q113: =IF((VLOOKUP($C113,'Project Customer Details'!$B$6:$Q$1095,16,FALSE))<((VLOOKUP($C113,'Project Customer Details'!$B$6:$Q$1095,4,FALSE)*$L113)),VLOOKUP($C113,'Project Customer Details'!$B$6:$Q$1095,16,FALSE), (VLOOKUP($C113,'Project Customer Details'!$B$6:$Q$1095,4,FALSE)*$L113)) -> 0 | R113: 0 | S113: 7 | T113: =MIN(R113,S113,Summary!$D$14) -> 0 | U113: =J113-(J113/(1+(Summary!$D$13))^(T113)) -> 0
B114: 111 | C114: BOIS14 | D114: Install DNX digital cross connect | E114: Distribution | F114: 12.5 | G114: S | H114: 2009 | I114: 75000 | J114: 104337.7851 | K114: 10.19508888 | L114: 10.16767811 | M114: 10 | N114: =IF(OR(G114="S",G114="D"),VLOOKUP(F114,'Component Capacity'!$C$8:$F$12,4,FALSE)*M114,IF(G114="W",VLOOKUP(F114,'Component Capacity'!$C$16:$F$20,4,FALSE),"OOPS")) -> 12.5 | O114: 0.03 | P114: 0.3 | Q114: =IF((VLOOKUP($C114,'Project Customer Details'!$B$6:$Q$1095,16,FALSE))<((VLOOKUP($C114,'Project Customer Details'!$B$6:$Q$1095,4,FALSE)*$L114)),VLOOKUP($C114,'Project Customer Details'!$B$6:$Q$1095,16,FALSE), (VLOOKUP($C114,'Project Customer Details'!$B$6:$Q$1095,4,FALSE)*$L114)) -> 0.002939994647 | R114: 0 | S114: 7 | T114: =MIN(R114,S114,Summary!$D$14) -> 0 | U114: =J114-(J114/(1+(Summary!$D$13))^(T114)) -> 0
B115: 112 | C115: BOIS14 | D115: CHQ to Boise Plaza Fiber Installation | E115: Distribution | F115: 12.5 | G115: S | H115: 2008 | I115: 30000 | J115: 42808.58397 | K115: 10.15126369 | L115: 10.23855193 | M115: 10 | N115: =IF(OR(G115="S",G115="D"),VLOOKUP(F115,'Component Capacity'!$C$8:$F$12,4,FALSE)*M115,IF(G115="W",VLOOKUP(F115,'Component Capacity'!$C$16:$F$20,4,FALSE),"OOPS")) -> 12.5 | O115: 0.03 | P115: 0.3 | Q115: =IF((VLOOKUP($C115,'Project Customer Details'!$B$6:$Q$1095,16,FALSE))<((VLOOKUP($C115,'Project Customer Details'!$B$6:$Q$1095,4,FALSE)*$L115)),VLOOKUP($C115,'Project Customer Details'!$B$6:$Q$1095,16,FALSE), (VLOOKUP($C115,'Project Customer Details'!$B$6:$Q$1095,4,FALSE)*$L115)) -> 0.002939994647 | R115: 0 | S115: 7 | T115: =MIN(R115,S115,Summary!$D$14) -> 0 | U115: =J115-(J115/(1+(Summary!$D$13))^(T115)) -> 0
B116: 113 | C116: ELMR42 | D116: ELMR042 feeder work 8.25 miles of 3 phase, 2.75 miles of single phase | E116: Distribution | F116: 34.5 | G116: S | H116: 2008 | I116: 427500 | J116: 610022.3216 | K116: 20.59701521 | L116: 20.44031137 | M116: 20 | N116: =IF(OR(G116="S",G116="D"),VLOOKUP(F116,'Component Capacity'!$C$8:$F$12,4,FALSE)*M116,IF(G116="W",VLOOKUP(F116,'Component Capacity'!$C$16:$F$20,4,FALSE),"OOPS")) -> 25 | O116: 0.03 | P116: 0.6 | Q116: =IF((VLOOKUP($C116,'Project Customer Details'!$B$6:$Q$1095,16,FALSE))<((VLOOKUP($C116,'Project Customer Details'!$B$6:$Q$1095,4,FALSE)*$L116)),VLOOKUP($C116,'Project Customer Details'!$B$6:$Q$1095,16,FALSE), (VLOOKUP($C116,'Project Customer Details'!$B$6:$Q$1095,4,FALSE)*$L116)) -> 0.02927461227 | R116: 0 | S116: 7 | T116: =MIN(R116,S116,Summary!$D$14) -> 0 | U116: =J116-(J116/(1+(Summary!$D$13))^(T116)) -> 0
B117: 114 | C117: ELMR41 | D117: ELMR-041 Low Voltage in Prairie | E117: Distribution | F117: 34.5 | G117: W | H117: 2013 | I117: 75000 | J117: 94259.38082 | K117: 20.22457254 | L117: 20.39366049 | M117: 20 | N117: =IF(OR(G117="S",G117="D"),VLOOKUP(F117,'Component Capacity'!$C$8:$F$12,4,FALSE)*M117,IF(G117="W",VLOOKUP(F117,'Component Capacity'!$C$16:$F$20,4,FALSE),"OOPS")) -> 1.25 | O117: 0.03 | P117: 0.6 | Q117: =IF((VLOOKUP($C117,'Project Customer Details'!$B$6:$Q$1095,16,FALSE))<((VLOOKUP($C117,'Project Customer Details'!$B$6:$Q$1095,4,FALSE)*$L117)),VLOOKUP($C117,'Project Customer Details'!$B$6:$Q$1095,16,FALSE), (VLOOKUP($C117,'Project Customer Details'!$B$6:$Q$1095,4,FALSE)*$L117)) -> 0.009526689819 | R117: 0 | S117: 0 | T117: =MIN(R117,S117,Summary!$D$14) -> 0 | U117: =J117-(J117/(1+(Summary!$D$13))^(T117)) -> 0
B118: 115 | C118: ELMR41 | D118: ELMR-041-12 Substandard voltage beyond F205 | E118: Distribution | F118: 34.5 | G118: W | H118: 2015 | I118: 97808.08 | J118: 116836.7687 | K118: 20.52494631 | L118: 20.14901574 | M118: 20 | N118: =IF(OR(G118="S",G118="D"),VLOOKUP(F118,'Component Capacity'!$C$8:$F$12,4,FALSE)*M118,IF(G118="W",VLOOKUP(F118,'Component Capacity'!$C$16:$F$20,4,FALSE),"OOPS")) -> 1.25 | O118: 0.03 | P118: 0.6 | Q118: =IF((VLOOKUP($C118,'Project Customer Details'!$B$6:$Q$1095,16,FALSE))<((VLOOKUP($C118,'Project Customer Details'!$B$6:$Q$1095,4,FALSE)*$L118)),VLOOKUP($C118,'Project Customer Details'!$B$6:$Q$1095,16,FALSE), (VLOOKUP($C118,'Project Customer Details'!$B$6:$Q$1095,4,FALSE)*$L118)) -> 0.009526689819 | R118: 0 | S118: 0 | T118: =MIN(R118,S118,Summary!$D$14) -> 0 | U118: =J118-(J118/(1+(Summary!$D$13))^(T118)) -> 0
B119: 116 | C119: LNSG13 | D119: Add extension to LNSG12 to offload LNSG13 | E119: Distribution | F119: 12.5 | G119: S | H119: 2022 | I119: 660000 | J119: 660000 | K119: 11.55 | L119: 11.55 | M119: 10 | N119: =IF(OR(G119="S",G119="D"),VLOOKUP(F119,'Component Capacity'!$C$8:$F$12,4,FALSE)*M119,IF(G119="W",VLOOKUP(F119,'Component Capacity'!$C$16:$F$20,4,FALSE),"OOPS")) -> 12.5 | O119: 0.114 | P119: N/A | Q119: =IF((VLOOKUP($C119,'Project Customer Details'!$B$6:$Q$1095,16,FALSE))<((VLOOKUP($C119,'Project Customer Details'!$B$6:$Q$1095,4,FALSE)*$L119)),VLOOKUP($C119,'Project Customer Details'!$B$6:$Q$1095,16,FALSE), (VLOOKUP($C119,'Project Customer Details'!$B$6:$Q$1095,4,FALSE)*$L119)) -> 0.0342222373 | R119: 0 | S119: 1 | T119: =MIN(R119,S119,Summary!$D$14) -> 0 | U119: =J119-(J119/(1+(Summary!$D$13))^(T119)) -> 0
B120: 117 | C120: CDAL12 | D120: BCRT-013 STATION WORK FOR NEW FEEDER EAST | E120: Distribution | F120: 12.5 | G120: S | H120: 2008 | I120: 50000 | J120: 71347.63995 | K120: 10.02960476 | L120: 10.19414591 | M120: 10 | N120: =IF(OR(G120="S",G120="D"),VLOOKUP(F120,'Component Capacity'!$C$8:$F$12,4,FALSE)*M120,IF(G120="W",VLOOKUP(F120,'Component Capacity'!$C$16:$F$20,4,FALSE),"OOPS")) -> 12.5 | O120: 0.03 | P120: 0.3 | Q120: =IF((VLOOKUP($C120,'Project Customer Details'!$B$6:$Q$1095,16,FALSE))<((VLOOKUP($C120,'Project Customer Details'!$B$6:$Q$1095,4,FALSE)*$L120)),VLOOKUP($C120,'Project Customer Details'!$B$6:$Q$1095,16,FALSE), (VLOOKUP($C120,'Project Customer Details'!$B$6:$Q$1095,4,FALSE)*$L120)) -> 0.03162411145 | R120: 0 | S120: 7 | T120: =MIN(R120,S120,Summary!$D$14) -> 0 | U120: =J120-(J120/(1+(Summary!$D$13))^(T120)) -> 0
B121: 118 | C121: CDAL12 | D121: BCRT-013 NEW FEEDER EAST | E121: Distribution | F121: 12.5 | G121: S | H121: 2008 | I121: 55000 | J121: 78482.40395 | K121: 10.1160347 | L121: 10.02132501 | M121: 10 | N121: =IF(OR(G121="S",G121="D"),VLOOKUP(F121,'Component Capacity'!$C$8:$F$12,4,FALSE)*M121,IF(G121="W",VLOOKUP(F121,'Component Capacity'!$C$16:$F$20,4,FALSE),"OOPS")) -> 12.5 | O121: 0.03 | P121: 0.3 | Q121: =IF((VLOOKUP($C121,'Project Customer Details'!$B$6:$Q$1095,16,FALSE))<((VLOOKUP($C121,'Project Customer Details'!$B$6:$Q$1095,4,FALSE)*$L121)),VLOOKUP($C121,'Project Customer Details'!$B$6:$Q$1095,16,FALSE), (VLOOKUP($C121,'Project Customer Details'!$B$6:$Q$1095,4,FALSE)*$L121)) -> 0.03162411145 | R121: 1 | S121: 8 | T121: =MIN(R121,S121,Summary!$D$14) -> 1 | U121: =J121-(J121/(1+(Summary!$D$13))^(T121)) -> 3415.542209
B122: 119 | C122: MORA44 | D122: Reconfigure HSDL-14 and HSDL-11 to alleviate MORA44 and MORAT132 | E122: Distribution | F122: 34.5 | G122: S | H122: 2017 | I122: 216777.82 | J122: 246128.0625 | K122: 22.8 | L122: 22.8 | M122: 20 | N122: =IF(OR(G122="S",G122="D"),VLOOKUP(F122,'Component Capacity'!$C$8:$F$12,4,FALSE)*M122,IF(G122="W",VLOOKUP(F122,'Component Capacity'!$C$16:$F$20,4,FALSE),"OOPS")) -> 25 | O122: 0.02 | P122: N/A | Q122: =IF((VLOOKUP($C122,'Project Customer Details'!$B$6:$Q$1095,16,FALSE))<((VLOOKUP($C122,'Project Customer Details'!$B$6:$Q$1095,4,FALSE)*$L122)),VLOOKUP($C122,'Project Customer Details'!$B$6:$Q$1095,16,FALSE), (VLOOKUP($C122,'Project Customer Details'!$B$6:$Q$1095,4,FALSE)*$L122)) -> 0.04972359394 | R122: 0 | S122: 5 | T122: =MIN(R122,S122,Summary!$D$14) -> 0 | U122: =J122-(J122/(1+(Summary!$D$13))^(T122)) -> 0
B123: 120 | C123: HSDL12 | D123: Offload HSDL12 with a new HSDL15. | E123: Distribution | F123: 12.5 | G123: S | H123: 2024 | I123: 350000 | J123: 350000 | K123: 10.36 | L123: 10.36 | M123: 10 | N123: =IF(OR(G123="S",G123="D"),VLOOKUP(F123,'Component Capacity'!$C$8:$F$12,4,FALSE)*M123,IF(G123="W",VLOOKUP(F123,'Component Capacity'!$C$16:$F$20,4,FALSE),"OOPS")) -> 12.5 | O123: 0.0389 | P123: N/A | Q123: =IF((VLOOKUP($C123,'Project Customer Details'!$B$6:$Q$1095,16,FALSE))<((VLOOKUP($C123,'Project Customer Details'!$B$6:$Q$1095,4,FALSE)*$L123)),VLOOKUP($C123,'Project Customer Details'!$B$6:$Q$1095,16,FALSE), (VLOOKUP($C123,'Project Customer Details'!$B$6:$Q$1095,4,FALSE)*$L123)) -> 0.005554485931 | R123: 0 | S123: 5 | T123: =MIN(R123,S123,Summary!$D$14) -> 0 | U123: =J123-(J123/(1+(Summary!$D$13))^(T123)) -> 0
B124: 121 | C124: MOON41 | D124: MOON41 South Fairfield Cutover | E124: Distribution | F124: 34.5 | G124: S | H124: 2008 | I124: 250000 | J124: 356738.1998 | K124: 20.33750788 | L124: 20.31836958 | M124: 20 | N124: =IF(OR(G124="S",G124="D"),VLOOKUP(F124,'Component Capacity'!$C$8:$F$12,4,FALSE)*M124,IF(G124="W",VLOOKUP(F124,'Component Capacity'!$C$16:$F$20,4,FALSE),"OOPS")) -> 25 | O124: 0.03 | P124: 0.6 | Q124: =IF((VLOOKUP($C124,'Project Customer Details'!$B$6:$Q$1095,16,FALSE))<((VLOOKUP($C124,'Project Customer Details'!$B$6:$Q$1095,4,FALSE)*$L124)),VLOOKUP($C124,'Project Customer Details'!$B$6:$Q$1095,16,FALSE), (VLOOKUP($C124,'Project Customer Details'!$B$6:$Q$1095,4,FALSE)*$L124)) -> 0.02119248231 | R124: 0 | S124: 8 | T124: =MIN(R124,S124,Summary!$D$14) -> 0 | U124: =J124-(J124/(1+(Summary!$D$13))^(T124)) -> 0
B125: 122 | C125: JROM14 | D125: JROM - Increase station capacity and add feeder 16 | E125: Distribution | F125: 12.5 | G125: S | H125: 2009 | I125: 566000 | J125: 787402.4852 | K125: 10.063888 | L125: 10.19330203 | M125: 10 | N125: =IF(OR(G125="S",G125="D"),VLOOKUP(F125,'Component Capacity'!$C$8:$F$12,4,FALSE)*M125,IF(G125="W",VLOOKUP(F125,'Component Capacity'!$C$16:$F$20,4,FALSE),"OOPS")) -> 12.5 | O125: 0.03 | P125: 0.3 | Q125: =IF((VLOOKUP($C125,'Project Customer Details'!$B$6:$Q$1095,16,FALSE))<((VLOOKUP($C125,'Project Customer Details'!$B$6:$Q$1095,4,FALSE)*$L125)),VLOOKUP($C125,'Project Customer Details'!$B$6:$Q$1095,16,FALSE), (VLOOKUP($C125,'Project Customer Details'!$B$6:$Q$1095,4,FALSE)*$L125)) -> 0.0002535961124 | R125: 0 | S125: 7 | T125: =MIN(R125,S125,Summary!$D$14) -> 0 | U125: =J125-(J125/(1+(Summary!$D$13))^(T125)) -> 0
B126: 123 | C126: JROM13 | D126: JROM-013 Extend three phase line for 1/2 mile along 200 N | E126: Distribution | F126: 12.5 | G126: S | H126: 2009 | I126: 93478.44 | J126: 130044.4452 | K126: 10.21575349 | L126: 10.18195936 | M126: 10 | N126: =IF(OR(G126="S",G126="D"),VLOOKUP(F126,'Component Capacity'!$C$8:$F$12,4,FALSE)*M126,IF(G126="W",VLOOKUP(F126,'Component Capacity'!$C$16:$F$20,4,FALSE),"OOPS")) -> 12.5 | O126: 0.03 | P126: 0.3 | Q126: =IF((VLOOKUP($C126,'Project Customer Details'!$B$6:$Q$1095,16,FALSE))<((VLOOKUP($C126,'Project Customer Details'!$B$6:$Q$1095,4,FALSE)*$L126)),VLOOKUP($C126,'Project Customer Details'!$B$6:$Q$1095,16,FALSE), (VLOOKUP($C126,'Project Customer Details'!$B$6:$Q$1095,4,FALSE)*$L126)) -> 0 | R126: 0 | S126: 7 | T126: =MIN(R126,S126,Summary!$D$14) -> 0 | U126: =J126-(J126/(1+(Summary!$D$13))^(T126)) -> 0
B127: 124 | C127: HALY12 | D127: HALY-013 New feeder | E127: Distribution | F127: 12.5 | G127: W | H127: 2008 | I127: 200000 | J127: 285390.5598 | K127: 10.29753171 | L127: 10.02487038 | M127: 10 | N127: =IF(OR(G127="S",G127="D"),VLOOKUP(F127,'Component Capacity'!$C$8:$F$12,4,FALSE)*M127,IF(G127="W",VLOOKUP(F127,'Component Capacity'!$C$16:$F$20,4,FALSE),"OOPS")) -> 1.25 | O127: 0.03 | P127: 0.3 | Q127: =IF((VLOOKUP($C127,'Project Customer Details'!$B$6:$Q$1095,16,FALSE))<((VLOOKUP($C127,'Project Customer Details'!$B$6:$Q$1095,4,FALSE)*$L127)),VLOOKUP($C127,'Project Customer Details'!$B$6:$Q$1095,16,FALSE), (VLOOKUP($C127,'Project Customer Details'!$B$6:$Q$1095,4,FALSE)*$L127)) -> 0 | R127: 0 | S127: 0 | T127: =MIN(R127,S127,Summary!$D$14) -> 0 | U127: =J127-(J127/(1+(Summary!$D$13))^(T127)) -> 0
B128: 125 | C128: KCHM16 | D128: Build 3 blocks new 750 AL UG to transfer load from KCHM-016 to KCHM-011 | E128: Distribution | F128: 12.5 | G128: W | H128: 2009 | I128: 260000 | J128: 361704.3218 | K128: 10.5 | L128: 10.5 | M128: 10 | N128: =IF(OR(G128="S",G128="D"),VLOOKUP(F128,'Component Capacity'!$C$8:$F$12,4,FALSE)*M128,IF(G128="W",VLOOKUP(F128,'Component Capacity'!$C$16:$F$20,4,FALSE),"OOPS")) -> 1.25 | O128: 0.04 | P128: N/A | Q128: =IF((VLOOKUP($C128,'Project Customer Details'!$B$6:$Q$1095,16,FALSE))<((VLOOKUP($C128,'Project Customer Details'!$B$6:$Q$1095,4,FALSE)*$L128)),VLOOKUP($C128,'Project Customer Details'!$B$6:$Q$1095,16,FALSE), (VLOOKUP($C128,'Project Customer Details'!$B$6:$Q$1095,4,FALSE)*$L128)) -> 0 | R128: 0 | S128: 0 | T128: =MIN(R128,S128,Summary!$D$14) -> 0 | U128: =J128-(J128/(1+(Summary!$D$13))^(T128)) -> 0
B129: 126 | C129: HALY11 | D129: HALY-012 transfer 1.96MW to offload HALY-011 | E129: Distribution | F129: 12.5 | G129: W | H129: 2021 | I129: 743593.35 | J129: 762719.3332 | K129: 10.4 | L129: 10.4 | M129: 10 | N129: =IF(OR(G129="S",G129="D"),VLOOKUP(F129,'Component Capacity'!$C$8:$F$12,4,FALSE)*M129,IF(G129="W",VLOOKUP(F129,'Component Capacity'!$C$16:$F$20,4,FALSE),"OOPS")) -> 1.25 | O129: 0.0104 | P129: N/A | Q129: =IF((VLOOKUP($C129,'Project Customer Details'!$B$6:$Q$1095,16,FALSE))<((VLOOKUP($C129,'Project Customer Details'!$B$6:$Q$1095,4,FALSE)*$L129)),VLOOKUP($C129,'Project Customer Details'!$B$6:$Q$1095,16,FALSE), (VLOOKUP($C129,'Project Customer Details'!$B$6:$Q$1095,4,FALSE)*$L129)) -> 0 | R129: 0 | S129: 0 | T129: =MIN(R129,S129,Summary!$D$14) -> 0 | U129: =J129-(J129/(1+(Summary!$D$13))^(T129)) -> 0
B130: 127 | C130: KCHM13 | D130: KCHM-013 to KCHM-018 Load Transfer | E130: Distribution | F130: 12.5 | G130: W | H130: 2023 | I130: 105000 | J130: 105000 | K130: 10.05 | L130: 10.05 | M130: 10 | N130: =IF(OR(G130="S",G130="D"),VLOOKUP(F130,'Component Capacity'!$C$8:$F$12,4,FALSE)*M130,IF(G130="W",VLOOKUP(F130,'Component Capacity'!$C$16:$F$20,4,FALSE),"OOPS")) -> 1.25 | O130: 0.0078 | P130: N/A | Q130: =IF((VLOOKUP($C130,'Project Customer Details'!$B$6:$Q$1095,16,FALSE))<((VLOOKUP($C130,'Project Customer Details'!$B$6:$Q$1095,4,FALSE)*$L130)),VLOOKUP($C130,'Project Customer Details'!$B$6:$Q$1095,16,FALSE), (VLOOKUP($C130,'Project Customer Details'!$B$6:$Q$1095,4,FALSE)*$L130)) -> 0 | R130: 0 | S130: 0 | T130: =MIN(R130,S130,Summary!$D$14) -> 0 | U130: =J130-(J130/(1+(Summary!$D$13))^(T130)) -> 0
B131: 128 | C131: MCAL12 | D131: BLDR-032 Convert 3.5 miles to 35 kV | E131: Distribution | F131: 12.5 | G131: W | H131: 2008 | I131: 250000 | J131: 356738.1998 | K131: 10.1134075 | L131: 10.03298611 | M131: 10 | N131: =IF(OR(G131="S",G131="D"),VLOOKUP(F131,'Component Capacity'!$C$8:$F$12,4,FALSE)*M131,IF(G131="W",VLOOKUP(F131,'Component Capacity'!$C$16:$F$20,4,FALSE),"OOPS")) -> 1.25 | O131: 0.03 | P131: 0.3 | Q131: =IF((VLOOKUP($C131,'Project Customer Details'!$B$6:$Q$1095,16,FALSE))<((VLOOKUP($C131,'Project Customer Details'!$B$6:$Q$1095,4,FALSE)*$L131)),VLOOKUP($C131,'Project Customer Details'!$B$6:$Q$1095,16,FALSE), (VLOOKUP($C131,'Project Customer Details'!$B$6:$Q$1095,4,FALSE)*$L131)) -> 0 | R131: 0 | S131: 0 | T131: =MIN(R131,S131,Summary!$D$14) -> 0 | U131: =J131-(J131/(1+(Summary!$D$13))^(T131)) -> 0
B132: 129 | C132: HFWY12 | D132: HFWY-012, UPGRADE AT RICHLAND TOWNSITE 00 ACSR | E132: Distribution | F132: 12.5 | G132: S | H132: 2009 | I132: 250000 | J132: 347792.6171 | K132: 10.20865252 | L132: 10.269288 | M132: 10 | N132: =IF(OR(G132="S",G132="D"),VLOOKUP(F132,'Component Capacity'!$C$8:$F$12,4,FALSE)*M132,IF(G132="W",VLOOKUP(F132,'Component Capacity'!$C$16:$F$20,4,FALSE),"OOPS")) -> 12.5 | O132: 0.03 | P132: 0.3 | Q132: =IF((VLOOKUP($C132,'Project Customer Details'!$B$6:$Q$1095,16,FALSE))<((VLOOKUP($C132,'Project Customer Details'!$B$6:$Q$1095,4,FALSE)*$L132)),VLOOKUP($C132,'Project Customer Details'!$B$6:$Q$1095,16,FALSE), (VLOOKUP($C132,'Project Customer Details'!$B$6:$Q$1095,4,FALSE)*$L132)) -> 0 | R132: 0 | S132: 7 | T132: =MIN(R132,S132,Summary!$D$14) -> 0 | U132: =J132-(J132/(1+(Summary!$D$13))^(T132)) -> 0
B133: 130 | C133: FILR13 | D133: FILR-013 Rebuild 3 miles three phase along 4100 N from 2200 E to 1900 E Filer | E133: Distribution | F133: 12.5 | G133: S | H133: 2009 | I133: 350000 | J133: 486909.664 | K133: 10.28242912 | L133: 10.18107697 | M133: 10 | N133: =IF(OR(G133="S",G133="D"),VLOOKUP(F133,'Component Capacity'!$C$8:$F$12,4,FALSE)*M133,IF(G133="W",VLOOKUP(F133,'Component Capacity'!$C$16:$F$20,4,FALSE),"OOPS")) -> 12.5 | O133: 0.03 | P133: 0.3 | Q133: =IF((VLOOKUP($C133,'Project Customer Details'!$B$6:$Q$1095,16,FALSE))<((VLOOKUP($C133,'Project Customer Details'!$B$6:$Q$1095,4,FALSE)*$L133)),VLOOKUP($C133,'Project Customer Details'!$B$6:$Q$1095,16,FALSE), (VLOOKUP($C133,'Project Customer Details'!$B$6:$Q$1095,4,FALSE)*$L133)) -> 0.01095013506 | R133: =IF((L133-Q133)<M133,CEILING(LN((M133+Q133)/L133)/LN(1+O133),1),0) -> 0 | S133: 7 | T133: =MIN(R133,S133,Summary!$D$14) -> 0 | U133: =J133-(J133/(1+(Summary!$D$13))^(T133)) -> 0
B134: 131 | C134: HYDA41 | D134: HYDA41 - Upgrade TX-140 from 1500kVA to 2500kVA stepdowns | E134: Distribution | F134: T | G134: S | H134: 2011 | I134: 93478.44 | J134: 123604.2178 | K134: 4.607650989 | L134: 4.505388425 | M134: 4.5 | N134: =IF(OR(G134="S",G134="D"),VLOOKUP(F134,'Component Capacity'!$C$8:$F$12,4,FALSE)*M134,IF(G134="W",VLOOKUP(F134,'Component Capacity'!$C$16:$F$20,4,FALSE),"OOPS")) -> 4.591836735 | O134: 0.03 | P134: 0.135 | Q134: =IF((VLOOKUP($C134,'Project Customer Details'!$B$6:$Q$1095,16,FALSE))<((VLOOKUP($C134,'Project Customer Details'!$B$6:$Q$1095,4,FALSE)*$L134)),VLOOKUP($C134,'Project Customer Details'!$B$6:$Q$1095,16,FALSE), (VLOOKUP($C134,'Project Customer Details'!$B$6:$Q$1095,4,FALSE)*$L134)) -> 0.003781548294 | R134: 0 | S134: =IF(L134<N134,CEILING(LN((N134)/L134)/LN(1+O134),1),0) -> 1 | T134: =MIN(R134,S134,Summary!$D$14) -> 0 | U134: =J134-(J134/(1+(Summary!$D$13))^(T134)) -> 0
B135: 132 | C135: FILR12 | D135: Reconductor 1 miles of feeder FILR-012 along 2300 E | E135: Distribution | F135: 12.5 | G135: S | H135: 2021 | I135: 400590.79 | J135: 410894.3957 | K135: 10.06801167 | L135: 10.28061932 | M135: 10 | N135: =IF(OR(G135="S",G135="D"),VLOOKUP(F135,'Component Capacity'!$C$8:$F$12,4,FALSE)*M135,IF(G135="W",VLOOKUP(F135,'Component Capacity'!$C$16:$F$20,4,FALSE),"OOPS")) -> 12.5 | O135: 0.03 | P135: 0.3 | Q135: =IF((VLOOKUP($C135,'Project Customer Details'!$B$6:$Q$1095,16,FALSE))<((VLOOKUP($C135,'Project Customer Details'!$B$6:$Q$1095,4,FALSE)*$L135)),VLOOKUP($C135,'Project Customer Details'!$B$6:$Q$1095,16,FALSE), (VLOOKUP($C135,'Project Customer Details'!$B$6:$Q$1095,4,FALSE)*$L135)) -> 0 | R135: 0 | S135: 7 | T135: =MIN(R135,S135,Summary!$D$14) -> 0 | U135: =J135-(J135/(1+(Summary!$D$13))^(T135)) -> 0
B136: 133 | C136: FALS13 | D136: FALS-013 Low Voltage Upstream of RG27 | E136: Distribution | F136: 12.5 | G136: S | H136: 2019 | I136: 897968.97 | J136: 969056.5082 | K136: 10.18578047 | L136: 10.28237707 | M136: 10 | N136: =IF(OR(G136="S",G136="D"),VLOOKUP(F136,'Component Capacity'!$C$8:$F$12,4,FALSE)*M136,IF(G136="W",VLOOKUP(F136,'Component Capacity'!$C$16:$F$20,4,FALSE),"OOPS")) -> 12.5 | O136: 0.03 | P136: 0.3 | Q136: =IF((VLOOKUP($C136,'Project Customer Details'!$B$6:$Q$1095,16,FALSE))<((VLOOKUP($C136,'Project Customer Details'!$B$6:$Q$1095,4,FALSE)*$L136)),VLOOKUP($C136,'Project Customer Details'!$B$6:$Q$1095,16,FALSE), (VLOOKUP($C136,'Project Customer Details'!$B$6:$Q$1095,4,FALSE)*$L136)) -> 0.0193091351 | R136: 0 | S136: 7 | T136: =MIN(R136,S136,Summary!$D$14) -> 0 | U136: =J136-(J136/(1+(Summary!$D$13))^(T136)) -> 0
B137: 134 | C137: LCST44 | D137: LCST-044 Build/rebuild 1/5 mile section for LCST 12.5 kV project | E137: Distribution | F137: 34.5 | G137: S | H137: 2009 | I137: 93478.44 | J137: 130044.4452 | K137: 20.08871064 | L137: 20.10978843 | M137: 20 | N137: =IF(OR(G137="S",G137="D"),VLOOKUP(F137,'Component Capacity'!$C$8:$F$12,4,FALSE)*M137,IF(G137="W",VLOOKUP(F137,'Component Capacity'!$C$16:$F$20,4,FALSE),"OOPS")) -> 25 | O137: 0.03 | P137: 0.6 | Q137: =IF((VLOOKUP($C137,'Project Customer Details'!$B$6:$Q$1095,16,FALSE))<((VLOOKUP($C137,'Project Customer Details'!$B$6:$Q$1095,4,FALSE)*$L137)),VLOOKUP($C137,'Project Customer Details'!$B$6:$Q$1095,16,FALSE), (VLOOKUP($C137,'Project Customer Details'!$B$6:$Q$1095,4,FALSE)*$L137)) -> 0.00984804301 | R137: 0 | S137: 8 | T137: =MIN(R137,S137,Summary!$D$14) -> 0 | U137: =J137-(J137/(1+(Summary!$D$13))^(T137)) -> 0
B138: 135 | C138: LCST44 | D138: LCST-044 Relieve overloaded circuit by installing step-down bank and transferring load | E138: Distribution | F138: 34.5 | G138: S | H138: 2010 | I138: 150000 | J138: 203442.8126 | K138: 21.16 | L138: 21.16 | M138: 20 | N138: =IF(OR(G138="S",G138="D"),VLOOKUP(F138,'Component Capacity'!$C$8:$F$12,4,FALSE)*M138,IF(G138="W",VLOOKUP(F138,'Component Capacity'!$C$16:$F$20,4,FALSE),"OOPS")) -> 25 | O138: 0.0175 | P138: N/A | Q138: =IF((VLOOKUP($C138,'Project Customer Details'!$B$6:$Q$1095,16,FALSE))<((VLOOKUP($C138,'Project Customer Details'!$B$6:$Q$1095,4,FALSE)*$L138)),VLOOKUP($C138,'Project Customer Details'!$B$6:$Q$1095,16,FALSE), (VLOOKUP($C138,'Project Customer Details'!$B$6:$Q$1095,4,FALSE)*$L138)) -> 0.00984804301 | R138: 0 | S138: 10 | T138: =MIN(R138,S138,Summary!$D$14) -> 0 | U138: =J138-(J138/(1+(Summary!$D$13))^(T138)) -> 0
B139: 136 | C139: LCST46 | D139: Alleviate LCST-46 with LCST-42 | E139: Distribution | F139: 34.5 | G139: S | H139: 2022 | I139: 374785 | J139: 374785 | K139: 22.21 | L139: 22.21 | M139: 20 | N139: =IF(OR(G139="S",G139="D"),VLOOKUP(F139,'Component Capacity'!$C$8:$F$12,4,FALSE)*M139,IF(G139="W",VLOOKUP(F139,'Component Capacity'!$C$16:$F$20,4,FALSE),"OOPS")) -> 25 | O139: 0.0209 | P139: N/A | Q139: =IF((VLOOKUP($C139,'Project Customer Details'!$B$6:$Q$1095,16,FALSE))<((VLOOKUP($C139,'Project Customer Details'!$B$6:$Q$1095,4,FALSE)*$L139)),VLOOKUP($C139,'Project Customer Details'!$B$6:$Q$1095,16,FALSE), (VLOOKUP($C139,'Project Customer Details'!$B$6:$Q$1095,4,FALSE)*$L139)) -> 0.04462094839 | R139: 0 | S139: 6 | T139: =MIN(R139,S139,Summary!$D$14) -> 0 | U139: =J139-(J139/(1+(Summary!$D$13))^(T139)) -> 0
B140: 137 | C140: CNCL12 | D140: CNCL-012, RBLD. 5.5 MI , F-23 TO RG-4, HORNET CREEK | E140: Distribution | F140: 12.5 | G140: S | H140: 2008 | I140: 255000 | J140: 363872.9637 | K140: 10.2619188 | L140: 10.20572862 | M140: 10 | N140: =IF(OR(G140="S",G140="D"),VLOOKUP(F140,'Component Capacity'!$C$8:$F$12,4,FALSE)*M140,IF(G140="W",VLOOKUP(F140,'Component Capacity'!$C$16:$F$20,4,FALSE),"OOPS")) -> 12.5 | O140: 0.03 | P140: 0.3 | Q140: =IF((VLOOKUP($C140,'Project Customer Details'!$B$6:$Q$1095,16,FALSE))<((VLOOKUP($C140,'Project Customer Details'!$B$6:$Q$1095,4,FALSE)*$L140)),VLOOKUP($C140,'Project Customer Details'!$B$6:$Q$1095,16,FALSE), (VLOOKUP($C140,'Project Customer Details'!$B$6:$Q$1095,4,FALSE)*$L140)) -> 0 | R140: 0 | S140: 7 | T140: =MIN(R140,S140,Summary!$D$14) -> 0 | U140: =J140-(J140/(1+(Summary!$D$13))^(T140)) -> 0
B141: 138 | C141: MCAL41 | D141: MCAL041 TX-174 Relief | E141: Distribution | F141: T | G141: W | H141: 2023 | I141: 85000 | J141: 85000 | K141: 5.4 | L141: 5.4 | M141: 4.95 | N141: =IF(OR(G141="S",G141="D"),VLOOKUP(F141,'Component Capacity'!$C$8:$F$12,4,FALSE)*M141,IF(G141="W",VLOOKUP(F141,'Component Capacity'!$C$16:$F$20,4,FALSE),"OOPS")) -> 1.090909091 | O141: 0.0077 | P141: N/A | Q141: =IF((VLOOKUP($C141,'Project Customer Details'!$B$6:$Q$1095,16,FALSE))<((VLOOKUP($C141,'Project Customer Details'!$B$6:$Q$1095,4,FALSE)*$L141)),VLOOKUP($C141,'Project Customer Details'!$B$6:$Q$1095,16,FALSE), (VLOOKUP($C141,'Project Customer Details'!$B$6:$Q$1095,4,FALSE)*$L141)) -> 0 | R141: 0 | S141: 0 | T141: =MIN(R141,S141,Summary!$D$14) -> 0 | U141: =J141-(J141/(1+(Summary!$D$13))^(T141)) -> 0
B142: 139 | C142: HBND41 | D142: HBND-041 Reconductor 5 mi 00 to 397 ACSR Part 4 of 4 | E142: Distribution | F142: 34.5 | G142: W | H142: 2010 | I142: 400000 | J142: 542514.167 | K142: 20.37747227 | L142: 20.52658554 | M142: 20 | N142: =IF(OR(G142="S",G142="D"),VLOOKUP(F142,'Component Capacity'!$C$8:$F$12,4,FALSE)*M142,IF(G142="W",VLOOKUP(F142,'Component Capacity'!$C$16:$F$20,4,FALSE),"OOPS")) -> 1.25 | O142: 0.03 | P142: 0.6 | Q142: =IF((VLOOKUP($C142,'Project Customer Details'!$B$6:$Q$1095,16,FALSE))<((VLOOKUP($C142,'Project Customer Details'!$B$6:$Q$1095,4,FALSE)*$L142)),VLOOKUP($C142,'Project Customer Details'!$B$6:$Q$1095,16,FALSE), (VLOOKUP($C142,'Project Customer Details'!$B$6:$Q$1095,4,FALSE)*$L142)) -> 0 | R142: 0 | S142: 0 | T142: =MIN(R142,S142,Summary!$D$14) -> 0 | U142: =J142-(J142/(1+(Summary!$D$13))^(T142)) -> 0
B143: 140 | C143: NTVW12 | D143: Rebuild 1 miile of T133 from Dale to Buhl | E143: Distribution | F143: 12.5 | G143: S | H143: 2008 | I143: 9810.81 | J143: 13999.56279 | K143: 10.1507099 | L143: 10.12128621 | M143: 10 | N143: =IF(OR(G143="S",G143="D"),VLOOKUP(F143,'Component Capacity'!$C$8:$F$12,4,FALSE)*M143,IF(G143="W",VLOOKUP(F143,'Component Capacity'!$C$16:$F$20,4,FALSE),"OOPS")) -> 12.5 | O143: 0.03 | P143: 0.3 | Q143: =IF((VLOOKUP($C143,'Project Customer Details'!$B$6:$Q$1095,16,FALSE))<((VLOOKUP($C143,'Project Customer Details'!$B$6:$Q$1095,4,FALSE)*$L143)),VLOOKUP($C143,'Project Customer Details'!$B$6:$Q$1095,16,FALSE), (VLOOKUP($C143,'Project Customer Details'!$B$6:$Q$1095,4,FALSE)*$L143)) -> 0 | R143: 0 | S143: 8 | T143: =MIN(R143,S143,Summary!$D$14) -> 0 | U143: =J143-(J143/(1+(Summary!$D$13))^(T143)) -> 0
B144: 141 | C144: HBND41 | D144: Add 2nd feed to Garden Valley | E144: Distribution | F144: 34.5 | G144: W | H144: 2022 | I144: 5652105 | J144: 5652105 | K144: 20.03471258 | L144: 20.57160489 | M144: 20 | N144: =IF(OR(G144="S",G144="D"),VLOOKUP(F144,'Component Capacity'!$C$8:$F$12,4,FALSE)*M144,IF(G144="W",VLOOKUP(F144,'Component Capacity'!$C$16:$F$20,4,FALSE),"OOPS")) -> 1.25 | O144: 0.03 | P144: 0.6 | Q144: =IF((VLOOKUP($C144,'Project Customer Details'!$B$6:$Q$1095,16,FALSE))<((VLOOKUP($C144,'Project Customer Details'!$B$6:$Q$1095,4,FALSE)*$L144)),VLOOKUP($C144,'Project Customer Details'!$B$6:$Q$1095,16,FALSE), (VLOOKUP($C144,'Project Customer Details'!$B$6:$Q$1095,4,FALSE)*$L144)) -> 0 | R144: 0 | S144: 0 | T144: =MIN(R144,S144,Summary!$D$14) -> 0 | U144: =J144-(J144/(1+(Summary!$D$13))^(T144)) -> 0
B145: 142 | C145: CDWL14 | D145: Replace CDWL 014A failed getaway cable | E145: Distribution | F145: 12.5 | G145: S | H145: 2009 | I145: 50000 | J145: 69558.52343 | K145: 10.07994117 | L145: 10.1759951 | M145: 10 | N145: =IF(OR(G145="S",G145="D"),VLOOKUP(F145,'Component Capacity'!$C$8:$F$12,4,FALSE)*M145,IF(G145="W",VLOOKUP(F145,'Component Capacity'!$C$16:$F$20,4,FALSE),"OOPS")) -> 12.5 | O145: 0.03 | P145: 0.3 | Q145: =IF((VLOOKUP($C145,'Project Customer Details'!$B$6:$Q$1095,16,FALSE))<((VLOOKUP($C145,'Project Customer Details'!$B$6:$Q$1095,4,FALSE)*$L145)),VLOOKUP($C145,'Project Customer Details'!$B$6:$Q$1095,16,FALSE), (VLOOKUP($C145,'Project Customer Details'!$B$6:$Q$1095,4,FALSE)*$L145)) -> 0.02632745312 | R145: 0 | S145: 7 | T145: =MIN(R145,S145,Summary!$D$14) -> 0 | U145: =J145-(J145/(1+(Summary!$D$13))^(T145)) -> 0
B146: 143 | C146: CDWL15 | D146: New CDWL11 to CDWL15 tie | E146: Distribution | F146: 12.5 | G146: S | H146: 2024 | I146: 230000 | J146: 230000 | K146: 12.72 | L146: 12.72 | M146: 10 | N146: =IF(OR(G146="S",G146="D"),VLOOKUP(F146,'Component Capacity'!$C$8:$F$12,4,FALSE)*M146,IF(G146="W",VLOOKUP(F146,'Component Capacity'!$C$16:$F$20,4,FALSE),"OOPS")) -> 12.5 | O146: 0.0253 | P146: N/A | Q146: =IF((VLOOKUP($C146,'Project Customer Details'!$B$6:$Q$1095,16,FALSE))<((VLOOKUP($C146,'Project Customer Details'!$B$6:$Q$1095,4,FALSE)*$L146)),VLOOKUP($C146,'Project Customer Details'!$B$6:$Q$1095,16,FALSE), (VLOOKUP($C146,'Project Customer Details'!$B$6:$Q$1095,4,FALSE)*$L146)) -> 0.001992404079 | R146: 0 | S146: 0 | T146: =MIN(R146,S146,Summary!$D$14) -> 0 | U146: =J146-(J146/(1+(Summary!$D$13))^(T146)) -> 0
B147: 144 | C147: DTRC11 | D147: DTRC-011 Getaway Upgrade | E147: Distribution | F147: C | G147: S | H147: 2010 | I147: 15000 | J147: 20344.28126 | K147: 6.218456119 | L147: 6.242030531 | M147: 6.08 | N147: =IF(OR(G147="S",G147="D"),VLOOKUP(F147,'Component Capacity'!$C$8:$F$12,4,FALSE)*M147,IF(G147="W",VLOOKUP(F147,'Component Capacity'!$C$16:$F$20,4,FALSE),"OOPS")) -> 6.755555556 | O147: 0.03 | P147: 0.1824 | Q147: =IF((VLOOKUP($C147,'Project Customer Details'!$B$6:$Q$1095,16,FALSE))<((VLOOKUP($C147,'Project Customer Details'!$B$6:$Q$1095,4,FALSE)*$L147)),VLOOKUP($C147,'Project Customer Details'!$B$6:$Q$1095,16,FALSE), (VLOOKUP($C147,'Project Customer Details'!$B$6:$Q$1095,4,FALSE)*$L147)) -> 0 | R147: 0 | S147: 3 | T147: =MIN(R147,S147,Summary!$D$14) -> 0 | U147: =J147-(J147/(1+(Summary!$D$13))^(T147)) -> 0
B148: 145 | C148: BOMT41 | D148: Low voltage - 3 locations on BOMT-041, Rebuild Option. | E148: Distribution | F148: 34.5 | G148: S | H148: 2012 | I148: 264971.76 | J148: 341579.7901 | K148: 20.14083494 | L148: 20.24953414 | M148: 20 | N148: =IF(OR(G148="S",G148="D"),VLOOKUP(F148,'Component Capacity'!$C$8:$F$12,4,FALSE)*M148,IF(G148="W",VLOOKUP(F148,'Component Capacity'!$C$16:$F$20,4,FALSE),"OOPS")) -> 25 | O148: 0.03 | P148: 0.6 | Q148: =IF((VLOOKUP($C148,'Project Customer Details'!$B$6:$Q$1095,16,FALSE))<((VLOOKUP($C148,'Project Customer Details'!$B$6:$Q$1095,4,FALSE)*$L148)),VLOOKUP($C148,'Project Customer Details'!$B$6:$Q$1095,16,FALSE), (VLOOKUP($C148,'Project Customer Details'!$B$6:$Q$1095,4,FALSE)*$L148)) -> 0.0344845709 | R148: 0 | S148: 8 | T148: =MIN(R148,S148,Summary!$D$14) -> 0 | U148: =J148-(J148/(1+(Summary!$D$13))^(T148)) -> 0
B149: 146 | C149: PAET11 | D149: Relieve PAET11 with PAET14 | E149: Distribution | F149: 12.5 | G149: S | H149: 2015 | I149: 730000 | J149: 872022.4462 | K149: 10.8 | L149: 10.8 | M149: 10 | N149: =IF(OR(G149="S",G149="D"),VLOOKUP(F149,'Component Capacity'!$C$8:$F$12,4,FALSE)*M149,IF(G149="W",VLOOKUP(F149,'Component Capacity'!$C$16:$F$20,4,FALSE),"OOPS")) -> 12.5 | O149: 0.0175 | P149: N/A | Q149: =IF((VLOOKUP($C149,'Project Customer Details'!$B$6:$Q$1095,16,FALSE))<((VLOOKUP($C149,'Project Customer Details'!$B$6:$Q$1095,4,FALSE)*$L149)),VLOOKUP($C149,'Project Customer Details'!$B$6:$Q$1095,16,FALSE), (VLOOKUP($C149,'Project Customer Details'!$B$6:$Q$1095,4,FALSE)*$L149)) -> 0.01324661699 | R149: 0 | S149: 9 | T149: =MIN(R149,S149,Summary!$D$14) -> 0 | U149: =J149-(J149/(1+(Summary!$D$13))^(T149)) -> 0
B150: 147 | C150: ONTO20 | D150: IPCO/CITY OF ONTARIO WASHINGTON ST. REALIGNMENT | E150: Distribution | F150: 34.5 | G150: S | H150: 2010 | I150: 100000 | J150: 135628.5417 | K150: 20.36356287 | L150: 20.22824537 | M150: 20 | N150: =IF(OR(G150="S",G150="D"),VLOOKUP(F150,'Component Capacity'!$C$8:$F$12,4,FALSE)*M150,IF(G150="W",VLOOKUP(F150,'Component Capacity'!$C$16:$F$20,4,FALSE),"OOPS")) -> 25 | O150: 0.03 | P150: 0.6 | Q150: =IF((VLOOKUP($C150,'Project Customer Details'!$B$6:$Q$1095,16,FALSE))<((VLOOKUP($C150,'Project Customer Details'!$B$6:$Q$1095,4,FALSE)*$L150)),VLOOKUP($C150,'Project Customer Details'!$B$6:$Q$1095,16,FALSE), (VLOOKUP($C150,'Project Customer Details'!$B$6:$Q$1095,4,FALSE)*$L150)) -> 0.02151939869 | R150: 0 | S150: 8 | T150: =MIN(R150,S150,Summary!$D$14) -> 0 | U150: =J150-(J150/(1+(Summary!$D$13))^(T150)) -> 0
B151: 148 | C151: ETGT16 | D151: Build new 138-12.5 kV substation | E151: Distribution | F151: 12.5 | G151: S | H151: 2011 | I151: 1954006.91 | J151: 2583734.771 | K151: 10.1 | L151: 10.55 | M151: 10 | N151: =IF(OR(G151="S",G151="D"),VLOOKUP(F151,'Component Capacity'!$C$8:$F$12,4,FALSE)*M151,IF(G151="W",VLOOKUP(F151,'Component Capacity'!$C$16:$F$20,4,FALSE),"OOPS")) -> 12.5 | O151: 0.045 | P151: N/A | Q151: =IF((VLOOKUP($C151,'Project Customer Details'!$B$6:$Q$1095,16,FALSE))<((VLOOKUP($C151,'Project Customer Details'!$B$6:$Q$1095,4,FALSE)*$L151)),VLOOKUP($C151,'Project Customer Details'!$B$6:$Q$1095,16,FALSE), (VLOOKUP($C151,'Project Customer Details'!$B$6:$Q$1095,4,FALSE)*$L151)) -> 0.02842367709 | R151: 0 | S151: 4 | T151: =MIN(R151,S151,Summary!$D$14) -> 0 | U151: =J151-(J151/(1+(Summary!$D$13))^(T151)) -> 0
B152: 149 | C152: ETGT12 | D152: KBLY-012 Build 1 mile south out of new sub | E152: Distribution | F152: 12.5 | G152: S | H152: 2011 | I152: 279591.16 | J152: 369696.4417 | K152: 10.2 | L152: 10.2 | M152: 10 | N152: =IF(OR(G152="S",G152="D"),VLOOKUP(F152,'Component Capacity'!$C$8:$F$12,4,FALSE)*M152,IF(G152="W",VLOOKUP(F152,'Component Capacity'!$C$16:$F$20,4,FALSE),"OOPS")) -> 12.5 | O152: 0.012 | P152: N/A | Q152: =IF((VLOOKUP($C152,'Project Customer Details'!$B$6:$Q$1095,16,FALSE))<((VLOOKUP($C152,'Project Customer Details'!$B$6:$Q$1095,4,FALSE)*$L152)),VLOOKUP($C152,'Project Customer Details'!$B$6:$Q$1095,16,FALSE), (VLOOKUP($C152,'Project Customer Details'!$B$6:$Q$1095,4,FALSE)*$L152)) -> 0.02729431137 | R152: 0 | S152: 18 | T152: =MIN(R152,S152,Summary!$D$14) -> 0 | U152: =J152-(J152/(1+(Summary!$D$13))^(T152)) -> 0
B153: 150 | C153: ETGT12 | D153: Add distribution underbuild to new 138 kV line to KBLY sub | E153: Distribution | F153: 12.5 | G153: S | H153: 2011 | I153: 223851.47 | J153: 295993.235 | K153: 10.2 | L153: 10.2 | M153: 10 | N153: =IF(OR(G153="S",G153="D"),VLOOKUP(F153,'Component Capacity'!$C$8:$F$12,4,FALSE)*M153,IF(G153="W",VLOOKUP(F153,'Component Capacity'!$C$16:$F$20,4,FALSE),"OOPS")) -> 12.5 | O153: 0.012 | P153: N/A | Q153: =IF((VLOOKUP($C153,'Project Customer Details'!$B$6:$Q$1095,16,FALSE))<((VLOOKUP($C153,'Project Customer Details'!$B$6:$Q$1095,4,FALSE)*$L153)),VLOOKUP($C153,'Project Customer Details'!$B$6:$Q$1095,16,FALSE), (VLOOKUP($C153,'Project Customer Details'!$B$6:$Q$1095,4,FALSE)*$L153)) -> 0.02729431137 | R153: 0 | S153: 18 | T153: =MIN(R153,S153,Summary!$D$14) -> 0 | U153: =J153-(J153/(1+(Summary!$D$13))^(T153)) -> 0
B154: 151 | C154: SLVR41 | D154: SLVR-041 Extend three-phase from R-85 to RG-87 | E154: Distribution | F154: 34.5 | G154: S | H154: 2011 | I154: 93478.44 | J154: 123604.2178 | K154: 20.07265902 | L154: 20.08174259 | M154: 20 | N154: =IF(OR(G154="S",G154="D"),VLOOKUP(F154,'Component Capacity'!$C$8:$F$12,4,FALSE)*M154,IF(G154="W",VLOOKUP(F154,'Component Capacity'!$C$16:$F$20,4,FALSE),"OOPS")) -> 25 | O154: 0.03 | P154: 0.6 | Q154: =IF((VLOOKUP($C154,'Project Customer Details'!$B$6:$Q$1095,16,FALSE))<((VLOOKUP($C154,'Project Customer Details'!$B$6:$Q$1095,4,FALSE)*$L154)),VLOOKUP($C154,'Project Customer Details'!$B$6:$Q$1095,16,FALSE), (VLOOKUP($C154,'Project Customer Details'!$B$6:$Q$1095,4,FALSE)*$L154)) -> 0.0792577268 | R154: 0 | S154: 8 | T154: =MIN(R154,S154,Summary!$D$14) -> 0 | U154: =J154-(J154/(1+(Summary!$D$13))^(T154)) -> 0
B155: 152 | C155: WLDR11 | D155: Replace 011A's 6 failing disconnects and 011 bypass fuses | E155: Distribution | F155: 12.5 | G155: S | H155: 2011 | I155: 18540.56 | J155: 24515.72167 | K155: 10.11567476 | L155: 10.21478048 | M155: 10 | N155: =IF(OR(G155="S",G155="D"),VLOOKUP(F155,'Component Capacity'!$C$8:$F$12,4,FALSE)*M155,IF(G155="W",VLOOKUP(F155,'Component Capacity'!$C$16:$F$20,4,FALSE),"OOPS")) -> 12.5 | O155: 0.03 | P155: 0.3 | Q155: =IF((VLOOKUP($C155,'Project Customer Details'!$B$6:$Q$1095,16,FALSE))<((VLOOKUP($C155,'Project Customer Details'!$B$6:$Q$1095,4,FALSE)*$L155)),VLOOKUP($C155,'Project Customer Details'!$B$6:$Q$1095,16,FALSE), (VLOOKUP($C155,'Project Customer Details'!$B$6:$Q$1095,4,FALSE)*$L155)) -> 0.002340724422 | R155: 0 | S155: 7 | T155: =MIN(R155,S155,Summary!$D$14) -> 0 | U155: =J155-(J155/(1+(Summary!$D$13))^(T155)) -> 0
B156: 153 | C156: CACK43 | D156: CACK-043-12 F20 Tap Overloaded | E156: Distribution | F156: 34.5 | G156: S | H156: 2013 | I156: 33013.76 | J156: 41491.42102 | K156: 20.54403641 | L156: 20.13017826 | M156: 20 | N156: =IF(OR(G156="S",G156="D"),VLOOKUP(F156,'Component Capacity'!$C$8:$F$12,4,FALSE)*M156,IF(G156="W",VLOOKUP(F156,'Component Capacity'!$C$16:$F$20,4,FALSE),"OOPS")) -> 25 | O156: 0.03 | P156: 0.6 | Q156: =IF((VLOOKUP($C156,'Project Customer Details'!$B$6:$Q$1095,16,FALSE))<((VLOOKUP($C156,'Project Customer Details'!$B$6:$Q$1095,4,FALSE)*$L156)),VLOOKUP($C156,'Project Customer Details'!$B$6:$Q$1095,16,FALSE), (VLOOKUP($C156,'Project Customer Details'!$B$6:$Q$1095,4,FALSE)*$L156)) -> 0 | R156: 0 | S156: 8 | T156: =MIN(R156,S156,Summary!$D$14) -> 0 | U156: =J156-(J156/(1+(Summary!$D$13))^(T156)) -> 0
B157: 154 | C157: BOIS14 | D157: Electric Vehicle Impact on Grid | E157: Distribution | F157: 12.5 | G157: S | H157: 2013 | I157: 63793.39 | J157: 80175.00589 | K157: 10.09961464 | L157: 10.21119316 | M157: 10 | N157: =IF(OR(G157="S",G157="D"),VLOOKUP(F157,'Component Capacity'!$C$8:$F$12,4,FALSE)*M157,IF(G157="W",VLOOKUP(F157,'Component Capacity'!$C$16:$F$20,4,FALSE),"OOPS")) -> 12.5 | O157: 0.03 | P157: 0.3 | Q157: =IF((VLOOKUP($C157,'Project Customer Details'!$B$6:$Q$1095,16,FALSE))<((VLOOKUP($C157,'Project Customer Details'!$B$6:$Q$1095,4,FALSE)*$L157)),VLOOKUP($C157,'Project Customer Details'!$B$6:$Q$1095,16,FALSE), (VLOOKUP($C157,'Project Customer Details'!$B$6:$Q$1095,4,FALSE)*$L157)) -> 0.002939994647 | R157: 0 | S157: 7 | T157: =MIN(R157,S157,Summary!$D$14) -> 0 | U157: =J157-(J157/(1+(Summary!$D$13))^(T157)) -> 0
B158: 155 | C158: HGSN12 | D158: HGSN-012 336 AL Reconductor for 2.25 miles between HGSN and I-84 | E158: Distribution | F158: 12.5 | G158: S | H158: 2014 | I158: 522429.31 | J158: 640120.2937 | K158: 10.25830347 | L158: 10.29036575 | M158: 10 | N158: =IF(OR(G158="S",G158="D"),VLOOKUP(F158,'Component Capacity'!$C$8:$F$12,4,FALSE)*M158,IF(G158="W",VLOOKUP(F158,'Component Capacity'!$C$16:$F$20,4,FALSE),"OOPS")) -> 12.5 | O158: 0.03 | P158: 0.3 | Q158: =IF((VLOOKUP($C158,'Project Customer Details'!$B$6:$Q$1095,16,FALSE))<((VLOOKUP($C158,'Project Customer Details'!$B$6:$Q$1095,4,FALSE)*$L158)),VLOOKUP($C158,'Project Customer Details'!$B$6:$Q$1095,16,FALSE), (VLOOKUP($C158,'Project Customer Details'!$B$6:$Q$1095,4,FALSE)*$L158)) -> 0 | R158: 0 | S158: 7 | T158: =MIN(R158,S158,Summary!$D$14) -> 0 | U158: =J158-(J158/(1+(Summary!$D$13))^(T158)) -> 0
B159: 156 | C159: EDEN42 | D159: EDEN-042 Replace TX-23 transformers with 3-2500 kVA | E159: Distribution | F159: T | G159: S | H159: 2014 | I159: 93660.3 | J159: 114759.7533 | K159: 4.95 | L159: 4.95 | M159: 4.41 | N159: =IF(OR(G159="S",G159="D"),VLOOKUP(F159,'Component Capacity'!$C$8:$F$12,4,FALSE)*M159,IF(G159="W",VLOOKUP(F159,'Component Capacity'!$C$16:$F$20,4,FALSE),"OOPS")) -> 4.5 | O159: 0.015 | P159: N/A | Q159: =IF((VLOOKUP($C159,'Project Customer Details'!$B$6:$Q$1095,16,FALSE))<((VLOOKUP($C159,'Project Customer Details'!$B$6:$Q$1095,4,FALSE)*$L159)),VLOOKUP($C159,'Project Customer Details'!$B$6:$Q$1095,16,FALSE), (VLOOKUP($C159,'Project Customer Details'!$B$6:$Q$1095,4,FALSE)*$L159)) -> 0.01895400403 | R159: 0 | S159: 0 | T159: =MIN(R159,S159,Summary!$D$14) -> 0 | U159: =J159-(J159/(1+(Summary!$D$13))^(T159)) -> 0
B160: 157 | C160: EDEN42 | D160: EDEN42 - stepdown transformers TX-82 are reaching capacity on one phase (C-phase) | E160: Distribution | F160: T | G160: S | H160: 2017 | I160: 45080.77 | J160: 51184.39966 | K160: 0.344 | L160: 0.344 | M160: 0.245 | N160: =IF(OR(G160="S",G160="D"),VLOOKUP(F160,'Component Capacity'!$C$8:$F$12,4,FALSE)*M160,IF(G160="W",VLOOKUP(F160,'Component Capacity'!$C$16:$F$20,4,FALSE),"OOPS")) -> 0.25 | O160: 0.0175 | P160: N/A | Q160: =IF((VLOOKUP($C160,'Project Customer Details'!$B$6:$Q$1095,16,FALSE))<((VLOOKUP($C160,'Project Customer Details'!$B$6:$Q$1095,4,FALSE)*$L160)),VLOOKUP($C160,'Project Customer Details'!$B$6:$Q$1095,16,FALSE), (VLOOKUP($C160,'Project Customer Details'!$B$6:$Q$1095,4,FALSE)*$L160)) -> 0.01895400403 | R160: 0 | S160: 0 | T160: =MIN(R160,S160,Summary!$D$14) -> 0 | U160: =J160-(J160/(1+(Summary!$D$13))^(T160)) -> 0
B161: 158 | C161: EDEN42 | D161: EDEN41 - TX-95 stepdowns are reaching nameplate capacity | E161: Distribution | F161: T | G161: S | H161: 2019 | I161: 88597.08 | J161: 95610.85054 | K161: 0.51 | L161: 0.51 | M161: 0.49 | N161: =IF(OR(G161="S",G161="D"),VLOOKUP(F161,'Component Capacity'!$C$8:$F$12,4,FALSE)*M161,IF(G161="W",VLOOKUP(F161,'Component Capacity'!$C$16:$F$20,4,FALSE),"OOPS")) -> 0.5 | O161: 0.011 | P161: N/A | Q161: =IF((VLOOKUP($C161,'Project Customer Details'!$B$6:$Q$1095,16,FALSE))<((VLOOKUP($C161,'Project Customer Details'!$B$6:$Q$1095,4,FALSE)*$L161)),VLOOKUP($C161,'Project Customer Details'!$B$6:$Q$1095,16,FALSE), (VLOOKUP($C161,'Project Customer Details'!$B$6:$Q$1095,4,FALSE)*$L161)) -> 0.01895400403 | R161: 0 | S161: 0 | T161: =MIN(R161,S161,Summary!$D$14) -> 0 | U161: =J161-(J161/(1+(Summary!$D$13))^(T161)) -> 0
B162: 159 | C162: HGSN12 | D162: HGSN-013 Reconductor 1.4 miles along US 30 | E162: Distribution | F162: 12.5 | G162: S | H162: 2019 | I162: 548030.44 | J162: 591415.1628 | K162: 10.13167015 | L162: 10.1143982 | M162: 10 | N162: =IF(OR(G162="S",G162="D"),VLOOKUP(F162,'Component Capacity'!$C$8:$F$12,4,FALSE)*M162,IF(G162="W",VLOOKUP(F162,'Component Capacity'!$C$16:$F$20,4,FALSE),"OOPS")) -> 12.5 | O162: 0.03 | P162: 0.3 | Q162: =IF((VLOOKUP($C162,'Project Customer Details'!$B$6:$Q$1095,16,FALSE))<((VLOOKUP($C162,'Project Customer Details'!$B$6:$Q$1095,4,FALSE)*$L162)),VLOOKUP($C162,'Project Customer Details'!$B$6:$Q$1095,16,FALSE), (VLOOKUP($C162,'Project Customer Details'!$B$6:$Q$1095,4,FALSE)*$L162)) -> 0 | R162: 0 | S162: 8 | T162: =MIN(R162,S162,Summary!$D$14) -> 0 | U162: =J162-(J162/(1+(Summary!$D$13))^(T162)) -> 0
B163: 160 | C163: VLVU11 | D163: VLVU-011 Low Voltage | E163: Distribution | F163: 12.5 | G163: S | H163: 2014 | I163: 39612.94 | J163: 48536.79972 | K163: 10.13056758 | L163: 10.26089147 | M163: 10 | N163: =IF(OR(G163="S",G163="D"),VLOOKUP(F163,'Component Capacity'!$C$8:$F$12,4,FALSE)*M163,IF(G163="W",VLOOKUP(F163,'Component Capacity'!$C$16:$F$20,4,FALSE),"OOPS")) -> 12.5 | O163: 0.03 | P163: 0.3 | Q163: =IF((VLOOKUP($C163,'Project Customer Details'!$B$6:$Q$1095,16,FALSE))<((VLOOKUP($C163,'Project Customer Details'!$B$6:$Q$1095,4,FALSE)*$L163)),VLOOKUP($C163,'Project Customer Details'!$B$6:$Q$1095,16,FALSE), (VLOOKUP($C163,'Project Customer Details'!$B$6:$Q$1095,4,FALSE)*$L163)) -> 0.01278700308 | R163: 0 | S163: 7 | T163: =MIN(R163,S163,Summary!$D$14) -> 0 | U163: =J163-(J163/(1+(Summary!$D$13))^(T163)) -> 0
B164: 161 | C164: PTVY43 | D164: Offload PTVY-043 | E164: Distribution | F164: 34.5 | G164: S | H164: 2015 | I164: 196902.03 | J164: 235209.5751 | K164: 24.3 | L164: 24.3 | M164: 20 | N164: =IF(OR(G164="S",G164="D"),VLOOKUP(F164,'Component Capacity'!$C$8:$F$12,4,FALSE)*M164,IF(G164="W",VLOOKUP(F164,'Component Capacity'!$C$16:$F$20,4,FALSE),"OOPS")) -> 25 | O164: 0.01 | P164: N/A | Q164: =IF((VLOOKUP($C164,'Project Customer Details'!$B$6:$Q$1095,16,FALSE))<((VLOOKUP($C164,'Project Customer Details'!$B$6:$Q$1095,4,FALSE)*$L164)),VLOOKUP($C164,'Project Customer Details'!$B$6:$Q$1095,16,FALSE), (VLOOKUP($C164,'Project Customer Details'!$B$6:$Q$1095,4,FALSE)*$L164)) -> 0 | R164: 0 | S164: 3 | T164: =MIN(R164,S164,Summary!$D$14) -> 0 | U164: =J164-(J164/(1+(Summary!$D$13))^(T164)) -> 0
B165: 162 | C165: PTVY41 | D165: PTVY Replace 3 OCB's plus station work for new 34.5 kV feeder 044 plus repl T131 protection | E165: Distribution | F165: 34.5 | G165: S | H165: 2016 | I165: 839881.22 | J165: 978122.8769 | K165: 23.1 | L165: 23.1 | M165: 20 | N165: =IF(OR(G165="S",G165="D"),VLOOKUP(F165,'Component Capacity'!$C$8:$F$12,4,FALSE)*M165,IF(G165="W",VLOOKUP(F165,'Component Capacity'!$C$16:$F$20,4,FALSE),"OOPS")) -> 25 | O165: 0.015 | P165: N/A | Q165: =IF((VLOOKUP($C165,'Project Customer Details'!$B$6:$Q$1095,16,FALSE))<((VLOOKUP($C165,'Project Customer Details'!$B$6:$Q$1095,4,FALSE)*$L165)),VLOOKUP($C165,'Project Customer Details'!$B$6:$Q$1095,16,FALSE), (VLOOKUP($C165,'Project Customer Details'!$B$6:$Q$1095,4,FALSE)*$L165)) -> 0.0008648467604 | R165: 0 | S165: 6 | T165: =MIN(R165,S165,Summary!$D$14) -> 0 | U165: =J165-(J165/(1+(Summary!$D$13))^(T165)) -> 0
B166: 163 | C166: PTVY41 | D166: PTVY Lines work for a new 34.5-kV feeder 044 to relieve feeder PTVY-041 | E166: Distribution | F166: 34.5 | G166: S | H166: 2016 | I166: 861023.91 | J166: 1002745.583 | K166: 23.1 | L166: 23.1 | M166: 20 | N166: =IF(OR(G166="S",G166="D"),VLOOKUP(F166,'Component Capacity'!$C$8:$F$12,4,FALSE)*M166,IF(G166="W",VLOOKUP(F166,'Component Capacity'!$C$16:$F$20,4,FALSE),"OOPS")) -> 25 | O166: 0.015 | P166: N/A | Q166: =IF((VLOOKUP($C166,'Project Customer Details'!$B$6:$Q$1095,16,FALSE))<((VLOOKUP($C166,'Project Customer Details'!$B$6:$Q$1095,4,FALSE)*$L166)),VLOOKUP($C166,'Project Customer Details'!$B$6:$Q$1095,16,FALSE), (VLOOKUP($C166,'Project Customer Details'!$B$6:$Q$1095,4,FALSE)*$L166)) -> 0.0008648467604 | R166: 0 | S166: 6 | T166: =MIN(R166,S166,Summary!$D$14) -> 0 | U166: =J166-(J166/(1+(Summary!$D$13))^(T166)) -> 0
B167: 164 | C167: SHSH12 | D167: SHSH-012 Rebuild 3.5 Miles along HWY 75 | E167: Distribution | F167: 12.5 | G167: S | H167: 2018 | I167: 641882.37 | J167: 710513.7358 | K167: 10.00042978 | L167: 10.0931988 | M167: 10 | N167: =IF(OR(G167="S",G167="D"),VLOOKUP(F167,'Component Capacity'!$C$8:$F$12,4,FALSE)*M167,IF(G167="W",VLOOKUP(F167,'Component Capacity'!$C$16:$F$20,4,FALSE),"OOPS")) -> 12.5 | O167: 0.03 | P167: 0.3 | Q167: =IF((VLOOKUP($C167,'Project Customer Details'!$B$6:$Q$1095,16,FALSE))<((VLOOKUP($C167,'Project Customer Details'!$B$6:$Q$1095,4,FALSE)*$L167)),VLOOKUP($C167,'Project Customer Details'!$B$6:$Q$1095,16,FALSE), (VLOOKUP($C167,'Project Customer Details'!$B$6:$Q$1095,4,FALSE)*$L167)) -> 0.0473075911 | R167: 0 | S167: 8 | T167: =MIN(R167,S167,Summary!$D$14) -> 0 | U167: =J167-(J167/(1+(Summary!$D$13))^(T167)) -> 0
B168: 165 | C168: EMET14 | D168: Add new EMET-015 feeder | E168: Distribution | F168: 12.5 | G168: W | H168: 2016 | I168: 414759 | J168: 483026.9527 | K168: 10.3 | L168: 10.3 | M168: 10 | N168: =IF(OR(G168="S",G168="D"),VLOOKUP(F168,'Component Capacity'!$C$8:$F$12,4,FALSE)*M168,IF(G168="W",VLOOKUP(F168,'Component Capacity'!$C$16:$F$20,4,FALSE),"OOPS")) -> 1.25 | O168: 0.02 | P168: N/A | Q168: =IF((VLOOKUP($C168,'Project Customer Details'!$B$6:$Q$1095,16,FALSE))<((VLOOKUP($C168,'Project Customer Details'!$B$6:$Q$1095,4,FALSE)*$L168)),VLOOKUP($C168,'Project Customer Details'!$B$6:$Q$1095,16,FALSE), (VLOOKUP($C168,'Project Customer Details'!$B$6:$Q$1095,4,FALSE)*$L168)) -> 0 | R168: 0 | S168: 0 | T168: =MIN(R168,S168,Summary!$D$14) -> 0 | U168: =J168-(J168/(1+(Summary!$D$13))^(T168)) -> 0
B169: 166 | C169: HSTN11 | D169: HSTN-011 Construction to Relieve CDWL-17 | E169: Distribution | F169: 12.5 | G169: W | H169: 2017 | I169: 543285.49 | J169: 616842.6504 | K169: 10.4 | L169: 10.4 | M169: 10 | N169: =IF(OR(G169="S",G169="D"),VLOOKUP(F169,'Component Capacity'!$C$8:$F$12,4,FALSE)*M169,IF(G169="W",VLOOKUP(F169,'Component Capacity'!$C$16:$F$20,4,FALSE),"OOPS")) -> 1.25 | O169: 0.0275 | P169: N/A | Q169: =IF((VLOOKUP($C169,'Project Customer Details'!$B$6:$Q$1095,16,FALSE))<((VLOOKUP($C169,'Project Customer Details'!$B$6:$Q$1095,4,FALSE)*$L169)),VLOOKUP($C169,'Project Customer Details'!$B$6:$Q$1095,16,FALSE), (VLOOKUP($C169,'Project Customer Details'!$B$6:$Q$1095,4,FALSE)*$L169)) -> 0 | R169: 0 | S169: 0 | T169: =MIN(R169,S169,Summary!$D$14) -> 0 | U169: =J169-(J169/(1+(Summary!$D$13))^(T169)) -> 0
B170: 167 | C170: BUGU42 | D170: BUGU-042 Reconductor 1 mile between 4100N and 4200N | E170: Distribution | F170: 34.5 | G170: S | H170: 2020 | I170: 112874.26 | J170: 118755.4177 | K170: 20.38960357 | L170: 20.42826429 | M170: 20 | N170: =IF(OR(G170="S",G170="D"),VLOOKUP(F170,'Component Capacity'!$C$8:$F$12,4,FALSE)*M170,IF(G170="W",VLOOKUP(F170,'Component Capacity'!$C$16:$F$20,4,FALSE),"OOPS")) -> 25 | O170: 0.03 | P170: 0.6 | Q170: =IF((VLOOKUP($C170,'Project Customer Details'!$B$6:$Q$1095,16,FALSE))<((VLOOKUP($C170,'Project Customer Details'!$B$6:$Q$1095,4,FALSE)*$L170)),VLOOKUP($C170,'Project Customer Details'!$B$6:$Q$1095,16,FALSE), (VLOOKUP($C170,'Project Customer Details'!$B$6:$Q$1095,4,FALSE)*$L170)) -> 0.004158501678 | R170: 0 | S170: 7 | T170: =MIN(R170,S170,Summary!$D$14) -> 0 | U170: =J170-(J170/(1+(Summary!$D$13))^(T170)) -> 0
B171: 168 | C171: NMPA20 | D171: CADA BUILD A NEW 138/12.5KV STATION-CHERRY & CAN-ADA | E171: Distribution | F171: 12.5 | G171: S | H171: 2017 | I171: 4109535.55 | J171: 4665938.714 | K171: 10.54 | L171: 10.54 | M171: 10 | N171: =IF(OR(G171="S",G171="D"),VLOOKUP(F171,'Component Capacity'!$C$8:$F$12,4,FALSE)*M171,IF(G171="W",VLOOKUP(F171,'Component Capacity'!$C$16:$F$20,4,FALSE),"OOPS")) -> 12.5 | O171: 0.034 | P171: N/A | Q171: =IF((VLOOKUP($C171,'Project Customer Details'!$B$6:$Q$1095,16,FALSE))<((VLOOKUP($C171,'Project Customer Details'!$B$6:$Q$1095,4,FALSE)*$L171)),VLOOKUP($C171,'Project Customer Details'!$B$6:$Q$1095,16,FALSE), (VLOOKUP($C171,'Project Customer Details'!$B$6:$Q$1095,4,FALSE)*$L171)) -> 0.03113524909 | R171: 0 | S171: 6 | T171: =MIN(R171,S171,Summary!$D$14) -> 0 | U171: =J171-(J171/(1+(Summary!$D$13))^(T171)) -> 0
B172: 169 | C172: EAGL11 | D172: Relieve EAGL11 via load transfer to JPLN41 | E172: Distribution | F172: 12.5 | G172: S | H172: 2018 | I172: 1017924.38 | J172: 1126762.921 | K172: 10.35 | L172: 10.35 | M172: 10 | N172: =IF(OR(G172="S",G172="D"),VLOOKUP(F172,'Component Capacity'!$C$8:$F$12,4,FALSE)*M172,IF(G172="W",VLOOKUP(F172,'Component Capacity'!$C$16:$F$20,4,FALSE),"OOPS")) -> 12.5 | O172: 0.05 | P172: N/A | Q172: =IF((VLOOKUP($C172,'Project Customer Details'!$B$6:$Q$1095,16,FALSE))<((VLOOKUP($C172,'Project Customer Details'!$B$6:$Q$1095,4,FALSE)*$L172)),VLOOKUP($C172,'Project Customer Details'!$B$6:$Q$1095,16,FALSE), (VLOOKUP($C172,'Project Customer Details'!$B$6:$Q$1095,4,FALSE)*$L172)) -> 0.01301271128 | R172: 0 | S172: 4 | T172: =MIN(R172,S172,Summary!$D$14) -> 0 | U172: =J172-(J172/(1+(Summary!$D$13))^(T172)) -> 0
B173: 170 | C173: EAGL13 | D173: Relieve EAGL13 via transfer to HDSP11 | E173: Distribution | F173: 12.5 | G173: S | H173: 2019 | I173: 262942.19 | J173: 283757.9571 | K173: 10.04 | L173: 10.04 | M173: 10 | N173: =IF(OR(G173="S",G173="D"),VLOOKUP(F173,'Component Capacity'!$C$8:$F$12,4,FALSE)*M173,IF(G173="W",VLOOKUP(F173,'Component Capacity'!$C$16:$F$20,4,FALSE),"OOPS")) -> 12.5 | O173: 0.03 | P173: N/A | Q173: =IF((VLOOKUP($C173,'Project Customer Details'!$B$6:$Q$1095,16,FALSE))<((VLOOKUP($C173,'Project Customer Details'!$B$6:$Q$1095,4,FALSE)*$L173)),VLOOKUP($C173,'Project Customer Details'!$B$6:$Q$1095,16,FALSE), (VLOOKUP($C173,'Project Customer Details'!$B$6:$Q$1095,4,FALSE)*$L173)) -> 0.005803309541 | R173: 0 | S173: 8 | T173: =MIN(R173,S173,Summary!$D$14) -> 0 | U173: =J173-(J173/(1+(Summary!$D$13))^(T173)) -> 0
B174: 171 | C174: EAGL12 | D174: Relieve EAGL12 via load transfer to JPLN42 | E174: Distribution | F174: 12.5 | G174: S | H174: 2020 | I174: 498140.58 | J174: 524095.5081 | K174: 10.17 | L174: 10.17 | M174: 10 | N174: =IF(OR(G174="S",G174="D"),VLOOKUP(F174,'Component Capacity'!$C$8:$F$12,4,FALSE)*M174,IF(G174="W",VLOOKUP(F174,'Component Capacity'!$C$16:$F$20,4,FALSE),"OOPS")) -> 12.5 | O174: 0.0144 | P174: N/A | Q174: =IF((VLOOKUP($C174,'Project Customer Details'!$B$6:$Q$1095,16,FALSE))<((VLOOKUP($C174,'Project Customer Details'!$B$6:$Q$1095,4,FALSE)*$L174)),VLOOKUP($C174,'Project Customer Details'!$B$6:$Q$1095,16,FALSE), (VLOOKUP($C174,'Project Customer Details'!$B$6:$Q$1095,4,FALSE)*$L174)) -> 0.02468448152 | R174: 0 | S174: 15 | T174: =MIN(R174,S174,Summary!$D$14) -> 0 | U174: =J174-(J174/(1+(Summary!$D$13))^(T174)) -> 0
B175: 172 | C175: BKAT12 | D175: Add a new metalclad and new CADA 15 feeder | E175: Distribution | F175: 12.5 | G175: S | H175: 2026 | I175: 1260000 | J175: 1260000 | K175: 10.14 | L175: 10.14 | M175: 10 | N175: =IF(OR(G175="S",G175="D"),VLOOKUP(F175,'Component Capacity'!$C$8:$F$12,4,FALSE)*M175,IF(G175="W",VLOOKUP(F175,'Component Capacity'!$C$16:$F$20,4,FALSE),"OOPS")) -> 12.5 | O175: 0.0266 | P175: N/A | Q175: =IF((VLOOKUP($C175,'Project Customer Details'!$B$6:$Q$1095,16,FALSE))<((VLOOKUP($C175,'Project Customer Details'!$B$6:$Q$1095,4,FALSE)*$L175)),VLOOKUP($C175,'Project Customer Details'!$B$6:$Q$1095,16,FALSE), (VLOOKUP($C175,'Project Customer Details'!$B$6:$Q$1095,4,FALSE)*$L175)) -> 0.01363864552 | R175: 0 | S175: 8 | T175: =MIN(R175,S175,Summary!$D$14) -> 0 | U175: =J175-(J175/(1+(Summary!$D$13))^(T175)) -> 0
B176: 173 | C176: VTRY12 | D176: VTRY-017 FEEDER | E176: Distribution | F176: 12.5 | G176: S | H176: 2018 | I176: 172965.34 | J176: 191459.1452 | K176: 11.6 | L176: 11.6 | M176: 10 | N176: =IF(OR(G176="S",G176="D"),VLOOKUP(F176,'Component Capacity'!$C$8:$F$12,4,FALSE)*M176,IF(G176="W",VLOOKUP(F176,'Component Capacity'!$C$16:$F$20,4,FALSE),"OOPS")) -> 12.5 | O176: 0.025 | P176: N/A | Q176: =IF((VLOOKUP($C176,'Project Customer Details'!$B$6:$Q$1095,16,FALSE))<((VLOOKUP($C176,'Project Customer Details'!$B$6:$Q$1095,4,FALSE)*$L176)),VLOOKUP($C176,'Project Customer Details'!$B$6:$Q$1095,16,FALSE), (VLOOKUP($C176,'Project Customer Details'!$B$6:$Q$1095,4,FALSE)*$L176)) -> 0 | R176: 0 | S176: 4 | T176: =MIN(R176,S176,Summary!$D$14) -> 0 | U176: =J176-(J176/(1+(Summary!$D$13))^(T176)) -> 0
B177: 174 | C177: LCNS12 | D177: Add new feeder LCNS-12 | E177: Distribution | F177: 12.5 | G177: S | H177: 2018 | I177: 436093.42 | J177: 482721.4136 | K177: 10.1 | L177: 10.1 | M177: 10 | N177: =IF(OR(G177="S",G177="D"),VLOOKUP(F177,'Component Capacity'!$C$8:$F$12,4,FALSE)*M177,IF(G177="W",VLOOKUP(F177,'Component Capacity'!$C$16:$F$20,4,FALSE),"OOPS")) -> 12.5 | O177: 0.024 | P177: N/A | Q177: =IF((VLOOKUP($C177,'Project Customer Details'!$B$6:$Q$1095,16,FALSE))<((VLOOKUP($C177,'Project Customer Details'!$B$6:$Q$1095,4,FALSE)*$L177)),VLOOKUP($C177,'Project Customer Details'!$B$6:$Q$1095,16,FALSE), (VLOOKUP($C177,'Project Customer Details'!$B$6:$Q$1095,4,FALSE)*$L177)) -> 6.281849344e-05 | R177: 0 | S177: 9 | T177: =MIN(R177,S177,Summary!$D$14) -> 0 | U177: =J177-(J177/(1+(Summary!$D$13))^(T177)) -> 0
B178: 175 | C178: BYRL11 | D178: BYRL Construct a new 15 MW, 900A, 12.5-kV feeder | E178: Distribution | F178: 12.5 | G178: S | H178: 2019 | I178: 2920826.68 | J178: 3152053.354 | K178: 10.1072982 | L178: 10.18606155 | M178: 10 | N178: =IF(OR(G178="S",G178="D"),VLOOKUP(F178,'Component Capacity'!$C$8:$F$12,4,FALSE)*M178,IF(G178="W",VLOOKUP(F178,'Component Capacity'!$C$16:$F$20,4,FALSE),"OOPS")) -> 12.5 | O178: 0.03 | P178: 0.3 | Q178: =IF((VLOOKUP($C178,'Project Customer Details'!$B$6:$Q$1095,16,FALSE))<((VLOOKUP($C178,'Project Customer Details'!$B$6:$Q$1095,4,FALSE)*$L178)),VLOOKUP($C178,'Project Customer Details'!$B$6:$Q$1095,16,FALSE), (VLOOKUP($C178,'Project Customer Details'!$B$6:$Q$1095,4,FALSE)*$L178)) -> 0 | R178: 0 | S178: 7 | T178: =MIN(R178,S178,Summary!$D$14) -> 0 | U178: =J178-(J178/(1+(Summary!$D$13))^(T178)) -> 0
B179: 176 | C179: MORA45 | D179: Integrate a new VTRY circuit | E179: Distribution | F179: 34.5 | G179: S | H179: 2023 | I179: 458573 | J179: 458573 | K179: 20.03 | L179: 20.03 | M179: 20 | N179: =IF(OR(G179="S",G179="D"),VLOOKUP(F179,'Component Capacity'!$C$8:$F$12,4,FALSE)*M179,IF(G179="W",VLOOKUP(F179,'Component Capacity'!$C$16:$F$20,4,FALSE),"OOPS")) -> 25 | O179: 0.0246 | P179: N/A | Q179: =IF((VLOOKUP($C179,'Project Customer Details'!$B$6:$Q$1095,16,FALSE))<((VLOOKUP($C179,'Project Customer Details'!$B$6:$Q$1095,4,FALSE)*$L179)),VLOOKUP($C179,'Project Customer Details'!$B$6:$Q$1095,16,FALSE), (VLOOKUP($C179,'Project Customer Details'!$B$6:$Q$1095,4,FALSE)*$L179)) -> 0.02848272128 | R179: 0 | S179: 10 | T179: =MIN(R179,S179,Summary!$D$14) -> 0 | U179: =J179-(J179/(1+(Summary!$D$13))^(T179)) -> 0
B180: 177 | C180: EAGL16 | D180: Relieve EAGL16 via a new tie to STAR11 | E180: Distribution | F180: 12.5 | G180: S | H180: 2017 | I180: 352363.14 | J180: 400070.7127 | K180: 11 | L180: 11 | M180: 10 | N180: =IF(OR(G180="S",G180="D"),VLOOKUP(F180,'Component Capacity'!$C$8:$F$12,4,FALSE)*M180,IF(G180="W",VLOOKUP(F180,'Component Capacity'!$C$16:$F$20,4,FALSE),"OOPS")) -> 12.5 | O180: 0.05 | P180: N/A | Q180: =IF((VLOOKUP($C180,'Project Customer Details'!$B$6:$Q$1095,16,FALSE))<((VLOOKUP($C180,'Project Customer Details'!$B$6:$Q$1095,4,FALSE)*$L180)),VLOOKUP($C180,'Project Customer Details'!$B$6:$Q$1095,16,FALSE), (VLOOKUP($C180,'Project Customer Details'!$B$6:$Q$1095,4,FALSE)*$L180)) -> 0.01022602251 | R180: 0 | S180: 3 | T180: =MIN(R180,S180,Summary!$D$14) -> 0 | U180: =J180-(J180/(1+(Summary!$D$13))^(T180)) -> 0
B181: 178 | C181: SHSH12 | D181: SHSH-012 Upgrade line along 520N and install new stepdown transformer | E181: Distribution | F181: 12.5 | G181: S | H181: 2018 | I181: 436086.91 | J181: 482714.2076 | K181: 10.0245071 | L181: 10.25143891 | M181: 10 | N181: =IF(OR(G181="S",G181="D"),VLOOKUP(F181,'Component Capacity'!$C$8:$F$12,4,FALSE)*M181,IF(G181="W",VLOOKUP(F181,'Component Capacity'!$C$16:$F$20,4,FALSE),"OOPS")) -> 12.5 | O181: 0.03 | P181: 0.3 | Q181: =IF((VLOOKUP($C181,'Project Customer Details'!$B$6:$Q$1095,16,FALSE))<((VLOOKUP($C181,'Project Customer Details'!$B$6:$Q$1095,4,FALSE)*$L181)),VLOOKUP($C181,'Project Customer Details'!$B$6:$Q$1095,16,FALSE), (VLOOKUP($C181,'Project Customer Details'!$B$6:$Q$1095,4,FALSE)*$L181)) -> 0.0473075911 | R181: 0 | S181: 7 | T181: =MIN(R181,S181,Summary!$D$14) -> 0 | U181: =J181-(J181/(1+(Summary!$D$13))^(T181)) -> 0
B182: 179 | C182: LAKE11 | D182: LAKE-011 Rebuild 1 mile | E182: Distribution | F182: 12.5 | G182: S | H182: 2016 | I182: 226530.71 | J182: 263816.9118 | K182: 10.1733453 | L182: 10.05086239 | M182: 10 | N182: =IF(OR(G182="S",G182="D"),VLOOKUP(F182,'Component Capacity'!$C$8:$F$12,4,FALSE)*M182,IF(G182="W",VLOOKUP(F182,'Component Capacity'!$C$16:$F$20,4,FALSE),"OOPS")) -> 12.5 | O182: 0.03 | P182: 0.3 | Q182: =IF((VLOOKUP($C182,'Project Customer Details'!$B$6:$Q$1095,16,FALSE))<((VLOOKUP($C182,'Project Customer Details'!$B$6:$Q$1095,4,FALSE)*$L182)),VLOOKUP($C182,'Project Customer Details'!$B$6:$Q$1095,16,FALSE), (VLOOKUP($C182,'Project Customer Details'!$B$6:$Q$1095,4,FALSE)*$L182)) -> 0.005901187379 | R182: 0 | S182: 8 | T182: =MIN(R182,S182,Summary!$D$14) -> 0 | U182: =J182-(J182/(1+(Summary!$D$13))^(T182)) -> 0
B183: 180 | C183: MRDN16 | D183: MRDN16 feeder overload, load shift to MRDN17 via MRDN13 | E183: Distribution | F183: 12.5 | G183: S | H183: 2019 | I183: 182599.74 | J183: 197055.2128 | K183: 10.4 | L183: 10.4 | M183: 10 | N183: =IF(OR(G183="S",G183="D"),VLOOKUP(F183,'Component Capacity'!$C$8:$F$12,4,FALSE)*M183,IF(G183="W",VLOOKUP(F183,'Component Capacity'!$C$16:$F$20,4,FALSE),"OOPS")) -> 12.5 | O183: 0.01 | P183: N/A | Q183: =IF((VLOOKUP($C183,'Project Customer Details'!$B$6:$Q$1095,16,FALSE))<((VLOOKUP($C183,'Project Customer Details'!$B$6:$Q$1095,4,FALSE)*$L183)),VLOOKUP($C183,'Project Customer Details'!$B$6:$Q$1095,16,FALSE), (VLOOKUP($C183,'Project Customer Details'!$B$6:$Q$1095,4,FALSE)*$L183)) -> 0.02543069931 | R183: 0 | S183: 19 | T183: =MIN(R183,S183,Summary!$D$14) -> 0 | U183: =J183-(J183/(1+(Summary!$D$13))^(T183)) -> 0
B184: 181 | C184: SKWY11 | D184: New Metalclad and SKWY015 feeder | E184: Distribution | F184: 12.5 | G184: S | H184: 2026 | I184: 940000 | J184: 940000 | K184: 10.7 | L184: 10.7 | M184: 10 | N184: =IF(OR(G184="S",G184="D"),VLOOKUP(F184,'Component Capacity'!$C$8:$F$12,4,FALSE)*M184,IF(G184="W",VLOOKUP(F184,'Component Capacity'!$C$16:$F$20,4,FALSE),"OOPS")) -> 12.5 | O184: 0.0125 | P184: N/A | Q184: =IF((VLOOKUP($C184,'Project Customer Details'!$B$6:$Q$1095,16,FALSE))<((VLOOKUP($C184,'Project Customer Details'!$B$6:$Q$1095,4,FALSE)*$L184)),VLOOKUP($C184,'Project Customer Details'!$B$6:$Q$1095,16,FALSE), (VLOOKUP($C184,'Project Customer Details'!$B$6:$Q$1095,4,FALSE)*$L184)) -> 0.01548276832 | R184: 0 | S184: 13 | T184: =MIN(R184,S184,Summary!$D$14) -> 0 | U184: =J184-(J184/(1+(Summary!$D$13))^(T184)) -> 0
B185: 182 | C185: RSET11 | D185: Remove 011Z from station | E185: Distribution | F185: 12.5 | G185: S | H185: 2019 | I185: 31242.06 | J185: 33715.33158 | K185: 10.27998432 | L185: 10.17815343 | M185: 10 | N185: =IF(OR(G185="S",G185="D"),VLOOKUP(F185,'Component Capacity'!$C$8:$F$12,4,FALSE)*M185,IF(G185="W",VLOOKUP(F185,'Component Capacity'!$C$16:$F$20,4,FALSE),"OOPS")) -> 12.5 | O185: 0.03 | P185: 0.3 | Q185: =IF((VLOOKUP($C185,'Project Customer Details'!$B$6:$Q$1095,16,FALSE))<((VLOOKUP($C185,'Project Customer Details'!$B$6:$Q$1095,4,FALSE)*$L185)),VLOOKUP($C185,'Project Customer Details'!$B$6:$Q$1095,16,FALSE), (VLOOKUP($C185,'Project Customer Details'!$B$6:$Q$1095,4,FALSE)*$L185)) -> 0.02027639599 | R185: 0 | S185: 7 | T185: =MIN(R185,S185,Summary!$D$14) -> 0 | U185: =J185-(J185/(1+(Summary!$D$13))^(T185)) -> 0
B186: 183 | C186: STRD11 | D186: STRD-011 Relief | E186: Distribution | F186: 12.5 | G186: S | H186: 2020 | I186: 61869.12 | J186: 65092.72519 | K186: 10.33 | L186: 10.33 | M186: 10 | N186: =IF(OR(G186="S",G186="D"),VLOOKUP(F186,'Component Capacity'!$C$8:$F$12,4,FALSE)*M186,IF(G186="W",VLOOKUP(F186,'Component Capacity'!$C$16:$F$20,4,FALSE),"OOPS")) -> 12.5 | O186: 0.0197 | P186: N/A | Q186: =IF((VLOOKUP($C186,'Project Customer Details'!$B$6:$Q$1095,16,FALSE))<((VLOOKUP($C186,'Project Customer Details'!$B$6:$Q$1095,4,FALSE)*$L186)),VLOOKUP($C186,'Project Customer Details'!$B$6:$Q$1095,16,FALSE), (VLOOKUP($C186,'Project Customer Details'!$B$6:$Q$1095,4,FALSE)*$L186)) -> 0.03048279277 | R186: 0 | S186: 10 | T186: =MIN(R186,S186,Summary!$D$14) -> 0 | U186: =J186-(J186/(1+(Summary!$D$13))^(T186)) -> 0
B187: 184 | C187: STAR13 | D187: Alleviate STAR13 with BNLT | E187: Distribution | F187: 12.5 | G187: S | H187: 2021 | I187: 153369 | J187: 157313.8079 | K187: 10.71 | L187: 10.71 | M187: 10 | N187: =IF(OR(G187="S",G187="D"),VLOOKUP(F187,'Component Capacity'!$C$8:$F$12,4,FALSE)*M187,IF(G187="W",VLOOKUP(F187,'Component Capacity'!$C$16:$F$20,4,FALSE),"OOPS")) -> 12.5 | O187: 0.0445 | P187: N/A | Q187: =IF((VLOOKUP($C187,'Project Customer Details'!$B$6:$Q$1095,16,FALSE))<((VLOOKUP($C187,'Project Customer Details'!$B$6:$Q$1095,4,FALSE)*$L187)),VLOOKUP($C187,'Project Customer Details'!$B$6:$Q$1095,16,FALSE), (VLOOKUP($C187,'Project Customer Details'!$B$6:$Q$1095,4,FALSE)*$L187)) -> 0.00373897625 | R187: 0 | S187: 4 | T187: =MIN(R187,S187,Summary!$D$14) -> 0 | U187: =J187-(J187/(1+(Summary!$D$13))^(T187)) -> 0
B188: 185 | C188: STRD12 | D188: Add a new STRD-014 feeder | E188: Distribution | F188: 12.5 | G188: S | H188: 2022 | I188: 316830 | J188: 316830 | K188: 10.79 | L188: 10.79 | M188: 10 | N188: =IF(OR(G188="S",G188="D"),VLOOKUP(F188,'Component Capacity'!$C$8:$F$12,4,FALSE)*M188,IF(G188="W",VLOOKUP(F188,'Component Capacity'!$C$16:$F$20,4,FALSE),"OOPS")) -> 12.5 | O188: 0.0268 | P188: N/A | Q188: =IF((VLOOKUP($C188,'Project Customer Details'!$B$6:$Q$1095,16,FALSE))<((VLOOKUP($C188,'Project Customer Details'!$B$6:$Q$1095,4,FALSE)*$L188)),VLOOKUP($C188,'Project Customer Details'!$B$6:$Q$1095,16,FALSE), (VLOOKUP($C188,'Project Customer Details'!$B$6:$Q$1095,4,FALSE)*$L188)) -> 0.03229923103 | R188: 0 | S188: 6 | T188: =MIN(R188,S188,Summary!$D$14) -> 0 | U188: =J188-(J188/(1+(Summary!$D$13))^(T188)) -> 0
B189: 186 | C189: KUNA12 | D189: Offload KUNA-012 from new Columbia Station | E189: Distribution | F189: 12.5 | G189: S | H189: 2022 | I189: 653977 | J189: 653977 | K189: 10.76 | L189: 10.76 | M189: 10 | N189: =IF(OR(G189="S",G189="D"),VLOOKUP(F189,'Component Capacity'!$C$8:$F$12,4,FALSE)*M189,IF(G189="W",VLOOKUP(F189,'Component Capacity'!$C$16:$F$20,4,FALSE),"OOPS")) -> 12.5 | O189: 0.0112 | P189: N/A | Q189: =IF((VLOOKUP($C189,'Project Customer Details'!$B$6:$Q$1095,16,FALSE))<((VLOOKUP($C189,'Project Customer Details'!$B$6:$Q$1095,4,FALSE)*$L189)),VLOOKUP($C189,'Project Customer Details'!$B$6:$Q$1095,16,FALSE), (VLOOKUP($C189,'Project Customer Details'!$B$6:$Q$1095,4,FALSE)*$L189)) -> 0.029313983 | R189: 0 | S189: 14 | T189: =MIN(R189,S189,Summary!$D$14) -> 0 | U189: =J189-(J189/(1+(Summary!$D$13))^(T189)) -> 0
B190: 187 | C190: GOWN41 | D190: Offload GOWN41 | E190: Distribution | F190: 34.5 | G190: S | H190: 2026 | I190: 612000 | J190: 612000 | K190: 23.21 | L190: 23.21 | M190: 20 | N190: =IF(OR(G190="S",G190="D"),VLOOKUP(F190,'Component Capacity'!$C$8:$F$12,4,FALSE)*M190,IF(G190="W",VLOOKUP(F190,'Component Capacity'!$C$16:$F$20,4,FALSE),"OOPS")) -> 25 | O190: 0.0033 | P190: N/A | Q190: =IF((VLOOKUP($C190,'Project Customer Details'!$B$6:$Q$1095,16,FALSE))<((VLOOKUP($C190,'Project Customer Details'!$B$6:$Q$1095,4,FALSE)*$L190)),VLOOKUP($C190,'Project Customer Details'!$B$6:$Q$1095,16,FALSE), (VLOOKUP($C190,'Project Customer Details'!$B$6:$Q$1095,4,FALSE)*$L190)) -> 0.04304531348 | R190: 0 | S190: 23 | T190: =MIN(R190,S190,Summary!$D$14) -> 0 | U190: =J190-(J190/(1+(Summary!$D$13))^(T190)) -> 0
B191: 188 | C191: MORA45 | D191: Offload MORA45 with VTRY16 | E191: Distribution | F191: 34.5 | G191: S | H191: 2026 | I191: 200000 | J191: 200000 | K191: 20.16 | L191: 20.16 | M191: 20 | N191: =IF(OR(G191="S",G191="D"),VLOOKUP(F191,'Component Capacity'!$C$8:$F$12,4,FALSE)*M191,IF(G191="W",VLOOKUP(F191,'Component Capacity'!$C$16:$F$20,4,FALSE),"OOPS")) -> 25 | O191: 0.047 | P191: N/A | Q191: =IF((VLOOKUP($C191,'Project Customer Details'!$B$6:$Q$1095,16,FALSE))<((VLOOKUP($C191,'Project Customer Details'!$B$6:$Q$1095,4,FALSE)*$L191)),VLOOKUP($C191,'Project Customer Details'!$B$6:$Q$1095,16,FALSE), (VLOOKUP($C191,'Project Customer Details'!$B$6:$Q$1095,4,FALSE)*$L191)) -> 0.02848272128 | R191: 0 | S191: 5 | T191: =MIN(R191,S191,Summary!$D$14) -> 0 | U191: =J191-(J191/(1+(Summary!$D$13))^(T191)) -> 0
B192: 189 | C192: CLBA12 | D192: CLBA Distribution Feeder Capacity Upgrade | E192: Distribution | F192: C | G192: S | H192: 2024 | I192: 350000 | J192: 350000 | K192: 6.52 | L192: 6.52 | M192: 6.08 | N192: =IF(OR(G192="S",G192="D"),VLOOKUP(F192,'Component Capacity'!$C$8:$F$12,4,FALSE)*M192,IF(G192="W",VLOOKUP(F192,'Component Capacity'!$C$16:$F$20,4,FALSE),"OOPS")) -> 6.755555556 | O192: 0.0516 | P192: N/A | Q192: =IF((VLOOKUP($C192,'Project Customer Details'!$B$6:$Q$1095,16,FALSE))<((VLOOKUP($C192,'Project Customer Details'!$B$6:$Q$1095,4,FALSE)*$L192)),VLOOKUP($C192,'Project Customer Details'!$B$6:$Q$1095,16,FALSE), (VLOOKUP($C192,'Project Customer Details'!$B$6:$Q$1095,4,FALSE)*$L192)) -> 0 | R192: 0 | S192: 1 | T192: =MIN(R192,S192,Summary!$D$14) -> 0 | U192: =J192-(J192/(1+(Summary!$D$13))^(T192)) -> 0
B193: 190 | C193: GOWN41 | D193: Build Pleasant Valley Substation | E193: Distribution | F193: 12.5 | G193: S | H193: 2026 | I193: 3258000 | J193: 3258000 | K193: 25.46 | L193: 25.46 | M193: 10 | N193: =IF(OR(G193="S",G193="D"),VLOOKUP(F193,'Component Capacity'!$C$8:$F$12,4,FALSE)*M193,IF(G193="W",VLOOKUP(F193,'Component Capacity'!$C$16:$F$20,4,FALSE),"OOPS")) -> 12.5 | O193: 0.0033 | P193: N/A | Q193: =IF((VLOOKUP($C193,'Project Customer Details'!$B$6:$Q$1095,16,FALSE))<((VLOOKUP($C193,'Project Customer Details'!$B$6:$Q$1095,4,FALSE)*$L193)),VLOOKUP($C193,'Project Customer Details'!$B$6:$Q$1095,16,FALSE), (VLOOKUP($C193,'Project Customer Details'!$B$6:$Q$1095,4,FALSE)*$L193)) -> 0.04304531348 | R193: 0 | S193: 0 | T193: =MIN(R193,S193,Summary!$D$14) -> 0 | U193: =J193-(J193/(1+(Summary!$D$13))^(T193)) -> 0
B194: 191 | C194: EMET15 | D194: EMET15 Relief | E194: Distribution | F194: 12.5 | G194: S | H194: 2024 | I194: 473059 | J194: 473059 | K194: 10.34 | L194: 10.34 | M194: 10 | N194: =IF(OR(G194="S",G194="D"),VLOOKUP(F194,'Component Capacity'!$C$8:$F$12,4,FALSE)*M194,IF(G194="W",VLOOKUP(F194,'Component Capacity'!$C$16:$F$20,4,FALSE),"OOPS")) -> 12.5 | O194: 0.0178 | P194: N/A | Q194: =IF((VLOOKUP($C194,'Project Customer Details'!$B$6:$Q$1095,16,FALSE))<((VLOOKUP($C194,'Project Customer Details'!$B$6:$Q$1095,4,FALSE)*$L194)),VLOOKUP($C194,'Project Customer Details'!$B$6:$Q$1095,16,FALSE), (VLOOKUP($C194,'Project Customer Details'!$B$6:$Q$1095,4,FALSE)*$L194)) -> 0.01483144028 | R194: 0 | S194: 11 | T194: =MIN(R194,S194,Summary!$D$14) -> 0 | U194: =J194-(J194/(1+(Summary!$D$13))^(T194)) -> 0
B195: 192 | C195: LKFK41 | D195: LKFK41 TX710 Capacity Increase | E195: Distribution | F195: T | G195: W | H195: 2023 | I195: 20000 | J195: 20000 | K195: 0.79 | L195: 0.79 | M195: 0.55 | N195: =IF(OR(G195="S",G195="D"),VLOOKUP(F195,'Component Capacity'!$C$8:$F$12,4,FALSE)*M195,IF(G195="W",VLOOKUP(F195,'Component Capacity'!$C$16:$F$20,4,FALSE),"OOPS")) -> 1.090909091 | O195: 0.0265 | P195: N/A | Q195: =IF((VLOOKUP($C195,'Project Customer Details'!$B$6:$Q$1095,16,FALSE))<((VLOOKUP($C195,'Project Customer Details'!$B$6:$Q$1095,4,FALSE)*$L195)),VLOOKUP($C195,'Project Customer Details'!$B$6:$Q$1095,16,FALSE), (VLOOKUP($C195,'Project Customer Details'!$B$6:$Q$1095,4,FALSE)*$L195)) -> 0 | R195: 0 | S195: 13 | T195: =MIN(R195,S195,Summary!$D$14) -> 0 | U195: =J195-(J195/(1+(Summary!$D$13))^(T195)) -> 0
B196: 193 | C196: NTVW14 | D196: NTVW-14 Low Voltage | E196: Distribution | F196: 12.5 | G196: S | H196: 2024 | I196: 160000 | J196: 160000 | K196: 10.06956296 | L196: 10.06673002 | M196: 10 | N196: =IF(OR(G196="S",G196="D"),VLOOKUP(F196,'Component Capacity'!$C$8:$F$12,4,FALSE)*M196,IF(G196="W",VLOOKUP(F196,'Component Capacity'!$C$16:$F$20,4,FALSE),"OOPS")) -> 12.5 | O196: 0.0115 | P196: 0.115 | Q196: =IF((VLOOKUP($C196,'Project Customer Details'!$B$6:$Q$1095,16,FALSE))<((VLOOKUP($C196,'Project Customer Details'!$B$6:$Q$1095,4,FALSE)*$L196)),VLOOKUP($C196,'Project Customer Details'!$B$6:$Q$1095,16,FALSE), (VLOOKUP($C196,'Project Customer Details'!$B$6:$Q$1095,4,FALSE)*$L196)) -> 0.04342875351 | R196: 0 | S196: 19 | T196: =MIN(R196,S196,Summary!$D$14) -> 0 | U196: =J196-(J196/(1+(Summary!$D$13))^(T196)) -> 0
B197: 194 | C197: HSDL14 | D197: Offload HSDL14 with a new HSDL16 circuit and metalclad | E197: Distribution | F197: 12.5 | G197: S | H197: 2024 | I197: 900000 | J197: 900000 | K197: 10.83 | L197: 10.83 | M197: 10 | N197: =IF(OR(G197="S",G197="D"),VLOOKUP(F197,'Component Capacity'!$C$8:$F$12,4,FALSE)*M197,IF(G197="W",VLOOKUP(F197,'Component Capacity'!$C$16:$F$20,4,FALSE),"OOPS")) -> 12.5 | O197: 0.038 | P197: N/A | Q197: =IF((VLOOKUP($C197,'Project Customer Details'!$B$6:$Q$1095,16,FALSE))<((VLOOKUP($C197,'Project Customer Details'!$B$6:$Q$1095,4,FALSE)*$L197)),VLOOKUP($C197,'Project Customer Details'!$B$6:$Q$1095,16,FALSE), (VLOOKUP($C197,'Project Customer Details'!$B$6:$Q$1095,4,FALSE)*$L197)) -> 0.01447764289 | R197: =IF((L197-Q197)<M197,CEILING(LN((M197+Q197)/L197)/LN(1+O197),1),0) -> 0 | S197: 4 | T197: =MIN(R197,S197,Summary!$D$14) -> 0 | U197: =J197-(J197/(1+(Summary!$D$13))^(T197)) -> 0
B198: 195 | C198: HPVY13 | D198: New HPVY metalclad, and new HPVY15 | E198: Distribution | F198: 12.5 | G198: S | H198: 2024 | I198: 1236000 | J198: 1236000 | K198: 11.47 | L198: 11.47 | M198: 10 | N198: =IF(OR(G198="S",G198="D"),VLOOKUP(F198,'Component Capacity'!$C$8:$F$12,4,FALSE)*M198,IF(G198="W",VLOOKUP(F198,'Component Capacity'!$C$16:$F$20,4,FALSE),"OOPS")) -> 12.5 | O198: 0.1208 | P198: N/A | Q198: =IF((VLOOKUP($C198,'Project Customer Details'!$B$6:$Q$1095,16,FALSE))<((VLOOKUP($C198,'Project Customer Details'!$B$6:$Q$1095,4,FALSE)*$L198)),VLOOKUP($C198,'Project Customer Details'!$B$6:$Q$1095,16,FALSE), (VLOOKUP($C198,'Project Customer Details'!$B$6:$Q$1095,4,FALSE)*$L198)) -> 0.01118673477 | R198: 0 | S198: =IF(L198<N198,CEILING(LN((N198)/L198)/LN(1+O198),1),0) -> 1 | T198: =MIN(R198,S198,Summary!$D$14) -> 0 | U198: =J198-(J198/(1+(Summary!$D$13))^(T198)) -> 0
B199: 196 | C199: NMPA19 | D199: KCHR station meter and feeder reconfiguration to offload NMPA19/20 | E199: Distribution | F199: 12.5 | G199: S | H199: 2024 | I199: 456000 | J199: 456000 | K199: 11.22 | L199: 11.22 | M199: 10 | N199: =IF(OR(G199="S",G199="D"),VLOOKUP(F199,'Component Capacity'!$C$8:$F$12,4,FALSE)*M199,IF(G199="W",VLOOKUP(F199,'Component Capacity'!$C$16:$F$20,4,FALSE),"OOPS")) -> 12.5 | O199: 0.0829 | P199: N/A | Q199: =IF((VLOOKUP($C199,'Project Customer Details'!$B$6:$Q$1095,16,FALSE))<((VLOOKUP($C199,'Project Customer Details'!$B$6:$Q$1095,4,FALSE)*$L199)),VLOOKUP($C199,'Project Customer Details'!$B$6:$Q$1095,16,FALSE), (VLOOKUP($C199,'Project Customer Details'!$B$6:$Q$1095,4,FALSE)*$L199)) -> 0.04389835943 | R199: 0 | S199: 2 | T199: =MIN(R199,S199,Summary!$D$14) -> 0 | U199: =J199-(J199/(1+(Summary!$D$13))^(T199)) -> 0
B200: 197 | C200: LNSG14 | D200: LNSG metalclad, 015, 016 | E200: Distribution | F200: 12.5 | G200: S | H200: 2025 | I200: 2600000 | J200: 2600000 | K200: 10.5 | L200: 10.5 | M200: 10 | N200: =IF(OR(G200="S",G200="D"),VLOOKUP(F200,'Component Capacity'!$C$8:$F$12,4,FALSE)*M200,IF(G200="W",VLOOKUP(F200,'Component Capacity'!$C$16:$F$20,4,FALSE),"OOPS")) -> 12.5 | O200: 0.0504 | P200: N/A | Q200: =IF((VLOOKUP($C200,'Project Customer Details'!$B$6:$Q$1095,16,FALSE))<((VLOOKUP($C200,'Project Customer Details'!$B$6:$Q$1095,4,FALSE)*$L200)),VLOOKUP($C200,'Project Customer Details'!$B$6:$Q$1095,16,FALSE), (VLOOKUP($C200,'Project Customer Details'!$B$6:$Q$1095,4,FALSE)*$L200)) -> 0.00672112292 | R200: 0 | S200: 4 | T200: =MIN(R200,S200,Summary!$D$14) -> 0 | U200: =J200-(J200/(1+(Summary!$D$13))^(T200)) -> 0
B201: 198 | C201: LNDN18 | D201: LNDN018-NMPA020 Tie | E201: Distribution | F201: 12.5 | G201: S | H201: 2025 | I201: 140000 | J201: 140000 | K201: 11.57 | L201: 11.57 | M201: 10 | N201: =IF(OR(G201="S",G201="D"),VLOOKUP(F201,'Component Capacity'!$C$8:$F$12,4,FALSE)*M201,IF(G201="W",VLOOKUP(F201,'Component Capacity'!$C$16:$F$20,4,FALSE),"OOPS")) -> 12.5 | O201: 0.1404 | P201: N/A | Q201: =IF((VLOOKUP($C201,'Project Customer Details'!$B$6:$Q$1095,16,FALSE))<((VLOOKUP($C201,'Project Customer Details'!$B$6:$Q$1095,4,FALSE)*$L201)),VLOOKUP($C201,'Project Customer Details'!$B$6:$Q$1095,16,FALSE), (VLOOKUP($C201,'Project Customer Details'!$B$6:$Q$1095,4,FALSE)*$L201)) -> 0 | R201: 0 | S201: 1 | T201: =MIN(R201,S201,Summary!$D$14) -> 0 | U201: =J201-(J201/(1+(Summary!$D$13))^(T201)) -> 0
... 256 more rows

Sheet Project Customer Details
A1: =Summary!A1 -> Appendix 4.15
A2: =Summary!A2 -> Transmission and Distribution Avoided Capacity
B4: Project Details | F4: % Nameplate At Peak | K4: Customer Count by Rate Class | P4: Nameplate Contribution
B5: Asset | C5: Peak Season | D5: Peak Hour | E5: Possible Reduction (MW) | F5: Res | G5: Sm. Comm. | H5: Large Comm. | I5: Large Power | J5: Irrigation | K5: Res | L5: Sm. Comm. | M5: Large Comm. | N5: Large Power | O5: Irrigation | P5: Total Solar Nameplate (MW) | Q5: Solar Peak Contribution (MW)
B6: Cancelled | C6: S | D6: 22 | E6: 0 | F6: 0 | G6: 0 | H6: 0 | I6: 0 | J6: 0 | K6: 0 | L6: 0 | M6: 0 | N6: 0 | O6: 0 | P6: =Summary!$D$8*(K6*'Average Project Size'!$F$6+L6*'Average Project Size'!$F$7+M6*'Average Project Size'!$F$8+N6*'Average Project Size'!$F$10+O6*'Average Project Size'!$F$9)/1000 -> 0 | Q6: =Summary!$D$8*(K6*F6*'Average Project Size'!$F$6+L6*G6*'Average Project Size'!$F$7+M6*H6*'Average Project Size'!$F$8+N6*I6*'Average Project Size'!$F$10+O6*J6*'Average Project Size'!$F$9)/1000 -> 0
B7: TND | C7: S | D7: 22 | E7: 0 | F7: =IF($C7="S",VLOOKUP($D7,'DER Output'!$S$18:$W$41,2,FALSE),VLOOKUP($D7,'DER Output'!$S$18:$W$41,3,FALSE)) -> 0.0004766235309 | G7: =IF($C7="S",VLOOKUP($D7,'DER Output'!$S$18:$W$41,4,FALSE),VLOOKUP($D7,'DER Output'!$S$18:$W$41,5,FALSE)) -> 0.0004766235309 | H7: =IF($C7="S",VLOOKUP($D7,'DER Output'!$S$18:$W$41,4,FALSE),VLOOKUP($D7,'DER Output'!$S$18:$W$41,5,FALSE)) -> 0.0004766235309 | I7: =IF($C7="S",VLOOKUP($D7,'DER Output'!$S$18:$W$41,4,FALSE),VLOOKUP($D7,'DER Output'!$S$18:$W$41,5,FALSE)) -> 0.0004766235309 | J7: =IF($C7="S",VLOOKUP($D7,'DER Output'!$S$18:$W$41,4,FALSE),VLOOKUP($D7,'DER Output'!$S$18:$W$41,5,FALSE)) -> 0.0004766235309 | K7: 0 | L7: 0 | M7: 0 | N7: 0 | O7: 0 | P7: =Summary!$D$8*(K7*'Average Project Size'!$F$6+L7*'Average Project Size'!$F$7+M7*'Average Project Size'!$F$8+N7*'Average Project Size'!$F$10+O7*'Average Project Size'!$F$9)/1000 -> 0 | Q7: =Summary!$D$8*(K7*F7*'Average Project Size'!$F$6+L7*G7*'Average Project Size'!$F$7+M7*H7*'Average Project Size'!$F$8+N7*I7*'Average Project Size'!$F$10+O7*J7*'Average Project Size'!$F$9)/1000 -> 0
B8: ='Peak Identification'!B6 -> ADEL T-341 | C8: ='Peak Identification'!D6 -> S | D8: ='Peak Identification'!E6 -> 16 | E8: =VLOOKUP($D8,'DER Output'!$S$17:$X$41,6,FALSE) -> 0.2264402231 | F8: =IF($C8="S",VLOOKUP($D8,'DER Output'!$S$18:$W$41,2,FALSE),VLOOKUP($D8,'DER Output'!$S$18:$W$41,3,FALSE)) -> 0.4478140772 | G8: =IF($C8="S",VLOOKUP($D8,'DER Output'!$S$18:$W$41,4,FALSE),VLOOKUP($D8,'DER Output'!$S$18:$W$41,5,FALSE)) -> 0.4478140772 | H8: =IF($C8="S",VLOOKUP($D8,'DER Output'!$S$18:$W$41,4,FALSE),VLOOKUP($D8,'DER Output'!$S$18:$W$41,5,FALSE)) -> 0.4478140772 | I8: =IF($C8="S",VLOOKUP($D8,'DER Output'!$S$18:$W$41,4,FALSE),VLOOKUP($D8,'DER Output'!$S$18:$W$41,5,FALSE)) -> 0.4478140772 | J8: =IF($C8="S",VLOOKUP($D8,'DER Output'!$S$18:$W$41,4,FALSE),VLOOKUP($D8,'DER Output'!$S$18:$W$41,5,FALSE)) -> 0.4478140772 | K8: =IFERROR(IF(OR(C8="S",C8="D"),VLOOKUP(B8,'Seasonal Customer Count'!$B:$I,4,FALSE),IF(C8="W",VLOOKUP(B8,'Seasonal Customer Count'!$B:$P,12,FALSE),"Check")),0) -> 0 | L8: =IFERROR(IF(OR(C8="S",C8="D"),VLOOKUP(B8,'Seasonal Customer Count'!$B:$P,5,FALSE),IF(C8="W",VLOOKUP(B8,'Seasonal Customer Count'!$B:$P,13,FALSE),"Check")),0) -> 0 | M8: =IFERROR(IF(OR(C8="S",C8="D"),VLOOKUP(B8,'Seasonal Customer Count'!$B:$P,6,FALSE),IF(C8="W",VLOOKUP(B8,'Seasonal Customer Count'!$B:$P,14,FALSE),"Check")),0) -> 0 | N8: =IFERROR(IF(OR(C8="S",C8="D"),VLOOKUP(B8,'Seasonal Customer Count'!$B:$P,7,FALSE),IF(C8="W",VLOOKUP(B8,'Seasonal Customer Count'!$B:$P,15,FALSE),"Check")),0) -> 0 | O8: =IFERROR(IF(OR(C8="S",C8="D"),VLOOKUP(B8,'Seasonal Customer Count'!$B:$P,8,FALSE),IF(C8="W",VLOOKUP(B8,'Seasonal Customer Count'!$B:$P,16,FALSE),"Check")),0) -> 0 | P8: =Summary!$D$8*(K8*'Average Project Size'!$F$6+L8*'Average Project Size'!$F$7+M8*'Average Project Size'!$F$8+N8*'Average Project Size'!$F$10+O8*'Average Project Size'!$F$9)/1000 -> 0 | Q8: =Summary!$D$8*(K8*F8*'Average Project Size'!$F$6+L8*G8*'Average Project Size'!$F$7+M8*H8*'Average Project Size'!$F$8+N8*I8*'Average Project Size'!$F$10+O8*J8*'Average Project Size'!$F$9)/1000 -> 0
B9: ='Peak Identification'!B7 -> ADEL T-342 | C9: ='Peak Identification'!D7 -> S | D9: ='Peak Identification'!E7 -> 16 | E9: =VLOOKUP($D9,'DER Output'!$S$17:$X$41,6,FALSE) -> 0.2264402231 | F9: =IF($C9="S",VLOOKUP($D9,'DER Output'!$S$18:$W$41,2,FALSE),VLOOKUP($D9,'DER Output'!$S$18:$W$41,3,FALSE)) -> 0.4478140772 | G9: =IF($C9="S",VLOOKUP($D9,'DER Output'!$S$18:$W$41,4,FALSE),VLOOKUP($D9,'DER Output'!$S$18:$W$41,5,FALSE)) -> 0.4478140772 | H9: =IF($C9="S",VLOOKUP($D9,'DER Output'!$S$18:$W$41,4,FALSE),VLOOKUP($D9,'DER Output'!$S$18:$W$41,5,FALSE)) -> 0.4478140772 | I9: =IF($C9="S",VLOOKUP($D9,'DER Output'!$S$18:$W$41,4,FALSE),VLOOKUP($D9,'DER Output'!$S$18:$W$41,5,FALSE)) -> 0.4478140772 | J9: =IF($C9="S",VLOOKUP($D9,'DER Output'!$S$18:$W$41,4,FALSE),VLOOKUP($D9,'DER Output'!$S$18:$W$41,5,FALSE)) -> 0.4478140772 | K9: =IFERROR(IF(OR(C9="S",C9="D"),VLOOKUP(B9,'Seasonal Customer Count'!$B:$I,4,FALSE),IF(C9="W",VLOOKUP(B9,'Seasonal Customer Count'!$B:$P,12,FALSE),"Check")),0) -> 0 | L9: =IFERROR(IF(OR(C9="S",C9="D"),VLOOKUP(B9,'Seasonal Customer Count'!$B:$P,5,FALSE),IF(C9="W",VLOOKUP(B9,'Seasonal Customer Count'!$B:$P,13,FALSE),"Check")),0) -> 0 | M9: =IFERROR(IF(OR(C9="S",C9="D"),VLOOKUP(B9,'Seasonal Customer Count'!$B:$P,6,FALSE),IF(C9="W",VLOOKUP(B9,'Seasonal Customer Count'!$B:$P,14,FALSE),"Check")),0) -> 0 | N9: =IFERROR(IF(OR(C9="S",C9="D"),VLOOKUP(B9,'Seasonal Customer Count'!$B:$P,7,FALSE),IF(C9="W",VLOOKUP(B9,'Seasonal Customer Count'!$B:$P,15,FALSE),"Check")),0) -> 0 | O9: =IFERROR(IF(OR(C9="S",C9="D"),VLOOKUP(B9,'Seasonal Customer Count'!$B:$P,8,FALSE),IF(C9="W",VLOOKUP(B9,'Seasonal Customer Count'!$B:$P,16,FALSE),"Check")),0) -> 0 | P9: =Summary!$D$8*(K9*'Average Project Size'!$F$6+L9*'Average Project Size'!$F$7+M9*'Average Project Size'!$F$8+N9*'Average Project Size'!$F$10+O9*'Average Project Size'!$F$9)/1000 -> 0 | Q9: =Summary!$D$8*(K9*F9*'Average Project Size'!$F$6+L9*G9*'Average Project Size'!$F$7+M9*H9*'Average Project Size'!$F$8+N9*I9*'Average Project Size'!$F$10+O9*J9*'Average Project Size'!$F$9)/1000 -> 0
B10: ='Peak Identification'!B8 -> ADRN11 | C10: ='Peak Identification'!D8 -> S | D10: ='Peak Identification'!E8 -> 16 | E10: =VLOOKUP($D10,'DER Output'!$S$17:$X$41,6,FALSE) -> 0.2264402231 | F10: =IF($C10="S",VLOOKUP($D10,'DER Output'!$S$18:$W$41,2,FALSE),VLOOKUP($D10,'DER Output'!$S$18:$W$41,3,FALSE)) -> 0.4478140772 | G10: =IF($C10="S",VLOOKUP($D10,'DER Output'!$S$18:$W$41,4,FALSE),VLOOKUP($D10,'DER Output'!$S$18:$W$41,5,FALSE)) -> 0.4478140772 | H10: =IF($C10="S",VLOOKUP($D10,'DER Output'!$S$18:$W$41,4,FALSE),VLOOKUP($D10,'DER Output'!$S$18:$W$41,5,FALSE)) -> 0.4478140772 | I10: =IF($C10="S",VLOOKUP($D10,'DER Output'!$S$18:$W$41,4,FALSE),VLOOKUP($D10,'DER Output'!$S$18:$W$41,5,FALSE)) -> 0.4478140772 | J10: =IF($C10="S",VLOOKUP($D10,'DER Output'!$S$18:$W$41,4,FALSE),VLOOKUP($D10,'DER Output'!$S$18:$W$41,5,FALSE)) -> 0.4478140772 | K10: =IFERROR(IF(OR(C10="S",C10="D"),VLOOKUP(B10,'Seasonal Customer Count'!$B:$I,4,FALSE),IF(C10="W",VLOOKUP(B10,'Seasonal Customer Count'!$B:$P,12,FALSE),"Check")),0) -> 222 | L10: =IFERROR(IF(OR(C10="S",C10="D"),VLOOKUP(B10,'Seasonal Customer Count'!$B:$P,5,FALSE),IF(C10="W",VLOOKUP(B10,'Seasonal Customer Count'!$B:$P,13,FALSE),"Check")),0) -> 42 | M10: =IFERROR(IF(OR(C10="S",C10="D"),VLOOKUP(B10,'Seasonal Customer Count'!$B:$P,6,FALSE),IF(C10="W",VLOOKUP(B10,'Seasonal Customer Count'!$B:$P,14,FALSE),"Check")),0) -> 7 | N10: =IFERROR(IF(OR(C10="S",C10="D"),VLOOKUP(B10,'Seasonal Customer Count'!$B:$P,7,FALSE),IF(C10="W",VLOOKUP(B10,'Seasonal Customer Count'!$B:$P,15,FALSE),"Check")),0) -> 0 | O10: =IFERROR(IF(OR(C10="S",C10="D"),VLOOKUP(B10,'Seasonal Customer Count'!$B:$P,8,FALSE),IF(C10="W",VLOOKUP(B10,'Seasonal Customer Count'!$B:$P,16,FALSE),"Check")),0) -> 121 | P10: =Summary!$D$8*(K10*'Average Project Size'!$F$6+L10*'Average Project Size'!$F$7+M10*'Average Project Size'!$F$8+N10*'Average Project Size'!$F$10+O10*'Average Project Size'!$F$9)/1000 -> 0.09006785155 | Q10: =Summary!$D$8*(K10*F10*'Average Project Size'!$F$6+L10*G10*'Average Project Size'!$F$7+M10*H10*'Average Project Size'!$F$8+N10*I10*'Average Project Size'!$F$10+O10*J10*'Average Project Size'!$F$9)/1000 -> 0.04033365183
B11: ='Peak Identification'!B9 -> ADRN12 | C11: ='Peak Identification'!D9 -> W | D11: ='Peak Identification'!E9 -> 8 | E11: =VLOOKUP($D11,'DER Output'!$S$17:$X$41,6,FALSE) -> 0 | F11: =IF($C11="S",VLOOKUP($D11,'DER Output'!$S$18:$W$41,2,FALSE),VLOOKUP($D11,'DER Output'!$S$18:$W$41,3,FALSE)) -> 0.02435719405 | G11: =IF($C11="S",VLOOKUP($D11,'DER Output'!$S$18:$W$41,4,FALSE),VLOOKUP($D11,'DER Output'!$S$18:$W$41,5,FALSE)) -> 0.02435719405 | H11: =IF($C11="S",VLOOKUP($D11,'DER Output'!$S$18:$W$41,4,FALSE),VLOOKUP($D11,'DER Output'!$S$18:$W$41,5,FALSE)) -> 0.02435719405 | I11: =IF($C11="S",VLOOKUP($D11,'DER Output'!$S$18:$W$41,4,FALSE),VLOOKUP($D11,'DER Output'!$S$18:$W$41,5,FALSE)) -> 0.02435719405 | J11: =IF($C11="S",VLOOKUP($D11,'DER Output'!$S$18:$W$41,4,FALSE),VLOOKUP($D11,'DER Output'!$S$18:$W$41,5,FALSE)) -> 0.02435719405 | K11: =IFERROR(IF(OR(C11="S",C11="D"),VLOOKUP(B11,'Seasonal Customer Count'!$B:$I,4,FALSE),IF(C11="W",VLOOKUP(B11,'Seasonal Customer Count'!$B:$P,12,FALSE),"Check")),0) -> 103 | L11: =IFERROR(IF(OR(C11="S",C11="D"),VLOOKUP(B11,'Seasonal Customer Count'!$B:$P,5,FALSE),IF(C11="W",VLOOKUP(B11,'Seasonal Customer Count'!$B:$P,13,FALSE),"Check")),0) -> 100 | M11: =IFERROR(IF(OR(C11="S",C11="D"),VLOOKUP(B11,'Seasonal Customer Count'!$B:$P,6,FALSE),IF(C11="W",VLOOKUP(B11,'Seasonal Customer Count'!$B:$P,14,FALSE),"Check")),0) -> 0 | N11: =IFERROR(IF(OR(C11="S",C11="D"),VLOOKUP(B11,'Seasonal Customer Count'!$B:$P,7,FALSE),IF(C11="W",VLOOKUP(B11,'Seasonal Customer Count'!$B:$P,15,FALSE),"Check")),0) -> 217 | O11: =IFERROR(IF(OR(C11="S",C11="D"),VLOOKUP(B11,'Seasonal Customer Count'!$B:$P,8,FALSE),IF(C11="W",VLOOKUP(B11,'Seasonal Customer Count'!$B:$P,16,FALSE),"Check")),0) -> 0 | P11: =Summary!$D$8*(K11*'Average Project Size'!$F$6+L11*'Average Project Size'!$F$7+M11*'Average Project Size'!$F$8+N11*'Average Project Size'!$F$10+O11*'Average Project Size'!$F$9)/1000 -> 0.6484345527 | Q11: =Summary!$D$8*(K11*F11*'Average Project Size'!$F$6+L11*G11*'Average Project Size'!$F$7+M11*H11*'Average Project Size'!$F$8+N11*I11*'Average Project Size'!$F$10+O11*J11*'Average Project Size'!$F$9)/1000 -> 0.01579404623
B12: ='Peak Identification'!B10 -> ADRN13 | C12: ='Peak Identification'!D10 -> W | D12: ='Peak Identification'!E10 -> 6 | E12: =VLOOKUP($D12,'DER Output'!$S$17:$X$41,6,FALSE) -> 0 | F12: =IF($C12="S",VLOOKUP($D12,'DER Output'!$S$18:$W$41,2,FALSE),VLOOKUP($D12,'DER Output'!$S$18:$W$41,3,FALSE)) -> 0.0001846166559 | G12: =IF($C12="S",VLOOKUP($D12,'DER Output'!$S$18:$W$41,4,FALSE),VLOOKUP($D12,'DER Output'!$S$18:$W$41,5,FALSE)) -> 0.0001846166559 | H12: =IF($C12="S",VLOOKUP($D12,'DER Output'!$S$18:$W$41,4,FALSE),VLOOKUP($D12,'DER Output'!$S$18:$W$41,5,FALSE)) -> 0.0001846166559 | I12: =IF($C12="S",VLOOKUP($D12,'DER Output'!$S$18:$W$41,4,FALSE),VLOOKUP($D12,'DER Output'!$S$18:$W$41,5,FALSE)) -> 0.0001846166559 | J12: =IF($C12="S",VLOOKUP($D12,'DER Output'!$S$18:$W$41,4,FALSE),VLOOKUP($D12,'DER Output'!$S$18:$W$41,5,FALSE)) -> 0.0001846166559 | K12: =IFERROR(IF(OR(C12="S",C12="D"),VLOOKUP(B12,'Seasonal Customer Count'!$B:$I,4,FALSE),IF(C12="W",VLOOKUP(B12,'Seasonal Customer Count'!$B:$P,12,FALSE),"Check")),0) -> 43 | L12: =IFERROR(IF(OR(C12="S",C12="D"),VLOOKUP(B12,'Seasonal Customer Count'!$B:$P,5,FALSE),IF(C12="W",VLOOKUP(B12,'Seasonal Customer Count'!$B:$P,13,FALSE),"Check")),0) -> 52 | M12: =IFERROR(IF(OR(C12="S",C12="D"),VLOOKUP(B12,'Seasonal Customer Count'!$B:$P,6,FALSE),IF(C12="W",VLOOKUP(B12,'Seasonal Customer Count'!$B:$P,14,FALSE),"Check")),0) -> 0 | N12: =IFERROR(IF(OR(C12="S",C12="D"),VLOOKUP(B12,'Seasonal Customer Count'!$B:$P,7,FALSE),IF(C12="W",VLOOKUP(B12,'Seasonal Customer Count'!$B:$P,15,FALSE),"Check")),0) -> 162 | O12: =IFERROR(IF(OR(C12="S",C12="D"),VLOOKUP(B12,'Seasonal Customer Count'!$B:$P,8,FALSE),IF(C12="W",VLOOKUP(B12,'Seasonal Customer Count'!$B:$P,16,FALSE),"Check")),0) -> 0 | P12: =Summary!$D$8*(K12*'Average Project Size'!$F$6+L12*'Average Project Size'!$F$7+M12*'Average Project Size'!$F$8+N12*'Average Project Size'!$F$10+O12*'Average Project Size'!$F$9)/1000 -> 0.481075957 | Q12: =Summary!$D$8*(K12*F12*'Average Project Size'!$F$6+L12*G12*'Average Project Size'!$F$7+M12*H12*'Average Project Size'!$F$8+N12*I12*'Average Project Size'!$F$10+O12*J12*'Average Project Size'!$F$9)/1000 -> 8.881463439e-05
B13: ='Peak Identification'!B11 -> ADRN T-061 | C13: ='Peak Identification'!D11 -> W | D13: ='Peak Identification'!E11 -> 8 | E13: =VLOOKUP($D13,'DER Output'!$S$17:$X$41,6,FALSE) -> 0 | F13: =IF($C13="S",VLOOKUP($D13,'DER Output'!$S$18:$W$41,2,FALSE),VLOOKUP($D13,'DER Output'!$S$18:$W$41,3,FALSE)) -> 0.02435719405 | G13: =IF($C13="S",VLOOKUP($D13,'DER Output'!$S$18:$W$41,4,FALSE),VLOOKUP($D13,'DER Output'!$S$18:$W$41,5,FALSE)) -> 0.02435719405 | H13: =IF($C13="S",VLOOKUP($D13,'DER Output'!$S$18:$W$41,4,FALSE),VLOOKUP($D13,'DER Output'!$S$18:$W$41,5,FALSE)) -> 0.02435719405 | I13: =IF($C13="S",VLOOKUP($D13,'DER Output'!$S$18:$W$41,4,FALSE),VLOOKUP($D13,'DER Output'!$S$18:$W$41,5,FALSE)) -> 0.02435719405 | J13: =IF($C13="S",VLOOKUP($D13,'DER Output'!$S$18:$W$41,4,FALSE),VLOOKUP($D13,'DER Output'!$S$18:$W$41,5,FALSE)) -> 0.02435719405 | K13: =IFERROR(IF(OR(C13="S",C13="D"),VLOOKUP(B13,'Seasonal Customer Count'!$B:$I,4,FALSE),IF(C13="W",VLOOKUP(B13,'Seasonal Customer Count'!$B:$P,12,FALSE),"Check")),0) -> 79 | L13: =IFERROR(IF(OR(C13="S",C13="D"),VLOOKUP(B13,'Seasonal Customer Count'!$B:$P,5,FALSE),IF(C13="W",VLOOKUP(B13,'Seasonal Customer Count'!$B:$P,13,FALSE),"Check")),0) -> 59 | M13: =IFERROR(IF(OR(C13="S",C13="D"),VLOOKUP(B13,'Seasonal Customer Count'!$B:$P,6,FALSE),IF(C13="W",VLOOKUP(B13,'Seasonal Customer Count'!$B:$P,14,FALSE),"Check")),0) -> 4 | N13: =IFERROR(IF(OR(C13="S",C13="D"),VLOOKUP(B13,'Seasonal Customer Count'!$B:$P,7,FALSE),IF(C13="W",VLOOKUP(B13,'Seasonal Customer Count'!$B:$P,15,FALSE),"Check")),0) -> 45 | O13: =IFERROR(IF(OR(C13="S",C13="D"),VLOOKUP(B13,'Seasonal Customer Count'!$B:$P,8,FALSE),IF(C13="W",VLOOKUP(B13,'Seasonal Customer Count'!$B:$P,16,FALSE),"Check")),0) -> 0 | P13: =Summary!$D$8*(K13*'Average Project Size'!$F$6+L13*'Average Project Size'!$F$7+M13*'Average Project Size'!$F$8+N13*'Average Project Size'!$F$10+O13*'Average Project Size'!$F$9)/1000 -> 0.1402534311 | Q13: =Summary!$D$8*(K13*F13*'Average Project Size'!$F$6+L13*G13*'Average Project Size'!$F$7+M13*H13*'Average Project Size'!$F$8+N13*I13*'Average Project Size'!$F$10+O13*J13*'Average Project Size'!$F$9)/1000 -> 0.003416180038
B14: ='Peak Identification'!B12 -> AFTS T-131 | C14: ='Peak Identification'!D12 -> S | D14: ='Peak Identification'!E12 -> 13 | E14: =VLOOKUP($D14,'DER Output'!$S$17:$X$41,6,FALSE) -> 0.3680214036 | F14: =IF($C14="S",VLOOKUP($D14,'DER Output'!$S$18:$W$41,2,FALSE),VLOOKUP($D14,'DER Output'!$S$18:$W$41,3,FALSE)) -> 0.6899560156 | G14: =IF($C14="S",VLOOKUP($D14,'DER Output'!$S$18:$W$41,4,FALSE),VLOOKUP($D14,'DER Output'!$S$18:$W$41,5,FALSE)) -> 0.6899560156 | H14: =IF($C14="S",VLOOKUP($D14,'DER Output'!$S$18:$W$41,4,FALSE),VLOOKUP($D14,'DER Output'!$S$18:$W$41,5,FALSE)) -> 0.6899560156 | I14: =IF($C14="S",VLOOKUP($D14,'DER Output'!$S$18:$W$41,4,FALSE),VLOOKUP($D14,'DER Output'!$S$18:$W$41,5,FALSE)) -> 0.6899560156 | J14: =IF($C14="S",VLOOKUP($D14,'DER Output'!$S$18:$W$41,4,FALSE),VLOOKUP($D14,'DER Output'!$S$18:$W$41,5,FALSE)) -> 0.6899560156 | K14: =IFERROR(IF(OR(C14="S",C14="D"),VLOOKUP(B14,'Seasonal Customer Count'!$B:$I,4,FALSE),IF(C14="W",VLOOKUP(B14,'Seasonal Customer Count'!$B:$P,12,FALSE),"Check")),0) -> 0 | L14: =IFERROR(IF(OR(C14="S",C14="D"),VLOOKUP(B14,'Seasonal Customer Count'!$B:$P,5,FALSE),IF(C14="W",VLOOKUP(B14,'Seasonal Customer Count'!$B:$P,13,FALSE),"Check")),0) -> 0 | M14: =IFERROR(IF(OR(C14="S",C14="D"),VLOOKUP(B14,'Seasonal Customer Count'!$B:$P,6,FALSE),IF(C14="W",VLOOKUP(B14,'Seasonal Customer Count'!$B:$P,14,FALSE),"Check")),0) -> 0 | N14: =IFERROR(IF(OR(C14="S",C14="D"),VLOOKUP(B14,'Seasonal Customer Count'!$B:$P,7,FALSE),IF(C14="W",VLOOKUP(B14,'Seasonal Customer Count'!$B:$P,15,FALSE),"Check")),0) -> 0 | O14: =IFERROR(IF(OR(C14="S",C14="D"),VLOOKUP(B14,'Seasonal Customer Count'!$B:$P,8,FALSE),IF(C14="W",VLOOKUP(B14,'Seasonal Customer Count'!$B:$P,16,FALSE),"Check")),0) -> 0 | P14: =Summary!$D$8*(K14*'Average Project Size'!$F$6+L14*'Average Project Size'!$F$7+M14*'Average Project Size'!$F$8+N14*'Average Project Size'!$F$10+O14*'Average Project Size'!$F$9)/1000 -> 0 | Q14: =Summary!$D$8*(K14*F14*'Average Project Size'!$F$6+L14*G14*'Average Project Size'!$F$7+M14*H14*'Average Project Size'!$F$8+N14*I14*'Average Project Size'!$F$10+O14*J14*'Average Project Size'!$F$9)/1000 -> 0
B15: ='Peak Identification'!B13 -> AIKN11 | C15: ='Peak Identification'!D13 -> S | D15: ='Peak Identification'!E13 -> 21 | E15: =VLOOKUP($D15,'DER Output'!$S$17:$X$41,6,FALSE) -> 0 | F15: =IF($C15="S",VLOOKUP($D15,'DER Output'!$S$18:$W$41,2,FALSE),VLOOKUP($D15,'DER Output'!$S$18:$W$41,3,FALSE)) -> 0.0009506822843 | G15: =IF($C15="S",VLOOKUP($D15,'DER Output'!$S$18:$W$41,4,FALSE),VLOOKUP($D15,'DER Output'!$S$18:$W$41,5,FALSE)) -> 0.0009506822843 | H15: =IF($C15="S",VLOOKUP($D15,'DER Output'!$S$18:$W$41,4,FALSE),VLOOKUP($D15,'DER Output'!$S$18:$W$41,5,FALSE)) -> 0.0009506822843 | I15: =IF($C15="S",VLOOKUP($D15,'DER Output'!$S$18:$W$41,4,FALSE),VLOOKUP($D15,'DER Output'!$S$18:$W$41,5,FALSE)) -> 0.0009506822843 | J15: =IF($C15="S",VLOOKUP($D15,'DER Output'!$S$18:$W$41,4,FALSE),VLOOKUP($D15,'DER Output'!$S$18:$W$41,5,FALSE)) -> 0.0009506822843 | K15: =IFERROR(IF(OR(C15="S",C15="D"),VLOOKUP(B15,'Seasonal Customer Count'!$B:$I,4,FALSE),IF(C15="W",VLOOKUP(B15,'Seasonal Customer Count'!$B:$P,12,FALSE),"Check")),0) -> 865 | L15: =IFERROR(IF(OR(C15="S",C15="D"),VLOOKUP(B15,'Seasonal Customer Count'!$B:$P,5,FALSE),IF(C15="W",VLOOKUP(B15,'Seasonal Customer Count'!$B:$P,13,FALSE),"Check")),0) -> 40 | M15: =IFERROR(IF(OR(C15="S",C15="D"),VLOOKUP(B15,'Seasonal Customer Count'!$B:$P,6,FALSE),IF(C15="W",VLOOKUP(B15,'Seasonal Customer Count'!$B:$P,14,FALSE),"Check")),0) -> 23 | N15: =IFERROR(IF(OR(C15="S",C15="D"),VLOOKUP(B15,'Seasonal Customer Count'!$B:$P,7,FALSE),IF(C15="W",VLOOKUP(B15,'Seasonal Customer Count'!$B:$P,15,FALSE),"Check")),0) -> 0 | O15: =IFERROR(IF(OR(C15="S",C15="D"),VLOOKUP(B15,'Seasonal Customer Count'!$B:$P,8,FALSE),IF(C15="W",VLOOKUP(B15,'Seasonal Customer Count'!$B:$P,16,FALSE),"Check")),0) -> 101 | P15: =Summary!$D$8*(K15*'Average Project Size'!$F$6+L15*'Average Project Size'!$F$7+M15*'Average Project Size'!$F$8+N15*'Average Project Size'!$F$10+O15*'Average Project Size'!$F$9)/1000 -> 0.105509869 | Q15: =Summary!$D$8*(K15*F15*'Average Project Size'!$F$6+L15*G15*'Average Project Size'!$F$7+M15*H15*'Average Project Size'!$F$8+N15*I15*'Average Project Size'!$F$10+O15*J15*'Average Project Size'!$F$9)/1000 -> 0.0001003063632
B16: ='Peak Identification'!B14 -> AIKN12 | C16: ='Peak Identification'!D14 -> S | D16: ='Peak Identification'!E14 -> 16 | E16: =VLOOKUP($D16,'DER Output'!$S$17:$X$41,6,FALSE) -> 0.2264402231 | F16: =IF($C16="S",VLOOKUP($D16,'DER Output'!$S$18:$W$41,2,FALSE),VLOOKUP($D16,'DER Output'!$S$18:$W$41,3,FALSE)) -> 0.4478140772 | G16: =IF($C16="S",VLOOKUP($D16,'DER Output'!$S$18:$W$41,4,FALSE),VLOOKUP($D16,'DER Output'!$S$18:$W$41,5,FALSE)) -> 0.4478140772 | H16: =IF($C16="S",VLOOKUP($D16,'DER Output'!$S$18:$W$41,4,FALSE),VLOOKUP($D16,'DER Output'!$S$18:$W$41,5,FALSE)) -> 0.4478140772 | I16: =IF($C16="S",VLOOKUP($D16,'DER Output'!$S$18:$W$41,4,FALSE),VLOOKUP($D16,'DER Output'!$S$18:$W$41,5,FALSE)) -> 0.4478140772 | J16: =IF($C16="S",VLOOKUP($D16,'DER Output'!$S$18:$W$41,4,FALSE),VLOOKUP($D16,'DER Output'!$S$18:$W$41,5,FALSE)) -> 0.4478140772 | K16: =IFERROR(IF(OR(C16="S",C16="D"),VLOOKUP(B16,'Seasonal Customer Count'!$B:$I,4,FALSE),IF(C16="W",VLOOKUP(B16,'Seasonal Customer Count'!$B:$P,12,FALSE),"Check")),0) -> 1267 | L16: =IFERROR(IF(OR(C16="S",C16="D"),VLOOKUP(B16,'Seasonal Customer Count'!$B:$P,5,FALSE),IF(C16="W",VLOOKUP(B16,'Seasonal Customer Count'!$B:$P,13,FALSE),"Check")),0) -> 92 | M16: =IFERROR(IF(OR(C16="S",C16="D"),VLOOKUP(B16,'Seasonal Customer Count'!$B:$P,6,FALSE),IF(C16="W",VLOOKUP(B16,'Seasonal Customer Count'!$B:$P,14,FALSE),"Check")),0) -> 79 | N16: =IFERROR(IF(OR(C16="S",C16="D"),VLOOKUP(B16,'Seasonal Customer Count'!$B:$P,7,FALSE),IF(C16="W",VLOOKUP(B16,'Seasonal Customer Count'!$B:$P,15,FALSE),"Check")),0) -> 1 | O16: =IFERROR(IF(OR(C16="S",C16="D"),VLOOKUP(B16,'Seasonal Customer Count'!$B:$P,8,FALSE),IF(C16="W",VLOOKUP(B16,'Seasonal Customer Count'!$B:$P,16,FALSE),"Check")),0) -> 123 | P16: =Summary!$D$8*(K16*'Average Project Size'!$F$6+L16*'Average Project Size'!$F$7+M16*'Average Project Size'!$F$8+N16*'Average Project Size'!$F$10+O16*'Average Project Size'!$F$9)/1000 -> 0.151861523 | Q16: =Summary!$D$8*(K16*F16*'Average Project Size'!$F$6+L16*G16*'Average Project Size'!$F$7+M16*H16*'Average Project Size'!$F$8+N16*I16*'Average Project Size'!$F$10+O16*J16*'Average Project Size'!$F$9)/1000 -> 0.06800572779
B17: ='Peak Identification'!B15 -> AIKN13 | C17: ='Peak Identification'!D15 -> D | D17: ='Peak Identification'!E15 -> 14 | E17: =VLOOKUP($D17,'DER Output'!$S$17:$X$41,6,FALSE) -> 0.266943495 | F17: =IF($C17="S",VLOOKUP($D17,'DER Output'!$S$18:$W$41,2,FALSE),VLOOKUP($D17,'DER Output'!$S$18:$W$41,3,FALSE)) -> 0.2784611489 | G17: =IF($C17="S",VLOOKUP($D17,'DER Output'!$S$18:$W$41,4,FALSE),VLOOKUP($D17,'DER Output'!$S$18:$W$41,5,FALSE)) -> 0.2784611489 | H17: =IF($C17="S",VLOOKUP($D17,'DER Output'!$S$18:$W$41,4,FALSE),VLOOKUP($D17,'DER Output'!$S$18:$W$41,5,FALSE)) -> 0.2784611489 | I17: =IF($C17="S",VLOOKUP($D17,'DER Output'!$S$18:$W$41,4,FALSE),VLOOKUP($D17,'DER Output'!$S$18:$W$41,5,FALSE)) -> 0.2784611489 | J17: =IF($C17="S",VLOOKUP($D17,'DER Output'!$S$18:$W$41,4,FALSE),VLOOKUP($D17,'DER Output'!$S$18:$W$41,5,FALSE)) -> 0.2784611489 | K17: =IFERROR(IF(OR(C17="S",C17="D"),VLOOKUP(B17,'Seasonal Customer Count'!$B:$I,4,FALSE),IF(C17="W",VLOOKUP(B17,'Seasonal Customer Count'!$B:$P,12,FALSE),"Check")),0) -> 89 | L17: =IFERROR(IF(OR(C17="S",C17="D"),VLOOKUP(B17,'Seasonal Customer Count'!$B:$P,5,FALSE),IF(C17="W",VLOOKUP(B17,'Seasonal Customer Count'!$B:$P,13,FALSE),"Check")),0) -> 22 | M17: =IFERROR(IF(OR(C17="S",C17="D"),VLOOKUP(B17,'Seasonal Customer Count'!$B:$P,6,FALSE),IF(C17="W",VLOOKUP(B17,'Seasonal Customer Count'!$B:$P,14,FALSE),"Check")),0) -> 45 | N17: =IFERROR(IF(OR(C17="S",C17="D"),VLOOKUP(B17,'Seasonal Customer Count'!$B:$P,7,FALSE),IF(C17="W",VLOOKUP(B17,'Seasonal Customer Count'!$B:$P,15,FALSE),"Check")),0) -> 1 | O17: =IFERROR(IF(OR(C17="S",C17="D"),VLOOKUP(B17,'Seasonal Customer Count'!$B:$P,8,FALSE),IF(C17="W",VLOOKUP(B17,'Seasonal Customer Count'!$B:$P,16,FALSE),"Check")),0) -> 7 | P17: =Summary!$D$8*(K17*'Average Project Size'!$F$6+L17*'Average Project Size'!$F$7+M17*'Average Project Size'!$F$8+N17*'Average Project Size'!$F$10+O17*'Average Project Size'!$F$9)/1000 -> 0.02027807835 | Q17: =Summary!$D$8*(K17*F17*'Average Project Size'!$F$6+L17*G17*'Average Project Size'!$F$7+M17*H17*'Average Project Size'!$F$8+N17*I17*'Average Project Size'!$F$10+O17*J17*'Average Project Size'!$F$9)/1000 -> 0.005646656994
B18: ='Peak Identification'!B16 -> AIKN T-051 | C18: ='Peak Identification'!D16 -> S | D18: ='Peak Identification'!E16 -> 16 | E18: =VLOOKUP($D18,'DER Output'!$S$17:$X$41,6,FALSE) -> 0.2264402231 | F18: =IF($C18="S",VLOOKUP($D18,'DER Output'!$S$18:$W$41,2,FALSE),VLOOKUP($D18,'DER Output'!$S$18:$W$41,3,FALSE)) -> 0.4478140772 | G18: =IF($C18="S",VLOOKUP($D18,'DER Output'!$S$18:$W$41,4,FALSE),VLOOKUP($D18,'DER Output'!$S$18:$W$41,5,FALSE)) -> 0.4478140772 | H18: =IF($C18="S",VLOOKUP($D18,'DER Output'!$S$18:$W$41,4,FALSE),VLOOKUP($D18,'DER Output'!$S$18:$W$41,5,FALSE)) -> 0.4478140772 | I18: =IF($C18="S",VLOOKUP($D18,'DER Output'!$S$18:$W$41,4,FALSE),VLOOKUP($D18,'DER Output'!$S$18:$W$41,5,FALSE)) -> 0.4478140772 | J18: =IF($C18="S",VLOOKUP($D18,'DER Output'!$S$18:$W$41,4,FALSE),VLOOKUP($D18,'DER Output'!$S$18:$W$41,5,FALSE)) -> 0.4478140772 | K18: =IFERROR(IF(OR(C18="S",C18="D"),VLOOKUP(B18,'Seasonal Customer Count'!$B:$I,4,FALSE),IF(C18="W",VLOOKUP(B18,'Seasonal Customer Count'!$B:$P,12,FALSE),"Check")),0) -> 1267 | L18: =IFERROR(IF(OR(C18="S",C18="D"),VLOOKUP(B18,'Seasonal Customer Count'!$B:$P,5,FALSE),IF(C18="W",VLOOKUP(B18,'Seasonal Customer Count'!$B:$P,13,FALSE),"Check")),0) -> 92 | M18: =IFERROR(IF(OR(C18="S",C18="D"),VLOOKUP(B18,'Seasonal Customer Count'!$B:$P,6,FALSE),IF(C18="W",VLOOKUP(B18,'Seasonal Customer Count'!$B:$P,14,FALSE),"Check")),0) -> 79 | N18: =IFERROR(IF(OR(C18="S",C18="D"),VLOOKUP(B18,'Seasonal Customer Count'!$B:$P,7,FALSE),IF(C18="W",VLOOKUP(B18,'Seasonal Customer Count'!$B:$P,15,FALSE),"Check")),0) -> 1 | O18: =IFERROR(IF(OR(C18="S",C18="D"),VLOOKUP(B18,'Seasonal Customer Count'!$B:$P,8,FALSE),IF(C18="W",VLOOKUP(B18,'Seasonal Customer Count'!$B:$P,16,FALSE),"Check")),0) -> 123 | P18: =Summary!$D$8*(K18*'Average Project Size'!$F$6+L18*'Average Project Size'!$F$7+M18*'Average Project Size'!$F$8+N18*'Average Project Size'!$F$10+O18*'Average Project Size'!$F$9)/1000 -> 0.151861523 | Q18: =Summary!$D$8*(K18*F18*'Average Project Size'!$F$6+L18*G18*'Average Project Size'!$F$7+M18*H18*'Average Project Size'!$F$8+N18*I18*'Average Project Size'!$F$10+O18*J18*'Average Project Size'!$F$9)/1000 -> 0.06800572779
B19: ='Peak Identification'!B17 -> AIKN T-052 | C19: ='Peak Identification'!D17 -> S | D19: ='Peak Identification'!E17 -> 14 | E19: =VLOOKUP($D19,'DER Output'!$S$17:$X$41,6,FALSE) -> 0.266943495 | F19: =IF($C19="S",VLOOKUP($D19,'DER Output'!$S$18:$W$41,2,FALSE),VLOOKUP($D19,'DER Output'!$S$18:$W$41,3,FALSE)) -> 0.6542659397 | G19: =IF($C19="S",VLOOKUP($D19,'DER Output'!$S$18:$W$41,4,FALSE),VLOOKUP($D19,'DER Output'!$S$18:$W$41,5,FALSE)) -> 0.6542659397 | H19: =IF($C19="S",VLOOKUP($D19,'DER Output'!$S$18:$W$41,4,FALSE),VLOOKUP($D19,'DER Output'!$S$18:$W$41,5,FALSE)) -> 0.6542659397 | I19: =IF($C19="S",VLOOKUP($D19,'DER Output'!$S$18:$W$41,4,FALSE),VLOOKUP($D19,'DER Output'!$S$18:$W$41,5,FALSE)) -> 0.6542659397 | J19: =IF($C19="S",VLOOKUP($D19,'DER Output'!$S$18:$W$41,4,FALSE),VLOOKUP($D19,'DER Output'!$S$18:$W$41,5,FALSE)) -> 0.6542659397 | K19: =IFERROR(IF(OR(C19="S",C19="D"),VLOOKUP(B19,'Seasonal Customer Count'!$B:$I,4,FALSE),IF(C19="W",VLOOKUP(B19,'Seasonal Customer Count'!$B:$P,12,FALSE),"Check")),0) -> 954 | L19: =IFERROR(IF(OR(C19="S",C19="D"),VLOOKUP(B19,'Seasonal Customer Count'!$B:$P,5,FALSE),IF(C19="W",VLOOKUP(B19,'Seasonal Customer Count'!$B:$P,13,FALSE),"Check")),0) -> 62 | M19: =IFERROR(IF(OR(C19="S",C19="D"),VLOOKUP(B19,'Seasonal Customer Count'!$B:$P,6,FALSE),IF(C19="W",VLOOKUP(B19,'Seasonal Customer Count'!$B:$P,14,FALSE),"Check")),0) -> 68 | N19: =IFERROR(IF(OR(C19="S",C19="D"),VLOOKUP(B19,'Seasonal Customer Count'!$B:$P,7,FALSE),IF(C19="W",VLOOKUP(B19,'Seasonal Customer Count'!$B:$P,15,FALSE),"Check")),0) -> 1 | O19: =IFERROR(IF(OR(C19="S",C19="D"),VLOOKUP(B19,'Seasonal Customer Count'!$B:$P,8,FALSE),IF(C19="W",VLOOKUP(B19,'Seasonal Customer Count'!$B:$P,16,FALSE),"Check")),0) -> 108 | P19: =Summary!$D$8*(K19*'Average Project Size'!$F$6+L19*'Average Project Size'!$F$7+M19*'Average Project Size'!$F$8+N19*'Average Project Size'!$F$10+O19*'Average Project Size'!$F$9)/1000 -> 0.1257879473 | Q19: =Summary!$D$8*(K19*F19*'Average Project Size'!$F$6+L19*G19*'Average Project Size'!$F$7+M19*H19*'Average Project Size'!$F$8+N19*I19*'Average Project Size'!$F$10+O19*J19*'Average Project Size'!$F$9)/1000 -> 0.08229876955
B20: ='Peak Identification'!B18 -> ALMA11 | C20: ='Peak Identification'!D18 -> W | D20: ='Peak Identification'!E18 -> 17 | E20: =VLOOKUP($D20,'DER Output'!$S$17:$X$41,6,FALSE) -> 0.1917483871 | F20: =IF($C20="S",VLOOKUP($D20,'DER Output'!$S$18:$W$41,2,FALSE),VLOOKUP($D20,'DER Output'!$S$18:$W$41,3,FALSE)) -> 0.01579998088 | G20: =IF($C20="S",VLOOKUP($D20,'DER Output'!$S$18:$W$41,4,FALSE),VLOOKUP($D20,'DER Output'!$S$18:$W$41,5,FALSE)) -> 0.01579998088 | H20: =IF($C20="S",VLOOKUP($D20,'DER Output'!$S$18:$W$41,4,FALSE),VLOOKUP($D20,'DER Output'!$S$18:$W$41,5,FALSE)) -> 0.01579998088 | I20: =IF($C20="S",VLOOKUP($D20,'DER Output'!$S$18:$W$41,4,FALSE),VLOOKUP($D20,'DER Output'!$S$18:$W$41,5,FALSE)) -> 0.01579998088 | J20: =IF($C20="S",VLOOKUP($D20,'DER Output'!$S$18:$W$41,4,FALSE),VLOOKUP($D20,'DER Output'!$S$18:$W$41,5,FALSE)) -> 0.01579998088 | K20: =IFERROR(IF(OR(C20="S",C20="D"),VLOOKUP(B20,'Seasonal Customer Count'!$B:$I,4,FALSE),IF(C20="W",VLOOKUP(B20,'Seasonal Customer Count'!$B:$P,12,FALSE),"Check")),0) -> 0 | L20: =IFERROR(IF(OR(C20="S",C20="D"),VLOOKUP(B20,'Seasonal Customer Count'!$B:$P,5,FALSE),IF(C20="W",VLOOKUP(B20,'Seasonal Customer Count'!$B:$P,13,FALSE),"Check")),0) -> 0 | M20: =IFERROR(IF(OR(C20="S",C20="D"),VLOOKUP(B20,'Seasonal Customer Count'!$B:$P,6,FALSE),IF(C20="W",VLOOKUP(B20,'Seasonal Customer Count'!$B:$P,14,FALSE),"Check")),0) -> 0 | N20: =IFERROR(IF(OR(C20="S",C20="D"),VLOOKUP(B20,'Seasonal Customer Count'!$B:$P,7,FALSE),IF(C20="W",VLOOKUP(B20,'Seasonal Customer Count'!$B:$P,15,FALSE),"Check")),0) -> 0 | O20: =IFERROR(IF(OR(C20="S",C20="D"),VLOOKUP(B20,'Seasonal Customer Count'!$B:$P,8,FALSE),IF(C20="W",VLOOKUP(B20,'Seasonal Customer Count'!$B:$P,16,FALSE),"Check")),0) -> 0 | P20: =Summary!$D$8*(K20*'Average Project Size'!$F$6+L20*'Average Project Size'!$F$7+M20*'Average Project Size'!$F$8+N20*'Average Project Size'!$F$10+O20*'Average Project Size'!$F$9)/1000 -> 0 | Q20: =Summary!$D$8*(K20*F20*'Average Project Size'!$F$6+L20*G20*'Average Project Size'!$F$7+M20*H20*'Average Project Size'!$F$8+N20*I20*'Average Project Size'!$F$10+O20*J20*'Average Project Size'!$F$9)/1000 -> 0
B21: ='Peak Identification'!B19 -> ALMA12 | C21: ='Peak Identification'!D19 -> W | D21: ='Peak Identification'!E19 -> 18 | E21: =VLOOKUP($D21,'DER Output'!$S$17:$X$41,6,FALSE) -> 0.1603239802 | F21: =IF($C21="S",VLOOKUP($D21,'DER Output'!$S$18:$W$41,2,FALSE),VLOOKUP($D21,'DER Output'!$S$18:$W$41,3,FALSE)) -> 0.0005535976984 | G21: =IF($C21="S",VLOOKUP($D21,'DER Output'!$S$18:$W$41,4,FALSE),VLOOKUP($D21,'DER Output'!$S$18:$W$41,5,FALSE)) -> 0.0005535976984 | H21: =IF($C21="S",VLOOKUP($D21,'DER Output'!$S$18:$W$41,4,FALSE),VLOOKUP($D21,'DER Output'!$S$18:$W$41,5,FALSE)) -> 0.0005535976984 | I21: =IF($C21="S",VLOOKUP($D21,'DER Output'!$S$18:$W$41,4,FALSE),VLOOKUP($D21,'DER Output'!$S$18:$W$41,5,FALSE)) -> 0.0005535976984 | J21: =IF($C21="S",VLOOKUP($D21,'DER Output'!$S$18:$W$41,4,FALSE),VLOOKUP($D21,'DER Output'!$S$18:$W$41,5,FALSE)) -> 0.0005535976984 | K21: =IFERROR(IF(OR(C21="S",C21="D"),VLOOKUP(B21,'Seasonal Customer Count'!$B:$I,4,FALSE),IF(C21="W",VLOOKUP(B21,'Seasonal Customer Count'!$B:$P,12,FALSE),"Check")),0) -> 197 | L21: =IFERROR(IF(OR(C21="S",C21="D"),VLOOKUP(B21,'Seasonal Customer Count'!$B:$P,5,FALSE),IF(C21="W",VLOOKUP(B21,'Seasonal Customer Count'!$B:$P,13,FALSE),"Check")),0) -> 270 | M21: =IFERROR(IF(OR(C21="S",C21="D"),VLOOKUP(B21,'Seasonal Customer Count'!$B:$P,6,FALSE),IF(C21="W",VLOOKUP(B21,'Seasonal Customer Count'!$B:$P,14,FALSE),"Check")),0) -> 9 | N21: =IFERROR(IF(OR(C21="S",C21="D"),VLOOKUP(B21,'Seasonal Customer Count'!$B:$P,7,FALSE),IF(C21="W",VLOOKUP(B21,'Seasonal Customer Count'!$B:$P,15,FALSE),"Check")),0) -> 44 | O21: =IFERROR(IF(OR(C21="S",C21="D"),VLOOKUP(B21,'Seasonal Customer Count'!$B:$P,8,FALSE),IF(C21="W",VLOOKUP(B21,'Seasonal Customer Count'!$B:$P,16,FALSE),"Check")),0) -> 0 | P21: =Summary!$D$8*(K21*'Average Project Size'!$F$6+L21*'Average Project Size'!$F$7+M21*'Average Project Size'!$F$8+N21*'Average Project Size'!$F$10+O21*'Average Project Size'!$F$9)/1000 -> 0.1583442001 | Q21: =Summary!$D$8*(K21*F21*'Average Project Size'!$F$6+L21*G21*'Average Project Size'!$F$7+M21*H21*'Average Project Size'!$F$8+N21*I21*'Average Project Size'!$F$10+O21*J21*'Average Project Size'!$F$9)/1000 -> 8.765898471e-05
B22: ='Peak Identification'!B20 -> ALMA13 | C22: ='Peak Identification'!D20 -> S | D22: ='Peak Identification'!E20 -> 17 | E22: =VLOOKUP($D22,'DER Output'!$S$17:$X$41,6,FALSE) -> 0.1917483871 | F22: =IF($C22="S",VLOOKUP($D22,'DER Output'!$S$18:$W$41,2,FALSE),VLOOKUP($D22,'DER Output'!$S$18:$W$41,3,FALSE)) -> 0.3030039978 | G22: =IF($C22="S",VLOOKUP($D22,'DER Output'!$S$18:$W$41,4,FALSE),VLOOKUP($D22,'DER Output'!$S$18:$W$41,5,FALSE)) -> 0.3030039978 | H22: =IF($C22="S",VLOOKUP($D22,'DER Output'!$S$18:$W$41,4,FALSE),VLOOKUP($D22,'DER Output'!$S$18:$W$41,5,FALSE)) -> 0.3030039978 | I22: =IF($C22="S",VLOOKUP($D22,'DER Output'!$S$18:$W$41,4,FALSE),VLOOKUP($D22,'DER Output'!$S$18:$W$41,5,FALSE)) -> 0.3030039978 | J22: =IF($C22="S",VLOOKUP($D22,'DER Output'!$S$18:$W$41,4,FALSE),VLOOKUP($D22,'DER Output'!$S$18:$W$41,5,FALSE)) -> 0.3030039978 | K22: =IFERROR(IF(OR(C22="S",C22="D"),VLOOKUP(B22,'Seasonal Customer Count'!$B:$I,4,FALSE),IF(C22="W",VLOOKUP(B22,'Seasonal Customer Count'!$B:$P,12,FALSE),"Check")),0) -> 758 | L22: =IFERROR(IF(OR(C22="S",C22="D"),VLOOKUP(B22,'Seasonal Customer Count'!$B:$P,5,FALSE),IF(C22="W",VLOOKUP(B22,'Seasonal Customer Count'!$B:$P,13,FALSE),"Check")),0) -> 35 | M22: =IFERROR(IF(OR(C22="S",C22="D"),VLOOKUP(B22,'Seasonal Customer Count'!$B:$P,6,FALSE),IF(C22="W",VLOOKUP(B22,'Seasonal Customer Count'!$B:$P,14,FALSE),"Check")),0) -> 103 | N22: =IFERROR(IF(OR(C22="S",C22="D"),VLOOKUP(B22,'Seasonal Customer Count'!$B:$P,7,FALSE),IF(C22="W",VLOOKUP(B22,'Seasonal Customer Count'!$B:$P,15,FALSE),"Check")),0) -> 0 | O22: =IFERROR(IF(OR(C22="S",C22="D"),VLOOKUP(B22,'Seasonal Customer Count'!$B:$P,8,FALSE),IF(C22="W",VLOOKUP(B22,'Seasonal Customer Count'!$B:$P,16,FALSE),"Check")),0) -> 0 | P22: =Summary!$D$8*(K22*'Average Project Size'!$F$6+L22*'Average Project Size'!$F$7+M22*'Average Project Size'!$F$8+N22*'Average Project Size'!$F$10+O22*'Average Project Size'!$F$9)/1000 -> 0.05040986455 | Q22: =Summary!$D$8*(K22*F22*'Average Project Size'!$F$6+L22*G22*'Average Project Size'!$F$7+M22*H22*'Average Project Size'!$F$8+N22*I22*'Average Project Size'!$F$10+O22*J22*'Average Project Size'!$F$9)/1000 -> 0.01527439049
B23: ='Peak Identification'!B21 -> ALMA14 | C23: ='Peak Identification'!D21 -> S | D23: ='Peak Identification'!E21 -> 15 | E23: =VLOOKUP($D23,'DER Output'!$S$17:$X$41,6,FALSE) -> 0.2467532468 | F23: =IF($C23="S",VLOOKUP($D23,'DER Output'!$S$18:$W$41,2,FALSE),VLOOKUP($D23,'DER Output'!$S$18:$W$41,3,FALSE)) -> 0.5749852941 | G23: =IF($C23="S",VLOOKUP($D23,'DER Output'!$S$18:$W$41,4,FALSE),VLOOKUP($D23,'DER Output'!$S$18:$W$41,5,FALSE)) -> 0.5749852941 | H23: =IF($C23="S",VLOOKUP($D23,'DER Output'!$S$18:$W$41,4,FALSE),VLOOKUP($D23,'DER Output'!$S$18:$W$41,5,FALSE)) -> 0.5749852941 | I23: =IF($C23="S",VLOOKUP($D23,'DER Output'!$S$18:$W$41,4,FALSE),VLOOKUP($D23,'DER Output'!$S$18:$W$41,5,FALSE)) -> 0.5749852941 | J23: =IF($C23="S",VLOOKUP($D23,'DER Output'!$S$18:$W$41,4,FALSE),VLOOKUP($D23,'DER Output'!$S$18:$W$41,5,FALSE)) -> 0.5749852941 | K23: =IFERROR(IF(OR(C23="S",C23="D"),VLOOKUP(B23,'Seasonal Customer Count'!$B:$I,4,FALSE),IF(C23="W",VLOOKUP(B23,'Seasonal Customer Count'!$B:$P,12,FALSE),"Check")),0) -> 770 | L23: =IFERROR(IF(OR(C23="S",C23="D"),VLOOKUP(B23,'Seasonal Customer Count'!$B:$P,5,FALSE),IF(C23="W",VLOOKUP(B23,'Seasonal Customer Count'!$B:$P,13,FALSE),"Check")),0) -> 26 | M23: =IFERROR(IF(OR(C23="S",C23="D"),VLOOKUP(B23,'Seasonal Customer Count'!$B:$P,6,FALSE),IF(C23="W",VLOOKUP(B23,'Seasonal Customer Count'!$B:$P,14,FALSE),"Check")),0) -> 57 | N23: =IFERROR(IF(OR(C23="S",C23="D"),VLOOKUP(B23,'Seasonal Customer Count'!$B:$P,7,FALSE),IF(C23="W",VLOOKUP(B23,'Seasonal Customer Count'!$B:$P,15,FALSE),"Check")),0) -> 0 | O23: =IFERROR(IF(OR(C23="S",C23="D"),VLOOKUP(B23,'Seasonal Customer Count'!$B:$P,8,FALSE),IF(C23="W",VLOOKUP(B23,'Seasonal Customer Count'!$B:$P,16,FALSE),"Check")),0) -> 0 | P23: =Summary!$D$8*(K23*'Average Project Size'!$F$6+L23*'Average Project Size'!$F$7+M23*'Average Project Size'!$F$8+N23*'Average Project Size'!$F$10+O23*'Average Project Size'!$F$9)/1000 -> 0.04231551027 | Q23: =Summary!$D$8*(K23*F23*'Average Project Size'!$F$6+L23*G23*'Average Project Size'!$F$7+M23*H23*'Average Project Size'!$F$8+N23*I23*'Average Project Size'!$F$10+O23*J23*'Average Project Size'!$F$9)/1000 -> 0.02433079612
B24: ='Peak Identification'!B22 -> ALMA15 | C24: ='Peak Identification'!D22 -> D | D24: ='Peak Identification'!E22 -> 16 | E24: =VLOOKUP($D24,'DER Output'!$S$17:$X$41,6,FALSE) -> 0.2264402231 | F24: =IF($C24="S",VLOOKUP($D24,'DER Output'!$S$18:$W$41,2,FALSE),VLOOKUP($D24,'DER Output'!$S$18:$W$41,3,FALSE)) -> 0.08156730767 | G24: =IF($C24="S",VLOOKUP($D24,'DER Output'!$S$18:$W$41,4,FALSE),VLOOKUP($D24,'DER Output'!$S$18:$W$41,5,FALSE)) -> 0.08156730767 | H24: =IF($C24="S",VLOOKUP($D24,'DER Output'!$S$18:$W$41,4,FALSE),VLOOKUP($D24,'DER Output'!$S$18:$W$41,5,FALSE)) -> 0.08156730767 | I24: =IF($C24="S",VLOOKUP($D24,'DER Output'!$S$18:$W$41,4,FALSE),VLOOKUP($D24,'DER Output'!$S$18:$W$41,5,FALSE)) -> 0.08156730767 | J24: =IF($C24="S",VLOOKUP($D24,'DER Output'!$S$18:$W$41,4,FALSE),VLOOKUP($D24,'DER Output'!$S$18:$W$41,5,FALSE)) -> 0.08156730767 | K24: =IFERROR(IF(OR(C24="S",C24="D"),VLOOKUP(B24,'Seasonal Customer Count'!$B:$I,4,FALSE),IF(C24="W",VLOOKUP(B24,'Seasonal Customer Count'!$B:$P,12,FALSE),"Check")),0) -> 487 | L24: =IFERROR(IF(OR(C24="S",C24="D"),VLOOKUP(B24,'Seasonal Customer Count'!$B:$P,5,FALSE),IF(C24="W",VLOOKUP(B24,'Seasonal Customer Count'!$B:$P,13,FALSE),"Check")),0) -> 23 | M24: =IFERROR(IF(OR(C24="S",C24="D"),VLOOKUP(B24,'Seasonal Customer Count'!$B:$P,6,FALSE),IF(C24="W",VLOOKUP(B24,'Seasonal Customer Count'!$B:$P,14,FALSE),"Check")),0) -> 38 | N24: =IFERROR(IF(OR(C24="S",C24="D"),VLOOKUP(B24,'Seasonal Customer Count'!$B:$P,7,FALSE),IF(C24="W",VLOOKUP(B24,'Seasonal Customer Count'!$B:$P,15,FALSE),"Check")),0) -> 0 | O24: =IFERROR(IF(OR(C24="S",C24="D"),VLOOKUP(B24,'Seasonal Customer Count'!$B:$P,8,FALSE),IF(C24="W",VLOOKUP(B24,'Seasonal Customer Count'!$B:$P,16,FALSE),"Check")),0) -> 0 | P24: =Summary!$D$8*(K24*'Average Project Size'!$F$6+L24*'Average Project Size'!$F$7+M24*'Average Project Size'!$F$8+N24*'Average Project Size'!$F$10+O24*'Average Project Size'!$F$9)/1000 -> 0.02757929107 | Q24: =Summary!$D$8*(K24*F24*'Average Project Size'!$F$6+L24*G24*'Average Project Size'!$F$7+M24*H24*'Average Project Size'!$F$8+N24*I24*'Average Project Size'!$F$10+O24*J24*'Average Project Size'!$F$9)/1000 -> 0.00224956852
B25: ='Peak Identification'!B23 -> ALMA16 | C25: ='Peak Identification'!D23 -> S | D25: ='Peak Identification'!E23 -> 14 | E25: =VLOOKUP($D25,'DER Output'!$S$17:$X$41,6,FALSE) -> 0.266943495 | F25: =IF($C25="S",VLOOKUP($D25,'DER Output'!$S$18:$W$41,2,FALSE),VLOOKUP($D25,'DER Output'!$S$18:$W$41,3,FALSE)) -> 0.6542659397 | G25: =IF($C25="S",VLOOKUP($D25,'DER Output'!$S$18:$W$41,4,FALSE),VLOOKUP($D25,'DER Output'!$S$18:$W$41,5,FALSE)) -> 0.6542659397 | H25: =IF($C25="S",VLOOKUP($D25,'DER Output'!$S$18:$W$41,4,FALSE),VLOOKUP($D25,'DER Output'!$S$18:$W$41,5,FALSE)) -> 0.6542659397 | I25: =IF($C25="S",VLOOKUP($D25,'DER Output'!$S$18:$W$41,4,FALSE),VLOOKUP($D25,'DER Output'!$S$18:$W$41,5,FALSE)) -> 0.6542659397 | J25: =IF($C25="S",VLOOKUP($D25,'DER Output'!$S$18:$W$41,4,FALSE),VLOOKUP($D25,'DER Output'!$S$18:$W$41,5,FALSE)) -> 0.6542659397 | K25: =IFERROR(IF(OR(C25="S",C25="D"),VLOOKUP(B25,'Seasonal Customer Count'!$B:$I,4,FALSE),IF(C25="W",VLOOKUP(B25,'Seasonal Customer Count'!$B:$P,12,FALSE),"Check")),0) -> 449 | L25: =IFERROR(IF(OR(C25="S",C25="D"),VLOOKUP(B25,'Seasonal Customer Count'!$B:$P,5,FALSE),IF(C25="W",VLOOKUP(B25,'Seasonal Customer Count'!$B:$P,13,FALSE),"Check")),0) -> 24 | M25: =IFERROR(IF(OR(C25="S",C25="D"),VLOOKUP(B25,'Seasonal Customer Count'!$B:$P,6,FALSE),IF(C25="W",VLOOKUP(B25,'Seasonal Customer Count'!$B:$P,14,FALSE),"Check")),0) -> 47 | N25: =IFERROR(IF(OR(C25="S",C25="D"),VLOOKUP(B25,'Seasonal Customer Count'!$B:$P,7,FALSE),IF(C25="W",VLOOKUP(B25,'Seasonal Customer Count'!$B:$P,15,FALSE),"Check")),0) -> 1 | O25: =IFERROR(IF(OR(C25="S",C25="D"),VLOOKUP(B25,'Seasonal Customer Count'!$B:$P,8,FALSE),IF(C25="W",VLOOKUP(B25,'Seasonal Customer Count'!$B:$P,16,FALSE),"Check")),0) -> 0 | P25: =Summary!$D$8*(K25*'Average Project Size'!$F$6+L25*'Average Project Size'!$F$7+M25*'Average Project Size'!$F$8+N25*'Average Project Size'!$F$10+O25*'Average Project Size'!$F$9)/1000 -> 0.03062559224 | Q25: =Summary!$D$8*(K25*F25*'Average Project Size'!$F$6+L25*G25*'Average Project Size'!$F$7+M25*H25*'Average Project Size'!$F$8+N25*I25*'Average Project Size'!$F$10+O25*J25*'Average Project Size'!$F$9)/1000 -> 0.02003728189
B26: ='Peak Identification'!B24 -> ALMA17 | C26: ='Peak Identification'!D24 -> S | D26: ='Peak Identification'!E24 -> 14 | E26: =VLOOKUP($D26,'DER Output'!$S$17:$X$41,6,FALSE) -> 0.266943495 | F26: =IF($C26="S",VLOOKUP($D26,'DER Output'!$S$18:$W$41,2,FALSE),VLOOKUP($D26,'DER Output'!$S$18:$W$41,3,FALSE)) -> 0.6542659397 | G26: =IF($C26="S",VLOOKUP($D26,'DER Output'!$S$18:$W$41,4,FALSE),VLOOKUP($D26,'DER Output'!$S$18:$W$41,5,FALSE)) -> 0.6542659397 | H26: =IF($C26="S",VLOOKUP($D26,'DER Output'!$S$18:$W$41,4,FALSE),VLOOKUP($D26,'DER Output'!$S$18:$W$41,5,FALSE)) -> 0.6542659397 | I26: =IF($C26="S",VLOOKUP($D26,'DER Output'!$S$18:$W$41,4,FALSE),VLOOKUP($D26,'DER Output'!$S$18:$W$41,5,FALSE)) -> 0.6542659397 | J26: =IF($C26="S",VLOOKUP($D26,'DER Output'!$S$18:$W$41,4,FALSE),VLOOKUP($D26,'DER Output'!$S$18:$W$41,5,FALSE)) -> 0.6542659397 | K26: =IFERROR(IF(OR(C26="S",C26="D"),VLOOKUP(B26,'Seasonal Customer Count'!$B:$I,4,FALSE),IF(C26="W",VLOOKUP(B26,'Seasonal Customer Count'!$B:$P,12,FALSE),"Check")),0) -> 185 | L26: =IFERROR(IF(OR(C26="S",C26="D"),VLOOKUP(B26,'Seasonal Customer Count'!$B:$P,5,FALSE),IF(C26="W",VLOOKUP(B26,'Seasonal Customer Count'!$B:$P,13,FALSE),"Check")),0) -> 45 | M26: =IFERROR(IF(OR(C26="S",C26="D"),VLOOKUP(B26,'Seasonal Customer Count'!$B:$P,6,FALSE),IF(C26="W",VLOOKUP(B26,'Seasonal Customer Count'!$B:$P,14,FALSE),"Check")),0) -> 69 | N26: =IFERROR(IF(OR(C26="S",C26="D"),VLOOKUP(B26,'Seasonal Customer Count'!$B:$P,7,FALSE),IF(C26="W",VLOOKUP(B26,'Seasonal Customer Count'!$B:$P,15,FALSE),"Check")),0) -> 2 | O26: =IFERROR(IF(OR(C26="S",C26="D"),VLOOKUP(B26,'Seasonal Customer Count'!$B:$P,8,FALSE),IF(C26="W",VLOOKUP(B26,'Seasonal Customer Count'!$B:$P,16,FALSE),"Check")),0) -> 0 | P26: =Summary!$D$8*(K26*'Average Project Size'!$F$6+L26*'Average Project Size'!$F$7+M26*'Average Project Size'!$F$8+N26*'Average Project Size'!$F$10+O26*'Average Project Size'!$F$9)/1000 -> 0.02839169598 | Q26: =Summary!$D$8*(K26*F26*'Average Project Size'!$F$6+L26*G26*'Average Project Size'!$F$7+M26*H26*'Average Project Size'!$F$8+N26*I26*'Average Project Size'!$F$10+O26*J26*'Average Project Size'!$F$9)/1000 -> 0.01857571965
B27: ='Peak Identification'!B25 -> ALMA18 | C27: ='Peak Identification'!D25 -> D | D27: ='Peak Identification'!E25 -> 16 | E27: =VLOOKUP($D27,'DER Output'!$S$17:$X$41,6,FALSE) -> 0.2264402231 | F27: =IF($C27="S",VLOOKUP($D27,'DER Output'!$S$18:$W$41,2,FALSE),VLOOKUP($D27,'DER Output'!$S$18:$W$41,3,FALSE)) -> 0.08156730767 | G27: =IF($C27="S",VLOOKUP($D27,'DER Output'!$S$18:$W$41,4,FALSE),VLOOKUP($D27,'DER Output'!$S$18:$W$41,5,FALSE)) -> 0.08156730767 | H27: =IF($C27="S",VLOOKUP($D27,'DER Output'!$S$18:$W$41,4,FALSE),VLOOKUP($D27,'DER Output'!$S$18:$W$41,5,FALSE)) -> 0.08156730767 | I27: =IF($C27="S",VLOOKUP($D27,'DER Output'!$S$18:$W$41,4,FALSE),VLOOKUP($D27,'DER Output'!$S$18:$W$41,5,FALSE)) -> 0.08156730767 | J27: =IF($C27="S",VLOOKUP($D27,'DER Output'!$S$18:$W$41,4,FALSE),VLOOKUP($D27,'DER Output'!$S$18:$W$41,5,FALSE)) -> 0.08156730767 | K27: =IFERROR(IF(OR(C27="S",C27="D"),VLOOKUP(B27,'Seasonal Customer Count'!$B:$I,4,FALSE),IF(C27="W",VLOOKUP(B27,'Seasonal Customer Count'!$B:$P,12,FALSE),"Check")),0) -> 783 | L27: =IFERROR(IF(OR(C27="S",C27="D"),VLOOKUP(B27,'Seasonal Customer Count'!$B:$P,5,FALSE),IF(C27="W",VLOOKUP(B27,'Seasonal Customer Count'!$B:$P,13,FALSE),"Check")),0) -> 77 | M27: =IFERROR(IF(OR(C27="S",C27="D"),VLOOKUP(B27,'Seasonal Customer Count'!$B:$P,6,FALSE),IF(C27="W",VLOOKUP(B27,'Seasonal Customer Count'!$B:$P,14,FALSE),"Check")),0) -> 142 | N27: =IFERROR(IF(OR(C27="S",C27="D"),VLOOKUP(B27,'Seasonal Customer Count'!$B:$P,7,FALSE),IF(C27="W",VLOOKUP(B27,'Seasonal Customer Count'!$B:$P,15,FALSE),"Check")),0) -> 1 | O27: =IFERROR(IF(OR(C27="S",C27="D"),VLOOKUP(B27,'Seasonal Customer Count'!$B:$P,8,FALSE),IF(C27="W",VLOOKUP(B27,'Seasonal Customer Count'!$B:$P,16,FALSE),"Check")),0) -> 0 | P27: =Summary!$D$8*(K27*'Average Project Size'!$F$6+L27*'Average Project Size'!$F$7+M27*'Average Project Size'!$F$8+N27*'Average Project Size'!$F$10+O27*'Average Project Size'!$F$9)/1000 -> 0.06412694898 | Q27: =Summary!$D$8*(K27*F27*'Average Project Size'!$F$6+L27*G27*'Average Project Size'!$F$7+M27*H27*'Average Project Size'!$F$8+N27*I27*'Average Project Size'!$F$10+O27*J27*'Average Project Size'!$F$9)/1000 -> 0.005230662578
B28: ='Peak Identification'!B26 -> ALMA T-131 | C28: ='Peak Identification'!D26 -> S | D28: ='Peak Identification'!E26 -> 17 | E28: =VLOOKUP($D28,'DER Output'!$S$17:$X$41,6,FALSE) -> 0.1917483871 | F28: =IF($C28="S",VLOOKUP($D28,'DER Output'!$S$18:$W$41,2,FALSE),VLOOKUP($D28,'DER Output'!$S$18:$W$41,3,FALSE)) -> 0.3030039978 | G28: =IF($C28="S",VLOOKUP($D28,'DER Output'!$S$18:$W$41,4,FALSE),VLOOKUP($D28,'DER Output'!$S$18:$W$41,5,FALSE)) -> 0.3030039978 | H28: =IF($C28="S",VLOOKUP($D28,'DER Output'!$S$18:$W$41,4,FALSE),VLOOKUP($D28,'DER Output'!$S$18:$W$41,5,FALSE)) -> 0.3030039978 | I28: =IF($C28="S",VLOOKUP($D28,'DER Output'!$S$18:$W$41,4,FALSE),VLOOKUP($D28,'DER Output'!$S$18:$W$41,5,FALSE)) -> 0.3030039978 | J28: =IF($C28="S",VLOOKUP($D28,'DER Output'!$S$18:$W$41,4,FALSE),VLOOKUP($D28,'DER Output'!$S$18:$W$41,5,FALSE)) -> 0.3030039978 | K28: =IFERROR(IF(OR(C28="S",C28="D"),VLOOKUP(B28,'Seasonal Customer Count'!$B:$I,4,FALSE),IF(C28="W",VLOOKUP(B28,'Seasonal Customer Count'!$B:$P,12,FALSE),"Check")),0) -> 2817 | L28: =IFERROR(IF(OR(C28="S",C28="D"),VLOOKUP(B28,'Seasonal Customer Count'!$B:$P,5,FALSE),IF(C28="W",VLOOKUP(B28,'Seasonal Customer Count'!$B:$P,13,FALSE),"Check")),0) -> 107 | M28: =IFERROR(IF(OR(C28="S",C28="D"),VLOOKUP(B28,'Seasonal Customer Count'!$B:$P,6,FALSE),IF(C28="W",VLOOKUP(B28,'Seasonal Customer Count'!$B:$P,14,FALSE),"Check")),0) -> 248 | N28: =IFERROR(IF(OR(C28="S",C28="D"),VLOOKUP(B28,'Seasonal Customer Count'!$B:$P,7,FALSE),IF(C28="W",VLOOKUP(B28,'Seasonal Customer Count'!$B:$P,15,FALSE),"Check")),0) -> 0 | O28: =IFERROR(IF(OR(C28="S",C28="D"),VLOOKUP(B28,'Seasonal Customer Count'!$B:$P,8,FALSE),IF(C28="W",VLOOKUP(B28,'Seasonal Customer Count'!$B:$P,16,FALSE),"Check")),0) -> 0 | P28: =Summary!$D$8*(K28*'Average Project Size'!$F$6+L28*'Average Project Size'!$F$7+M28*'Average Project Size'!$F$8+N28*'Average Project Size'!$F$10+O28*'Average Project Size'!$F$9)/1000 -> 0.1624681734 | Q28: =Summary!$D$8*(K28*F28*'Average Project Size'!$F$6+L28*G28*'Average Project Size'!$F$7+M28*H28*'Average Project Size'!$F$8+N28*I28*'Average Project Size'!$F$10+O28*J28*'Average Project Size'!$F$9)/1000 -> 0.04922850606
B29: ='Peak Identification'!B27 -> ALMA T-132 | C29: ='Peak Identification'!D27 -> S | D29: ='Peak Identification'!E27 -> 16 | E29: =VLOOKUP($D29,'DER Output'!$S$17:$X$41,6,FALSE) -> 0.2264402231 | F29: =IF($C29="S",VLOOKUP($D29,'DER Output'!$S$18:$W$41,2,FALSE),VLOOKUP($D29,'DER Output'!$S$18:$W$41,3,FALSE)) -> 0.4478140772 | G29: =IF($C29="S",VLOOKUP($D29,'DER Output'!$S$18:$W$41,4,FALSE),VLOOKUP($D29,'DER Output'!$S$18:$W$41,5,FALSE)) -> 0.4478140772 | H29: =IF($C29="S",VLOOKUP($D29,'DER Output'!$S$18:$W$41,4,FALSE),VLOOKUP($D29,'DER Output'!$S$18:$W$41,5,FALSE)) -> 0.4478140772 | I29: =IF($C29="S",VLOOKUP($D29,'DER Output'!$S$18:$W$41,4,FALSE),VLOOKUP($D29,'DER Output'!$S$18:$W$41,5,FALSE)) -> 0.4478140772 | J29: =IF($C29="S",VLOOKUP($D29,'DER Output'!$S$18:$W$41,4,FALSE),VLOOKUP($D29,'DER Output'!$S$18:$W$41,5,FALSE)) -> 0.4478140772 | K29: =IFERROR(IF(OR(C29="S",C29="D"),VLOOKUP(B29,'Seasonal Customer Count'!$B:$I,4,FALSE),IF(C29="W",VLOOKUP(B29,'Seasonal Customer Count'!$B:$P,12,FALSE),"Check")),0) -> 1904 | L29: =IFERROR(IF(OR(C29="S",C29="D"),VLOOKUP(B29,'Seasonal Customer Count'!$B:$P,5,FALSE),IF(C29="W",VLOOKUP(B29,'Seasonal Customer Count'!$B:$P,13,FALSE),"Check")),0) -> 169 | M29: =IFERROR(IF(OR(C29="S",C29="D"),VLOOKUP(B29,'Seasonal Customer Count'!$B:$P,6,FALSE),IF(C29="W",VLOOKUP(B29,'Seasonal Customer Count'!$B:$P,14,FALSE),"Check")),0) -> 296 | N29: =IFERROR(IF(OR(C29="S",C29="D"),VLOOKUP(B29,'Seasonal Customer Count'!$B:$P,7,FALSE),IF(C29="W",VLOOKUP(B29,'Seasonal Customer Count'!$B:$P,15,FALSE),"Check")),0) -> 4 | O29: =IFERROR(IF(OR(C29="S",C29="D"),VLOOKUP(B29,'Seasonal Customer Count'!$B:$P,8,FALSE),IF(C29="W",VLOOKUP(B29,'Seasonal Customer Count'!$B:$P,16,FALSE),"Check")),0) -> 0 | P29: =Summary!$D$8*(K29*'Average Project Size'!$F$6+L29*'Average Project Size'!$F$7+M29*'Average Project Size'!$F$8+N29*'Average Project Size'!$F$10+O29*'Average Project Size'!$F$9)/1000 -> 0.1507235283 | Q29: =Summary!$D$8*(K29*F29*'Average Project Size'!$F$6+L29*G29*'Average Project Size'!$F$7+M29*H29*'Average Project Size'!$F$8+N29*I29*'Average Project Size'!$F$10+O29*J29*'Average Project Size'!$F$9)/1000 -> 0.06749611773
B30: ='Peak Identification'!B28 -> AMDM11 | C30: ='Peak Identification'!D28 -> S | D30: ='Peak Identification'!E28 -> 14 | E30: =VLOOKUP($D30,'DER Output'!$S$17:$X$41,6,FALSE) -> 0.266943495 | F30: =IF($C30="S",VLOOKUP($D30,'DER Output'!$S$18:$W$41,2,FALSE),VLOOKUP($D30,'DER Output'!$S$18:$W$41,3,FALSE)) -> 0.6542659397 | G30: =IF($C30="S",VLOOKUP($D30,'DER Output'!$S$18:$W$41,4,FALSE),VLOOKUP($D30,'DER Output'!$S$18:$W$41,5,FALSE)) -> 0.6542659397 | H30: =IF($C30="S",VLOOKUP($D30,'DER Output'!$S$18:$W$41,4,FALSE),VLOOKUP($D30,'DER Output'!$S$18:$W$41,5,FALSE)) -> 0.6542659397 | I30: =IF($C30="S",VLOOKUP($D30,'DER Output'!$S$18:$W$41,4,FALSE),VLOOKUP($D30,'DER Output'!$S$18:$W$41,5,FALSE)) -> 0.6542659397 | J30: =IF($C30="S",VLOOKUP($D30,'DER Output'!$S$18:$W$41,4,FALSE),VLOOKUP($D30,'DER Output'!$S$18:$W$41,5,FALSE)) -> 0.6542659397 | K30: =IFERROR(IF(OR(C30="S",C30="D"),VLOOKUP(B30,'Seasonal Customer Count'!$B:$I,4,FALSE),IF(C30="W",VLOOKUP(B30,'Seasonal Customer Count'!$B:$P,12,FALSE),"Check")),0) -> 252 | L30: =IFERROR(IF(OR(C30="S",C30="D"),VLOOKUP(B30,'Seasonal Customer Count'!$B:$P,5,FALSE),IF(C30="W",VLOOKUP(B30,'Seasonal Customer Count'!$B:$P,13,FALSE),"Check")),0) -> 36 | M30: =IFERROR(IF(OR(C30="S",C30="D"),VLOOKUP(B30,'Seasonal Customer Count'!$B:$P,6,FALSE),IF(C30="W",VLOOKUP(B30,'Seasonal Customer Count'!$B:$P,14,FALSE),"Check")),0) -> 50 | N30: =IFERROR(IF(OR(C30="S",C30="D"),VLOOKUP(B30,'Seasonal Customer Count'!$B:$P,7,FALSE),IF(C30="W",VLOOKUP(B30,'Seasonal Customer Count'!$B:$P,15,FALSE),"Check")),0) -> 0 | O30: =IFERROR(IF(OR(C30="S",C30="D"),VLOOKUP(B30,'Seasonal Customer Count'!$B:$P,8,FALSE),IF(C30="W",VLOOKUP(B30,'Seasonal Customer Count'!$B:$P,16,FALSE),"Check")),0) -> 100 | P30: =Summary!$D$8*(K30*'Average Project Size'!$F$6+L30*'Average Project Size'!$F$7+M30*'Average Project Size'!$F$8+N30*'Average Project Size'!$F$10+O30*'Average Project Size'!$F$9)/1000 -> 0.08485884029 | Q30: =Summary!$D$8*(K30*F30*'Average Project Size'!$F$6+L30*G30*'Average Project Size'!$F$7+M30*H30*'Average Project Size'!$F$8+N30*I30*'Average Project Size'!$F$10+O30*J30*'Average Project Size'!$F$9)/1000 -> 0.05552024888
B31: ='Peak Identification'!B29 -> AMDM T-051 | C31: ='Peak Identification'!D29 -> S | D31: ='Peak Identification'!E29 -> 14 | E31: =VLOOKUP($D31,'DER Output'!$S$17:$X$41,6,FALSE) -> 0.266943495 | F31: =IF($C31="S",VLOOKUP($D31,'DER Output'!$S$18:$W$41,2,FALSE),VLOOKUP($D31,'DER Output'!$S$18:$W$41,3,FALSE)) -> 0.6542659397 | G31: =IF($C31="S",VLOOKUP($D31,'DER Output'!$S$18:$W$41,4,FALSE),VLOOKUP($D31,'DER Output'!$S$18:$W$41,5,FALSE)) -> 0.6542659397 | H31: =IF($C31="S",VLOOKUP($D31,'DER Output'!$S$18:$W$41,4,FALSE),VLOOKUP($D31,'DER Output'!$S$18:$W$41,5,FALSE)) -> 0.6542659397 | I31: =IF($C31="S",VLOOKUP($D31,'DER Output'!$S$18:$W$41,4,FALSE),VLOOKUP($D31,'DER Output'!$S$18:$W$41,5,FALSE)) -> 0.6542659397 | J31: =IF($C31="S",VLOOKUP($D31,'DER Output'!$S$18:$W$41,4,FALSE),VLOOKUP($D31,'DER Output'!$S$18:$W$41,5,FALSE)) -> 0.6542659397 | K31: =IFERROR(IF(OR(C31="S",C31="D"),VLOOKUP(B31,'Seasonal Customer Count'!$B:$I,4,FALSE),IF(C31="W",VLOOKUP(B31,'Seasonal Customer Count'!$B:$P,12,FALSE),"Check")),0) -> 252 | L31: =IFERROR(IF(OR(C31="S",C31="D"),VLOOKUP(B31,'Seasonal Customer Count'!$B:$P,5,FALSE),IF(C31="W",VLOOKUP(B31,'Seasonal Customer Count'!$B:$P,13,FALSE),"Check")),0) -> 36 | M31: =IFERROR(IF(OR(C31="S",C31="D"),VLOOKUP(B31,'Seasonal Customer Count'!$B:$P,6,FALSE),IF(C31="W",VLOOKUP(B31,'Seasonal Customer Count'!$B:$P,14,FALSE),"Check")),0) -> 50 | N31: =IFERROR(IF(OR(C31="S",C31="D"),VLOOKUP(B31,'Seasonal Customer Count'!$B:$P,7,FALSE),IF(C31="W",VLOOKUP(B31,'Seasonal Customer Count'!$B:$P,15,FALSE),"Check")),0) -> 0 | O31: =IFERROR(IF(OR(C31="S",C31="D"),VLOOKUP(B31,'Seasonal Customer Count'!$B:$P,8,FALSE),IF(C31="W",VLOOKUP(B31,'Seasonal Customer Count'!$B:$P,16,FALSE),"Check")),0) -> 100 | P31: =Summary!$D$8*(K31*'Average Project Size'!$F$6+L31*'Average Project Size'!$F$7+M31*'Average Project Size'!$F$8+N31*'Average Project Size'!$F$10+O31*'Average Project Size'!$F$9)/1000 -> 0.08485884029 | Q31: =Summary!$D$8*(K31*F31*'Average Project Size'!$F$6+L31*G31*'Average Project Size'!$F$7+M31*H31*'Average Project Size'!$F$8+N31*I31*'Average Project Size'!$F$10+O31*J31*'Average Project Size'!$F$9)/1000 -> 0.05552024888
B32: ='Peak Identification'!B30 -> AMPO11 | C32: ='Peak Identification'!D30 -> S | D32: ='Peak Identification'!E30 -> 14 | E32: =VLOOKUP($D32,'DER Output'!$S$17:$X$41,6,FALSE) -> 0.266943495 | F32: =IF($C32="S",VLOOKUP($D32,'DER Output'!$S$18:$W$41,2,FALSE),VLOOKUP($D32,'DER Output'!$S$18:$W$41,3,FALSE)) -> 0.6542659397 | G32: =IF($C32="S",VLOOKUP($D32,'DER Output'!$S$18:$W$41,4,FALSE),VLOOKUP($D32,'DER Output'!$S$18:$W$41,5,FALSE)) -> 0.6542659397 | H32: =IF($C32="S",VLOOKUP($D32,'DER Output'!$S$18:$W$41,4,FALSE),VLOOKUP($D32,'DER Output'!$S$18:$W$41,5,FALSE)) -> 0.6542659397 | I32: =IF($C32="S",VLOOKUP($D32,'DER Output'!$S$18:$W$41,4,FALSE),VLOOKUP($D32,'DER Output'!$S$18:$W$41,5,FALSE)) -> 0.6542659397 | J32: =IF($C32="S",VLOOKUP($D32,'DER Output'!$S$18:$W$41,4,FALSE),VLOOKUP($D32,'DER Output'!$S$18:$W$41,5,FALSE)) -> 0.6542659397 | K32: =IFERROR(IF(OR(C32="S",C32="D"),VLOOKUP(B32,'Seasonal Customer Count'!$B:$I,4,FALSE),IF(C32="W",VLOOKUP(B32,'Seasonal Customer Count'!$B:$P,12,FALSE),"Check")),0) -> 0 | L32: =IFERROR(IF(OR(C32="S",C32="D"),VLOOKUP(B32,'Seasonal Customer Count'!$B:$P,5,FALSE),IF(C32="W",VLOOKUP(B32,'Seasonal Customer Count'!$B:$P,13,FALSE),"Check")),0) -> 0 | M32: =IFERROR(IF(OR(C32="S",C32="D"),VLOOKUP(B32,'Seasonal Customer Count'!$B:$P,6,FALSE),IF(C32="W",VLOOKUP(B32,'Seasonal Customer Count'!$B:$P,14,FALSE),"Check")),0) -> 0 | N32: =IFERROR(IF(OR(C32="S",C32="D"),VLOOKUP(B32,'Seasonal Customer Count'!$B:$P,7,FALSE),IF(C32="W",VLOOKUP(B32,'Seasonal Customer Count'!$B:$P,15,FALSE),"Check")),0) -> 1 | O32: =IFERROR(IF(OR(C32="S",C32="D"),VLOOKUP(B32,'Seasonal Customer Count'!$B:$P,8,FALSE),IF(C32="W",VLOOKUP(B32,'Seasonal Customer Count'!$B:$P,16,FALSE),"Check")),0) -> 0 | P32: =Summary!$D$8*(K32*'Average Project Size'!$F$6+L32*'Average Project Size'!$F$7+M32*'Average Project Size'!$F$8+N32*'Average Project Size'!$F$10+O32*'Average Project Size'!$F$9)/1000 -> 0.002935511023 | Q32: =Summary!$D$8*(K32*F32*'Average Project Size'!$F$6+L32*G32*'Average Project Size'!$F$7+M32*H32*'Average Project Size'!$F$8+N32*I32*'Average Project Size'!$F$10+O32*J32*'Average Project Size'!$F$9)/1000 -> 0.001920604878
B33: ='Peak Identification'!B31 -> AMPO T-051 | C33: ='Peak Identification'!D31 -> D | D33: ='Peak Identification'!E31 -> 14 | E33: =VLOOKUP($D33,'DER Output'!$S$17:$X$41,6,FALSE) -> 0.266943495 | F33: =IF($C33="S",VLOOKUP($D33,'DER Output'!$S$18:$W$41,2,FALSE),VLOOKUP($D33,'DER Output'!$S$18:$W$41,3,FALSE)) -> 0.2784611489 | G33: =IF($C33="S",VLOOKUP($D33,'DER Output'!$S$18:$W$41,4,FALSE),VLOOKUP($D33,'DER Output'!$S$18:$W$41,5,FALSE)) -> 0.2784611489 | H33: =IF($C33="S",VLOOKUP($D33,'DER Output'!$S$18:$W$41,4,FALSE),VLOOKUP($D33,'DER Output'!$S$18:$W$41,5,FALSE)) -> 0.2784611489 | I33: =IF($C33="S",VLOOKUP($D33,'DER Output'!$S$18:$W$41,4,FALSE),VLOOKUP($D33,'DER Output'!$S$18:$W$41,5,FALSE)) -> 0.2784611489 | J33: =IF($C33="S",VLOOKUP($D33,'DER Output'!$S$18:$W$41,4,FALSE),VLOOKUP($D33,'DER Output'!$S$18:$W$41,5,FALSE)) -> 0.2784611489 | K33: =IFERROR(IF(OR(C33="S",C33="D"),VLOOKUP(B33,'Seasonal Customer Count'!$B:$I,4,FALSE),IF(C33="W",VLOOKUP(B33,'Seasonal Customer Count'!$B:$P,12,FALSE),"Check")),0) -> 0 | L33: =IFERROR(IF(OR(C33="S",C33="D"),VLOOKUP(B33,'Seasonal Customer Count'!$B:$P,5,FALSE),IF(C33="W",VLOOKUP(B33,'Seasonal Customer Count'!$B:$P,13,FALSE),"Check")),0) -> 0 | M33: =IFERROR(IF(OR(C33="S",C33="D"),VLOOKUP(B33,'Seasonal Customer Count'!$B:$P,6,FALSE),IF(C33="W",VLOOKUP(B33,'Seasonal Customer Count'!$B:$P,14,FALSE),"Check")),0) -> 0 | N33: =IFERROR(IF(OR(C33="S",C33="D"),VLOOKUP(B33,'Seasonal Customer Count'!$B:$P,7,FALSE),IF(C33="W",VLOOKUP(B33,'Seasonal Customer Count'!$B:$P,15,FALSE),"Check")),0) -> 1 | O33: =IFERROR(IF(OR(C33="S",C33="D"),VLOOKUP(B33,'Seasonal Customer Count'!$B:$P,8,FALSE),IF(C33="W",VLOOKUP(B33,'Seasonal Customer Count'!$B:$P,16,FALSE),"Check")),0) -> 0 | P33: =Summary!$D$8*(K33*'Average Project Size'!$F$6+L33*'Average Project Size'!$F$7+M33*'Average Project Size'!$F$8+N33*'Average Project Size'!$F$10+O33*'Average Project Size'!$F$9)/1000 -> 0.002935511023 | Q33: =Summary!$D$8*(K33*F33*'Average Project Size'!$F$6+L33*G33*'Average Project Size'!$F$7+M33*H33*'Average Project Size'!$F$8+N33*I33*'Average Project Size'!$F$10+O33*J33*'Average Project Size'!$F$9)/1000 -> 0.000817425772
B34: ='Peak Identification'!B32 -> ARMA11 | C34: ='Peak Identification'!D32 -> W | D34: ='Peak Identification'!E32 -> 18 | E34: =VLOOKUP($D34,'DER Output'!$S$17:$X$41,6,FALSE) -> 0.1603239802 | F34: =IF($C34="S",VLOOKUP($D34,'DER Output'!$S$18:$W$41,2,FALSE),VLOOKUP($D34,'DER Output'!$S$18:$W$41,3,FALSE)) -> 0.0005535976984 | G34: =IF($C34="S",VLOOKUP($D34,'DER Output'!$S$18:$W$41,4,FALSE),VLOOKUP($D34,'DER Output'!$S$18:$W$41,5,FALSE)) -> 0.0005535976984 | H34: =IF($C34="S",VLOOKUP($D34,'DER Output'!$S$18:$W$41,4,FALSE),VLOOKUP($D34,'DER Output'!$S$18:$W$41,5,FALSE)) -> 0.0005535976984 | I34: =IF($C34="S",VLOOKUP($D34,'DER Output'!$S$18:$W$41,4,FALSE),VLOOKUP($D34,'DER Output'!$S$18:$W$41,5,FALSE)) -> 0.0005535976984 | J34: =IF($C34="S",VLOOKUP($D34,'DER Output'!$S$18:$W$41,4,FALSE),VLOOKUP($D34,'DER Output'!$S$18:$W$41,5,FALSE)) -> 0.0005535976984 | K34: =IFERROR(IF(OR(C34="S",C34="D"),VLOOKUP(B34,'Seasonal Customer Count'!$B:$I,4,FALSE),IF(C34="W",VLOOKUP(B34,'Seasonal Customer Count'!$B:$P,12,FALSE),"Check")),0) -> 38 | L34: =IFERROR(IF(OR(C34="S",C34="D"),VLOOKUP(B34,'Seasonal Customer Count'!$B:$P,5,FALSE),IF(C34="W",VLOOKUP(B34,'Seasonal Customer Count'!$B:$P,13,FALSE),"Check")),0) -> 34 | M34: =IFERROR(IF(OR(C34="S",C34="D"),VLOOKUP(B34,'Seasonal Customer Count'!$B:$P,6,FALSE),IF(C34="W",VLOOKUP(B34,'Seasonal Customer Count'!$B:$P,14,FALSE),"Check")),0) -> 1 | N34: =IFERROR(IF(OR(C34="S",C34="D"),VLOOKUP(B34,'Seasonal Customer Count'!$B:$P,7,FALSE),IF(C34="W",VLOOKUP(B34,'Seasonal Customer Count'!$B:$P,15,FALSE),"Check")),0) -> 1 | O34: =IFERROR(IF(OR(C34="S",C34="D"),VLOOKUP(B34,'Seasonal Customer Count'!$B:$P,8,FALSE),IF(C34="W",VLOOKUP(B34,'Seasonal Customer Count'!$B:$P,16,FALSE),"Check")),0) -> 0 | P34: =Summary!$D$8*(K34*'Average Project Size'!$F$6+L34*'Average Project Size'!$F$7+M34*'Average Project Size'!$F$8+N34*'Average Project Size'!$F$10+O34*'Average Project Size'!$F$9)/1000 -> 0.007111685483 | Q34: =Summary!$D$8*(K34*F34*'Average Project Size'!$F$6+L34*G34*'Average Project Size'!$F$7+M34*H34*'Average Project Size'!$F$8+N34*I34*'Average Project Size'!$F$10+O34*J34*'Average Project Size'!$F$9)/1000 -> 3.937012715e-06
B35: ='Peak Identification'!B33 -> ARMA T-061 | C35: ='Peak Identification'!D33 -> S | D35: ='Peak Identification'!E33 -> 18 | E35: =VLOOKUP($D35,'DER Output'!$S$17:$X$41,6,FALSE) -> 0.1603239802 | F35: =IF($C35="S",VLOOKUP($D35,'DER Output'!$S$18:$W$41,2,FALSE),VLOOKUP($D35,'DER Output'!$S$18:$W$41,3,FALSE)) -> 0.172244238 | G35: =IF($C35="S",VLOOKUP($D35,'DER Output'!$S$18:$W$41,4,FALSE),VLOOKUP($D35,'DER Output'!$S$18:$W$41,5,FALSE)) -> 0.172244238 | H35: =IF($C35="S",VLOOKUP($D35,'DER Output'!$S$18:$W$41,4,FALSE),VLOOKUP($D35,'DER Output'!$S$18:$W$41,5,FALSE)) -> 0.172244238 | I35: =IF($C35="S",VLOOKUP($D35,'DER Output'!$S$18:$W$41,4,FALSE),VLOOKUP($D35,'DER Output'!$S$18:$W$41,5,FALSE)) -> 0.172244238 | J35: =IF($C35="S",VLOOKUP($D35,'DER Output'!$S$18:$W$41,4,FALSE),VLOOKUP($D35,'DER Output'!$S$18:$W$41,5,FALSE)) -> 0.172244238 | K35: =IFERROR(IF(OR(C35="S",C35="D"),VLOOKUP(B35,'Seasonal Customer Count'!$B:$I,4,FALSE),IF(C35="W",VLOOKUP(B35,'Seasonal Customer Count'!$B:$P,12,FALSE),"Check")),0) -> 2 | L35: =IFERROR(IF(OR(C35="S",C35="D"),VLOOKUP(B35,'Seasonal Customer Count'!$B:$P,5,FALSE),IF(C35="W",VLOOKUP(B35,'Seasonal Customer Count'!$B:$P,13,FALSE),"Check")),0) -> 0 | M35: =IFERROR(IF(OR(C35="S",C35="D"),VLOOKUP(B35,'Seasonal Customer Count'!$B:$P,6,FALSE),IF(C35="W",VLOOKUP(B35,'Seasonal Customer Count'!$B:$P,14,FALSE),"Check")),0) -> 0 | N35: =IFERROR(IF(OR(C35="S",C35="D"),VLOOKUP(B35,'Seasonal Customer Count'!$B:$P,7,FALSE),IF(C35="W",VLOOKUP(B35,'Seasonal Customer Count'!$B:$P,15,FALSE),"Check")),0) -> 0 | O35: =IFERROR(IF(OR(C35="S",C35="D"),VLOOKUP(B35,'Seasonal Customer Count'!$B:$P,8,FALSE),IF(C35="W",VLOOKUP(B35,'Seasonal Customer Count'!$B:$P,16,FALSE),"Check")),0) -> 0 | P35: =Summary!$D$8*(K35*'Average Project Size'!$F$6+L35*'Average Project Size'!$F$7+M35*'Average Project Size'!$F$8+N35*'Average Project Size'!$F$10+O35*'Average Project Size'!$F$9)/1000 -> 7.949476018e-05 | Q35: =Summary!$D$8*(K35*F35*'Average Project Size'!$F$6+L35*G35*'Average Project Size'!$F$7+M35*H35*'Average Project Size'!$F$8+N35*I35*'Average Project Size'!$F$10+O35*J35*'Average Project Size'!$F$9)/1000 -> 1.369251439e-05
B36: ='Peak Identification'!B34 -> ARTN11 | C36: ='Peak Identification'!D34 -> S | D36: ='Peak Identification'!E34 -> 10 | E36: =VLOOKUP($D36,'DER Output'!$S$17:$X$41,6,FALSE) -> 0 | F36: =IF($C36="S",VLOOKUP($D36,'DER Output'!$S$18:$W$41,2,FALSE),VLOOKUP($D36,'DER Output'!$S$18:$W$41,3,FALSE)) -> 0.4936833999 | G36: =IF($C36="S",VLOOKUP($D36,'DER Output'!$S$18:$W$41,4,FALSE),VLOOKUP($D36,'DER Output'!$S$18:$W$41,5,FALSE)) -> 0.4936833999 | H36: =IF($C36="S",VLOOKUP($D36,'DER Output'!$S$18:$W$41,4,FALSE),VLOOKUP($D36,'DER Output'!$S$18:$W$41,5,FALSE)) -> 0.4936833999 | I36: =IF($C36="S",VLOOKUP($D36,'DER Output'!$S$18:$W$41,4,FALSE),VLOOKUP($D36,'DER Output'!$S$18:$W$41,5,FALSE)) -> 0.4936833999 | J36: =IF($C36="S",VLOOKUP($D36,'DER Output'!$S$18:$W$41,4,FALSE),VLOOKUP($D36,'DER Output'!$S$18:$W$41,5,FALSE)) -> 0.4936833999 | K36: =IFERROR(IF(OR(C36="S",C36="D"),VLOOKUP(B36,'Seasonal Customer Count'!$B:$I,4,FALSE),IF(C36="W",VLOOKUP(B36,'Seasonal Customer Count'!$B:$P,12,FALSE),"Check")),0) -> 18 | L36: =IFERROR(IF(OR(C36="S",C36="D"),VLOOKUP(B36,'Seasonal Customer Count'!$B:$P,5,FALSE),IF(C36="W",VLOOKUP(B36,'Seasonal Customer Count'!$B:$P,13,FALSE),"Check")),0) -> 3 | M36: =IFERROR(IF(OR(C36="S",C36="D"),VLOOKUP(B36,'Seasonal Customer Count'!$B:$P,6,FALSE),IF(C36="W",VLOOKUP(B36,'Seasonal Customer Count'!$B:$P,14,FALSE),"Check")),0) -> 4 | N36: =IFERROR(IF(OR(C36="S",C36="D"),VLOOKUP(B36,'Seasonal Customer Count'!$B:$P,7,FALSE),IF(C36="W",VLOOKUP(B36,'Seasonal Customer Count'!$B:$P,15,FALSE),"Check")),0) -> 0 | O36: =IFERROR(IF(OR(C36="S",C36="D"),VLOOKUP(B36,'Seasonal Customer Count'!$B:$P,8,FALSE),IF(C36="W",VLOOKUP(B36,'Seasonal Customer Count'!$B:$P,16,FALSE),"Check")),0) -> 44 | P36: =Summary!$D$8*(K36*'Average Project Size'!$F$6+L36*'Average Project Size'!$F$7+M36*'Average Project Size'!$F$8+N36*'Average Project Size'!$F$10+O36*'Average Project Size'!$F$9)/1000 -> 0.0296086925 | Q36: =Summary!$D$8*(K36*F36*'Average Project Size'!$F$6+L36*G36*'Average Project Size'!$F$7+M36*H36*'Average Project Size'!$F$8+N36*I36*'Average Project Size'!$F$10+O36*J36*'Average Project Size'!$F$9)/1000 -> 0.01461731998
B37: ='Peak Identification'!B35 -> ARTN12 | C37: ='Peak Identification'!D35 -> S | D37: ='Peak Identification'!E35 -> 19 | E37: =VLOOKUP($D37,'DER Output'!$S$17:$X$41,6,FALSE) -> 0.1106679793 | F37: =IF($C37="S",VLOOKUP($D37,'DER Output'!$S$18:$W$41,2,FALSE),VLOOKUP($D37,'DER Output'!$S$18:$W$41,3,FALSE)) -> 0.0758405601 | G37: =IF($C37="S",VLOOKUP($D37,'DER Output'!$S$18:$W$41,4,FALSE),VLOOKUP($D37,'DER Output'!$S$18:$W$41,5,FALSE)) -> 0.0758405601 | H37: =IF($C37="S",VLOOKUP($D37,'DER Output'!$S$18:$W$41,4,FALSE),VLOOKUP($D37,'DER Output'!$S$18:$W$41,5,FALSE)) -> 0.0758405601 | I37: =IF($C37="S",VLOOKUP($D37,'DER Output'!$S$18:$W$41,4,FALSE),VLOOKUP($D37,'DER Output'!$S$18:$W$41,5,FALSE)) -> 0.0758405601 | J37: =IF($C37="S",VLOOKUP($D37,'DER Output'!$S$18:$W$41,4,FALSE),VLOOKUP($D37,'DER Output'!$S$18:$W$41,5,FALSE)) -> 0.0758405601 | K37: =IFERROR(IF(OR(C37="S",C37="D"),VLOOKUP(B37,'Seasonal Customer Count'!$B:$I,4,FALSE),IF(C37="W",VLOOKUP(B37,'Seasonal Customer Count'!$B:$P,12,FALSE),"Check")),0) -> 31 | L37: =IFERROR(IF(OR(C37="S",C37="D"),VLOOKUP(B37,'Seasonal Customer Count'!$B:$P,5,FALSE),IF(C37="W",VLOOKUP(B37,'Seasonal Customer Count'!$B:$P,13,FALSE),"Check")),0) -> 4 | M37: =IFERROR(IF(OR(C37="S",C37="D"),VLOOKUP(B37,'Seasonal Customer Count'!$B:$P,6,FALSE),IF(C37="W",VLOOKUP(B37,'Seasonal Customer Count'!$B:$P,14,FALSE),"Check")),0) -> 15 | N37: =IFERROR(IF(OR(C37="S",C37="D"),VLOOKUP(B37,'Seasonal Customer Count'!$B:$P,7,FALSE),IF(C37="W",VLOOKUP(B37,'Seasonal Customer Count'!$B:$P,15,FALSE),"Check")),0) -> 1 | O37: =IFERROR(IF(OR(C37="S",C37="D"),VLOOKUP(B37,'Seasonal Customer Count'!$B:$P,8,FALSE),IF(C37="W",VLOOKUP(B37,'Seasonal Customer Count'!$B:$P,16,FALSE),"Check")),0) -> 52 | P37: =Summary!$D$8*(K37*'Average Project Size'!$F$6+L37*'Average Project Size'!$F$7+M37*'Average Project Size'!$F$8+N37*'Average Project Size'!$F$10+O37*'Average Project Size'!$F$9)/1000 -> 0.04011430602 | Q37: =Summary!$D$8*(K37*F37*'Average Project Size'!$F$6+L37*G37*'Average Project Size'!$F$7+M37*H37*'Average Project Size'!$F$8+N37*I37*'Average Project Size'!$F$10+O37*J37*'Average Project Size'!$F$9)/1000 -> 0.003042291437
B38: ='Peak Identification'!B36 -> ARTN13 | C38: ='Peak Identification'!D36 -> S | D38: ='Peak Identification'!E36 -> 20 | E38: =VLOOKUP($D38,'DER Output'!$S$17:$X$41,6,FALSE) -> 0.002707295301 | F38: =IF($C38="S",VLOOKUP($D38,'DER Output'!$S$18:$W$41,2,FALSE),VLOOKUP($D38,'DER Output'!$S$18:$W$41,3,FALSE)) -> 0.0202949667 | G38: =IF($C38="S",VLOOKUP($D38,'DER Output'!$S$18:$W$41,4,FALSE),VLOOKUP($D38,'DER Output'!$S$18:$W$41,5,FALSE)) -> 0.0202949667 | H38: =IF($C38="S",VLOOKUP($D38,'DER Output'!$S$18:$W$41,4,FALSE),VLOOKUP($D38,'DER Output'!$S$18:$W$41,5,FALSE)) -> 0.0202949667 | I38: =IF($C38="S",VLOOKUP($D38,'DER Output'!$S$18:$W$41,4,FALSE),VLOOKUP($D38,'DER Output'!$S$18:$W$41,5,FALSE)) -> 0.0202949667 | J38: =IF($C38="S",VLOOKUP($D38,'DER Output'!$S$18:$W$41,4,FALSE),VLOOKUP($D38,'DER Output'!$S$18:$W$41,5,FALSE)) -> 0.0202949667 | K38: =IFERROR(IF(OR(C38="S",C38="D"),VLOOKUP(B38,'Seasonal Customer Count'!$B:$I,4,FALSE),IF(C38="W",VLOOKUP(B38,'Seasonal Customer Count'!$B:$P,12,FALSE),"Check")),0) -> 146 | L38: =IFERROR(IF(OR(C38="S",C38="D"),VLOOKUP(B38,'Seasonal Customer Count'!$B:$P,5,FALSE),IF(C38="W",VLOOKUP(B38,'Seasonal Customer Count'!$B:$P,13,FALSE),"Check")),0) -> 14 | M38: =IFERROR(IF(OR(C38="S",C38="D"),VLOOKUP(B38,'Seasonal Customer Count'!$B:$P,6,FALSE),IF(C38="W",VLOOKUP(B38,'Seasonal Customer Count'!$B:$P,14,FALSE),"Check")),0) -> 7 | N38: =IFERROR(IF(OR(C38="S",C38="D"),VLOOKUP(B38,'Seasonal Customer Count'!$B:$P,7,FALSE),IF(C38="W",VLOOKUP(B38,'Seasonal Customer Count'!$B:$P,15,FALSE),"Check")),0) -> 0 | O38: =IFERROR(IF(OR(C38="S",C38="D"),VLOOKUP(B38,'Seasonal Customer Count'!$B:$P,8,FALSE),IF(C38="W",VLOOKUP(B38,'Seasonal Customer Count'!$B:$P,16,FALSE),"Check")),0) -> 68 | P38: =Summary!$D$8*(K38*'Average Project Size'!$F$6+L38*'Average Project Size'!$F$7+M38*'Average Project Size'!$F$8+N38*'Average Project Size'!$F$10+O38*'Average Project Size'!$F$9)/1000 -> 0.05128381195 | Q38: =Summary!$D$8*(K38*F38*'Average Project Size'!$F$6+L38*G38*'Average Project Size'!$F$7+M38*H38*'Average Project Size'!$F$8+N38*I38*'Average Project Size'!$F$10+O38*J38*'Average Project Size'!$F$9)/1000 -> 0.001040803256
B39: ='Peak Identification'!B37 -> ARTN14 | C39: ='Peak Identification'!D37 -> S | D39: ='Peak Identification'!E37 -> 20 | E39: =VLOOKUP($D39,'DER Output'!$S$17:$X$41,6,FALSE) -> 0.002707295301 | F39: =IF($C39="S",VLOOKUP($D39,'DER Output'!$S$18:$W$41,2,FALSE),VLOOKUP($D39,'DER Output'!$S$18:$W$41,3,FALSE)) -> 0.0202949667 | G39: =IF($C39="S",VLOOKUP($D39,'DER Output'!$S$18:$W$41,4,FALSE),VLOOKUP($D39,'DER Output'!$S$18:$W$41,5,FALSE)) -> 0.0202949667 | H39: =IF($C39="S",VLOOKUP($D39,'DER Output'!$S$18:$W$41,4,FALSE),VLOOKUP($D39,'DER Output'!$S$18:$W$41,5,FALSE)) -> 0.0202949667 | I39: =IF($C39="S",VLOOKUP($D39,'DER Output'!$S$18:$W$41,4,FALSE),VLOOKUP($D39,'DER Output'!$S$18:$W$41,5,FALSE)) -> 0.0202949667 | J39: =IF($C39="S",VLOOKUP($D39,'DER Output'!$S$18:$W$41,4,FALSE),VLOOKUP($D39,'DER Output'!$S$18:$W$41,5,FALSE)) -> 0.0202949667 | K39: =IFERROR(IF(OR(C39="S",C39="D"),VLOOKUP(B39,'Seasonal Customer Count'!$B:$I,4,FALSE),IF(C39="W",VLOOKUP(B39,'Seasonal Customer Count'!$B:$P,12,FALSE),"Check")),0) -> 13 | L39: =IFERROR(IF(OR(C39="S",C39="D"),VLOOKUP(B39,'Seasonal Customer Count'!$B:$P,5,FALSE),IF(C39="W",VLOOKUP(B39,'Seasonal Customer Count'!$B:$P,13,FALSE),"Check")),0) -> 3 | M39: =IFERROR(IF(OR(C39="S",C39="D"),VLOOKUP(B39,'Seasonal Customer Count'!$B:$P,6,FALSE),IF(C39="W",VLOOKUP(B39,'Seasonal Customer Count'!$B:$P,14,FALSE),"Check")),0) -> 2 | N39: =IFERROR(IF(OR(C39="S",C39="D"),VLOOKUP(B39,'Seasonal Customer Count'!$B:$P,7,FALSE),IF(C39="W",VLOOKUP(B39,'Seasonal Customer Count'!$B:$P,15,FALSE),"Check")),0) -> 0 | O39: =IFERROR(IF(OR(C39="S",C39="D"),VLOOKUP(B39,'Seasonal Customer Count'!$B:$P,8,FALSE),IF(C39="W",VLOOKUP(B39,'Seasonal Customer Count'!$B:$P,16,FALSE),"Check")),0) -> 18 | P39: =Summary!$D$8*(K39*'Average Project Size'!$F$6+L39*'Average Project Size'!$F$7+M39*'Average Project Size'!$F$8+N39*'Average Project Size'!$F$10+O39*'Average Project Size'!$F$9)/1000 -> 0.01252924065 | Q39: =Summary!$D$8*(K39*F39*'Average Project Size'!$F$6+L39*G39*'Average Project Size'!$F$7+M39*H39*'Average Project Size'!$F$8+N39*I39*'Average Project Size'!$F$10+O39*J39*'Average Project Size'!$F$9)/1000 -> 0.0002542805218
B40: ='Peak Identification'!B38 -> ARTN T-051 | C40: ='Peak Identification'!D38 -> S | D40: ='Peak Identification'!E38 -> 18 | E40: =VLOOKUP($D40,'DER Output'!$S$17:$X$41,6,FALSE) -> 0.1603239802 | F40: =IF($C40="S",VLOOKUP($D40,'DER Output'!$S$18:$W$41,2,FALSE),VLOOKUP($D40,'DER Output'!$S$18:$W$41,3,FALSE)) -> 0.172244238 | G40: =IF($C40="S",VLOOKUP($D40,'DER Output'!$S$18:$W$41,4,FALSE),VLOOKUP($D40,'DER Output'!$S$18:$W$41,5,FALSE)) -> 0.172244238 | H40: =IF($C40="S",VLOOKUP($D40,'DER Output'!$S$18:$W$41,4,FALSE),VLOOKUP($D40,'DER Output'!$S$18:$W$41,5,FALSE)) -> 0.172244238 | I40: =IF($C40="S",VLOOKUP($D40,'DER Output'!$S$18:$W$41,4,FALSE),VLOOKUP($D40,'DER Output'!$S$18:$W$41,5,FALSE)) -> 0.172244238 | J40: =IF($C40="S",VLOOKUP($D40,'DER Output'!$S$18:$W$41,4,FALSE),VLOOKUP($D40,'DER Output'!$S$18:$W$41,5,FALSE)) -> 0.172244238 | K40: =IFERROR(IF(OR(C40="S",C40="D"),VLOOKUP(B40,'Seasonal Customer Count'!$B:$I,4,FALSE),IF(C40="W",VLOOKUP(B40,'Seasonal Customer Count'!$B:$P,12,FALSE),"Check")),0) -> 208 | L40: =IFERROR(IF(OR(C40="S",C40="D"),VLOOKUP(B40,'Seasonal Customer Count'!$B:$P,5,FALSE),IF(C40="W",VLOOKUP(B40,'Seasonal Customer Count'!$B:$P,13,FALSE),"Check")),0) -> 24 | M40: =IFERROR(IF(OR(C40="S",C40="D"),VLOOKUP(B40,'Seasonal Customer Count'!$B:$P,6,FALSE),IF(C40="W",VLOOKUP(B40,'Seasonal Customer Count'!$B:$P,14,FALSE),"Check")),0) -> 28 | N40: =IFERROR(IF(OR(C40="S",C40="D"),VLOOKUP(B40,'Seasonal Customer Count'!$B:$P,7,FALSE),IF(C40="W",VLOOKUP(B40,'Seasonal Customer Count'!$B:$P,15,FALSE),"Check")),0) -> 1 | O40: =IFERROR(IF(OR(C40="S",C40="D"),VLOOKUP(B40,'Seasonal Customer Count'!$B:$P,8,FALSE),IF(C40="W",VLOOKUP(B40,'Seasonal Customer Count'!$B:$P,16,FALSE),"Check")),0) -> 182 | P40: =Summary!$D$8*(K40*'Average Project Size'!$F$6+L40*'Average Project Size'!$F$7+M40*'Average Project Size'!$F$8+N40*'Average Project Size'!$F$10+O40*'Average Project Size'!$F$9)/1000 -> 0.1335360511 | Q40: =Summary!$D$8*(K40*F40*'Average Project Size'!$F$6+L40*G40*'Average Project Size'!$F$7+M40*H40*'Average Project Size'!$F$8+N40*I40*'Average Project Size'!$F$10+O40*J40*'Average Project Size'!$F$9)/1000 -> 0.02300081537
B41: ='Peak Identification'!B39 -> BCRT11 | C41: ='Peak Identification'!D39 -> S | D41: ='Peak Identification'!E39 -> 16 | E41: =VLOOKUP($D41,'DER Output'!$S$17:$X$41,6,FALSE) -> 0.2264402231 | F41: =IF($C41="S",VLOOKUP($D41,'DER Output'!$S$18:$W$41,2,FALSE),VLOOKUP($D41,'DER Output'!$S$18:$W$41,3,FALSE)) -> 0.4478140772 | G41: =IF($C41="S",VLOOKUP($D41,'DER Output'!$S$18:$W$41,4,FALSE),VLOOKUP($D41,'DER Output'!$S$18:$W$41,5,FALSE)) -> 0.4478140772 | H41: =IF($C41="S",VLOOKUP($D41,'DER Output'!$S$18:$W$41,4,FALSE),VLOOKUP($D41,'DER Output'!$S$18:$W$41,5,FALSE)) -> 0.4478140772 | I41: =IF($C41="S",VLOOKUP($D41,'DER Output'!$S$18:$W$41,4,FALSE),VLOOKUP($D41,'DER Output'!$S$18:$W$41,5,FALSE)) -> 0.4478140772 | J41: =IF($C41="S",VLOOKUP($D41,'DER Output'!$S$18:$W$41,4,FALSE),VLOOKUP($D41,'DER Output'!$S$18:$W$41,5,FALSE)) -> 0.4478140772 | K41: =IFERROR(IF(OR(C41="S",C41="D"),VLOOKUP(B41,'Seasonal Customer Count'!$B:$I,4,FALSE),IF(C41="W",VLOOKUP(B41,'Seasonal Customer Count'!$B:$P,12,FALSE),"Check")),0) -> 337 | L41: =IFERROR(IF(OR(C41="S",C41="D"),VLOOKUP(B41,'Seasonal Customer Count'!$B:$P,5,FALSE),IF(C41="W",VLOOKUP(B41,'Seasonal Customer Count'!$B:$P,13,FALSE),"Check")),0) -> 21 | M41: =IFERROR(IF(OR(C41="S",C41="D"),VLOOKUP(B41,'Seasonal Customer Count'!$B:$P,6,FALSE),IF(C41="W",VLOOKUP(B41,'Seasonal Customer Count'!$B:$P,14,FALSE),"Check")),0) -> 112 | N41: =IFERROR(IF(OR(C41="S",C41="D"),VLOOKUP(B41,'Seasonal Customer Count'!$B:$P,7,FALSE),IF(C41="W",VLOOKUP(B41,'Seasonal Customer Count'!$B:$P,15,FALSE),"Check")),0) -> 1 | O41: =IFERROR(IF(OR(C41="S",C41="D"),VLOOKUP(B41,'Seasonal Customer Count'!$B:$P,8,FALSE),IF(C41="W",VLOOKUP(B41,'Seasonal Customer Count'!$B:$P,16,FALSE),"Check")),0) -> 0 | P41: =Summary!$D$8*(K41*'Average Project Size'!$F$6+L41*'Average Project Size'!$F$7+M41*'Average Project Size'!$F$8+N41*'Average Project Size'!$F$10+O41*'Average Project Size'!$F$9)/1000 -> 0.03713271708 | Q41: =Summary!$D$8*(K41*F41*'Average Project Size'!$F$6+L41*G41*'Average Project Size'!$F$7+M41*H41*'Average Project Size'!$F$8+N41*I41*'Average Project Size'!$F$10+O41*J41*'Average Project Size'!$F$9)/1000 -> 0.01662855343
B42: ='Peak Identification'!B40 -> BCRT12 | C42: ='Peak Identification'!D40 -> S | D42: ='Peak Identification'!E40 -> 16 | E42: =VLOOKUP($D42,'DER Output'!$S$17:$X$41,6,FALSE) -> 0.2264402231 | F42: =IF($C42="S",VLOOKUP($D42,'DER Output'!$S$18:$W$41,2,FALSE),VLOOKUP($D42,'DER Output'!$S$18:$W$41,3,FALSE)) -> 0.4478140772 | G42: =IF($C42="S",VLOOKUP($D42,'DER Output'!$S$18:$W$41,4,FALSE),VLOOKUP($D42,'DER Output'!$S$18:$W$41,5,FALSE)) -> 0.4478140772 | H42: =IF($C42="S",VLOOKUP($D42,'DER Output'!$S$18:$W$41,4,FALSE),VLOOKUP($D42,'DER Output'!$S$18:$W$41,5,FALSE)) -> 0.4478140772 | I42: =IF($C42="S",VLOOKUP($D42,'DER Output'!$S$18:$W$41,4,FALSE),VLOOKUP($D42,'DER Output'!$S$18:$W$41,5,FALSE)) -> 0.4478140772 | J42: =IF($C42="S",VLOOKUP($D42,'DER Output'!$S$18:$W$41,4,FALSE),VLOOKUP($D42,'DER Output'!$S$18:$W$41,5,FALSE)) -> 0.4478140772 | K42: =IFERROR(IF(OR(C42="S",C42="D"),VLOOKUP(B42,'Seasonal Customer Count'!$B:$I,4,FALSE),IF(C42="W",VLOOKUP(B42,'Seasonal Customer Count'!$B:$P,12,FALSE),"Check")),0) -> 413 | L42: =IFERROR(IF(OR(C42="S",C42="D"),VLOOKUP(B42,'Seasonal Customer Count'!$B:$P,5,FALSE),IF(C42="W",VLOOKUP(B42,'Seasonal Customer Count'!$B:$P,13,FALSE),"Check")),0) -> 23 | M42: =IFERROR(IF(OR(C42="S",C42="D"),VLOOKUP(B42,'Seasonal Customer Count'!$B:$P,6,FALSE),IF(C42="W",VLOOKUP(B42,'Seasonal Customer Count'!$B:$P,14,FALSE),"Check")),0) -> 86 | N42: =IFERROR(IF(OR(C42="S",C42="D"),VLOOKUP(B42,'Seasonal Customer Count'!$B:$P,7,FALSE),IF(C42="W",VLOOKUP(B42,'Seasonal Customer Count'!$B:$P,15,FALSE),"Check")),0) -> 0 | O42: =IFERROR(IF(OR(C42="S",C42="D"),VLOOKUP(B42,'Seasonal Customer Count'!$B:$P,8,FALSE),IF(C42="W",VLOOKUP(B42,'Seasonal Customer Count'!$B:$P,16,FALSE),"Check")),0) -> 0 | P42: =Summary!$D$8*(K42*'Average Project Size'!$F$6+L42*'Average Project Size'!$F$7+M42*'Average Project Size'!$F$8+N42*'Average Project Size'!$F$10+O42*'Average Project Size'!$F$9)/1000 -> 0.03289315182 | Q42: =Summary!$D$8*(K42*F42*'Average Project Size'!$F$6+L42*G42*'Average Project Size'!$F$7+M42*H42*'Average Project Size'!$F$8+N42*I42*'Average Project Size'!$F$10+O42*J42*'Average Project Size'!$F$9)/1000 -> 0.01473001643
B43: ='Peak Identification'!B41 -> BCRT13 | C43: ='Peak Identification'!D41 -> S | D43: ='Peak Identification'!E41 -> 15 | E43: =VLOOKUP($D43,'DER Output'!$S$17:$X$41,6,FALSE) -> 0.2467532468 | F43: =IF($C43="S",VLOOKUP($D43,'DER Output'!$S$18:$W$41,2,FALSE),VLOOKUP($D43,'DER Output'!$S$18:$W$41,3,FALSE)) -> 0.5749852941 | G43: =IF($C43="S",VLOOKUP($D43,'DER Output'!$S$18:$W$41,4,FALSE),VLOOKUP($D43,'DER Output'!$S$18:$W$41,5,FALSE)) -> 0.5749852941 | H43: =IF($C43="S",VLOOKUP($D43,'DER Output'!$S$18:$W$41,4,FALSE),VLOOKUP($D43,'DER Output'!$S$18:$W$41,5,FALSE)) -> 0.5749852941 | I43: =IF($C43="S",VLOOKUP($D43,'DER Output'!$S$18:$W$41,4,FALSE),VLOOKUP($D43,'DER Output'!$S$18:$W$41,5,FALSE)) -> 0.5749852941 | J43: =IF($C43="S",VLOOKUP($D43,'DER Output'!$S$18:$W$41,4,FALSE),VLOOKUP($D43,'DER Output'!$S$18:$W$41,5,FALSE)) -> 0.5749852941 | K43: =IFERROR(IF(OR(C43="S",C43="D"),VLOOKUP(B43,'Seasonal Customer Count'!$B:$I,4,FALSE),IF(C43="W",VLOOKUP(B43,'Seasonal Customer Count'!$B:$P,12,FALSE),"Check")),0) -> 208 | L43: =IFERROR(IF(OR(C43="S",C43="D"),VLOOKUP(B43,'Seasonal Customer Count'!$B:$P,5,FALSE),IF(C43="W",VLOOKUP(B43,'Seasonal Customer Count'!$B:$P,13,FALSE),"Check")),0) -> 12 | M43: =IFERROR(IF(OR(C43="S",C43="D"),VLOOKUP(B43,'Seasonal Customer Count'!$B:$P,6,FALSE),IF(C43="W",VLOOKUP(B43,'Seasonal Customer Count'!$B:$P,14,FALSE),"Check")),0) -> 78 | N43: =IFERROR(IF(OR(C43="S",C43="D"),VLOOKUP(B43,'Seasonal Customer Count'!$B:$P,7,FALSE),IF(C43="W",VLOOKUP(B43,'Seasonal Customer Count'!$B:$P,15,FALSE),"Check")),0) -> 2 | O43: =IFERROR(IF(OR(C43="S",C43="D"),VLOOKUP(B43,'Seasonal Customer Count'!$B:$P,8,FALSE),IF(C43="W",VLOOKUP(B43,'Seasonal Customer Count'!$B:$P,16,FALSE),"Check")),0) -> 0 | P43: =Summary!$D$8*(K43*'Average Project Size'!$F$6+L43*'Average Project Size'!$F$7+M43*'Average Project Size'!$F$8+N43*'Average Project Size'!$F$10+O43*'Average Project Size'!$F$9)/1000 -> 0.02843328495 | Q43: =Summary!$D$8*(K43*F43*'Average Project Size'!$F$6+L43*G43*'Average Project Size'!$F$7+M43*H43*'Average Project Size'!$F$8+N43*I43*'Average Project Size'!$F$10+O43*J43*'Average Project Size'!$F$9)/1000 -> 0.01634872071
B44: ='Peak Identification'!B42 -> BCRT14 | C44: ='Peak Identification'!D42 -> S | D44: ='Peak Identification'!E42 -> 15 | E44: =VLOOKUP($D44,'DER Output'!$S$17:$X$41,6,FALSE) -> 0.2467532468 | F44: =IF($C44="S",VLOOKUP($D44,'DER Output'!$S$18:$W$41,2,FALSE),VLOOKUP($D44,'DER Output'!$S$18:$W$41,3,FALSE)) -> 0.5749852941 | G44: =IF($C44="S",VLOOKUP($D44,'DER Output'!$S$18:$W$41,4,FALSE),VLOOKUP($D44,'DER Output'!$S$18:$W$41,5,FALSE)) -> 0.5749852941 | H44: =IF($C44="S",VLOOKUP($D44,'DER Output'!$S$18:$W$41,4,FALSE),VLOOKUP($D44,'DER Output'!$S$18:$W$41,5,FALSE)) -> 0.5749852941 | I44: =IF($C44="S",VLOOKUP($D44,'DER Output'!$S$18:$W$41,4,FALSE),VLOOKUP($D44,'DER Output'!$S$18:$W$41,5,FALSE)) -> 0.5749852941 | J44: =IF($C44="S",VLOOKUP($D44,'DER Output'!$S$18:$W$41,4,FALSE),VLOOKUP($D44,'DER Output'!$S$18:$W$41,5,FALSE)) -> 0.5749852941 | K44: =IFERROR(IF(OR(C44="S",C44="D"),VLOOKUP(B44,'Seasonal Customer Count'!$B:$I,4,FALSE),IF(C44="W",VLOOKUP(B44,'Seasonal Customer Count'!$B:$P,12,FALSE),"Check")),0) -> 0 | L44: =IFERROR(IF(OR(C44="S",C44="D"),VLOOKUP(B44,'Seasonal Customer Count'!$B:$P,5,FALSE),IF(C44="W",VLOOKUP(B44,'Seasonal Customer Count'!$B:$P,13,FALSE),"Check")),0) -> 0 | M44: =IFERROR(IF(OR(C44="S",C44="D"),VLOOKUP(B44,'Seasonal Customer Count'!$B:$P,6,FALSE),IF(C44="W",VLOOKUP(B44,'Seasonal Customer Count'!$B:$P,14,FALSE),"Check")),0) -> 0 | N44: =IFERROR(IF(OR(C44="S",C44="D"),VLOOKUP(B44,'Seasonal Customer Count'!$B:$P,7,FALSE),IF(C44="W",VLOOKUP(B44,'Seasonal Customer Count'!$B:$P,15,FALSE),"Check")),0) -> 1 | O44: =IFERROR(IF(OR(C44="S",C44="D"),VLOOKUP(B44,'Seasonal Customer Count'!$B:$P,8,FALSE),IF(C44="W",VLOOKUP(B44,'Seasonal Customer Count'!$B:$P,16,FALSE),"Check")),0) -> 0 | P44: =Summary!$D$8*(K44*'Average Project Size'!$F$6+L44*'Average Project Size'!$F$7+M44*'Average Project Size'!$F$8+N44*'Average Project Size'!$F$10+O44*'Average Project Size'!$F$9)/1000 -> 0.002935511023 | Q44: =Summary!$D$8*(K44*F44*'Average Project Size'!$F$6+L44*G44*'Average Project Size'!$F$7+M44*H44*'Average Project Size'!$F$8+N44*I44*'Average Project Size'!$F$10+O44*J44*'Average Project Size'!$F$9)/1000 -> 0.001687875669
B45: ='Peak Identification'!B43 -> BCRT T-131 | C45: ='Peak Identification'!D43 -> S | D45: ='Peak Identification'!E43 -> 16 | E45: =VLOOKUP($D45,'DER Output'!$S$17:$X$41,6,FALSE) -> 0.2264402231 | F45: =IF($C45="S",VLOOKUP($D45,'DER Output'!$S$18:$W$41,2,FALSE),VLOOKUP($D45,'DER Output'!$S$18:$W$41,3,FALSE)) -> 0.4478140772 | G45: =IF($C45="S",VLOOKUP($D45,'DER Output'!$S$18:$W$41,4,FALSE),VLOOKUP($D45,'DER Output'!$S$18:$W$41,5,FALSE)) -> 0.4478140772 | H45: =IF($C45="S",VLOOKUP($D45,'DER Output'!$S$18:$W$41,4,FALSE),VLOOKUP($D45,'DER Output'!$S$18:$W$41,5,FALSE)) -> 0.4478140772 | I45: =IF($C45="S",VLOOKUP($D45,'DER Output'!$S$18:$W$41,4,FALSE),VLOOKUP($D45,'DER Output'!$S$18:$W$41,5,FALSE)) -> 0.4478140772 | J45: =IF($C45="S",VLOOKUP($D45,'DER Output'!$S$18:$W$41,4,FALSE),VLOOKUP($D45,'DER Output'!$S$18:$W$41,5,FALSE)) -> 0.4478140772 | K45: =IFERROR(IF(OR(C45="S",C45="D"),VLOOKUP(B45,'Seasonal Customer Count'!$B:$I,4,FALSE),IF(C45="W",VLOOKUP(B45,'Seasonal Customer Count'!$B:$P,12,FALSE),"Check")),0) -> 958 | L45: =IFERROR(IF(OR(C45="S",C45="D"),VLOOKUP(B45,'Seasonal Customer Count'!$B:$P,5,FALSE),IF(C45="W",VLOOKUP(B45,'Seasonal Customer Count'!$B:$P,13,FALSE),"Check")),0) -> 56 | M45: =IFERROR(IF(OR(C45="S",C45="D"),VLOOKUP(B45,'Seasonal Customer Count'!$B:$P,6,FALSE),IF(C45="W",VLOOKUP(B45,'Seasonal Customer Count'!$B:$P,14,FALSE),"Check")),0) -> 276 | N45: =IFERROR(IF(OR(C45="S",C45="D"),VLOOKUP(B45,'Seasonal Customer Count'!$B:$P,7,FALSE),IF(C45="W",VLOOKUP(B45,'Seasonal Customer Count'!$B:$P,15,FALSE),"Check")),0) -> 4 | O45: =IFERROR(IF(OR(C45="S",C45="D"),VLOOKUP(B45,'Seasonal Customer Count'!$B:$P,8,FALSE),IF(C45="W",VLOOKUP(B45,'Seasonal Customer Count'!$B:$P,16,FALSE),"Check")),0) -> 0 | P45: =Summary!$D$8*(K45*'Average Project Size'!$F$6+L45*'Average Project Size'!$F$7+M45*'Average Project Size'!$F$8+N45*'Average Project Size'!$F$10+O45*'Average Project Size'!$F$9)/1000 -> 0.1013946649 | Q45: =Summary!$D$8*(K45*F45*'Average Project Size'!$F$6+L45*G45*'Average Project Size'!$F$7+M45*H45*'Average Project Size'!$F$8+N45*I45*'Average Project Size'!$F$10+O45*J45*'Average Project Size'!$F$9)/1000 -> 0.04540595829
B46: ='Peak Identification'!B44 -> BGBR11 | C46: ='Peak Identification'!D44 -> W | D46: ='Peak Identification'!E44 -> 18 | E46: =VLOOKUP($D46,'DER Output'!$S$17:$X$41,6,FALSE) -> 0.1603239802 | F46: =IF($C46="S",VLOOKUP($D46,'DER Output'!$S$18:$W$41,2,FALSE),VLOOKUP($D46,'DER Output'!$S$18:$W$41,3,FALSE)) -> 0.0005535976984 | G46: =IF($C46="S",VLOOKUP($D46,'DER Output'!$S$18:$W$41,4,FALSE),VLOOKUP($D46,'DER Output'!$S$18:$W$41,5,FALSE)) -> 0.0005535976984 | H46: =IF($C46="S",VLOOKUP($D46,'DER Output'!$S$18:$W$41,4,FALSE),VLOOKUP($D46,'DER Output'!$S$18:$W$41,5,FALSE)) -> 0.0005535976984 | I46: =IF($C46="S",VLOOKUP($D46,'DER Output'!$S$18:$W$41,4,FALSE),VLOOKUP($D46,'DER Output'!$S$18:$W$41,5,FALSE)) -> 0.0005535976984 | J46: =IF($C46="S",VLOOKUP($D46,'DER Output'!$S$18:$W$41,4,FALSE),VLOOKUP($D46,'DER Output'!$S$18:$W$41,5,FALSE)) -> 0.0005535976984 | K46: =IFERROR(IF(OR(C46="S",C46="D"),VLOOKUP(B46,'Seasonal Customer Count'!$B:$I,4,FALSE),IF(C46="W",VLOOKUP(B46,'Seasonal Customer Count'!$B:$P,12,FALSE),"Check")),0) -> 284 | L46: =IFERROR(IF(OR(C46="S",C46="D"),VLOOKUP(B46,'Seasonal Customer Count'!$B:$P,5,FALSE),IF(C46="W",VLOOKUP(B46,'Seasonal Customer Count'!$B:$P,13,FALSE),"Check")),0) -> 265 | M46: =IFERROR(IF(OR(C46="S",C46="D"),VLOOKUP(B46,'Seasonal Customer Count'!$B:$P,6,FALSE),IF(C46="W",VLOOKUP(B46,'Seasonal Customer Count'!$B:$P,14,FALSE),"Check")),0) -> 3 | N46: =IFERROR(IF(OR(C46="S",C46="D"),VLOOKUP(B46,'Seasonal Customer Count'!$B:$P,7,FALSE),IF(C46="W",VLOOKUP(B46,'Seasonal Customer Count'!$B:$P,15,FALSE),"Check")),0) -> 27 | O46: =IFERROR(IF(OR(C46="S",C46="D"),VLOOKUP(B46,'Seasonal Customer Count'!$B:$P,8,FALSE),IF(C46="W",VLOOKUP(B46,'Seasonal Customer Count'!$B:$P,16,FALSE),"Check")),0) -> 0 | P46: =Summary!$D$8*(K46*'Average Project Size'!$F$6+L46*'Average Project Size'!$F$7+M46*'Average Project Size'!$F$8+N46*'Average Project Size'!$F$10+O46*'Average Project Size'!$F$9)/1000 -> 0.1104999048 | Q46: =Summary!$D$8*(K46*F46*'Average Project Size'!$F$6+L46*G46*'Average Project Size'!$F$7+M46*H46*'Average Project Size'!$F$8+N46*I46*'Average Project Size'!$F$10+O46*J46*'Average Project Size'!$F$9)/1000 -> 6.1172493e-05
B47: ='Peak Identification'!B45 -> BGBR T-061 | C47: ='Peak Identification'!D45 -> W | D47: ='Peak Identification'!E45 -> 18 | E47: =VLOOKUP($D47,'DER Output'!$S$17:$X$41,6,FALSE) -> 0.1603239802 | F47: =IF($C47="S",VLOOKUP($D47,'DER Output'!$S$18:$W$41,2,FALSE),VLOOKUP($D47,'DER Output'!$S$18:$W$41,3,FALSE)) -> 0.0005535976984 | G47: =IF($C47="S",VLOOKUP($D47,'DER Output'!$S$18:$W$41,4,FALSE),VLOOKUP($D47,'DER Output'!$S$18:$W$41,5,FALSE)) -> 0.0005535976984 | H47: =IF($C47="S",VLOOKUP($D47,'DER Output'!$S$18:$W$41,4,FALSE),VLOOKUP($D47,'DER Output'!$S$18:$W$41,5,FALSE)) -> 0.0005535976984 | I47: =IF($C47="S",VLOOKUP($D47,'DER Output'!$S$18:$W$41,4,FALSE),VLOOKUP($D47,'DER Output'!$S$18:$W$41,5,FALSE)) -> 0.0005535976984 | J47: =IF($C47="S",VLOOKUP($D47,'DER Output'!$S$18:$W$41,4,FALSE),VLOOKUP($D47,'DER Output'!$S$18:$W$41,5,FALSE)) -> 0.0005535976984 | K47: =IFERROR(IF(OR(C47="S",C47="D"),VLOOKUP(B47,'Seasonal Customer Count'!$B:$I,4,FALSE),IF(C47="W",VLOOKUP(B47,'Seasonal Customer Count'!$B:$P,12,FALSE),"Check")),0) -> 69 | L47: =IFERROR(IF(OR(C47="S",C47="D"),VLOOKUP(B47,'Seasonal Customer Count'!$B:$P,5,FALSE),IF(C47="W",VLOOKUP(B47,'Seasonal Customer Count'!$B:$P,13,FALSE),"Check")),0) -> 81 | M47: =IFERROR(IF(OR(C47="S",C47="D"),VLOOKUP(B47,'Seasonal Customer Count'!$B:$P,6,FALSE),IF(C47="W",VLOOKUP(B47,'Seasonal Customer Count'!$B:$P,14,FALSE),"Check")),0) -> 2 | N47: =IFERROR(IF(OR(C47="S",C47="D"),VLOOKUP(B47,'Seasonal Customer Count'!$B:$P,7,FALSE),IF(C47="W",VLOOKUP(B47,'Seasonal Customer Count'!$B:$P,15,FALSE),"Check")),0) -> 0 | O47: =IFERROR(IF(OR(C47="S",C47="D"),VLOOKUP(B47,'Seasonal Customer Count'!$B:$P,8,FALSE),IF(C47="W",VLOOKUP(B47,'Seasonal Customer Count'!$B:$P,16,FALSE),"Check")),0) -> 0 | P47: =Summary!$D$8*(K47*'Average Project Size'!$F$6+L47*'Average Project Size'!$F$7+M47*'Average Project Size'!$F$8+N47*'Average Project Size'!$F$10+O47*'Average Project Size'!$F$9)/1000 -> 0.009027625724 | Q47: =Summary!$D$8*(K47*F47*'Average Project Size'!$F$6+L47*G47*'Average Project Size'!$F$7+M47*H47*'Average Project Size'!$F$8+N47*I47*'Average Project Size'!$F$10+O47*J47*'Average Project Size'!$F$9)/1000 -> 4.997672823e-06
B48: ='Peak Identification'!B46 -> BKAT11 | C48: ='Peak Identification'!D46 -> S | D48: ='Peak Identification'!E46 -> 17 | E48: =VLOOKUP($D48,'DER Output'!$S$17:$X$41,6,FALSE) -> 0.1917483871 | F48: =IF($C48="S",VLOOKUP($D48,'DER Output'!$S$18:$W$41,2,FALSE),VLOOKUP($D48,'DER Output'!$S$18:$W$41,3,FALSE)) -> 0.3030039978 | G48: =IF($C48="S",VLOOKUP($D48,'DER Output'!$S$18:$W$41,4,FALSE),VLOOKUP($D48,'DER Output'!$S$18:$W$41,5,FALSE)) -> 0.3030039978 | H48: =IF($C48="S",VLOOKUP($D48,'DER Output'!$S$18:$W$41,4,FALSE),VLOOKUP($D48,'DER Output'!$S$18:$W$41,5,FALSE)) -> 0.3030039978 | I48: =IF($C48="S",VLOOKUP($D48,'DER Output'!$S$18:$W$41,4,FALSE),VLOOKUP($D48,'DER Output'!$S$18:$W$41,5,FALSE)) -> 0.3030039978 | J48: =IF($C48="S",VLOOKUP($D48,'DER Output'!$S$18:$W$41,4,FALSE),VLOOKUP($D48,'DER Output'!$S$18:$W$41,5,FALSE)) -> 0.3030039978 | K48: =IFERROR(IF(OR(C48="S",C48="D"),VLOOKUP(B48,'Seasonal Customer Count'!$B:$I,4,FALSE),IF(C48="W",VLOOKUP(B48,'Seasonal Customer Count'!$B:$P,12,FALSE),"Check")),0) -> 621 | L48: =IFERROR(IF(OR(C48="S",C48="D"),VLOOKUP(B48,'Seasonal Customer Count'!$B:$P,5,FALSE),IF(C48="W",VLOOKUP(B48,'Seasonal Customer Count'!$B:$P,13,FALSE),"Check")),0) -> 9 | M48: =IFERROR(IF(OR(C48="S",C48="D"),VLOOKUP(B48,'Seasonal Customer Count'!$B:$P,6,FALSE),IF(C48="W",VLOOKUP(B48,'Seasonal Customer Count'!$B:$P,14,FALSE),"Check")),0) -> 34 | N48: =IFERROR(IF(OR(C48="S",C48="D"),VLOOKUP(B48,'Seasonal Customer Count'!$B:$P,7,FALSE),IF(C48="W",VLOOKUP(B48,'Seasonal Customer Count'!$B:$P,15,FALSE),"Check")),0) -> 2 | O48: =IFERROR(IF(OR(C48="S",C48="D"),VLOOKUP(B48,'Seasonal Customer Count'!$B:$P,8,FALSE),IF(C48="W",VLOOKUP(B48,'Seasonal Customer Count'!$B:$P,16,FALSE),"Check")),0) -> 2 | P48: =Summary!$D$8*(K48*'Average Project Size'!$F$6+L48*'Average Project Size'!$F$7+M48*'Average Project Size'!$F$8+N48*'Average Project Size'!$F$10+O48*'Average Project Size'!$F$9)/1000 -> 0.03833373387 | Q48: =Summary!$D$8*(K48*F48*'Average Project Size'!$F$6+L48*G48*'Average Project Size'!$F$7+M48*H48*'Average Project Size'!$F$8+N48*I48*'Average Project Size'!$F$10+O48*J48*'Average Project Size'!$F$9)/1000 -> 0.01161527461
B49: ='Peak Identification'!B47 -> BKAT12 | C49: ='Peak Identification'!D47 -> S | D49: ='Peak Identification'!E47 -> 14 | E49: =VLOOKUP($D49,'DER Output'!$S$17:$X$41,6,FALSE) -> 0.266943495 | F49: =IF($C49="S",VLOOKUP($D49,'DER Output'!$S$18:$W$41,2,FALSE),VLOOKUP($D49,'DER Output'!$S$18:$W$41,3,FALSE)) -> 0.6542659397 | G49: =IF($C49="S",VLOOKUP($D49,'DER Output'!$S$18:$W$41,4,FALSE),VLOOKUP($D49,'DER Output'!$S$18:$W$41,5,FALSE)) -> 0.6542659397 | H49: =IF($C49="S",VLOOKUP($D49,'DER Output'!$S$18:$W$41,4,FALSE),VLOOKUP($D49,'DER Output'!$S$18:$W$41,5,FALSE)) -> 0.6542659397 | I49: =IF($C49="S",VLOOKUP($D49,'DER Output'!$S$18:$W$41,4,FALSE),VLOOKUP($D49,'DER Output'!$S$18:$W$41,5,FALSE)) -> 0.6542659397 | J49: =IF($C49="S",VLOOKUP($D49,'DER Output'!$S$18:$W$41,4,FALSE),VLOOKUP($D49,'DER Output'!$S$18:$W$41,5,FALSE)) -> 0.6542659397 | K49: =IFERROR(IF(OR(C49="S",C49="D"),VLOOKUP(B49,'Seasonal Customer Count'!$B:$I,4,FALSE),IF(C49="W",VLOOKUP(B49,'Seasonal Customer Count'!$B:$P,12,FALSE),"Check")),0) -> 206 | L49: =IFERROR(IF(OR(C49="S",C49="D"),VLOOKUP(B49,'Seasonal Customer Count'!$B:$P,5,FALSE),IF(C49="W",VLOOKUP(B49,'Seasonal Customer Count'!$B:$P,13,FALSE),"Check")),0) -> 14 | M49: =IFERROR(IF(OR(C49="S",C49="D"),VLOOKUP(B49,'Seasonal Customer Count'!$B:$P,6,FALSE),IF(C49="W",VLOOKUP(B49,'Seasonal Customer Count'!$B:$P,14,FALSE),"Check")),0) -> 15 | N49: =IFERROR(IF(OR(C49="S",C49="D"),VLOOKUP(B49,'Seasonal Customer Count'!$B:$P,7,FALSE),IF(C49="W",VLOOKUP(B49,'Seasonal Customer Count'!$B:$P,15,FALSE),"Check")),0) -> 2 | O49: =IFERROR(IF(OR(C49="S",C49="D"),VLOOKUP(B49,'Seasonal Customer Count'!$B:$P,8,FALSE),IF(C49="W",VLOOKUP(B49,'Seasonal Customer Count'!$B:$P,16,FALSE),"Check")),0) -> 5 | P49: =Summary!$D$8*(K49*'Average Project Size'!$F$6+L49*'Average Project Size'!$F$7+M49*'Average Project Size'!$F$8+N49*'Average Project Size'!$F$10+O49*'Average Project Size'!$F$9)/1000 -> 0.02084572143 | Q49: =Summary!$D$8*(K49*F49*'Average Project Size'!$F$6+L49*G49*'Average Project Size'!$F$7+M49*H49*'Average Project Size'!$F$8+N49*I49*'Average Project Size'!$F$10+O49*J49*'Average Project Size'!$F$9)/1000 -> 0.01363864552
B50: ='Peak Identification'!B48 -> BKAT13 | C50: ='Peak Identification'!D48 -> S | D50: ='Peak Identification'!E48 -> 18 | E50: =VLOOKUP($D50,'DER Output'!$S$17:$X$41,6,FALSE) -> 0.1603239802 | F50: =IF($C50="S",VLOOKUP($D50,'DER Output'!$S$18:$W$41,2,FALSE),VLOOKUP($D50,'DER Output'!$S$18:$W$41,3,FALSE)) -> 0.172244238 | G50: =IF($C50="S",VLOOKUP($D50,'DER Output'!$S$18:$W$41,4,FALSE),VLOOKUP($D50,'DER Output'!$S$18:$W$41,5,FALSE)) -> 0.172244238 | H50: =IF($C50="S",VLOOKUP($D50,'DER Output'!$S$18:$W$41,4,FALSE),VLOOKUP($D50,'DER Output'!$S$18:$W$41,5,FALSE)) -> 0.172244238 | I50: =IF($C50="S",VLOOKUP($D50,'DER Output'!$S$18:$W$41,4,FALSE),VLOOKUP($D50,'DER Output'!$S$18:$W$41,5,FALSE)) -> 0.172244238 | J50: =IF($C50="S",VLOOKUP($D50,'DER Output'!$S$18:$W$41,4,FALSE),VLOOKUP($D50,'DER Output'!$S$18:$W$41,5,FALSE)) -> 0.172244238 | K50: =IFERROR(IF(OR(C50="S",C50="D"),VLOOKUP(B50,'Seasonal Customer Count'!$B:$I,4,FALSE),IF(C50="W",VLOOKUP(B50,'Seasonal Customer Count'!$B:$P,12,FALSE),"Check")),0) -> 1137 | L50: =IFERROR(IF(OR(C50="S",C50="D"),VLOOKUP(B50,'Seasonal Customer Count'!$B:$P,5,FALSE),IF(C50="W",VLOOKUP(B50,'Seasonal Customer Count'!$B:$P,13,FALSE),"Check")),0) -> 45 | M50: =IFERROR(IF(OR(C50="S",C50="D"),VLOOKUP(B50,'Seasonal Customer Count'!$B:$P,6,FALSE),IF(C50="W",VLOOKUP(B50,'Seasonal Customer Count'!$B:$P,14,FALSE),"Check")),0) -> 30 | N50: =IFERROR(IF(OR(C50="S",C50="D"),VLOOKUP(B50,'Seasonal Customer Count'!$B:$P,7,FALSE),IF(C50="W",VLOOKUP(B50,'Seasonal Customer Count'!$B:$P,15,FALSE),"Check")),0) -> 0 | O50: =IFERROR(IF(OR(C50="S",C50="D"),VLOOKUP(B50,'Seasonal Customer Count'!$B:$P,8,FALSE),IF(C50="W",VLOOKUP(B50,'Seasonal Customer Count'!$B:$P,16,FALSE),"Check")),0) -> 27 | P50: =Summary!$D$8*(K50*'Average Project Size'!$F$6+L50*'Average Project Size'!$F$7+M50*'Average Project Size'!$F$8+N50*'Average Project Size'!$F$10+O50*'Average Project Size'!$F$9)/1000 -> 0.0708256352 | Q50: =Summary!$D$8*(K50*F50*'Average Project Size'!$F$6+L50*G50*'Average Project Size'!$F$7+M50*H50*'Average Project Size'!$F$8+N50*I50*'Average Project Size'!$F$10+O50*J50*'Average Project Size'!$F$9)/1000 -> 0.01219930757
B51: ='Peak Identification'!B49 -> BKAT14 | C51: ='Peak Identification'!D49 -> S | D51: ='Peak Identification'!E49 -> 17 | E51: =VLOOKUP($D51,'DER Output'!$S$17:$X$41,6,FALSE) -> 0.1917483871 | F51: =IF($C51="S",VLOOKUP($D51,'DER Output'!$S$18:$W$41,2,FALSE),VLOOKUP($D51,'DER Output'!$S$18:$W$41,3,FALSE)) -> 0.3030039978 | G51: =IF($C51="S",VLOOKUP($D51,'DER Output'!$S$18:$W$41,4,FALSE),VLOOKUP($D51,'DER Output'!$S$18:$W$41,5,FALSE)) -> 0.3030039978 | H51: =IF($C51="S",VLOOKUP($D51,'DER Output'!$S$18:$W$41,4,FALSE),VLOOKUP($D51,'DER Output'!$S$18:$W$41,5,FALSE)) -> 0.3030039978 | I51: =IF($C51="S",VLOOKUP($D51,'DER Output'!$S$18:$W$41,4,FALSE),VLOOKUP($D51,'DER Output'!$S$18:$W$41,5,FALSE)) -> 0.3030039978 | J51: =IF($C51="S",VLOOKUP($D51,'DER Output'!$S$18:$W$41,4,FALSE),VLOOKUP($D51,'DER Output'!$S$18:$W$41,5,FALSE)) -> 0.3030039978 | K51: =IFERROR(IF(OR(C51="S",C51="D"),VLOOKUP(B51,'Seasonal Customer Count'!$B:$I,4,FALSE),IF(C51="W",VLOOKUP(B51,'Seasonal Customer Count'!$B:$P,12,FALSE),"Check")),0) -> 1621 | L51: =IFERROR(IF(OR(C51="S",C51="D"),VLOOKUP(B51,'Seasonal Customer Count'!$B:$P,5,FALSE),IF(C51="W",VLOOKUP(B51,'Seasonal Customer Count'!$B:$P,13,FALSE),"Check")),0) -> 22 | M51: =IFERROR(IF(OR(C51="S",C51="D"),VLOOKUP(B51,'Seasonal Customer Count'!$B:$P,6,FALSE),IF(C51="W",VLOOKUP(B51,'Seasonal Customer Count'!$B:$P,14,FALSE),"Check")),0) -> 20 | N51: =IFERROR(IF(OR(C51="S",C51="D"),VLOOKUP(B51,'Seasonal Customer Count'!$B:$P,7,FALSE),IF(C51="W",VLOOKUP(B51,'Seasonal Customer Count'!$B:$P,15,FALSE),"Check")),0) -> 0 | O51: =IFERROR(IF(OR(C51="S",C51="D"),VLOOKUP(B51,'Seasonal Customer Count'!$B:$P,8,FALSE),IF(C51="W",VLOOKUP(B51,'Seasonal Customer Count'!$B:$P,16,FALSE),"Check")),0) -> 1 | P51: =Summary!$D$8*(K51*'Average Project Size'!$F$6+L51*'Average Project Size'!$F$7+M51*'Average Project Size'!$F$8+N51*'Average Project Size'!$F$10+O51*'Average Project Size'!$F$9)/1000 -> 0.07011981454 | Q51: =Summary!$D$8*(K51*F51*'Average Project Size'!$F$6+L51*G51*'Average Project Size'!$F$7+M51*H51*'Average Project Size'!$F$8+N51*I51*'Average Project Size'!$F$10+O51*J51*'Average Project Size'!$F$9)/1000 -> 0.02124658413
B52: ='Peak Identification'!B50 -> BKAT15 | C52: ='Peak Identification'!D50 -> S | D52: ='Peak Identification'!E50 -> 18 | E52: =VLOOKUP($D52,'DER Output'!$S$17:$X$41,6,FALSE) -> 0.1603239802 | F52: =IF($C52="S",VLOOKUP($D52,'DER Output'!$S$18:$W$41,2,FALSE),VLOOKUP($D52,'DER Output'!$S$18:$W$41,3,FALSE)) -> 0.172244238 | G52: =IF($C52="S",VLOOKUP($D52,'DER Output'!$S$18:$W$41,4,FALSE),VLOOKUP($D52,'DER Output'!$S$18:$W$41,5,FALSE)) -> 0.172244238 | H52: =IF($C52="S",VLOOKUP($D52,'DER Output'!$S$18:$W$41,4,FALSE),VLOOKUP($D52,'DER Output'!$S$18:$W$41,5,FALSE)) -> 0.172244238 | I52: =IF($C52="S",VLOOKUP($D52,'DER Output'!$S$18:$W$41,4,FALSE),VLOOKUP($D52,'DER Output'!$S$18:$W$41,5,FALSE)) -> 0.172244238 | J52: =IF($C52="S",VLOOKUP($D52,'DER Output'!$S$18:$W$41,4,FALSE),VLOOKUP($D52,'DER Output'!$S$18:$W$41,5,FALSE)) -> 0.172244238 | K52: =IFERROR(IF(OR(C52="S",C52="D"),VLOOKUP(B52,'Seasonal Customer Count'!$B:$I,4,FALSE),IF(C52="W",VLOOKUP(B52,'Seasonal Customer Count'!$B:$P,12,FALSE),"Check")),0) -> 1832 | L52: =IFERROR(IF(OR(C52="S",C52="D"),VLOOKUP(B52,'Seasonal Customer Count'!$B:$P,5,FALSE),IF(C52="W",VLOOKUP(B52,'Seasonal Customer Count'!$B:$P,13,FALSE),"Check")),0) -> 25 | M52: =IFERROR(IF(OR(C52="S",C52="D"),VLOOKUP(B52,'Seasonal Customer Count'!$B:$P,6,FALSE),IF(C52="W",VLOOKUP(B52,'Seasonal Customer Count'!$B:$P,14,FALSE),"Check")),0) -> 46 | N52: =IFERROR(IF(OR(C52="S",C52="D"),VLOOKUP(B52,'Seasonal Customer Count'!$B:$P,7,FALSE),IF(C52="W",VLOOKUP(B52,'Seasonal Customer Count'!$B:$P,15,FALSE),"Check")),0) -> 0 | O52: =IFERROR(IF(OR(C52="S",C52="D"),VLOOKUP(B52,'Seasonal Customer Count'!$B:$P,8,FALSE),IF(C52="W",VLOOKUP(B52,'Seasonal Customer Count'!$B:$P,16,FALSE),"Check")),0) -> 0 | P52: =Summary!$D$8*(K52*'Average Project Size'!$F$6+L52*'Average Project Size'!$F$7+M52*'Average Project Size'!$F$8+N52*'Average Project Size'!$F$10+O52*'Average Project Size'!$F$9)/1000 -> 0.08256207205 | Q52: =Summary!$D$8*(K52*F52*'Average Project Size'!$F$6+L52*G52*'Average Project Size'!$F$7+M52*H52*'Average Project Size'!$F$8+N52*I52*'Average Project Size'!$F$10+O52*J52*'Average Project Size'!$F$9)/1000 -> 0.01422084119
B53: ='Peak Identification'!B51 -> BKAT17 | C53: ='Peak Identification'!D51 -> W | D53: ='Peak Identification'!E51 -> 15 | E53: =VLOOKUP($D53,'DER Output'!$S$17:$X$41,6,FALSE) -> 0.2467532468 | F53: =IF($C53="S",VLOOKUP($D53,'DER Output'!$S$18:$W$41,2,FALSE),VLOOKUP($D53,'DER Output'!$S$18:$W$41,3,FALSE)) -> 0.1862014198 | G53: =IF($C53="S",VLOOKUP($D53,'DER Output'!$S$18:$W$41,4,FALSE),VLOOKUP($D53,'DER Output'!$S$18:$W$41,5,FALSE)) -> 0.1862014198 | H53: =IF($C53="S",VLOOKUP($D53,'DER Output'!$S$18:$W$41,4,FALSE),VLOOKUP($D53,'DER Output'!$S$18:$W$41,5,FALSE)) -> 0.1862014198 | I53: =IF($C53="S",VLOOKUP($D53,'DER Output'!$S$18:$W$41,4,FALSE),VLOOKUP($D53,'DER Output'!$S$18:$W$41,5,FALSE)) -> 0.1862014198 | J53: =IF($C53="S",VLOOKUP($D53,'DER Output'!$S$18:$W$41,4,FALSE),VLOOKUP($D53,'DER Output'!$S$18:$W$41,5,FALSE)) -> 0.1862014198 | K53: =IFERROR(IF(OR(C53="S",C53="D"),VLOOKUP(B53,'Seasonal Customer Count'!$B:$I,4,FALSE),IF(C53="W",VLOOKUP(B53,'Seasonal Customer Count'!$B:$P,12,FALSE),"Check")),0) -> 25 | L53: =IFERROR(IF(OR(C53="S",C53="D"),VLOOKUP(B53,'Seasonal Customer Count'!$B:$P,5,FALSE),IF(C53="W",VLOOKUP(B53,'Seasonal Customer Count'!$B:$P,13,FALSE),"Check")),0) -> 129 | M53: =IFERROR(IF(OR(C53="S",C53="D"),VLOOKUP(B53,'Seasonal Customer Count'!$B:$P,6,FALSE),IF(C53="W",VLOOKUP(B53,'Seasonal Customer Count'!$B:$P,14,FALSE),"Check")),0) -> 2 | N53: =IFERROR(IF(OR(C53="S",C53="D"),VLOOKUP(B53,'Seasonal Customer Count'!$B:$P,7,FALSE),IF(C53="W",VLOOKUP(B53,'Seasonal Customer Count'!$B:$P,15,FALSE),"Check")),0) -> 6 | O53: =IFERROR(IF(OR(C53="S",C53="D"),VLOOKUP(B53,'Seasonal Customer Count'!$B:$P,8,FALSE),IF(C53="W",VLOOKUP(B53,'Seasonal Customer Count'!$B:$P,16,FALSE),"Check")),0) -> 0 | P53: =Summary!$D$8*(K53*'Average Project Size'!$F$6+L53*'Average Project Size'!$F$7+M53*'Average Project Size'!$F$8+N53*'Average Project Size'!$F$10+O53*'Average Project Size'!$F$9)/1000 -> 0.02841245378 | Q53: =Summary!$D$8*(K53*F53*'Average Project Size'!$F$6+L53*G53*'Average Project Size'!$F$7+M53*H53*'Average Project Size'!$F$8+N53*I53*'Average Project Size'!$F$10+O53*J53*'Average Project Size'!$F$9)/1000 -> 0.005290439235
B54: ='Peak Identification'!B52 -> BKAT16 | C54: ='Peak Identification'!D52 -> S | D54: ='Peak Identification'!E52 -> 0 | E54: =VLOOKUP($D54,'DER Output'!$S$17:$X$41,6,FALSE) -> 0 | F54: =IF($C54="S",VLOOKUP($D54,'DER Output'!$S$18:$W$41,2,FALSE),VLOOKUP($D54,'DER Output'!$S$18:$W$41,3,FALSE)) -> 0.0005914110341 | G54: =IF($C54="S",VLOOKUP($D54,'DER Output'!$S$18:$W$41,4,FALSE),VLOOKUP($D54,'DER Output'!$S$18:$W$41,5,FALSE)) -> 0.0005914110341 | H54: =IF($C54="S",VLOOKUP($D54,'DER Output'!$S$18:$W$41,4,FALSE),VLOOKUP($D54,'DER Output'!$S$18:$W$41,5,FALSE)) -> 0.0005914110341 | I54: =IF($C54="S",VLOOKUP($D54,'DER Output'!$S$18:$W$41,4,FALSE),VLOOKUP($D54,'DER Output'!$S$18:$W$41,5,FALSE)) -> 0.0005914110341 | J54: =IF($C54="S",VLOOKUP($D54,'DER Output'!$S$18:$W$41,4,FALSE),VLOOKUP($D54,'DER Output'!$S$18:$W$41,5,FALSE)) -> 0.0005914110341 | K54: =IFERROR(IF(OR(C54="S",C54="D"),VLOOKUP(B54,'Seasonal Customer Count'!$B:$I,4,FALSE),IF(C54="W",VLOOKUP(B54,'Seasonal Customer Count'!$B:$P,12,FALSE),"Check")),0) -> 0 | L54: =IFERROR(IF(OR(C54="S",C54="D"),VLOOKUP(B54,'Seasonal Customer Count'!$B:$P,5,FALSE),IF(C54="W",VLOOKUP(B54,'Seasonal Customer Count'!$B:$P,13,FALSE),"Check")),0) -> 0 | M54: =IFERROR(IF(OR(C54="S",C54="D"),VLOOKUP(B54,'Seasonal Customer Count'!$B:$P,6,FALSE),IF(C54="W",VLOOKUP(B54,'Seasonal Customer Count'!$B:$P,14,FALSE),"Check")),0) -> 0 | N54: =IFERROR(IF(OR(C54="S",C54="D"),VLOOKUP(B54,'Seasonal Customer Count'!$B:$P,7,FALSE),IF(C54="W",VLOOKUP(B54,'Seasonal Customer Count'!$B:$P,15,FALSE),"Check")),0) -> 0 | O54: =IFERROR(IF(OR(C54="S",C54="D"),VLOOKUP(B54,'Seasonal Customer Count'!$B:$P,8,FALSE),IF(C54="W",VLOOKUP(B54,'Seasonal Customer Count'!$B:$P,16,FALSE),"Check")),0) -> 0 | P54: =Summary!$D$8*(K54*'Average Project Size'!$F$6+L54*'Average Project Size'!$F$7+M54*'Average Project Size'!$F$8+N54*'Average Project Size'!$F$10+O54*'Average Project Size'!$F$9)/1000 -> 0 | Q54: =Summary!$D$8*(K54*F54*'Average Project Size'!$F$6+L54*G54*'Average Project Size'!$F$7+M54*H54*'Average Project Size'!$F$8+N54*I54*'Average Project Size'!$F$10+O54*J54*'Average Project Size'!$F$9)/1000 -> 0
B55: ='Peak Identification'!B53 -> BKAT T-131 | C55: ='Peak Identification'!D53 -> S | D55: ='Peak Identification'!E53 -> 17 | E55: =VLOOKUP($D55,'DER Output'!$S$17:$X$41,6,FALSE) -> 0.1917483871 | F55: =IF($C55="S",VLOOKUP($D55,'DER Output'!$S$18:$W$41,2,FALSE),VLOOKUP($D55,'DER Output'!$S$18:$W$41,3,FALSE)) -> 0.3030039978 | G55: =IF($C55="S",VLOOKUP($D55,'DER Output'!$S$18:$W$41,4,FALSE),VLOOKUP($D55,'DER Output'!$S$18:$W$41,5,FALSE)) -> 0.3030039978 | H55: =IF($C55="S",VLOOKUP($D55,'DER Output'!$S$18:$W$41,4,FALSE),VLOOKUP($D55,'DER Output'!$S$18:$W$41,5,FALSE)) -> 0.3030039978 | I55: =IF($C55="S",VLOOKUP($D55,'DER Output'!$S$18:$W$41,4,FALSE),VLOOKUP($D55,'DER Output'!$S$18:$W$41,5,FALSE)) -> 0.3030039978 | J55: =IF($C55="S",VLOOKUP($D55,'DER Output'!$S$18:$W$41,4,FALSE),VLOOKUP($D55,'DER Output'!$S$18:$W$41,5,FALSE)) -> 0.3030039978 | K55: =IFERROR(IF(OR(C55="S",C55="D"),VLOOKUP(B55,'Seasonal Customer Count'!$B:$I,4,FALSE),IF(C55="W",VLOOKUP(B55,'Seasonal Customer Count'!$B:$P,12,FALSE),"Check")),0) -> 3585 | L55: =IFERROR(IF(OR(C55="S",C55="D"),VLOOKUP(B55,'Seasonal Customer Count'!$B:$P,5,FALSE),IF(C55="W",VLOOKUP(B55,'Seasonal Customer Count'!$B:$P,13,FALSE),"Check")),0) -> 90 | M55: =IFERROR(IF(OR(C55="S",C55="D"),VLOOKUP(B55,'Seasonal Customer Count'!$B:$P,6,FALSE),IF(C55="W",VLOOKUP(B55,'Seasonal Customer Count'!$B:$P,14,FALSE),"Check")),0) -> 99 | N55: =IFERROR(IF(OR(C55="S",C55="D"),VLOOKUP(B55,'Seasonal Customer Count'!$B:$P,7,FALSE),IF(C55="W",VLOOKUP(B55,'Seasonal Customer Count'!$B:$P,15,FALSE),"Check")),0) -> 4 | O55: =IFERROR(IF(OR(C55="S",C55="D"),VLOOKUP(B55,'Seasonal Customer Count'!$B:$P,8,FALSE),IF(C55="W",VLOOKUP(B55,'Seasonal Customer Count'!$B:$P,16,FALSE),"Check")),0) -> 35 | P55: =Summary!$D$8*(K55*'Average Project Size'!$F$6+L55*'Average Project Size'!$F$7+M55*'Average Project Size'!$F$8+N55*'Average Project Size'!$F$10+O55*'Average Project Size'!$F$9)/1000 -> 0.200124905 | Q55: =Summary!$D$8*(K55*F55*'Average Project Size'!$F$6+L55*G55*'Average Project Size'!$F$7+M55*H55*'Average Project Size'!$F$8+N55*I55*'Average Project Size'!$F$10+O55*J55*'Average Project Size'!$F$9)/1000 -> 0.06063864628
B56: ='Peak Identification'!B54 -> BKAT T-132 | C56: ='Peak Identification'!D54 -> S | D56: ='Peak Identification'!E54 -> 18 | E56: =VLOOKUP($D56,'DER Output'!$S$17:$X$41,6,FALSE) -> 0.1603239802 | F56: =IF($C56="S",VLOOKUP($D56,'DER Output'!$S$18:$W$41,2,FALSE),VLOOKUP($D56,'DER Output'!$S$18:$W$41,3,FALSE)) -> 0.172244238 | G56: =IF($C56="S",VLOOKUP($D56,'DER Output'!$S$18:$W$41,4,FALSE),VLOOKUP($D56,'DER Output'!$S$18:$W$41,5,FALSE)) -> 0.172244238 | H56: =IF($C56="S",VLOOKUP($D56,'DER Output'!$S$18:$W$41,4,FALSE),VLOOKUP($D56,'DER Output'!$S$18:$W$41,5,FALSE)) -> 0.172244238 | I56: =IF($C56="S",VLOOKUP($D56,'DER Output'!$S$18:$W$41,4,FALSE),VLOOKUP($D56,'DER Output'!$S$18:$W$41,5,FALSE)) -> 0.172244238 | J56: =IF($C56="S",VLOOKUP($D56,'DER Output'!$S$18:$W$41,4,FALSE),VLOOKUP($D56,'DER Output'!$S$18:$W$41,5,FALSE)) -> 0.172244238 | K56: =IFERROR(IF(OR(C56="S",C56="D"),VLOOKUP(B56,'Seasonal Customer Count'!$B:$I,4,FALSE),IF(C56="W",VLOOKUP(B56,'Seasonal Customer Count'!$B:$P,12,FALSE),"Check")),0) -> 1832 | L56: =IFERROR(IF(OR(C56="S",C56="D"),VLOOKUP(B56,'Seasonal Customer Count'!$B:$P,5,FALSE),IF(C56="W",VLOOKUP(B56,'Seasonal Customer Count'!$B:$P,13,FALSE),"Check")),0) -> 25 | M56: =IFERROR(IF(OR(C56="S",C56="D"),VLOOKUP(B56,'Seasonal Customer Count'!$B:$P,6,FALSE),IF(C56="W",VLOOKUP(B56,'Seasonal Customer Count'!$B:$P,14,FALSE),"Check")),0) -> 46 | N56: =IFERROR(IF(OR(C56="S",C56="D"),VLOOKUP(B56,'Seasonal Customer Count'!$B:$P,7,FALSE),IF(C56="W",VLOOKUP(B56,'Seasonal Customer Count'!$B:$P,15,FALSE),"Check")),0) -> 1 | O56: =IFERROR(IF(OR(C56="S",C56="D"),VLOOKUP(B56,'Seasonal Customer Count'!$B:$P,8,FALSE),IF(C56="W",VLOOKUP(B56,'Seasonal Customer Count'!$B:$P,16,FALSE),"Check")),0) -> 0 | P56: =Summary!$D$8*(K56*'Average Project Size'!$F$6+L56*'Average Project Size'!$F$7+M56*'Average Project Size'!$F$8+N56*'Average Project Size'!$F$10+O56*'Average Project Size'!$F$9)/1000 -> 0.08549758307 | Q56: =Summary!$D$8*(K56*F56*'Average Project Size'!$F$6+L56*G56*'Average Project Size'!$F$7+M56*H56*'Average Project Size'!$F$8+N56*I56*'Average Project Size'!$F$10+O56*J56*'Average Project Size'!$F$9)/1000 -> 0.01472646605
B57: ='Peak Identification'!B55 -> BKCK11 | C57: ='Peak Identification'!D55 -> S | D57: ='Peak Identification'!E55 -> 10 | E57: =VLOOKUP($D57,'DER Output'!$S$17:$X$41,6,FALSE) -> 0 | F57: =IF($C57="S",VLOOKUP($D57,'DER Output'!$S$18:$W$41,2,FALSE),VLOOKUP($D57,'DER Output'!$S$18:$W$41,3,FALSE)) -> 0.4936833999 | G57: =IF($C57="S",VLOOKUP($D57,'DER Output'!$S$18:$W$41,4,FALSE),VLOOKUP($D57,'DER Output'!$S$18:$W$41,5,FALSE)) -> 0.4936833999 | H57: =IF($C57="S",VLOOKUP($D57,'DER Output'!$S$18:$W$41,4,FALSE),VLOOKUP($D57,'DER Output'!$S$18:$W$41,5,FALSE)) -> 0.4936833999 | I57: =IF($C57="S",VLOOKUP($D57,'DER Output'!$S$18:$W$41,4,FALSE),VLOOKUP($D57,'DER Output'!$S$18:$W$41,5,FALSE)) -> 0.4936833999 | J57: =IF($C57="S",VLOOKUP($D57,'DER Output'!$S$18:$W$41,4,FALSE),VLOOKUP($D57,'DER Output'!$S$18:$W$41,5,FALSE)) -> 0.4936833999 | K57: =IFERROR(IF(OR(C57="S",C57="D"),VLOOKUP(B57,'Seasonal Customer Count'!$B:$I,4,FALSE),IF(C57="W",VLOOKUP(B57,'Seasonal Customer Count'!$B:$P,12,FALSE),"Check")),0) -> 62 | L57: =IFERROR(IF(OR(C57="S",C57="D"),VLOOKUP(B57,'Seasonal Customer Count'!$B:$P,5,FALSE),IF(C57="W",VLOOKUP(B57,'Seasonal Customer Count'!$B:$P,13,FALSE),"Check")),0) -> 11 | M57: =IFERROR(IF(OR(C57="S",C57="D"),VLOOKUP(B57,'Seasonal Customer Count'!$B:$P,6,FALSE),IF(C57="W",VLOOKUP(B57,'Seasonal Customer Count'!$B:$P,14,FALSE),"Check")),0) -> 26 | N57: =IFERROR(IF(OR(C57="S",C57="D"),VLOOKUP(B57,'Seasonal Customer Count'!$B:$P,7,FALSE),IF(C57="W",VLOOKUP(B57,'Seasonal Customer Count'!$B:$P,15,FALSE),"Check")),0) -> 0 | O57: =IFERROR(IF(OR(C57="S",C57="D"),VLOOKUP(B57,'Seasonal Customer Count'!$B:$P,8,FALSE),IF(C57="W",VLOOKUP(B57,'Seasonal Customer Count'!$B:$P,16,FALSE),"Check")),0) -> 58 | P57: =Summary!$D$8*(K57*'Average Project Size'!$F$6+L57*'Average Project Size'!$F$7+M57*'Average Project Size'!$F$8+N57*'Average Project Size'!$F$10+O57*'Average Project Size'!$F$9)/1000 -> 0.04463237349 | Q57: =Summary!$D$8*(K57*F57*'Average Project Size'!$F$6+L57*G57*'Average Project Size'!$F$7+M57*H57*'Average Project Size'!$F$8+N57*I57*'Average Project Size'!$F$10+O57*J57*'Average Project Size'!$F$9)/1000 -> 0.02203426189
B58: ='Peak Identification'!B56 -> BKCK12 | C58: ='Peak Identification'!D56 -> S | D58: ='Peak Identification'!E56 -> 12 | E58: =VLOOKUP($D58,'DER Output'!$S$17:$X$41,6,FALSE) -> 0 | F58: =IF($C58="S",VLOOKUP($D58,'DER Output'!$S$18:$W$41,2,FALSE),VLOOKUP($D58,'DER Output'!$S$18:$W$41,3,FALSE)) -> 0.6810575376 | G58: =IF($C58="S",VLOOKUP($D58,'DER Output'!$S$18:$W$41,4,FALSE),VLOOKUP($D58,'DER Output'!$S$18:$W$41,5,FALSE)) -> 0.6810575376 | H58: =IF($C58="S",VLOOKUP($D58,'DER Output'!$S$18:$W$41,4,FALSE),VLOOKUP($D58,'DER Output'!$S$18:$W$41,5,FALSE)) -> 0.6810575376 | I58: =IF($C58="S",VLOOKUP($D58,'DER Output'!$S$18:$W$41,4,FALSE),VLOOKUP($D58,'DER Output'!$S$18:$W$41,5,FALSE)) -> 0.6810575376 | J58: =IF($C58="S",VLOOKUP($D58,'DER Output'!$S$18:$W$41,4,FALSE),VLOOKUP($D58,'DER Output'!$S$18:$W$41,5,FALSE)) -> 0.6810575376 | K58: =IFERROR(IF(OR(C58="S",C58="D"),VLOOKUP(B58,'Seasonal Customer Count'!$B:$I,4,FALSE),IF(C58="W",VLOOKUP(B58,'Seasonal Customer Count'!$B:$P,12,FALSE),"Check")),0) -> 85 | L58: =IFERROR(IF(OR(C58="S",C58="D"),VLOOKUP(B58,'Seasonal Customer Count'!$B:$P,5,FALSE),IF(C58="W",VLOOKUP(B58,'Seasonal Customer Count'!$B:$P,13,FALSE),"Check")),0) -> 16 | M58: =IFERROR(IF(OR(C58="S",C58="D"),VLOOKUP(B58,'Seasonal Customer Count'!$B:$P,6,FALSE),IF(C58="W",VLOOKUP(B58,'Seasonal Customer Count'!$B:$P,14,FALSE),"Check")),0) -> 51 | N58: =IFERROR(IF(OR(C58="S",C58="D"),VLOOKUP(B58,'Seasonal Customer Count'!$B:$P,7,FALSE),IF(C58="W",VLOOKUP(B58,'Seasonal Customer Count'!$B:$P,15,FALSE),"Check")),0) -> 0 | O58: =IFERROR(IF(OR(C58="S",C58="D"),VLOOKUP(B58,'Seasonal Customer Count'!$B:$P,8,FALSE),IF(C58="W",VLOOKUP(B58,'Seasonal Customer Count'!$B:$P,16,FALSE),"Check")),0) -> 79 | P58: =Summary!$D$8*(K58*'Average Project Size'!$F$6+L58*'Average Project Size'!$F$7+M58*'Average Project Size'!$F$8+N58*'Average Project Size'!$F$10+O58*'Average Project Size'!$F$9)/1000 -> 0.06356946885 | Q58: =Summary!$D$8*(K58*F58*'Average Project Size'!$F$6+L58*G58*'Average Project Size'!$F$7+M58*H58*'Average Project Size'!$F$8+N58*I58*'Average Project Size'!$F$10+O58*J58*'Average Project Size'!$F$9)/1000 -> 0.04329446592
B59: ='Peak Identification'!B57 -> BKCK T-051 | C59: ='Peak Identification'!D57 -> S | D59: ='Peak Identification'!E57 -> 11 | E59: =VLOOKUP($D59,'DER Output'!$S$17:$X$41,6,FALSE) -> 0 | F59: =IF($C59="S",VLOOKUP($D59,'DER Output'!$S$18:$W$41,2,FALSE),VLOOKUP($D59,'DER Output'!$S$18:$W$41,3,FALSE)) -> 0.6126839513 | G59: =IF($C59="S",VLOOKUP($D59,'DER Output'!$S$18:$W$41,4,FALSE),VLOOKUP($D59,'DER Output'!$S$18:$W$41,5,FALSE)) -> 0.6126839513 | H59: =IF($C59="S",VLOOKUP($D59,'DER Output'!$S$18:$W$41,4,FALSE),VLOOKUP($D59,'DER Output'!$S$18:$W$41,5,FALSE)) -> 0.6126839513 | I59: =IF($C59="S",VLOOKUP($D59,'DER Output'!$S$18:$W$41,4,FALSE),VLOOKUP($D59,'DER Output'!$S$18:$W$41,5,FALSE)) -> 0.6126839513 | J59: =IF($C59="S",VLOOKUP($D59,'DER Output'!$S$18:$W$41,4,FALSE),VLOOKUP($D59,'DER Output'!$S$18:$W$41,5,FALSE)) -> 0.6126839513 | K59: =IFERROR(IF(OR(C59="S",C59="D"),VLOOKUP(B59,'Seasonal Customer Count'!$B:$I,4,FALSE),IF(C59="W",VLOOKUP(B59,'Seasonal Customer Count'!$B:$P,12,FALSE),"Check")),0) -> 147 | L59: =IFERROR(IF(OR(C59="S",C59="D"),VLOOKUP(B59,'Seasonal Customer Count'!$B:$P,5,FALSE),IF(C59="W",VLOOKUP(B59,'Seasonal Customer Count'!$B:$P,13,FALSE),"Check")),0) -> 27 | M59: =IFERROR(IF(OR(C59="S",C59="D"),VLOOKUP(B59,'Seasonal Customer Count'!$B:$P,6,FALSE),IF(C59="W",VLOOKUP(B59,'Seasonal Customer Count'!$B:$P,14,FALSE),"Check")),0) -> 77 | N59: =IFERROR(IF(OR(C59="S",C59="D"),VLOOKUP(B59,'Seasonal Customer Count'!$B:$P,7,FALSE),IF(C59="W",VLOOKUP(B59,'Seasonal Customer Count'!$B:$P,15,FALSE),"Check")),0) -> 0 | O59: =IFERROR(IF(OR(C59="S",C59="D"),VLOOKUP(B59,'Seasonal Customer Count'!$B:$P,8,FALSE),IF(C59="W",VLOOKUP(B59,'Seasonal Customer Count'!$B:$P,16,FALSE),"Check")),0) -> 137 | P59: =Summary!$D$8*(K59*'Average Project Size'!$F$6+L59*'Average Project Size'!$F$7+M59*'Average Project Size'!$F$8+N59*'Average Project Size'!$F$10+O59*'Average Project Size'!$F$9)/1000 -> 0.1082018423 | Q59: =Summary!$D$8*(K59*F59*'Average Project Size'!$F$6+L59*G59*'Average Project Size'!$F$7+M59*H59*'Average Project Size'!$F$8+N59*I59*'Average Project Size'!$F$10+O59*J59*'Average Project Size'!$F$9)/1000 -> 0.0662935323
B60: ='Peak Identification'!B58 -> BKFT11 | C60: ='Peak Identification'!D58 -> S | D60: ='Peak Identification'!E58 -> 21 | E60: =VLOOKUP($D60,'DER Output'!$S$17:$X$41,6,FALSE) -> 0 | F60: =IF($C60="S",VLOOKUP($D60,'DER Output'!$S$18:$W$41,2,FALSE),VLOOKUP($D60,'DER Output'!$S$18:$W$41,3,FALSE)) -> 0.0009506822843 | G60: =IF($C60="S",VLOOKUP($D60,'DER Output'!$S$18:$W$41,4,FALSE),VLOOKUP($D60,'DER Output'!$S$18:$W$41,5,FALSE)) -> 0.0009506822843 | H60: =IF($C60="S",VLOOKUP($D60,'DER Output'!$S$18:$W$41,4,FALSE),VLOOKUP($D60,'DER Output'!$S$18:$W$41,5,FALSE)) -> 0.0009506822843 | I60: =IF($C60="S",VLOOKUP($D60,'DER Output'!$S$18:$W$41,4,FALSE),VLOOKUP($D60,'DER Output'!$S$18:$W$41,5,FALSE)) -> 0.0009506822843 | J60: =IF($C60="S",VLOOKUP($D60,'DER Output'!$S$18:$W$41,4,FALSE),VLOOKUP($D60,'DER Output'!$S$18:$W$41,5,FALSE)) -> 0.0009506822843 | K60: =IFERROR(IF(OR(C60="S",C60="D"),VLOOKUP(B60,'Seasonal Customer Count'!$B:$I,4,FALSE),IF(C60="W",VLOOKUP(B60,'Seasonal Customer Count'!$B:$P,12,FALSE),"Check")),0) -> 259 | L60: =IFERROR(IF(OR(C60="S",C60="D"),VLOOKUP(B60,'Seasonal Customer Count'!$B:$P,5,FALSE),IF(C60="W",VLOOKUP(B60,'Seasonal Customer Count'!$B:$P,13,FALSE),"Check")),0) -> 9 | M60: =IFERROR(IF(OR(C60="S",C60="D"),VLOOKUP(B60,'Seasonal Customer Count'!$B:$P,6,FALSE),IF(C60="W",VLOOKUP(B60,'Seasonal Customer Count'!$B:$P,14,FALSE),"Check")),0) -> 15 | N60: =IFERROR(IF(OR(C60="S",C60="D"),VLOOKUP(B60,'Seasonal Customer Count'!$B:$P,7,FALSE),IF(C60="W",VLOOKUP(B60,'Seasonal Customer Count'!$B:$P,15,FALSE),"Check")),0) -> 0 | O60: =IFERROR(IF(OR(C60="S",C60="D"),VLOOKUP(B60,'Seasonal Customer Count'!$B:$P,8,FALSE),IF(C60="W",VLOOKUP(B60,'Seasonal Customer Count'!$B:$P,16,FALSE),"Check")),0) -> 57 | P60: =Summary!$D$8*(K60*'Average Project Size'!$F$6+L60*'Average Project Size'!$F$7+M60*'Average Project Size'!$F$8+N60*'Average Project Size'!$F$10+O60*'Average Project Size'!$F$9)/1000 -> 0.04978807585 | Q60: =Summary!$D$8*(K60*F60*'Average Project Size'!$F$6+L60*G60*'Average Project Size'!$F$7+M60*H60*'Average Project Size'!$F$8+N60*I60*'Average Project Size'!$F$10+O60*J60*'Average Project Size'!$F$9)/1000 -> 4.733264168e-05
B61: ='Peak Identification'!B59 -> BKFT12 | C61: ='Peak Identification'!D59 -> W | D61: ='Peak Identification'!E59 -> 10 | E61: =VLOOKUP($D61,'DER Output'!$S$17:$X$41,6,FALSE) -> 0 | F61: =IF($C61="S",VLOOKUP($D61,'DER Output'!$S$18:$W$41,2,FALSE),VLOOKUP($D61,'DER Output'!$S$18:$W$41,3,FALSE)) -> 0.1978203909 | G61: =IF($C61="S",VLOOKUP($D61,'DER Output'!$S$18:$W$41,4,FALSE),VLOOKUP($D61,'DER Output'!$S$18:$W$41,5,FALSE)) -> 0.1978203909 | H61: =IF($C61="S",VLOOKUP($D61,'DER Output'!$S$18:$W$41,4,FALSE),VLOOKUP($D61,'DER Output'!$S$18:$W$41,5,FALSE)) -> 0.1978203909 | I61: =IF($C61="S",VLOOKUP($D61,'DER Output'!$S$18:$W$41,4,FALSE),VLOOKUP($D61,'DER Output'!$S$18:$W$41,5,FALSE)) -> 0.1978203909 | J61: =IF($C61="S",VLOOKUP($D61,'DER Output'!$S$18:$W$41,4,FALSE),VLOOKUP($D61,'DER Output'!$S$18:$W$41,5,FALSE)) -> 0.1978203909 | K61: =IFERROR(IF(OR(C61="S",C61="D"),VLOOKUP(B61,'Seasonal Customer Count'!$B:$I,4,FALSE),IF(C61="W",VLOOKUP(B61,'Seasonal Customer Count'!$B:$P,12,FALSE),"Check")),0) -> 89 | L61: =IFERROR(IF(OR(C61="S",C61="D"),VLOOKUP(B61,'Seasonal Customer Count'!$B:$P,5,FALSE),IF(C61="W",VLOOKUP(B61,'Seasonal Customer Count'!$B:$P,13,FALSE),"Check")),0) -> 76 | M61: =IFERROR(IF(OR(C61="S",C61="D"),VLOOKUP(B61,'Seasonal Customer Count'!$B:$P,6,FALSE),IF(C61="W",VLOOKUP(B61,'Seasonal Customer Count'!$B:$P,14,FALSE),"Check")),0) -> 2 | N61: =IFERROR(IF(OR(C61="S",C61="D"),VLOOKUP(B61,'Seasonal Customer Count'!$B:$P,7,FALSE),IF(C61="W",VLOOKUP(B61,'Seasonal Customer Count'!$B:$P,15,FALSE),"Check")),0) -> 57 | O61: =IFERROR(IF(OR(C61="S",C61="D"),VLOOKUP(B61,'Seasonal Customer Count'!$B:$P,8,FALSE),IF(C61="W",VLOOKUP(B61,'Seasonal Customer Count'!$B:$P,16,FALSE),"Check")),0) -> 0 | P61: =Summary!$D$8*(K61*'Average Project Size'!$F$6+L61*'Average Project Size'!$F$7+M61*'Average Project Size'!$F$8+N61*'Average Project Size'!$F$10+O61*'Average Project Size'!$F$9)/1000 -> 0.1767799676 | Q61: =Summary!$D$8*(K61*F61*'Average Project Size'!$F$6+L61*G61*'Average Project Size'!$F$7+M61*H61*'Average Project Size'!$F$8+N61*I61*'Average Project Size'!$F$10+O61*J61*'Average Project Size'!$F$9)/1000 -> 0.0349706823
B62: ='Peak Identification'!B60 -> BKFT13 | C62: ='Peak Identification'!D60 -> W | D62: ='Peak Identification'!E60 -> 8 | E62: =VLOOKUP($D62,'DER Output'!$S$17:$X$41,6,FALSE) -> 0 | F62: =IF($C62="S",VLOOKUP($D62,'DER Output'!$S$18:$W$41,2,FALSE),VLOOKUP($D62,'DER Output'!$S$18:$W$41,3,FALSE)) -> 0.02435719405 | G62: =IF($C62="S",VLOOKUP($D62,'DER Output'!$S$18:$W$41,4,FALSE),VLOOKUP($D62,'DER Output'!$S$18:$W$41,5,FALSE)) -> 0.02435719405 | H62: =IF($C62="S",VLOOKUP($D62,'DER Output'!$S$18:$W$41,4,FALSE),VLOOKUP($D62,'DER Output'!$S$18:$W$41,5,FALSE)) -> 0.02435719405 | I62: =IF($C62="S",VLOOKUP($D62,'DER Output'!$S$18:$W$41,4,FALSE),VLOOKUP($D62,'DER Output'!$S$18:$W$41,5,FALSE)) -> 0.02435719405 | J62: =IF($C62="S",VLOOKUP($D62,'DER Output'!$S$18:$W$41,4,FALSE),VLOOKUP($D62,'DER Output'!$S$18:$W$41,5,FALSE)) -> 0.02435719405 | K62: =IFERROR(IF(OR(C62="S",C62="D"),VLOOKUP(B62,'Seasonal Customer Count'!$B:$I,4,FALSE),IF(C62="W",VLOOKUP(B62,'Seasonal Customer Count'!$B:$P,12,FALSE),"Check")),0) -> 19 | L62: =IFERROR(IF(OR(C62="S",C62="D"),VLOOKUP(B62,'Seasonal Customer Count'!$B:$P,5,FALSE),IF(C62="W",VLOOKUP(B62,'Seasonal Customer Count'!$B:$P,13,FALSE),"Check")),0) -> 23 | M62: =IFERROR(IF(OR(C62="S",C62="D"),VLOOKUP(B62,'Seasonal Customer Count'!$B:$P,6,FALSE),IF(C62="W",VLOOKUP(B62,'Seasonal Customer Count'!$B:$P,14,FALSE),"Check")),0) -> 1 | N62: =IFERROR(IF(OR(C62="S",C62="D"),VLOOKUP(B62,'Seasonal Customer Count'!$B:$P,7,FALSE),IF(C62="W",VLOOKUP(B62,'Seasonal Customer Count'!$B:$P,15,FALSE),"Check")),0) -> 0 | O62: =IFERROR(IF(OR(C62="S",C62="D"),VLOOKUP(B62,'Seasonal Customer Count'!$B:$P,8,FALSE),IF(C62="W",VLOOKUP(B62,'Seasonal Customer Count'!$B:$P,16,FALSE),"Check")),0) -> 0 | P62: =Summary!$D$8*(K62*'Average Project Size'!$F$6+L62*'Average Project Size'!$F$7+M62*'Average Project Size'!$F$8+N62*'Average Project Size'!$F$10+O62*'Average Project Size'!$F$9)/1000 -> 0.002614159382 | Q62: =Summary!$D$8*(K62*F62*'Average Project Size'!$F$6+L62*G62*'Average Project Size'!$F$7+M62*H62*'Average Project Size'!$F$8+N62*I62*'Average Project Size'!$F$10+O62*J62*'Average Project Size'!$F$9)/1000 -> 6.367358734e-05
B63: ='Peak Identification'!B61 -> BKFT14 | C63: ='Peak Identification'!D61 -> W | D63: ='Peak Identification'!E61 -> 8 | E63: =VLOOKUP($D63,'DER Output'!$S$17:$X$41,6,FALSE) -> 0 | F63: =IF($C63="S",VLOOKUP($D63,'DER Output'!$S$18:$W$41,2,FALSE),VLOOKUP($D63,'DER Output'!$S$18:$W$41,3,FALSE)) -> 0.02435719405 | G63: =IF($C63="S",VLOOKUP($D63,'DER Output'!$S$18:$W$41,4,FALSE),VLOOKUP($D63,'DER Output'!$S$18:$W$41,5,FALSE)) -> 0.02435719405 | H63: =IF($C63="S",VLOOKUP($D63,'DER Output'!$S$18:$W$41,4,FALSE),VLOOKUP($D63,'DER Output'!$S$18:$W$41,5,FALSE)) -> 0.02435719405 | I63: =IF($C63="S",VLOOKUP($D63,'DER Output'!$S$18:$W$41,4,FALSE),VLOOKUP($D63,'DER Output'!$S$18:$W$41,5,FALSE)) -> 0.02435719405 | J63: =IF($C63="S",VLOOKUP($D63,'DER Output'!$S$18:$W$41,4,FALSE),VLOOKUP($D63,'DER Output'!$S$18:$W$41,5,FALSE)) -> 0.02435719405 | K63: =IFERROR(IF(OR(C63="S",C63="D"),VLOOKUP(B63,'Seasonal Customer Count'!$B:$I,4,FALSE),IF(C63="W",VLOOKUP(B63,'Seasonal Customer Count'!$B:$P,12,FALSE),"Check")),0) -> 25 | L63: =IFERROR(IF(OR(C63="S",C63="D"),VLOOKUP(B63,'Seasonal Customer Count'!$B:$P,5,FALSE),IF(C63="W",VLOOKUP(B63,'Seasonal Customer Count'!$B:$P,13,FALSE),"Check")),0) -> 15 | M63: =IFERROR(IF(OR(C63="S",C63="D"),VLOOKUP(B63,'Seasonal Customer Count'!$B:$P,6,FALSE),IF(C63="W",VLOOKUP(B63,'Seasonal Customer Count'!$B:$P,14,FALSE),"Check")),0) -> 0 | N63: =IFERROR(IF(OR(C63="S",C63="D"),VLOOKUP(B63,'Seasonal Customer Count'!$B:$P,7,FALSE),IF(C63="W",VLOOKUP(B63,'Seasonal Customer Count'!$B:$P,15,FALSE),"Check")),0) -> 46 | O63: =IFERROR(IF(OR(C63="S",C63="D"),VLOOKUP(B63,'Seasonal Customer Count'!$B:$P,8,FALSE),IF(C63="W",VLOOKUP(B63,'Seasonal Customer Count'!$B:$P,16,FALSE),"Check")),0) -> 0 | P63: =Summary!$D$8*(K63*'Average Project Size'!$F$6+L63*'Average Project Size'!$F$7+M63*'Average Project Size'!$F$8+N63*'Average Project Size'!$F$10+O63*'Average Project Size'!$F$9)/1000 -> 0.1371273936 | Q63: =Summary!$D$8*(K63*F63*'Average Project Size'!$F$6+L63*G63*'Average Project Size'!$F$7+M63*H63*'Average Project Size'!$F$8+N63*I63*'Average Project Size'!$F$10+O63*J63*'Average Project Size'!$F$9)/1000 -> 0.003340038536
B64: ='Peak Identification'!B62 -> BKFT15 | C64: ='Peak Identification'!D62 -> D | D64: ='Peak Identification'!E62 -> 16 | E64: =VLOOKUP($D64,'DER Output'!$S$17:$X$41,6,FALSE) -> 0.2264402231 | F64: =IF($C64="S",VLOOKUP($D64,'DER Output'!$S$18:$W$41,2,FALSE),VLOOKUP($D64,'DER Output'!$S$18:$W$41,3,FALSE)) -> 0.08156730767 | G64: =IF($C64="S",VLOOKUP($D64,'DER Output'!$S$18:$W$41,4,FALSE),VLOOKUP($D64,'DER Output'!$S$18:$W$41,5,FALSE)) -> 0.08156730767 | H64: =IF($C64="S",VLOOKUP($D64,'DER Output'!$S$18:$W$41,4,FALSE),VLOOKUP($D64,'DER Output'!$S$18:$W$41,5,FALSE)) -> 0.08156730767 | I64: =IF($C64="S",VLOOKUP($D64,'DER Output'!$S$18:$W$41,4,FALSE),VLOOKUP($D64,'DER Output'!$S$18:$W$41,5,FALSE)) -> 0.08156730767 | J64: =IF($C64="S",VLOOKUP($D64,'DER Output'!$S$18:$W$41,4,FALSE),VLOOKUP($D64,'DER Output'!$S$18:$W$41,5,FALSE)) -> 0.08156730767 | K64: =IFERROR(IF(OR(C64="S",C64="D"),VLOOKUP(B64,'Seasonal Customer Count'!$B:$I,4,FALSE),IF(C64="W",VLOOKUP(B64,'Seasonal Customer Count'!$B:$P,12,FALSE),"Check")),0) -> 205 | L64: =IFERROR(IF(OR(C64="S",C64="D"),VLOOKUP(B64,'Seasonal Customer Count'!$B:$P,5,FALSE),IF(C64="W",VLOOKUP(B64,'Seasonal Customer Count'!$B:$P,13,FALSE),"Check")),0) -> 45 | M64: =IFERROR(IF(OR(C64="S",C64="D"),VLOOKUP(B64,'Seasonal Customer Count'!$B:$P,6,FALSE),IF(C64="W",VLOOKUP(B64,'Seasonal Customer Count'!$B:$P,14,FALSE),"Check")),0) -> 91 | N64: =IFERROR(IF(OR(C64="S",C64="D"),VLOOKUP(B64,'Seasonal Customer Count'!$B:$P,7,FALSE),IF(C64="W",VLOOKUP(B64,'Seasonal Customer Count'!$B:$P,15,FALSE),"Check")),0) -> 1 | O64: =IFERROR(IF(OR(C64="S",C64="D"),VLOOKUP(B64,'Seasonal Customer Count'!$B:$P,8,FALSE),IF(C64="W",VLOOKUP(B64,'Seasonal Customer Count'!$B:$P,16,FALSE),"Check")),0) -> 0 | P64: =Summary!$D$8*(K64*'Average Project Size'!$F$6+L64*'Average Project Size'!$F$7+M64*'Average Project Size'!$F$8+N64*'Average Project Size'!$F$10+O64*'Average Project Size'!$F$9)/1000 -> 0.03003475072 | Q64: =Summary!$D$8*(K64*F64*'Average Project Size'!$F$6+L64*G64*'Average Project Size'!$F$7+M64*H64*'Average Project Size'!$F$8+N64*I64*'Average Project Size'!$F$10+O64*J64*'Average Project Size'!$F$9)/1000 -> 0.002449853753
B65: ='Peak Identification'!B63 -> BKFT16 | C65: ='Peak Identification'!D63 -> W | D65: ='Peak Identification'!E63 -> 10 | E65: =VLOOKUP($D65,'DER Output'!$S$17:$X$41,6,FALSE) -> 0 | F65: =IF($C65="S",VLOOKUP($D65,'DER Output'!$S$18:$W$41,2,FALSE),VLOOKUP($D65,'DER Output'!$S$18:$W$41,3,FALSE)) -> 0.1978203909 | G65: =IF($C65="S",VLOOKUP($D65,'DER Output'!$S$18:$W$41,4,FALSE),VLOOKUP($D65,'DER Output'!$S$18:$W$41,5,FALSE)) -> 0.1978203909 | H65: =IF($C65="S",VLOOKUP($D65,'DER Output'!$S$18:$W$41,4,FALSE),VLOOKUP($D65,'DER Output'!$S$18:$W$41,5,FALSE)) -> 0.1978203909 | I65: =IF($C65="S",VLOOKUP($D65,'DER Output'!$S$18:$W$41,4,FALSE),VLOOKUP($D65,'DER Output'!$S$18:$W$41,5,FALSE)) -> 0.1978203909 | J65: =IF($C65="S",VLOOKUP($D65,'DER Output'!$S$18:$W$41,4,FALSE),VLOOKUP($D65,'DER Output'!$S$18:$W$41,5,FALSE)) -> 0.1978203909 | K65: =IFERROR(IF(OR(C65="S",C65="D"),VLOOKUP(B65,'Seasonal Customer Count'!$B:$I,4,FALSE),IF(C65="W",VLOOKUP(B65,'Seasonal Customer Count'!$B:$P,12,FALSE),"Check")),0) -> 21 | L65: =IFERROR(IF(OR(C65="S",C65="D"),VLOOKUP(B65,'Seasonal Customer Count'!$B:$P,5,FALSE),IF(C65="W",VLOOKUP(B65,'Seasonal Customer Count'!$B:$P,13,FALSE),"Check")),0) -> 20 | M65: =IFERROR(IF(OR(C65="S",C65="D"),VLOOKUP(B65,'Seasonal Customer Count'!$B:$P,6,FALSE),IF(C65="W",VLOOKUP(B65,'Seasonal Customer Count'!$B:$P,14,FALSE),"Check")),0) -> 1 | N65: =IFERROR(IF(OR(C65="S",C65="D"),VLOOKUP(B65,'Seasonal Customer Count'!$B:$P,7,FALSE),IF(C65="W",VLOOKUP(B65,'Seasonal Customer Count'!$B:$P,15,FALSE),"Check")),0) -> 2 | O65: =IFERROR(IF(OR(C65="S",C65="D"),VLOOKUP(B65,'Seasonal Customer Count'!$B:$P,8,FALSE),IF(C65="W",VLOOKUP(B65,'Seasonal Customer Count'!$B:$P,16,FALSE),"Check")),0) -> 0 | P65: =Summary!$D$8*(K65*'Average Project Size'!$F$6+L65*'Average Project Size'!$F$7+M65*'Average Project Size'!$F$8+N65*'Average Project Size'!$F$10+O65*'Average Project Size'!$F$9)/1000 -> 0.008344635773 | Q65: =Summary!$D$8*(K65*F65*'Average Project Size'!$F$6+L65*G65*'Average Project Size'!$F$7+M65*H65*'Average Project Size'!$F$8+N65*I65*'Average Project Size'!$F$10+O65*J65*'Average Project Size'!$F$9)/1000 -> 0.001650739111
B66: ='Peak Identification'!B64 -> BKFT17 | C66: ='Peak Identification'!D64 -> S | D66: ='Peak Identification'!E64 -> 19 | E66: =VLOOKUP($D66,'DER Output'!$S$17:$X$41,6,FALSE) -> 0.1106679793 | F66: =IF($C66="S",VLOOKUP($D66,'DER Output'!$S$18:$W$41,2,FALSE),VLOOKUP($D66,'DER Output'!$S$18:$W$41,3,FALSE)) -> 0.0758405601 | G66: =IF($C66="S",VLOOKUP($D66,'DER Output'!$S$18:$W$41,4,FALSE),VLOOKUP($D66,'DER Output'!$S$18:$W$41,5,FALSE)) -> 0.0758405601 | H66: =IF($C66="S",VLOOKUP($D66,'DER Output'!$S$18:$W$41,4,FALSE),VLOOKUP($D66,'DER Output'!$S$18:$W$41,5,FALSE)) -> 0.0758405601 | I66: =IF($C66="S",VLOOKUP($D66,'DER Output'!$S$18:$W$41,4,FALSE),VLOOKUP($D66,'DER Output'!$S$18:$W$41,5,FALSE)) -> 0.0758405601 | J66: =IF($C66="S",VLOOKUP($D66,'DER Output'!$S$18:$W$41,4,FALSE),VLOOKUP($D66,'DER Output'!$S$18:$W$41,5,FALSE)) -> 0.0758405601 | K66: =IFERROR(IF(OR(C66="S",C66="D"),VLOOKUP(B66,'Seasonal Customer Count'!$B:$I,4,FALSE),IF(C66="W",VLOOKUP(B66,'Seasonal Customer Count'!$B:$P,12,FALSE),"Check")),0) -> 1356 | L66: =IFERROR(IF(OR(C66="S",C66="D"),VLOOKUP(B66,'Seasonal Customer Count'!$B:$P,5,FALSE),IF(C66="W",VLOOKUP(B66,'Seasonal Customer Count'!$B:$P,13,FALSE),"Check")),0) -> 89 | M66: =IFERROR(IF(OR(C66="S",C66="D"),VLOOKUP(B66,'Seasonal Customer Count'!$B:$P,6,FALSE),IF(C66="W",VLOOKUP(B66,'Seasonal Customer Count'!$B:$P,14,FALSE),"Check")),0) -> 74 | N66: =IFERROR(IF(OR(C66="S",C66="D"),VLOOKUP(B66,'Seasonal Customer Count'!$B:$P,7,FALSE),IF(C66="W",VLOOKUP(B66,'Seasonal Customer Count'!$B:$P,15,FALSE),"Check")),0) -> 0 | O66: =IFERROR(IF(OR(C66="S",C66="D"),VLOOKUP(B66,'Seasonal Customer Count'!$B:$P,8,FALSE),IF(C66="W",VLOOKUP(B66,'Seasonal Customer Count'!$B:$P,16,FALSE),"Check")),0) -> 112 | P66: =Summary!$D$8*(K66*'Average Project Size'!$F$6+L66*'Average Project Size'!$F$7+M66*'Average Project Size'!$F$8+N66*'Average Project Size'!$F$10+O66*'Average Project Size'!$F$9)/1000 -> 0.144387258 | Q66: =Summary!$D$8*(K66*F66*'Average Project Size'!$F$6+L66*G66*'Average Project Size'!$F$7+M66*H66*'Average Project Size'!$F$8+N66*I66*'Average Project Size'!$F$10+O66*J66*'Average Project Size'!$F$9)/1000 -> 0.01095041052
B67: ='Peak Identification'!B65 -> BKFT T-051 | C67: ='Peak Identification'!D65 -> W | D67: ='Peak Identification'!E65 -> 8 | E67: =VLOOKUP($D67,'DER Output'!$S$17:$X$41,6,FALSE) -> 0 | F67: =IF($C67="S",VLOOKUP($D67,'DER Output'!$S$18:$W$41,2,FALSE),VLOOKUP($D67,'DER Output'!$S$18:$W$41,3,FALSE)) -> 0.02435719405 | G67: =IF($C67="S",VLOOKUP($D67,'DER Output'!$S$18:$W$41,4,FALSE),VLOOKUP($D67,'DER Output'!$S$18:$W$41,5,FALSE)) -> 0.02435719405 | H67: =IF($C67="S",VLOOKUP($D67,'DER Output'!$S$18:$W$41,4,FALSE),VLOOKUP($D67,'DER Output'!$S$18:$W$41,5,FALSE)) -> 0.02435719405 | I67: =IF($C67="S",VLOOKUP($D67,'DER Output'!$S$18:$W$41,4,FALSE),VLOOKUP($D67,'DER Output'!$S$18:$W$41,5,FALSE)) -> 0.02435719405 | J67: =IF($C67="S",VLOOKUP($D67,'DER Output'!$S$18:$W$41,4,FALSE),VLOOKUP($D67,'DER Output'!$S$18:$W$41,5,FALSE)) -> 0.02435719405 | K67: =IFERROR(IF(OR(C67="S",C67="D"),VLOOKUP(B67,'Seasonal Customer Count'!$B:$I,4,FALSE),IF(C67="W",VLOOKUP(B67,'Seasonal Customer Count'!$B:$P,12,FALSE),"Check")),0) -> 80 | L67: =IFERROR(IF(OR(C67="S",C67="D"),VLOOKUP(B67,'Seasonal Customer Count'!$B:$P,5,FALSE),IF(C67="W",VLOOKUP(B67,'Seasonal Customer Count'!$B:$P,13,FALSE),"Check")),0) -> 83 | M67: =IFERROR(IF(OR(C67="S",C67="D"),VLOOKUP(B67,'Seasonal Customer Count'!$B:$P,6,FALSE),IF(C67="W",VLOOKUP(B67,'Seasonal Customer Count'!$B:$P,14,FALSE),"Check")),0) -> 2 | N67: =IFERROR(IF(OR(C67="S",C67="D"),VLOOKUP(B67,'Seasonal Customer Count'!$B:$P,7,FALSE),IF(C67="W",VLOOKUP(B67,'Seasonal Customer Count'!$B:$P,15,FALSE),"Check")),0) -> 209 | O67: =IFERROR(IF(OR(C67="S",C67="D"),VLOOKUP(B67,'Seasonal Customer Count'!$B:$P,8,FALSE),IF(C67="W",VLOOKUP(B67,'Seasonal Customer Count'!$B:$P,16,FALSE),"Check")),0) -> 0 | P67: =Summary!$D$8*(K67*'Average Project Size'!$F$6+L67*'Average Project Size'!$F$7+M67*'Average Project Size'!$F$8+N67*'Average Project Size'!$F$10+O67*'Average Project Size'!$F$9)/1000 -> 0.6231333443 | Q67: =Summary!$D$8*(K67*F67*'Average Project Size'!$F$6+L67*G67*'Average Project Size'!$F$7+M67*H67*'Average Project Size'!$F$8+N67*I67*'Average Project Size'!$F$10+O67*J67*'Average Project Size'!$F$9)/1000 -> 0.01517777979
B68: ='Peak Identification'!B66 -> BKFT T-052 | C68: ='Peak Identification'!D66 -> D | D68: ='Peak Identification'!E66 -> 16 | E68: =VLOOKUP($D68,'DER Output'!$S$17:$X$41,6,FALSE) -> 0.2264402231 | F68: =IF($C68="S",VLOOKUP($D68,'DER Output'!$S$18:$W$41,2,FALSE),VLOOKUP($D68,'DER Output'!$S$18:$W$41,3,FALSE)) -> 0.08156730767 | G68: =IF($C68="S",VLOOKUP($D68,'DER Output'!$S$18:$W$41,4,FALSE),VLOOKUP($D68,'DER Output'!$S$18:$W$41,5,FALSE)) -> 0.08156730767 | H68: =IF($C68="S",VLOOKUP($D68,'DER Output'!$S$18:$W$41,4,FALSE),VLOOKUP($D68,'DER Output'!$S$18:$W$41,5,FALSE)) -> 0.08156730767 | I68: =IF($C68="S",VLOOKUP($D68,'DER Output'!$S$18:$W$41,4,FALSE),VLOOKUP($D68,'DER Output'!$S$18:$W$41,5,FALSE)) -> 0.08156730767 | J68: =IF($C68="S",VLOOKUP($D68,'DER Output'!$S$18:$W$41,4,FALSE),VLOOKUP($D68,'DER Output'!$S$18:$W$41,5,FALSE)) -> 0.08156730767 | K68: =IFERROR(IF(OR(C68="S",C68="D"),VLOOKUP(B68,'Seasonal Customer Count'!$B:$I,4,FALSE),IF(C68="W",VLOOKUP(B68,'Seasonal Customer Count'!$B:$P,12,FALSE),"Check")),0) -> 2047 | L68: =IFERROR(IF(OR(C68="S",C68="D"),VLOOKUP(B68,'Seasonal Customer Count'!$B:$P,5,FALSE),IF(C68="W",VLOOKUP(B68,'Seasonal Customer Count'!$B:$P,13,FALSE),"Check")),0) -> 183 | M68: =IFERROR(IF(OR(C68="S",C68="D"),VLOOKUP(B68,'Seasonal Customer Count'!$B:$P,6,FALSE),IF(C68="W",VLOOKUP(B68,'Seasonal Customer Count'!$B:$P,14,FALSE),"Check")),0) -> 211 | N68: =IFERROR(IF(OR(C68="S",C68="D"),VLOOKUP(B68,'Seasonal Customer Count'!$B:$P,7,FALSE),IF(C68="W",VLOOKUP(B68,'Seasonal Customer Count'!$B:$P,15,FALSE),"Check")),0) -> 1 | O68: =IFERROR(IF(OR(C68="S",C68="D"),VLOOKUP(B68,'Seasonal Customer Count'!$B:$P,8,FALSE),IF(C68="W",VLOOKUP(B68,'Seasonal Customer Count'!$B:$P,16,FALSE),"Check")),0) -> 121 | P68: =Summary!$D$8*(K68*'Average Project Size'!$F$6+L68*'Average Project Size'!$F$7+M68*'Average Project Size'!$F$8+N68*'Average Project Size'!$F$10+O68*'Average Project Size'!$F$9)/1000 -> 0.21096869 | Q68: =Summary!$D$8*(K68*F68*'Average Project Size'!$F$6+L68*G68*'Average Project Size'!$F$7+M68*H68*'Average Project Size'!$F$8+N68*I68*'Average Project Size'!$F$10+O68*J68*'Average Project Size'!$F$9)/1000 -> 0.01720814805
B69: ='Peak Identification'!B67 -> BKFT T-161 | C69: ='Peak Identification'!D67 -> S | D69: ='Peak Identification'!E67 -> 20 | E69: =VLOOKUP($D69,'DER Output'!$S$17:$X$41,6,FALSE) -> 0.002707295301 | F69: =IF($C69="S",VLOOKUP($D69,'DER Output'!$S$18:$W$41,2,FALSE),VLOOKUP($D69,'DER Output'!$S$18:$W$41,3,FALSE)) -> 0.0202949667 | G69: =IF($C69="S",VLOOKUP($D69,'DER Output'!$S$18:$W$41,4,FALSE),VLOOKUP($D69,'DER Output'!$S$18:$W$41,5,FALSE)) -> 0.0202949667 | H69: =IF($C69="S",VLOOKUP($D69,'DER Output'!$S$18:$W$41,4,FALSE),VLOOKUP($D69,'DER Output'!$S$18:$W$41,5,FALSE)) -> 0.0202949667 | I69: =IF($C69="S",VLOOKUP($D69,'DER Output'!$S$18:$W$41,4,FALSE),VLOOKUP($D69,'DER Output'!$S$18:$W$41,5,FALSE)) -> 0.0202949667 | J69: =IF($C69="S",VLOOKUP($D69,'DER Output'!$S$18:$W$41,4,FALSE),VLOOKUP($D69,'DER Output'!$S$18:$W$41,5,FALSE)) -> 0.0202949667 | K69: =IFERROR(IF(OR(C69="S",C69="D"),VLOOKUP(B69,'Seasonal Customer Count'!$B:$I,4,FALSE),IF(C69="W",VLOOKUP(B69,'Seasonal Customer Count'!$B:$P,12,FALSE),"Check")),0) -> 0 | L69: =IFERROR(IF(OR(C69="S",C69="D"),VLOOKUP(B69,'Seasonal Customer Count'!$B:$P,5,FALSE),IF(C69="W",VLOOKUP(B69,'Seasonal Customer Count'!$B:$P,13,FALSE),"Check")),0) -> 0 | M69: =IFERROR(IF(OR(C69="S",C69="D"),VLOOKUP(B69,'Seasonal Customer Count'!$B:$P,6,FALSE),IF(C69="W",VLOOKUP(B69,'Seasonal Customer Count'!$B:$P,14,FALSE),"Check")),0) -> 0 | N69: =IFERROR(IF(OR(C69="S",C69="D"),VLOOKUP(B69,'Seasonal Customer Count'!$B:$P,7,FALSE),IF(C69="W",VLOOKUP(B69,'Seasonal Customer Count'!$B:$P,15,FALSE),"Check")),0) -> 0 | O69: =IFERROR(IF(OR(C69="S",C69="D"),VLOOKUP(B69,'Seasonal Customer Count'!$B:$P,8,FALSE),IF(C69="W",VLOOKUP(B69,'Seasonal Customer Count'!$B:$P,16,FALSE),"Check")),0) -> 0 | P69: =Summary!$D$8*(K69*'Average Project Size'!$F$6+L69*'Average Project Size'!$F$7+M69*'Average Project Size'!$F$8+N69*'Average Project Size'!$F$10+O69*'Average Project Size'!$F$9)/1000 -> 0 | Q69: =Summary!$D$8*(K69*F69*'Average Project Size'!$F$6+L69*G69*'Average Project Size'!$F$7+M69*H69*'Average Project Size'!$F$8+N69*I69*'Average Project Size'!$F$10+O69*J69*'Average Project Size'!$F$9)/1000 -> 0
